{"text_format":"1","workbook":"xlsx","n_sheets":7,"sheets":["الموظفين","ورقة3","ترتيب المدارس","Sheet1","كشف","تجميع","مجموع المدارس"],"not_rendered":{"charts":0,"images":0,"macros":1,"external_links":0,"defined_names":9,"comments":0,"pivot_tables":0},"unopened":[],"bounds":{"document_bytes":16777216,"sheet_cells":100000,"rows_first":2000,"rows_last":500,"rows_between":2000,"halvings":0,"cell_chars":16384,"cell_head_chars":4096},"cells_cut":0,"cells_raw":0,"read":"whole","date_system":"1900"}

{"sheet":"الموظفين","index":0,"n_rows":15,"n_cols":8,"rows_kept":15,"cut":false,"hidden":false,"merged":[[1,4,1,5],[3,4,3,5]]}
["مديرية "]
["إدارة"]
["مدرسة .............................",null,"كشف عاملية"]
[]
[]
["م","الاســـــــــــــــــــــــــم","الوظيفة ","الماده","الاقامه الحاليه ","اسم المدرسة ","القطاع","الإدارة "]
[1,"محمد","مدير","عربي","الزقازيق","الزقازيق ت س","الزقازيق","الزقازيق"]
[2,"ولييد","معلم","رياضيات","الزقازيق","الزقازيق ت س","الزقازيق","الزقازيق"]
[3,"سليم","معلم","رياضيات","الزقازيق","الزقازيق ت س","الزقازيق","الزقازيق"]
[4,"وسام","مدير","عربى","قسم اول","السلام الإعدادية","الزقازيق","الزقازيق"]
[5,"سمير","معلم","انجليزي","قسم اول","السلام الإعدادية","الزقازيق","الزقازيق"]
[6,"محمد","مدير","مجالات","حى السلام","وسط البلد الابتدائية","هيها","الزقازيق"]
[7,"خالد","معلم","عربي","شارع السنترال","وسط البلد الابتدائية","هيها","الزقازيق"]
[8,"هادى","معلم","دراسات","الزقازيق","وسط البلد الابتدائية","هيها","الزقازيق"]
[9,"السيد","معلم","انجليزي","الزقازيق","وسط البلد الابتدائية","هيها","الزقازيق"]

{"sheet":"ورقة3","index":1,"n_rows":87,"n_cols":1,"rows_kept":87,"cut":false,"hidden":true,"merged":[]}
["الاتصال السياسى  / ديوان عام الادارة "]
["التوجيه المالى والادارى / ديوان الادارة"]
["التوجيه المالى والادارى / ديوان الادارة"]
["التوجيه المالى والادارى / ديوان الادارة"]
["التوجيه المالى والادارى / ديوان الادارة"]
["الحسابات / ديوان عام الادارة "]
["الحسابات / ديوان عام الادارة "]
["الحسابات / ديوان عام الادارة "]
["الحسابات / ديوان عام الادارة "]
["الحسابات / ديوان عام الادارة "]
["الحسابات / ديوان عام الادارة "]
["الحسابات / ديوان عام الادارة "]
["الحسابات / ديوان عام الادارة "]
["الحسابات / ديوان عام الادارة "]
["التخطيط والمتابعه بالادارة "]
["شئون طلبة / ديوان الادارة "]
["شئون طلبة / ديوان الادارة "]
["شئون طلبة / ديوان الادارة "]
["شئون طلبة / ديوان الادارة "]
["ديوان الادارة"]
["شئون العاملين/  ديوان الادارة "]
["شئون العاملين/  ديوان الادارة "]
["شئون العاملين/  ديوان الادارة "]
["شئون العاملين/  ديوان الادارة "]
["شئون العاملين/  ديوان الادارة "]
["شئون العاملين/  ديوان الادارة "]
["شئون العاملين/  ديوان الادارة "]
["شئون العاملين/  ديوان الادارة "]
["شئون العاملين/  ديوان الادارة "]
["شئون العاملين/  ديوان الادارة "]
["شئون العاملين/  ديوان الادارة "]
["الوسائل التعليمية / ديوان الادارة "]
["الوسائل التعليمية / ديوان الادارة "]
["الوسائل التعليمية / ديوان الادارة "]
["الوسائل التعليمية / ديوان الادارة "]
["الوسائل التعليمية / ديوان الادارة "]
["قسم التطوير/ ديوان عام الادارة"]
["المتابعة / ديوان الادارة "]
["المتابعة / ديوان الادارة "]
["المتابعة / ديوان الادارة "]
["المتابعة / ديوان الادارة "]
["مخازن الادارة التعليمية /ديوان الادارة"]
["مخازن الادارة التعليمية /ديوان الادارة"]
["مخازن الادارة التعليمية /ديوان الادارة"]
["مخازن الادارة التعليمية /ديوان الادارة"]
["مخازن الادارة التعليمية /ديوان الادارة"]
["مخازن الادارة التعليمية /ديوان الادارة"]
["مخازن الادارة التعليمية /ديوان الادارة"]
["مخازن الادارة التعليمية /ديوان الادارة"]
["مخازن الادارة التعليمية /ديوان الادارة"]
["توجيه الرياضيات/ديوان الادارة"]
["توجيه الرياضيات/ديوان الادارة"]
["توجيه الرياضيات/ديوان الادارة"]
["توجيه الرياضيات/ديوان الادارة"]
["توجيه الرياضيات/ديوان الادارة"]
["توجية الحاسب الالى / ديوان الإدارة"]
["توجية الحاسب الالى / ديوان الإدارة"]
["توجية الحاسب الالى / ديوان الإدارة"]
["توجيه التربية الفنيه / ديوان الإدارة"]
["توجيه التربية الفنيه / ديوان الإدارة"]
["توجيه العلوم/ديوان الإدارة"]
["توجيه العلوم/ديوان الإدارة"]
["توجية التربية الاجتماعية /ديوان الإدارة"]
["توجية التربية الاجتماعية /ديوان الإدارة"]
["توجية التربية الاجتماعية /ديوان الإدارة"]
["توجية اللغة العربية /ديوان الإدارة"]
["توجية اللغة العربية /ديوان الإدارة"]
["توجية اللغة العربية /ديوان الإدارة"]
["توجية اللغة العربية /ديوان الإدارة"]
["توجية اللغة العربية /ديوان الإدارة"]
["توجية اللغة العربية /ديوان الإدارة"]
["توجية اللغة الانجليزية/ديوان الإدارة"]
["توجية اللغة الانجليزية/ديوان الإدارة"]
["توجية اللغة الانجليزية/ديوان الإدارة"]
["ديوان الادارة"]
["ديوان الادارة"]
["قسم المبانى بالادارة التعليمية /ديوان الإدارة"]
["قسم المبانى بالادارة التعليمية /ديوان الإدارة"]
["قسم المبانى بالادارة التعليمية /ديوان الإدارة"]
["قسم المبانى بالادارة التعليمية /ديوان الإدارة"]
["قسم المبانى بالادارة التعليمية /ديوان الإدارة"]
["قسم الوحده المنتجه بالادارة "]
["قسم الوحده المنتجه بالادارة "]
["قسم الوحده المنتجه بالادارة "]
["ديوان الادارة"]
["ديوان الادارة"]
["ديوان الادارة"]

{"sheet":"ترتيب المدارس","index":2,"n_rows":2377,"n_cols":6,"rows_kept":2377,"cut":false,"hidden":true,"merged":[]}
["م","الاســـــــــــــــــــــــــم","الوظيفة ","الماده","الاقامه الحاليه ","اسم المدرسة "]
[1,"حسن احمد محمد خليل","م.خبير","لغة عربية","الحسينيه","ابو ايوب الانصارى للتعليم الاساسى"]
[2,"سحر صالح عبدالسلام","م.خبير","لغة عربية","الحسينيه","ابو ايوب الانصارى للتعليم الاساسى"]
[3,"امل احمد المرحلى","معلم","لغة عربية","الحسينيه","ابو ايوب الانصارى للتعليم الاساسى"]
[4,"نجلاء محمد يوسف","م.خبير","رياضيات","الحسينيه","ابو ايوب الانصارى للتعليم الاساسى"]
[5,"ايمن طلعت عبدالحليم","م.خبير","علوم","الحسينيه","ابو ايوب الانصارى للتعليم الاساسى"]
[6,"محمد شحاته عبدالصادق","م.اول أ","علوم","الحسينيه","ابو ايوب الانصارى للتعليم الاساسى"]
[7,"ابو الحسن جلال عبدالحليم","م.اول أ","انجليزى","سعود","ابو ايوب الانصارى للتعليم الاساسى"]
[8,"منال احمد جمال الدين","م.اول أ","اخصائى اجتماعى","الحسينيه","ابو ايوب الانصارى للتعليم الاساسى"]
[9,"فاطمه عبدالله عبدالرحمن","م.اول","اخصائى نفسى","البراكتية","ابو ايوب الانصارى للتعليم الاساسى"]
[10,"اسماء احمد كامل","م.اول","حاسب الى","الحسينيه","ابو ايوب الانصارى للتعليم الاساسى"]
[11,"حوريه محمد محمود","م.اول","خط عربى","البراكتية","ابو ايوب الانصارى للتعليم الاساسى"]
[12,"مرفت عبدالمنعم عبدالعال","م.اول","خط عربى","الحسينيه","ابو ايوب الانصارى للتعليم الاساسى"]
[13,"منار عبدالرحمن السيد","م.مساعد","رياض اطفال","الحسينيه","ابو ايوب الانصارى للتعليم الاساسى"]
[14,"حنان سمير محمد موسى","م.مساعد","رياض اطفال","البراكتية","ابو ايوب الانصارى للتعليم الاساسى"]
[15,"نريمان فاروق سلامه","فنى تشغيل","فنى تشغيل","الحسينيه","ابو ايوب الانصارى للتعليم الاساسى"]
[16,"امل عبدالرازق عبدالله","فنى تشغيل","فنى تشغيل","البراكتية","ابو ايوب الانصارى للتعليم الاساسى"]
[17,"ايمان محمد عطيه","فنى تشغيل","فنى تشغيل","الحسينيه","ابو ايوب الانصارى للتعليم الاساسى"]
[18,"جيهان عبدالمنعم السيد","مشرف نشاط","مشرف نشاط","المناجاه","ابو ايوب الانصارى للتعليم الاساسى"]
[19,"ولاء حسينى عبدالسلام","اخصائى صحافة","اخصائى صحافة","المناجاه","ابو ايوب الانصارى للتعليم الاساسى"]
[20,"السيد عبد السلام السيد أحمد","وكيل",null,"جزيرة عليوة","ابو خالد للتعليم الاساسى"]
[21,"بشري محمد محمد نايل","معلم أول أ","لغة عربية","جزيرة عليوة","ابو خالد للتعليم الاساسى"]
[22,"السيد عبدالمنعم ابراهيم رمضان","معلم خبير","لغة عربية","جزيرة عليوة","ابو خالد للتعليم الاساسى"]
[23,"السيد حمدان على ربيع","معلم خبير","لغة عربية","جزيرة عليوة","ابو خالد للتعليم الاساسى"]
[24,"لمياء عبدالله يونس اسماعيل","معلم أول","لغة عربية","جزيرة عليوة","ابو خالد للتعليم الاساسى"]
[25,"سمر أحمد السيد أحمد عوض","معلم أول أ","رياضيات","جزيرة عليوة","ابو خالد للتعليم الاساسى"]
[26,"رشدى شحاتة محمد مسعود","معلم خبير","رياضيات","جزيرة عليوة","ابو خالد للتعليم الاساسى"]
[27,"عبدالمنعم محمد محمد فراج","معلم خبير","رياضيات","جزيرة عليوة","ابو خالد للتعليم الاساسى"]
[28,"عبدالعزيز عبدالفتاح عبدالحميد عبداللطيف","معلم خبير","رياضيات","جزيرة عليوة","ابو خالد للتعليم الاساسى"]
[29,"عبير إبراهيم محمد إدريس","معلم خبير","دراسات","جزيرة عليوة","ابو خالد للتعليم الاساسى"]
[30,"ماهر عبد القادر سالم سليم","أخصائى أ أ","تربية اجتماعية","جزيرة عليوة","ابو خالد للتعليم الاساسى"]
[31,"عارف عبدالرحمن نايل يونس","مشرف نشاط",null,"جزيرة عليوة","ابو خالد للتعليم الاساسى"]
[32,"محمد أحمد إبراهيم رمضان","أخصائى صحافة أ","أخصائى صحافة","جزيرة عليوة","ابو خالد للتعليم الاساسى"]
[33,"فكرى عبدالعزيز أحمد أحمد","معلم أول خط عربى","خط عربى","جزيرة عليوة","ابو خالد للتعليم الاساسى"]
[34,"محمد محمد عثمان العطار","مدير مدرسة","لا يوجد","الجمالية - م الحسينية","ابو نافع للتعليم الاساسى"]
[35,"مجدى محمد محمود مسعد","معلم خبير","لغة انجليزية","سماكين الشرق","ابو نافع للتعليم الاساسى"]
[36,"محمد عبدالغفار بدراوى محمد","معلم خبير","لغة عربية","العاشر من رمضان","ابو نافع للتعليم الاساسى"]
[37,"محمد عبدالكريم على عبدالرازق","معلم خبير","لغة عربية","العاشر من رمضان","ابو نافع للتعليم الاساسى"]
[38,"ريهام حسن عبدالحق اسماعيل ","معلم اول","لغة عربية","الصالحية القديمة","ابو نافع للتعليم الاساسى"]
[39,"فهيمة عبدالرحمن ناصر الوزير","معلم اول","لغة عربية","الاسماعيلية","ابو نافع للتعليم الاساسى"]
[40,"هشام موسى عبدالسلام احمد","معلم اول","رياضيات","قصاصين الشرق","ابو نافع للتعليم الاساسى"]
[41,"محمد محمود غريب محمود","معلم اول أ","حاسب الى","واحد الصالحية","ابو نافع للتعليم الاساسى"]
[42,"هبه عبدالباسط احمد سليمان","اخصائى اجتماعى","لا يوجد","الاسماعيلية","ابو نافع للتعليم الاساسى"]
[43,"هناء عبدالفتاح محمد السيد","م نشاط","لا يوجد","الاسماعيلية","ابو نافع للتعليم الاساسى"]
[44,"عبدالفتاح على عبدالفتاح على","كاتب","لا يوجد","3 الصالحية","ابو نافع للتعليم الاساسى"]
[45,"ابراهيم حسين ابراهيم هلال","معلم خبير","دراسات","الظواهرية م ابو عمر شرقية","احمد جبر فلاح الابتدائيه"]
[46,"منصور منصور رويشد سليمان","م اول ا","لغة عربية","تانيس صان الحجر شرقية","احمد جبر فلاح الابتدائيه"]
[47,"محمد محمد محسوب سبع","معلم اول","لغة عربية","تانيس صان الحجر شرقية","احمد جبر فلاح الابتدائيه"]
[48,"عبدالله محمد احمد عبدالغنى","م خبير","رياضيات","الفولى م ابو عمر شرقية","احمد جبر فلاح الابتدائيه"]
[49,"هيام عبدالجبار محمد منصور ","م اول ا","رياضيات","عليوه  م ابو عمر شرقية","احمد جبر فلاح الابتدائيه"]
[50,"منصور محمد يوسف عطية","م اول","علوم","تانيس صان الحجر شرقية","احمد جبر فلاح الابتدائيه"]
[51,"رائيفة محمد احمد ابو هاشم","اخصائى اول","ــــــــــــ","تانيس صان الحجر شرقية","احمد جبر فلاح الابتدائيه"]
[52,"عبدالسلام احمد سالم سلامه","م نشاط","ــــــــــــ","الفولى م ابو عمر شرقية","احمد جبر فلاح الابتدائيه"]
[53,"بهاء عبدالعزيز ابراهيم محمود","م نشاط","ــــــــــــ","الظواهرية م ابو عمر شرقية","احمد جبر فلاح الابتدائيه"]
[54,"سلامه احمد سلامه عطية","كاتب ","ــــــــــــ","صان الحجر شرقية ","احمد جبر فلاح الابتدائيه"]
[55,"ابراهيم محمد احمد عوض","م0أ0أ","لغة عربيه ","الحسينية","ازولين الابتدائيه"]
[56,"نسرين اسماعيل محمد","م0أ0أ","لغة عربيه ","ازولين","ازولين الابتدائيه"]
[57,"حورية حسن عبداللطيف","م0أ0أ","لغة عربيه ","الحسينية","ازولين الابتدائيه"]
[58,"عبدالرحمن محمد عبدالرحمن","م0أ0أ","لغة عربيه ","ازولين","ازولين الابتدائيه"]
[59,"هاشم عبدالولي احمد","م0أ ","لغة عربيه ","الحسينية","ازولين الابتدائيه"]
[60,"وفاء رزق مسعد عريف","م0أ ","لغة عربيه ","ازولين","ازولين الابتدائيه"]
[61,"سماح منصور محمد","م0أ ","لغة عربيه ","الحسينية","ازولين الابتدائيه"]
[62,"مرفت عبدالحميد عبدالعزيز","م0أ ","لغة عربيه ","الحسينية","ازولين الابتدائيه"]
[63,"رحاب يحيى السيد ابراهيم","م0أ ","لغة عربيه ","الحسينية","ازولين الابتدائيه"]
[64,"امنية حسام الدين احمد","معلم مساعد","لغة عربيه","ازولين","ازولين الابتدائيه"]
[65,"اميرة عبدالحكيم السيد","معلم مساعد","إنجليزي","الحسينية","ازولين الابتدائيه"]
[66,"فيروز حسن محمد","اخصائية اجتماعية",null,"ع محمد عبيد","ازولين الابتدائيه"]
[67,"عبدالرحيم محمود محمد","م نشاط","مسؤل امن","ازولين","ازولين الابتدائيه"]
[68,"عبدالله ابراهيم محمد","فنى معمل",null,"زولين","ازولين الابتدائيه"]
[69,"نادرة محمد اسماعيل","فنى تشغيل",null,"زولين","ازولين الابتدائيه"]
[70,"السيد محمد الطوخي","كاتب",null,"الحسينية","ازولين الابتدائيه"]
[71,"احمد السيد محمد محمد","معلم خبير","مجال زراعى","الحسينيه","ازولين الاعداديه"]
[72,"عطيه جمعه محمد غانم","كبير معلمين","انجليزى","الحسينيه","ازولين الاعداديه"]
[73,"عطيه محمد عبدالمقصود مرسى","معلم اول أ","لغة عربيه","ازولين","ازولين الاعداديه"]
[74,"نهى محمود احمد موسى","معلم اول أ","لغة عربيه","ازولين","ازولين الاعداديه"]
[75,"السيد عبدالكريم عوض الله احمد","معلو اول أ","علوم","ازولين","ازولين الاعداديه"]
[76,"حسن ابراهيم محمد سالم","معلم اول أ","دراسات","ازولين","ازولين الاعداديه"]
[77,"احمد محمد عبدالله اسماعيل","معلم اول أ","دراسات","ازولين","ازولين الاعداديه"]
[78,"ناهد مسلم مسلم زيدان","معلم اول أ","اقتصاد منزلى","ازولين","ازولين الاعداديه"]
[79,"ايه حلمى عبده حسن","معلم اول","رياضيات","ازولين","ازولين الاعداديه"]
[80,"ايناس عبدالعظيم توفيق السيد","اخصائى اجتماعى","اخصائى اجتماعى","ازولين بشاره","ازولين الاعداديه"]
[81,"ابراهيم السيد على السيد","م نشاط","م نشاط","ازولين","ازولين الاعداديه"]
[82,"السيد محمد محمد سلامه","فنى تشغيل","فنى تشغيل","ازولين","ازولين الاعداديه"]
[83,"محمد السيد محمد ابراهيم","فنى تشغيل","فنى تشغيل","ازولين","ازولين الاعداديه"]
[84,"رحاب محمود احمد موسى","امين معمل","امين معمل","ازوين","ازولين الاعداديه"]
[85,"امل محمد مجاهد درويش","امين معمل","امين معمل","ازولين","ازولين الاعداديه"]
[86,"امال عبدالرحمن على سلامه","امين توريدات","امين توريدات","ازولين","ازولين الاعداديه"]
[87,"عبدالهادى محمد محمد عبدالحليم","معلم اول ا","لغة عربية ","تانيس صان الحجر شرقية ","الاتحاد للتعليم الاساسى "]
[88,"ماجدة عنتر على محمد","معلم اول ","لغة عربية ب","الاتحاد صان الحجر شرقية","الاتحاد للتعليم الاساسى "]
[89,"حفناوى السيد على محمد","معلم مساعد","لغة عربية ب","السعدى الحسينية شرقية","الاتحاد للتعليم الاساسى "]
[90,"محمد روبين محمد محمود","معلم مساعد","لغة عربية ب","الحسينية  شرقية","الاتحاد للتعليم الاساسى "]
[91,"فاطمة السيد السيد امام","معلم اول","فرنساوى","الاتحاد صان الحجر شرقية","الاتحاد للتعليم الاساسى "]
[92,"محمد عبدالحميد السيد محمد","معلم مساعد","انجليزى","م بشارة الحسينية  شرقية","الاتحاد للتعليم الاساسى "]
[93,"وفاء متولى اسماعيل حسانين","اخصائى اول","ـــــــــــ","الاتحاد صان الحجر شرقية","الاتحاد للتعليم الاساسى "]
[94,"عصام احمد محمود حسن","امين معمل","ـــــــــــ","الاتحاد صان الحجر شرقية","الاتحاد للتعليم الاساسى "]
[95,"عزيزة السيد كامل على","امين معمل","ـــــــــــ","الاتحاد صان الحجر شرقية","الاتحاد للتعليم الاساسى "]
[96,"محمد محمد ابراهيم عطية","م وسائل","ـــــــــــ","تانيس صان الحجر شرقية ","الاتحاد للتعليم الاساسى "]
[97,"علاء محمد عبدالرؤف عبدالوهاب","كاتب خامس","ـــــــــــ","اللبشة صان الحجر شرقية ","الاتحاد للتعليم الاساسى "]
[98,"محمد عبدالسلام محمود ابراهيم","معلم خبير","لغة  عربية ","الاخيوة - حسينية ","الاخيوة الاعداديه"]
[99,"رباح محمد ابراهيم محمد","معلم اول ا","لغة  عربية ","الاخيوة - حسينية ","الاخيوة الاعداديه"]
[100,"ايناس سباعى عبدالكريم ","معلم اول ا","لغة  عربية ","الاخيوة - حسينية ","الاخيوة الاعداديه"]
[101,"يسرية ابراهيم كمال محمد ","معلم ","لغة  عربية ","الاخيوة - حسينية ","الاخيوة الاعداديه"]
[102,"زينب عبدالرحمن عبدالعزيز حسين  ","معلم اول ا","دراسات ","الجمالية -حسينية ","الاخيوة الاعداديه"]
[103,"مجدة مسعد رزق سليمان ","كبير معلمين","رياضيات ","الاخيوة - حسينية ","الاخيوة الاعداديه"]
[104,"الشحات ابراهيم احمد حسين ","معلم اول ا","علوم ","الاخيوة - حسينية ","الاخيوة الاعداديه"]
[105,"احمد مصطفى حسين محمد","معلم اول ا","علوم ","عليوة -حسينية ","الاخيوة الاعداديه"]
[106,"سماح محمد امام محمد","معلم اول ا","اخصائى تكنولوجيا ","الاخيوة - حسينية ","الاخيوة الاعداديه"]
[107,"سماح محمد عبدالسلام محمد","معلم ","اخصائى اجتماعى ","الاخيوة - حسينية ","الاخيوة الاعداديه"]
[108,"وفاء كامل على موسى ","معلم ","اخصائى اجتماعى ","الصالحية - الاخيوة ","الاخيوة الاعداديه"]
[109,"اميرة احمد عبدالغنى محمد ","معلم اول ا","اخصائى نفسى ","الاخيوة - حسينية ","الاخيوة الاعداديه"]
[110,"افنان السيد احمد محمد ","معلم اول ","اخصائى مكتبة ","الاخيوة - حسينية ","الاخيوة الاعداديه"]
[111,"شيماء الشبراوى محمد محمد","فنى وسائل ","وسائل تعليمية ","سعود -حسينية ","الاخيوة الاعداديه"]
[112,"سماح فتحى اسماعيل مرسى ","مشرف نشاط","ادارى ","الاخيوة - حسينية ","الاخيوة الاعداديه"]
[113,"زينب محمد ابراهيم حسين ","امين معمل ","معمل","الاخيوة - حسينية ","الاخيوة الاعداديه"]
[114,"ولاء ابراهيم حمدان محمد ","امين معمل ","معمل","الاخيوة - حسينية ","الاخيوة الاعداديه"]
[115,"مرفت عزت عيداروس محمد ","مشرف نشاط","مشرف","الاخيوة - حسينية ","الاخيوة الاعداديه"]
[116,"ثريا محمد الرفاعي ابراهيم محمد  ","مدير مدرسه","اخصائي اجتماعي","الحسينيه","الاعداديه المهنيه"]
[117,"امل كامل محمد عوض                ","كبير معلمين","لغه عربيه","الحسينيه","الاعداديه المهنيه"]
[118,"ابراهيم احمد طنطاوي اسماعيل","معلم خبير","مجال صناعي","الحسينيه","الاعداديه المهنيه"]
[119,"عزه محمد عبد الكريم اسماعيل","معلم خبير","تربيه فنيه","الحسينيه","الاعداديه المهنيه"]
[120,"فايزه السيد محمد شلبي","معلم خبير","مجال تجاري","الحسينيه","الاعداديه المهنيه"]
[121,"ماري ملاك كامل جورجي","معلم خبير","اقتصاد منزلي","الحسينيه","الاعداديه المهنيه"]
[122,"طارق محمد على عبدالعال","معلم خبير","لغه عربيه","الحسينيه","الاعداديه المهنيه"]
[123,"محمد عبد السميع عبدالغنى السيد","معلم خبير","تربية زراعية","الحسينيه","الاعداديه المهنيه"]
[124,"ريحاب السيد حامد علاق","معلم اول ا","علوم","الحسينيه","الاعداديه المهنيه"]
[125,"ملكه عبد الفتاح اسماعيل علي","معلم اول ا","مجال تجاري","الحسينيه","الاعداديه المهنيه"]
[126,"ولاء محمد طلبه عطيه","معلم اول","دراسات اجتماعيه","الحسينيه","الاعداديه المهنيه"]
[127,"اماني عبد الله السيد متولي","معلم اول","لغه انجليزيه","الحسينيه","الاعداديه المهنيه"]
[128,"اميره احمد عبد الرحمن محمود","معلم","تربيه رياضيه","الحسينيه","الاعداديه المهنيه"]
[129,"شيرين محمد شمس الدين المنشاوي","اخصائي صحافه","اخصائي صحافه","الحسينيه","الاعداديه المهنيه"]
[130,"رحاب السيد احمد عبد العال حسن","فني تشغيل","فني تشغيل","الحسينيه","الاعداديه المهنيه"]
[131,"صفاء عبد العظيم سليمان محمد","فني تشغيل","فني تشغيل","الحسينيه","الاعداديه المهنيه"]
[132,"زكريا محمد بكرى عماره","ادارى","ادارى","الحسينيه","الاعداديه المهنيه"]
[133,"حسن عبد الله احمد عامر","معلم خبير- مدير مدرسة","مدير المدرسة","البياضية مركز الحسينية - الشرقية","الجزيرة الابتدائيه"]
[134,"محمد خير عباس خير","معلم خبير- وكيل  مدرسة","وكيل المدرسة","البياضية مركز الحسينية - الشرقية","الجزيرة الابتدائيه"]
[135,"ابراهيم محمد محمد درويش","معلم خبير","لغة عربية ودين","البياضية مركز الحسينية - الشرقية","الجزيرة الابتدائيه"]
[136,"ابوزيد مطر سلامة حمد","معلم خبير","دراسات","البياضية مركز الحسينية - الشرقية","الجزيرة الابتدائيه"]
[137,"فايزة محمد عوض عطية","معلم خبير","رياضيات","ع الفطراني - ام صوير","الجزيرة الابتدائيه"]
[138,"فاطمة عبد العزيز احمد عبد العال","معلم خبير","رياضيات","البياضية مركز الحسينية - الشرقية","الجزيرة الابتدائيه"]
[139,"عمر بكري سليمان سالم","معلم خبير","رياضيات","البياضية مركز الحسينية - الشرقية","الجزيرة الابتدائيه"]
[140,"محمد ابراهيم عبدالعزيز حسين","معلم اول ا","لغة انجليزية","ام عجرم  مركز فاقوس - الشرقة","الجزيرة الابتدائيه"]
[141,"سلامة شحتة سلامة سالم","معلم اول ا","لغة عربية ودين","البياضية مركز الحسينية - الشرقية","الجزيرة الابتدائيه"]
[142,"علي محمد علي غريب","معلم اول ا","تربية رياضية","الحسينية عزبة التل","الجزيرة الابتدائيه"]
[143,"عبدالحميد محمودي صالح علي","معلم اول","لغة عربية ودين","البياضية مركز الحسينية - الشرقية","الجزيرة الابتدائيه"]
[144,"نيره فاكر الشافعي ابو العينين","معلم اول","علوم","البياضية مركز الحسينية - الشرقية","الجزيرة الابتدائيه"]
[145,"نعيمه عبدالهادى عبدالرحمن ابراهيم","معلم اول","حاسب الى","النجار - م ابوعامر - الحسينية","الجزيرة الابتدائيه"]
[146,"فاطمه السيد عبده حسن","معلم اول","لغة عربية ودين","البياضية مركز الحسينية - الشرقية","الجزيرة الابتدائيه"]
[147,"طارق يوسف ابراهيم هنداوى","معلم اول","لغة عربية ودين","جميمة مركز الحسينية - الشرقية","الجزيرة الابتدائيه"]
[148,"الاحمدي محمد عبدالعال احمد موافي","معلم","لغة عربية ودين","منشاة ابوعامر","الجزيرة الابتدائيه"]
[149,"سحر محمد على حسين","فنى تشغيل وسائل تعليمية",null,"عرب درويش-فاقوس","الجزيرة الابتدائيه"]
[150,"حماده حسين بركات حسين","فني تشغيل رابع ب",null,"البياضية مركز الحسينية - الشرقية","الجزيرة الابتدائيه"]
[151,"ناديه فارس سلمى سالم","كاتب رابع- سكرتير رابع",null,"عرب درويش-فاقوس","الجزيرة الابتدائيه"]
[152,"ليلى رجب مصطفى الامير","عامل خدمات",null,"البياضية مركز الحسينية - الشرقية","الجزيرة الابتدائيه"]
[153,"محمد سليمان سالم ابراهيم","عامل خدمات",null,"البياضية مركز الحسينية - الشرقية","الجزيرة الابتدائيه"]
[154,"احمد الشافعى عبيد خطاب","فنى رابع",null,"مدرسة الحاجة نزيهة السماحى","الحاجة نزيهة السماحي للتعليم الاساسى"]
[155,"امال محمد منيع محمد","فني رابع",null,"مدرسة الحاجة نزيهة السماحى","الحاجة نزيهة السماحي للتعليم الاساسى"]
[156,"جملات سعيد عبدالعزيز","معلم خبير","رياضيات","مدرسة الحاجة نزيهة السماحى","الحاجة نزيهة السماحي للتعليم الاساسى"]
[157,"جورجينا يوسف لبيب","حاسب آلي","معلم اول أ","مدرسة الحاجة نزيهة السماحى","الحاجة نزيهة السماحي للتعليم الاساسى"]
[158,"دعاء صلاح عبدالفتاح امام","معلم مساعد","دراسات","مدرسة الحاجة نزيهة السماحى","الحاجة نزيهة السماحي للتعليم الاساسى"]
[159,"ذهبيه صابر عبدالدايم مبارك","فني تشغيل",null,"مدرسة الحاجة نزيهة السماحى","الحاجة نزيهة السماحي للتعليم الاساسى"]
[160,"رشا جاد عبدالقادر إبراهيم ","خ نفسي",null,"مدرسة الحاجة نزيهة السماحى","الحاجة نزيهة السماحي للتعليم الاساسى"]
[161,"سماح محمد محمد","مشرف نشاط","مشرف نشاط","مدرسة الحاجة نزيهة السماحى","الحاجة نزيهة السماحي للتعليم الاساسى"]
[162,"سناء محمد الانور حسن","م أول أ","لغة عربية","مدرسة الحاجة نزيهة السماحى","الحاجة نزيهة السماحي للتعليم الاساسى"]
[163,"شرين السيد محمد علي","م أول أ","لغة عربية","مدرسة الحاجة نزيهة السماحى","الحاجة نزيهة السماحي للتعليم الاساسى"]
[164,"عايدة باز محمود","معلم أول ","لغة انجليزية","مدرسة الحاجة نزيهة السماحى","الحاجة نزيهة السماحي للتعليم الاساسى"]
[165,"علياء محمد السيد سليم","أخصائي اول أ","خ اجتماعي","مدرسة الحاجة نزيهة السماحى","الحاجة نزيهة السماحي للتعليم الاساسى"]
[166,"عواطف عبدالحميد يونس فارس","معلم ","مدرس فصل","مدرسة الحاجة نزيهة السماحى","الحاجة نزيهة السماحي للتعليم الاساسى"]
[167,"فتحية حسن سعد السيد","م أول أ","لغة عربية","مدرسة الحاجة نزيهة السماحى","الحاجة نزيهة السماحي للتعليم الاساسى"]
[168,"ماجدة مصطفي يوسف","معلم خبير","لغة عربية","مدرسة الحاجة نزيهة السماحى","الحاجة نزيهة السماحي للتعليم الاساسى"]
[169,"هدى إبراهيم أنور عبدالرازق","كاتب رابع ",null,"مدرسة الحاجة نزيهة السماحى","الحاجة نزيهة السماحي للتعليم الاساسى"]
[170,"ياسمين جمال ابراهيم","فني تشغيل","فني تشغيل","مدرسة الحاجة نزيهة السماحى","الحاجة نزيهة السماحي للتعليم الاساسى"]
[171,"السيد مصطفي علي رمضان","مدير المدرسة ",null,"الناصرية","الحسين بالخشبات الابتدائيه"]
[172,"احمدمحمود عبدالله اسماعيل ","معلم خبير ","اللغة العربية","جميمة","الحسين بالخشبات الابتدائيه"]
[173,"مني محمد علي صابر ","معلم اول أ","اللغة العربية ","المساعيد","الحسين بالخشبات الابتدائيه"]
[174,"احمد احمدى عبدالرحمن سليمان","معلم اول أ","اللغة العربية ","الخشبات","الحسين بالخشبات الابتدائيه"]
[175,"عبدالحميد يوسف عبدالرحمن سليمان"," معلم اول","اللغة العربية  ","الخشبات","الحسين بالخشبات الابتدائيه"]
[176,"كريمه منصور محمد محمد","معلم اول ","اللغة الانجليزية","الخشبات","الحسين بالخشبات الابتدائيه"]
[177,"عايدة لطفي اسماعيل السيد","معلم خبير","رياضيات","المعقلين","الحسين بالخشبات الابتدائيه"]
[178,"باز عبدالغفار علي محمد","معلم خبير","دراسات","جميمة","الحسين بالخشبات الابتدائيه"]
[179,"كريمه غريب احمد حسن","معلم اول أ","حاسب الي","الخشبات","الحسين بالخشبات الابتدائيه"]
[180,"محمد احمد حسين خليل ","معلم اول","اخصائي اجتماعي","وكيل النيابة","الحسين بالخشبات الابتدائيه"]
[181,"عزة علي محمد امام","معلم اول","اخصائي نفسي","المساعيد","الحسين بالخشبات الابتدائيه"]
[182,"محمد يوسف حسن متولي ","فنى تشغيل",null,"المساعيد","الحسين بالخشبات الابتدائيه"]
[183,"سميرة عبدالرحمن اسماعيل السيد","امين معمل",null,"المساعيد","الحسين بالخشبات الابتدائيه"]
[184,"فاطمة ابراهيم محمد محمود","امين معمل",null,"ع الحاج صالح","الحسين بالخشبات الابتدائيه"]
[185,"رحاب محمد رجب محمد","امين معمل",null,"الخشبات","الحسين بالخشبات الابتدائيه"]
[186,"سنية اسماعيل صالح السيد","ادارى",null,"ام شعلان","الحسين بالخشبات الابتدائيه"]
[187,"منال محمد احمد عوض الله","مدير  المدرسة","مدير  المدرسة","الحسينية","الحسينية  الجديدة الابتدائيه"]
[188,"علاءالدين محمد عبدالغني عمر","وكيل المدرسة","وكيل المدرسة","الحسينية","الحسينية  الجديدة الابتدائيه"]
[189,"عطيه حسن السيد حسن","وكيل   المدرسة","وكيل   المدرسة","الحسينية","الحسينية  الجديدة الابتدائيه"]
[190,"محمود محمد ابراهيم راشد","معلم   خبير","لغه  عربية","الحسينية","الحسينية  الجديدة الابتدائيه"]
[191,"السيد ابراهيم علي محمد الحنفى","معلم   خبير","لغه  عربية","الحسينية","الحسينية  الجديدة الابتدائيه"]
[192,"حكمت يوسف محمد يوسف","معلم  كبير","لغه  عربية","الحسينية","الحسينية  الجديدة الابتدائيه"]
[193,"سوسن محمد علي مصيلحي","معلم  كبير","لغه  عربية","الحسينية","الحسينية  الجديدة الابتدائيه"]
[194,"سميرة رشاد محمد عبد الكريم","معلم   خبير","لغه  عربية","الحسينية","الحسينية  الجديدة الابتدائيه"]
[195,"بشرى عبد الستار حسن ابراهيم ","معلم  كبير","لغه  عربية","الحسينية","الحسينية  الجديدة الابتدائيه"]
[196,"صباح يوسف علي خليفة فرج","معلم  كبير","لغه  عربية","الحسينية","الحسينية  الجديدة الابتدائيه"]
[197,"زينب محمد ابراهيم علي","معلم  كبير","لغه  عربية","الحسينية","الحسينية  الجديدة الابتدائيه"]
[198,"شان عبدالباقى حسن عبدالله","معلم   خبير","لغه  عربية","الحسينية","الحسينية  الجديدة الابتدائيه"]
[199,"سونيا سعد عبد الفتاح الراعي","معلم   خبير","لغه  عربية","الحسينية","الحسينية  الجديدة الابتدائيه"]
[200,"عفاف سعيد اسماعيل عبس","معلم   خبير","لغه  عربية","الحسينية","الحسينية  الجديدة الابتدائيه"]
[201,"هويدا احمد حسني عثمان محمود","معلم  كبير","لغه  عربية","الحسينية","الحسينية  الجديدة الابتدائيه"]
[202,"احلام محمد احمد سيد احمد","معلم   خبير","لغه  عربية","الحسينية","الحسينية  الجديدة الابتدائيه"]
[203,"ملكه محمد سلامه حسن","معلم   أول  ا","لغه  عربية","الحسينية","الحسينية  الجديدة الابتدائيه"]
[204,"ملاك عبدالرحمن سليم صالح","معلم","لغه  عربية","الحسينية","الحسينية  الجديدة الابتدائيه"]
[205,"جملات محمد السيد حسن","معلم   خبير","رياضيات","الحسينية","الحسينية  الجديدة الابتدائيه"]
[206,"امل السيد احمد طنطاوى ","معلم   خبير","رياضيات","الحسينية","الحسينية  الجديدة الابتدائيه"]
[207,"السيدة السعيد ابراهيم على","معلم   خبير","رياضيات","الحسينية","الحسينية  الجديدة الابتدائيه"]
[208,"انشراح السعيد عبد الله عبد الجواد","معلم   خبير","رياضيات","الحسينية","الحسينية  الجديدة الابتدائيه"]
[209,"حنان امام امام امام السحيلي","معلم  كبير","رياضيات","الحسينية","الحسينية  الجديدة الابتدائيه"]
[210,"سهير طه حسن طه","معلم  كبير","رياضيات","الحسينية","الحسينية  الجديدة الابتدائيه"]
[211,"سوسن طلبة عبد الله صالح","معلم  كبير","رياضيات","الحسينية","الحسينية  الجديدة الابتدائيه"]
[212,"عصام محمد بشير محمدعلي","معلم  كبير","رياضيات","الحسينية","الحسينية  الجديدة الابتدائيه"]
[213,"علا احمد محمد مجاهد","معلم   خبير","رياضيات","الحسينية","الحسينية  الجديدة الابتدائيه"]
[214,"محمد علي ابراهيم عبد العال","معلم   خبير","رياضيات","الحسينية","الحسينية  الجديدة الابتدائيه"]
[215,"محمد محمد محمد ابراهيم","معلم   خبير","رياضيات","الحسينية","الحسينية  الجديدة الابتدائيه"]
[216,"عبدالباري حسني عبد الباري طعيمة","معلم   خبير","رياضيات","الحسينية","الحسينية  الجديدة الابتدائيه"]
[217,"السيد علي السيد علي","معلم  كبير","رياضيات","الحسينية","الحسينية  الجديدة الابتدائيه"]
[218,"شرين عبدالرازق محمد عبدالقادر ","معلم   أول","لغة انجليزية","الحسينية","الحسينية  الجديدة الابتدائيه"]
[219,"عماد  أحمد عطية يو سف","معلم   أول  ا","لغة انجليزية","الحسينية","الحسينية  الجديدة الابتدائيه"]
[220,"نفين سلامه  زيد","معلم   أول","لغة انجليزية","الحسينية","الحسينية  الجديدة الابتدائيه"]
[221,"ابراهيم محمد محمد عبد العال","معلم   خبير","علوم","الحسينية","الحسينية  الجديدة الابتدائيه"]
[222,"اميرة محمد السيد محمد","معلم   أول  ا","حاسب الى","الحسينية","الحسينية  الجديدة الابتدائيه"]
[223,"أيمان محمد سليم","معلم   أول  ا","حاسب الى","الحسينية","الحسينية  الجديدة الابتدائيه"]
[224,"خيرية عبدالفتاح عبدالعظيم فايد","معلم  كبير","مجال  زراعى","الحسينية","الحسينية  الجديدة الابتدائيه"]
[225,"شفية عمر السيد سالم","معلم  كبير","مجال  زراعى","الحسينية","الحسينية  الجديدة الابتدائيه"]
[226,"عماد عبدالقادر سويلم عبدالله","معلم   أول","أخصائى نفسى","الحسينية","الحسينية  الجديدة الابتدائيه"]
[227,"شيماء محمد احمد ابراهيم على","معلم   أول","أخصائى اجتماعى","الحسينية","الحسينية  الجديدة الابتدائيه"]
[228,"امال محمد محمد عوض الله","معلم   أول  ا","أخصائى اجتماعى أول أ","الحسينية","الحسينية  الجديدة الابتدائيه"]
[229,"ابراهيم اسماعيل احمد عمرو سالم","معلم   أول","أخصائى صحافة وإعلام","الحسينية","الحسينية  الجديدة الابتدائيه"]
[230,"ايمان عبدالحليم عبدالمنعم محمد","أمين مكتبة أول","أمين مكتبة أول","الحسينية","الحسينية  الجديدة الابتدائيه"]
[231,"منال ابو الفتوح متولي حسن","مشرف نشاط","مشرف نشاط","الحسينية","الحسينية  الجديدة الابتدائيه"]
[232,"عائشه محمود عبد الحق حسن","كاتب اول- سكرتير اول","        كاتب اول- سكرتير اول","الحسينية","الحسينية  الجديدة الابتدائيه"]
[233,"عبد الله عبد المعطي محمد علي","كاتب ثان- سكرتير ثان","         كاتب ثان- سكرتير ثان","الحسينية","الحسينية  الجديدة الابتدائيه"]
[234,"ايمان شحاته ابراهيم على","فنى تشغيل وسائل تعليمية","فنى تشغيل وسائل تعليمية","الحسينية","الحسينية  الجديدة الابتدائيه"]
[235,"دينا عوض محمد عطيه","فنى تشغيل وسائل تعليمية","فنى تشغيل وسائل تعليمية","الحسينية","الحسينية  الجديدة الابتدائيه"]
[236,"رضا حلمى محمود عبدالله","فنى تشغيل وسائل تعليمية","فنى تشغيل وسائل تعليمية","الحسينية","الحسينية  الجديدة الابتدائيه"]
[237,"فاطمه محمود سليمان عوض","فنى تشغيل وسائل تعليمية","فنى تشغيل وسائل تعليمية","الحسينية","الحسينية  الجديدة الابتدائيه"]
[238,"يحيى السيد على بسيونى ","مدرس ابتدائى","           مدرس ابتدائى","الحسينية","الحسينية  الجديدة الابتدائيه"]
[239,"رندا محمد محمد زكي ","مدرس ابتدائى","مدرس ابتدائى","الحسينية","الحسينية  الجديدة الابتدائيه"]
[240,"سعاد  حسن  على","تامين  صحى","تامين  صحى","الحسينية","الحسينية  الجديدة الابتدائيه"]
[241,"احسان محمد عبد  الحليم","عاملة","عاملة",null,"الحسينية  الجديدة الابتدائيه"]
[242,"رضا ابراهيم على ","وكيل مدرسه","حاسب الى","الحسينية ","الحسينية بنات الاعداديه"]
[243,"فرحانه عبد السلام ادريس","وكيله المدرسة","اقتصادمنزلى","الحسينية ","الحسينية بنات الاعداديه"]
[244,"احمد حسن الشافعى حسين ","معلم","لغه عربيه","الحسينية ","الحسينية بنات الاعداديه"]
[245,"سميرعبد الحميد اسماعيل ابو عوض ","معلم اول ا ","لغه عربيه","الحسينية ","الحسينية بنات الاعداديه"]
[246,"يسرة  السيد على الفرماوي ","معلم اول ","لغه عربيه","الحسينية ","الحسينية بنات الاعداديه"]
[247,"ايمان عبد القادر عبد السميع عطية ","معلم اول ا","لغه عربيه","الحسينية ","الحسينية بنات الاعداديه"]
[248,"هاله عبد المقصود محمد خليل ","معلم اول ا ","لغه عربيه","الحسينية ","الحسينية بنات الاعداديه"]
[249,"مريم محمد عبد الجواد السيد","معلم اول ا ","لغه عربيه","الحسينية ","الحسينية بنات الاعداديه"]
[250,"فتحية عبد العليم محمد السيد","معلم اول ","لغة عربية ","الحسينية ","الحسينية بنات الاعداديه"]
[251,"عطية محمد طلبة خليفة ","معلم اول ا ","لغة عربية ","الحسينية ","الحسينية بنات الاعداديه"]
[252,"محمد السيد احمد محمد","معلم اول ","لغه عربيه","الحسينية ","الحسينية بنات الاعداديه"]
[253,"احمد محمد رمضان محمد ","معلم اول ","لغة عربية ","الحسينية ","الحسينية بنات الاعداديه"]
[254,"احمد محمد عبد الجواد علي ","معلم اول ا ","E","الحسينية ","الحسينية بنات الاعداديه"]
[255,"محمد محمود محمد طه ","معلم اول ","E","الحسينية ","الحسينية بنات الاعداديه"]
[256,"هدي محمد عبد الجواد محمد","معلم اول ","E","الحسينية ","الحسينية بنات الاعداديه"]
[257,"محمد السيد محمد ابراهيم","كبير معلمين ","رياضيات","الحسينية ","الحسينية بنات الاعداديه"]
[258,"ثناء على عبد الله الالفى","معلم خبير","رياضيات","الحسينية ","الحسينية بنات الاعداديه"]
[259,"فاطمه عبد الحق احمد عثمان ","معلم خبير ","رياضيات","الحسينية ","الحسينية بنات الاعداديه"]
[260,"عبد الهادى السيد ابراهيم محمد ","معلم اول ا","دراسات","الحسينية ","الحسينية بنات الاعداديه"]
[261,"نيفين على احمد خليل","معلم اول ا","دراسات","الحسينية ","الحسينية بنات الاعداديه"]
[262,"ناديه احمد سليمان احمد","معلم اول","دراسات","الحسينية ","الحسينية بنات الاعداديه"]
[263,"منى عبد الله محمد علي ","معلم اول","دراسات","الحسينية ","الحسينية بنات الاعداديه"]
[264,"هاله محمد حسنى عبد الحليم","معلم خبير ","علوم","الحسينية ","الحسينية بنات الاعداديه"]
[265,"عليا كامل على طنطاوى","معلم خبير ","علوم","الحسينية ","الحسينية بنات الاعداديه"]
[266,"على غنيم مغنم غانم ","معلم","علوم","الحسينية ","الحسينية بنات الاعداديه"]
[267,"عاطف امين محمد اسماعيل ","معلم خبير ","علوم ","الحسينية ","الحسينية بنات الاعداديه"]
[268,"ناديه على يونس موسي ","معلم  خبير","تربيه موسيقيه","الحسينية ","الحسينية بنات الاعداديه"]
[269,"لمياء عبد الله مرعى عقلة ","معلم اول أ","تربيه رياضيه","الحسينية ","الحسينية بنات الاعداديه"]
[270,"رباب منصور منصور احمد ","معلم اول ا ","تربية  فنية ","الحسينية ","الحسينية بنات الاعداديه"]
[271,"حنان حسن ابراهيم محمد ","معلم خبير","اقتصادمنزلى","الحسينية ","الحسينية بنات الاعداديه"]
[272,"فايزة كامل حسانين حسين ","معلم خبير ","اقتصادمنزلى","الحسينية ","الحسينية بنات الاعداديه"]
[273,"مديحه عيد عبد القادر محمد","اخصائي خبير","جتماعى ","الحسينية ","الحسينية بنات الاعداديه"]
[274,"سماح محمود محمد علي ","اخصائى اول","مكتبات","الحسينية ","الحسينية بنات الاعداديه"]
[275,"امل السيد محمد انور ","معلم اول أ","اخصائي صحافه","الحسينية ","الحسينية بنات الاعداديه"]
[276,"جيهان عبد العظيم احمد عبد المولي ","اخصائي  اول ا ","اخصائي صحافة ","الحسينية ","الحسينية بنات الاعداديه"]
[277,"نوال محمد ابراهيم رمضان ","كبير اخصائيين ","اخصائي اجتماعي ","الحسينية ","الحسينية بنات الاعداديه"]
[278,"سناء فتحي محمود محمد ","اخصائي نفسي ","اخصائي نفسي ","الحسينية ","الحسينية بنات الاعداديه"]
[279,"ابراهيم منصور سعيد سليمان ","مساعد  كاتب","إداري","الحسينية ","الحسينية بنات الاعداديه"]
[280,"امنه محمد خليل غزارة ","فني رابع ","امينة معمل ","الحسينية ","الحسينية بنات الاعداديه"]
[281,"فاطمة ابراهيم حسين محمد ","فني رابع ","امينة معمل ","الحسينية ","الحسينية بنات الاعداديه"]
[282,"لبني عبد العزيز محمد سليمان ","فنى تشغيل","فني تشغيل وسائل تعليمية ","الحسينية ","الحسينية بنات الاعداديه"]
[283,"الفت محمد عبد السلام عبد الجليل ","فنى تشغيل","فني تشغيل وسائل تعليمية ","الحسينية ","الحسينية بنات الاعداديه"]
[284,"محمد على محمد ابراهيم","مدير المدرسة","لغة انجليزية","الحمادين الحسينية","الحمادين للتعليم الاساسى"]
[285,"نادية عبدالقادر حسينى","وكيل المدرسة","لغة عربية","الحمادين الحسينية","الحمادين للتعليم الاساسى"]
[286,"بكرى عبدالسلام عبدالرحمن","معلم خبير","علوم","الحمادين الحسينية","الحمادين للتعليم الاساسى"]
[287,"صبرى توفيق منيع","معلم خبير","تربية زراعية","الحمادين الحسينية","الحمادين للتعليم الاساسى"]
[288,"عزه محمد رضوان","معلم خبير","مجال صناعى","الحمادين الحسينية","الحمادين للتعليم الاساسى"]
[289,"عاطف امام عيداروس","معلم خبير","تربية زراعية","دوامة فاقوس شرقية","الحمادين للتعليم الاساسى"]
[290,"عبدالمنعم ابراهيم عبدالواحد","معلم خبير","تربية فنية","الحمادين الحسينية","الحمادين للتعليم الاساسى"]
[291,"عزه محمد رضوان","معلم خبير","مجال صناعى","الحمادين الحسينية","الحمادين للتعليم الاساسى"]
[292,"ثريا محمد فرج","معلم اول أ","لغة عربية","الحمادين الحسينية","الحمادين للتعليم الاساسى"]
[293,"حسن محمد الباز محجوب","معلم أول","تربية رياضية","الحمادين الحسينية","الحمادين للتعليم الاساسى"]
[294,"محمد اسماعيل الصاوى","معلم اول ","مسرح","قهبونه الحسينية","الحمادين للتعليم الاساسى"]
[295,"عزه قطب محمود عبدالقادر","معلم أول أ","اقتصاد منزلى","قهبونه الحسينية","الحمادين للتعليم الاساسى"]
[296,"تهانى محمد احمد حسين","معلم أول","مكتبات","الحمادين الحسينية","الحمادين للتعليم الاساسى"]
[297,"نفيسه حسن يوسف","معلم اول ","دراسات","الحمادين الحسينية","الحمادين للتعليم الاساسى"]
[298,"مى محمود الشريف احمد","أخصائى أول أ","اخصائى اجتماعى","الحمادين الحسينية","الحمادين للتعليم الاساسى"]
[299,"اجلال على عرابى","معلم أول","لغة انجليزية","الحمادين الحسينية","الحمادين للتعليم الاساسى"]
[300,"نجلاء قطب على شريف","معلم أول","لغة عربية","الحمادين الحسينية","الحمادين للتعليم الاساسى"]
[301,"محمد احمد على عيسى","معلم اول ","صحافة","قهبونه الحسينية شرقية","الحمادين للتعليم الاساسى"]
[302,"صلاح محمد السيد","معلم اول","حاسب الى","م. خليل الحسينية","الحمادين للتعليم الاساسى"]
[303,"محمد قطب على شريف ","معلم اول","لغة انجليزية","الحمادين الحسينية","الحمادين للتعليم الاساسى"]
[304,"منى الرشيدى محسن","مشرف نشاط","معامل","م. راغب الحسينية","الحمادين للتعليم الاساسى"]
[305,"عبدالمنعم السيد مصطفى","مشرف نشاط","معامل","الحمادين الحسينية","الحمادين للتعليم الاساسى"]
[306,"السيد على حسين","مشرف نشاط","وسائل","الحمادين الحسينية","الحمادين للتعليم الاساسى"]
[307,"هناء عبدالله عيداروس","مشرف نشاط","مشرف نشاط","الحمادين الحسينية","الحمادين للتعليم الاساسى"]
[308,"عبدالعال محمد عبدالعال محمد","معلم اول أ","انجليزى","5بحر البقر","الخليفة المامون للتعليم الاساسى"]
[309,"وفاء عزت حسن ابراهيم","معلم اول","لغة عربية","5بحر البقر","الخليفة المامون للتعليم الاساسى"]
[310,"عطيات السيد ابراهيم عبدالله","معلم اول","مجال زراعى","5بحر البقر","الخليفة المامون للتعليم الاساسى"]
[311,"هيام عبدالقادر حسن على","اخصائى اول","اخصائى اجتماعى","5بحر البقر","الخليفة المامون للتعليم الاساسى"]
[312,"رضا حسن عبدالغفار احمد ","معلم اول","حاسب الى","5بحر البقر","الخليفة المامون للتعليم الاساسى"]
[313,"ابراهيم شحاته احمد مرسى","معلم اول","لغة عربية","5بحر البقر","الخليفة المامون للتعليم الاساسى"]
[314,"احمد عبدالبديع اسماعيل عبدالقادر","معلم اول","لغة عربية","5بحر البقر","الخليفة المامون للتعليم الاساسى"]
[315,"رشا محمد ابراهيم محمد","معلم اول","علوم","5بحر البقر","الخليفة المامون للتعليم الاساسى"]
[316,"عرفات حامد محمد اسماعيل","معلم اول","دراسات","5بحر البقر","الخليفة المامون للتعليم الاساسى"]
[317,"عيد محمد عمارة محمد","معلم اول","لغة عربية","5بحر البقر","الخليفة المامون للتعليم الاساسى"]
[318,"امل عزت سليم متولى","معلم اول","رياضيات","5بحر البقر","الخليفة المامون للتعليم الاساسى"]
[319,"ايمان عبدالكريم عبدالشافى نجم","فنى تشغيل","فنى تشغيل","5بحر البقر","الخليفة المامون للتعليم الاساسى"]
[320,"رشا عبدالعال احمد عبدالمعطى","فنى تشغيل","فنى تشغيل","5بحر البقر","الخليفة المامون للتعليم الاساسى"]
[321,"رضا جبرائيل والى سليمان","فنى تشغيل","فنى تشغيل","5بحر البقر","الخليفة المامون للتعليم الاساسى"]
[322,"سوزان سليمان السيد سليمان","فنى تشغيل","فنى تشغيل","5بحر البقر","الخليفة المامون للتعليم الاساسى"]
[323,"عايده سيد احمد حسن سيد احمد","فنى تشغيل","فنى تشغيل","5بحر البقر","الخليفة المامون للتعليم الاساسى"]
[324,"فاتن محمد سالم احمد ","فنى تشغيل","فنى تشغيل","5بحر البقر","الخليفة المامون للتعليم الاساسى"]
[325,"فتحيه عيد عطيه سلامه","فنى تشغيل","فنى تشغيل","5بحر البقر","الخليفة المامون للتعليم الاساسى"]
[326,"منى خليل احمد حسن ","كاتب رابع","كاتب رابع","5بحر البقر","الخليفة المامون للتعليم الاساسى"]
[327,"رضا السيد محمد محمود","كاتب رابع","كاتب رابع","5بحر البقر","الخليفة المامون للتعليم الاساسى"]
[328,"السيد عبدالرحمن علي حسن ","معلم خبير ","رياضيات ","منشأة ابو عامر ","الزمامته للتعليم الاساسى"]
[329,"عبد الرحمن عبد الباري ابراهيم علي","معلم خبير ","رياضيات ","السماكين ","الزمامته للتعليم الاساسى"]
[330,"محمد رمضان عبدالعال احمد ","معلم خبير ","لغه عربيه","منشأة ابو عامر ","الزمامته للتعليم الاساسى"]
[331,"صلاح السيد محمد حسن ","معلم اول ","لغه عربيه","منشأة ابو عامر ","الزمامته للتعليم الاساسى"]
[332,"سويلم سالم مسلم "," معلم اول أ","لغه انجليزيه ","الحسينية ","الزمامته للتعليم الاساسى"]
[333," السيد محمد احمد عبد المنعم ","معلم ","لغه عربيه","منشأة ابو عامر ","الزمامته للتعليم الاساسى"]
[334,"زينب محمد حسين سليمان ","معلم اول ","حاسب آلي","ام صوير ","الزمامته للتعليم الاساسى"]
[335,"سناء ابراهيم احمد سليمان ","معلم اول أ","دراسات اجتماعيه ","الزمامتة ","الزمامته للتعليم الاساسى"]
[336,"سناء فروق محسوب عطيه ","معلم اول أ","لغه عربيه","الزمامتة ","الزمامته للتعليم الاساسى"]
[337,"يوسف محمد محمد محمد ","معلم اول ","لغه عربيه","ام صوير ","الزمامته للتعليم الاساسى"]
[338,"اسامة محمد السيد يوسف","مدير المدرسة","لغة عربية","سعود","الزهراء بسعود الاعداديه"]
[339,"صالح سليمان على سيد احمد","معلم خبير","لغة عربية","سعود","الزهراء بسعود الاعداديه"]
[340,"احمد حسني يوسف عمري ","معلم اول أ ","لغة عربية","سعود","الزهراء بسعود الاعداديه"]
[341,"يحيي عبدالمنعم محمود احمد","معلم اول أ","لغة عربية","سعود","الزهراء بسعود الاعداديه"]
[342,"عمر عبدالمنعم محمود احمد","معلم اول أ","لغة عربية","سعود","الزهراء بسعود الاعداديه"]
[343,"خاطر عبدالحميد السيد عبدالعزيز","معلم اول","لغة عربية","سعود","الزهراء بسعود الاعداديه"]
[344,"وفاء اسماعيل على","معلم مساعد","لغة عربية","سعود","الزهراء بسعود الاعداديه"]
[345,"شاهنده ابراهيم محمد ابراهيم","معلم اول أ ","لغة انجليزية","سعود","الزهراء بسعود الاعداديه"]
[346,"سهير كمال عبدالعاطي محمد","معلم اول ","حاسب الى","سعود","الزهراء بسعود الاعداديه"]
[347,"ايمان قاسم ابراهيم محمد  ","معلم خبير","مجال تجاري","سعود","الزهراء بسعود الاعداديه"]
[348,"صفاء عبدالعزيز ابراهيم على","معلم اول ","تربية فنية","سعود","الزهراء بسعود الاعداديه"]
[349,"محمد جايل طلب سليمان","اخصائي اجتماعي اول","اخصائي اجتماعي","سعود","الزهراء بسعود الاعداديه"]
[350,"هبه عبدالرحمن على اسماعيل","اخصائي نفسي اول","اخصائي نفسي","سعود","الزهراء بسعود الاعداديه"]
[351,"عبدالجبار عبدالمنعم محمد سليمان","امين معمل","امين معمل","سعود","الزهراء بسعود الاعداديه"]
[352,"وفاء عبداللطيف محمد ابراهيم","سكرتير رابع","اداري","سعود","الزهراء بسعود الاعداديه"]
[353,"فوزية ماهر الصادق محمد ","سكرتير رابع","اداري","سعود","الزهراء بسعود الاعداديه"]
[354,"عبدالمجيد فرجانى نايل يونس","معلم  خبير مجال تجارى","مدير المدرسة","جزيرة عليوة","السادات بابوشميس الابتدائيه"]
[355,"محمد عبدالسلام محمد صالح","معلم خبير مجال زراعي","وكيل المدرسة","أبوشميس","السادات بابوشميس الابتدائيه"]
[356,"عمر فتحي سويلم على","معلم خبير لغة عربية","معلم لغة عربية","بندر الحسينية","السادات بابوشميس الابتدائيه"]
[357,"محمد عبدالدايم مطاوع عبدالدايم","معلم خبير دراسات","معلم دراسات","سعود البحرية","السادات بابوشميس الابتدائيه"]
[358,"محمد فتحي راتب الفلاح","معلم خبير فصل","معلم فصل","أبوشميس","السادات بابوشميس الابتدائيه"]
[359,"رمضان عبيد ابراهيم عبدالعاطى","معلم خبير فصل","معلم فصل","منشأة بشارة","السادات بابوشميس الابتدائيه"]
[360,"شحاته عبدالرحمن حسن محمد","معلم أول فصل","معلم فصل","جزيرة برد","السادات بابوشميس الابتدائيه"]
[361,"نها عبدالكريم على مرسى","معلم أول فصل","معلم فصل","أبوشميس","السادات بابوشميس الابتدائيه"]
[362,"ناديه السيد أحمد السيد","معلم أول فصل","معلم فصل","سعود البحرية","السادات بابوشميس الابتدائيه"]
[363,"ناهد السيد ابراهيم سالم","معلم أول فصل","معلم فصل","أبوشميس","السادات بابوشميس الابتدائيه"]
[364,"السيد نبيل عبدالحميد السيد","معلم مساعد","رياضيات","ابو شميس","السادات بابوشميس الابتدائيه"]
[365,"شيماء عبدالرحمن ","معلم مساعد","انجليزي","ابوشميس","السادات بابوشميس الابتدائيه"]
[366,"رضا محمد حسن يوسف","معلم أول حاسب آلي","معلم حاسب آلي","أبوشميس","السادات بابوشميس الابتدائيه"]
[367,"سنيه محمد أحمد محمد","أخصائي اجتماعي أول","أخصائي اجتماعي  ","أبوشميس","السادات بابوشميس الابتدائيه"]
[368,"أسماء السيد سليمان محمد","أخصائي مكتبات أول","أخصائي مكتبات  ","سعود البحرية","السادات بابوشميس الابتدائيه"]
[369,"عبدالرحمن محمد عبد الرحمن عبد المنعم","فنى تشغيل وسائل","فنى تشغيل وسائل   ","م أبوعمر","السادات بابوشميس الابتدائيه"]
[370,"عبدالسلام عبدالمنعم عبدالسلام عبدالجليل","فنى تدريس ثالث خط","خط عربى","بندر الحسينية","السادات بابوشميس الابتدائيه"]
[371,"خالد جابر عباس محمد","فنى تشغيل وسائل","فنى تشغيل وسائل","جزيرة برد","السادات بابوشميس الابتدائيه"]
[372,"آيات محمد حسين إسماعيل","فنى تشغيل وسائل","فنى تشغيل وسائل","ابوشميس","السادات بابوشميس الابتدائيه"]
[373,"حوريه تركى محمد عامر","فنى تشغيل وسائل","فنى تشغيل وسائل","ابوشميس","السادات بابوشميس الابتدائيه"]
[374,"شرين سليمان إسماعيل إبراهيم","فنى معمل","فني معمل","أبوشميس","السادات بابوشميس الابتدائيه"]
[375,"احمد متولي علي عفيفي","معلم أول أ","لغة عربية","الجمالية - مركز الحسينية","السبايعه للتعليم الاساسى"]
[376,"احمد محمد هاشم عبالله","معلم أول أ","لغة عربية","الجمالية - مركز الحسينية","السبايعه للتعليم الاساسى"]
[377,"شيماء حسن السيد محمد","معلم أول ","لغة عربية","الجمالية - مركز الحسينية","السبايعه للتعليم الاساسى"]
[378,"سمر احمد عبدالرحمن","معلم اول","لغة انجليزية","الجمالية - مركز الحسينية","السبايعه للتعليم الاساسى"]
[379,"احمد محمد احمد محمد البعبولي","معلم أول أ","لغة انجليزية","الجمالية - مركز الحسينية","السبايعه للتعليم الاساسى"]
[380,"غاده علي محمد علي","معلم أول","دراسات اجتماعيه","الجمالية - مركز الحسينية","السبايعه للتعليم الاساسى"]
[381,"شرين محمد احمد ابو هاشم","معلم","دراسات اجتماعيه","الجمالية - مركز الحسينية","السبايعه للتعليم الاساسى"]
[382,"ولاء احمد احمد عطيه","معلم أول","حاسب الي ","الجمالية - مركز الحسينية","السبايعه للتعليم الاساسى"]
[383,"مها صالح عبدالحق عبدالله","معلم خبير","معلم فصل","الجمالية - مركز الحسينية","السبايعه للتعليم الاساسى"]
[384,"نفيسه عبدالرحمن علي محمد","معلم خبير","معلم فصل","الجمالية - مركز الحسينية","السبايعه للتعليم الاساسى"]
[385,"منال احمد محمد سالم","معلم خبير","معلم فصل","الجمالية - مركز الحسينية","السبايعه للتعليم الاساسى"]
[386,"هويدا السيد احمد عطيه","معلم خبير","معلم فصل","الجمالية - مركز الحسينية","السبايعه للتعليم الاساسى"]
[387,"امل محمد علي حسن","معلم خبير","معلم فصل","الجمالية - مركز الحسينية","السبايعه للتعليم الاساسى"]
[388,"اشرف عطيه احمد عطيه","معلم خبير","معلم فصل","الجمالية - مركز الحسينية","السبايعه للتعليم الاساسى"]
[389,"مني محمد احمد محمد","معلم خبير","معلم فصل","الجمالية - مركز الحسينية","السبايعه للتعليم الاساسى"]
[390,"سعاد عبدالمقصود احمد سالم","معلم خبير","معلم فصل ","الجمالية - مركز الحسينية","السبايعه للتعليم الاساسى"]
[391,"سميه محمد منصور احمد","فني تشغيل رابع أ","فني وسائل","الجمالية - مركز الحسينية","السبايعه للتعليم الاساسى"]
[392,"عفاف فتحي محمد عبدالعال","أخصائي","اخصائي نفسي","الجمالية - مركز الحسينية","السبايعه للتعليم الاساسى"]
[393,"مروه عبدالله ابراهيم عبدالله","معلم أول","حاسب آلي","الجمالية - مركز الحسينية","السبايعه للتعليم الاساسى"]
[394,"اميره ابراهيم خليل حسن","أخصائي","صحافه","الجمالية - مركز الحسينية","السبايعه للتعليم الاساسى"]
[395,"عبدالحميد حامد يونس موسى","مدير مدرسة","مجال صناعى","الست هوى","الست هوى للتعليم الاساسى"]
[396,"السيد محمد محمد عبد الرحيم","معلم خبير","لغة عربية","م.خليل","الست هوى للتعليم الاساسى"]
[397,"فايزة محمد على منصور","معلم خبير","لغة عربية","الست هوى","الست هوى للتعليم الاساسى"]
[398,"سحر محمد شعلان محمد","معلم خبير","لغة عربية","الست هوى","الست هوى للتعليم الاساسى"]
[399,"ماجدة محمد فتحى صالح أحمد","معلم خبير","لغة عربية","الست هوى","الست هوى للتعليم الاساسى"]
[400,"هندة محمد فتحى صالح أحمد","معلم أول ا","لغة عربية","م.حليل","الست هوى للتعليم الاساسى"]
[401,"شيماء أحمد محمد أحمد","معلم مساعد","لغة عربية","الست هوى","الست هوى للتعليم الاساسى"]
[402,"بسمة السيد عبدالعزيز عبدالحميد","معلم أول ا","رياضيات","م.خليل","الست هوى للتعليم الاساسى"]
[403,"محمود نصر محمود رزق","معلم خبير","رياضيات","م.خليل","الست هوى للتعليم الاساسى"]
[404,"إيمان مرحلى عبدالرحمن ابراهيم","معلم اول ا","رياضيات","م.خليل","الست هوى للتعليم الاساسى"]
[405,"ياسمين عبدالعليم الشوادفى أحمد","معلم مساعد","رياضيات","م.خليل","الست هوى للتعليم الاساسى"]
[406,"وفاء محمد عبدالجليل عبدالقادر","معلم أول ا","حاسب ألى","م.خليل","الست هوى للتعليم الاساسى"]
[407,"نعيمة ابراهيم حسن على","معلم اول ","لغة انجليزية","الملكيين البحرية","الست هوى للتعليم الاساسى"]
[408,"اكرامى حسينى السيد محمد","معلم خبير","تربية فنية","الملكيين البحرية","الست هوى للتعليم الاساسى"]
[409,"غدير يوسف السيد أحمد الشريف","معلم مساعد","لغة انجليزية","قهبونة","الست هوى للتعليم الاساسى"]
[410,"عبدالسلام نصر محمود رزق","أخصائى أول ا","تربية اجتماعية","م.خليل","الست هوى للتعليم الاساسى"]
[411,"جيهان محمد مسعود سالم","أخصائى أول ","تربية اجتماعية","الجمالية","الست هوى للتعليم الاساسى"]
[412,"نعمات احمد فؤاد مصطفى","مشرف نشاط أول","مكتبة","الجمالية","الست هوى للتعليم الاساسى"]
[413,"سنية مغاورى محمد حسين","مشرف نشاط","التطوير","الملكيين البحرية","الست هوى للتعليم الاساسى"]
[414,"امل كمال اسماعيل ابراهيم","مشرف نشاط","معمل علوم","م.خليل","الست هوى للتعليم الاساسى"]
[415,"سميحة حسين ابراهيم محمد حسن","فنى تشغيل","فنى وسائل","الملكيين البحرية","الست هوى للتعليم الاساسى"]
[416,"هبة محمد الشبراوى أحمد","معلم اول","رياض أطفال","م.خليل","الست هوى للتعليم الاساسى"]
[417,"أمانى عبدالعظيم يوسف محمد","معلم اول","رياض أطفال","الجمالية","الست هوى للتعليم الاساسى"]
[418,"حسام حسن عبدالقادر عبدالحميد","كاتب أول","سكرتير","م.خليل","الست هوى للتعليم الاساسى"]
[419,"محاسن فؤاد موسى حسن","كا تب رابع","شؤن طلبة","الملكيين البحرية","الست هوى للتعليم الاساسى"]
[420,"أحمد عبدالودود عمار على","كاتب ثالث","توريدات","الجمالية","الست هوى للتعليم الاساسى"]
[421,"محمد محمد عبدالعال خليفه ","معلم اول ","لغة عربية","الحسينية ","السعدي بشارة الابتدائيه المشتركه"]
[422,"سمير السيد محمد مطاوع ","معلم خبير","لغة عربية","السعدي","السعدي بشارة الابتدائيه المشتركه"]
[423,"ابراهيم متولي السيد اسماعيل","معلم خبير","رياضيات","الحسينية ","السعدي بشارة الابتدائيه المشتركه"]
[424,"عبدالمنعم السيد عبدالهادي رمضان","معلم خبير","رياضيات","الحسينية ","السعدي بشارة الابتدائيه المشتركه"]
[425,"سوسن الشحات ابراهيم خليل","معلم خبير","رياضيات","السعدي","السعدي بشارة الابتدائيه المشتركه"]
[426,"ايمان احمد نصر الدين عبدالمجيد","معلم خبير","لغة عربية","السعدي","السعدي بشارة الابتدائيه المشتركه"]
[427,"لبني احمد عبدالسلام الشافعي","معلم خبير","لغة انجليزية","السعدي","السعدي بشارة الابتدائيه المشتركه"]
[428,"وفاء محمد السيد يوسف","معلم اول أ","رياضيات","الحسينية ","السعدي بشارة الابتدائيه المشتركه"]
[429,"لبني محمد عبدالرحمن محمد","معلم اول أ","لغة عربية","الحسينية ","السعدي بشارة الابتدائيه المشتركه"]
[430,"معتز عبدالباسط عبدالقادر مشهور ","معلم أول","تربية رياضية ","السعدي","السعدي بشارة الابتدائيه المشتركه"]
[431,"سماح رجب مرسي مسلم","معلم أول","لغة عربية","الحسينية ","السعدي بشارة الابتدائيه المشتركه"]
[432,"حنان احمد مجاهدمحمد","معلم أول","لغة عربية","الحسينية ","السعدي بشارة الابتدائيه المشتركه"]
[433,"ابراهيم حسين عبدالعال محمد","معلم أول","دراسات اجتماعية","الحسينية ","السعدي بشارة الابتدائيه المشتركه"]
[434,"مديحه شحاته السيد خليل","معلم أول","رياضيات","الحسينية ","السعدي بشارة الابتدائيه المشتركه"]
[435,"سمر محمد صقر عامر ","معلم أول","لغة انجليزية","السعدي","السعدي بشارة الابتدائيه المشتركه"]
[436,"حنان عبدالرحمن محمد برعي","معلم أول","لغة عربية","الحسينية ","السعدي بشارة الابتدائيه المشتركه"]
[437,"زينب عادل محمد الشربيني","معلم أول","لغة عربية","الحسينية ","السعدي بشارة الابتدائيه المشتركه"]
[438,"عاطف رمضان محمد سليم","معلم خط","خط عربي","السعدي","السعدي بشارة الابتدائيه المشتركه"]
[439,"اميرة عبدالعال محمد","رياض اطفال","رياض اطفال","الحسينية ","السعدي بشارة الابتدائيه المشتركه"]
[440,"سماح احمد محمود عبدالجواد عمر","اخصائي اجتماعي","اخصائي اجتماعي","السعدي","السعدي بشارة الابتدائيه المشتركه"]
[441,"فيبي مجدي فرنسيس سعد","اخصائي اجتماعي","اخصائي اجتماعي","الحسينية ","السعدي بشارة الابتدائيه المشتركه"]
[442,"اسعاد يونس فضل يونس","اخصائي مكتبة","اخصائي مكتبة","السعدي","السعدي بشارة الابتدائيه المشتركه"]
[443,"امل  علي محمد مصطفي ","كاتب اول","كاتب اول","الحسينية ","السعدي بشارة الابتدائيه المشتركه"]
[444,"محمد ابراهيم محمد علي","كاتب ثالث","كاتب ثالث","السعدي","السعدي بشارة الابتدائيه المشتركه"]
[445,"منال منصور محمد ابراهيم","كاتب ثالث","كاتب ثالث","السعدي","السعدي بشارة الابتدائيه المشتركه"]
[446,"محمد قطب متولي ابراهيم","مشرف نشاط","مشرف نشاط","الحسينية ","السعدي بشارة الابتدائيه المشتركه"]
[447,"هند يونس جبر يونس","مشرف نشاط","مشرف نشاط","السعدي","السعدي بشارة الابتدائيه المشتركه"]
[448,"سحر عبدالستار عبدالله علي","فني تشغيل","فني تشغيل","السعدي","السعدي بشارة الابتدائيه المشتركه"]
[449,"فاتن عبدالعزيز عيد علي","فني تشغيل","فني تشغيل","السعدي","السعدي بشارة الابتدائيه المشتركه"]
[450,"هاله رشدي محمد ابراهيم","فني تشغيل","فني تشغيل","السعدي","السعدي بشارة الابتدائيه المشتركه"]
[451,"خضره محمد ابراهيم ","فني تشغيل","فني تشغيل","السعدي","السعدي بشارة الابتدائيه المشتركه"]
[452,"وجيهه مصباح محمد زايد","فني تشغيل","فني تشغيل","الحسينية ","السعدي بشارة الابتدائيه المشتركه"]
[453,"رشا الاحمدي اسماعيل عبدالحميد","امين معمل","امين معمل","الحسينية ","السعدي بشارة الابتدائيه المشتركه"]
[454,"خديجة السيد يوسف ","زائرة صحية ","زائرة صحية ","الحسينية ","السعدي بشارة الابتدائيه المشتركه"]
[455,"حسين السيد محمد احمد","عامل 5%","عامل 5%","السعدي","السعدي بشارة الابتدائيه المشتركه"]
[456,"السيد صالح عبده محمد ","كبير معلمين/ مدير المدرسة","رياضيات"," قهبونة الحسينية","السلام بطلبة للتعليم الاساسى"]
[457,"محمد ثروت حسن احمد","معلم اول أ","لغة عربية ع","قهبونة الحسينية ","السلام بطلبة للتعليم الاساسى"]
[458,"محمد أمين السيد أمين","معلم اول أ","حاسب آلى","قهبونة الحسينية ","السلام بطلبة للتعليم الاساسى"]
[459,"السيد السيد محمد السيد ","اخصائى صحافة واعلام","صحافة","قهبونة الحسينية ","السلام بطلبة للتعليم الاساسى"]
[460," أحمد محمد كثير محمد","اخصائى اجتماعى ","ـ","قهبونة الحسينية ","السلام بطلبة للتعليم الاساسى"]
[461,"فايزة  كامل محمد عبداللة ","اخصائى اجتماعى  اول ","ـ","قهبونة الحسينية ","السلام بطلبة للتعليم الاساسى"]
[462,"محمد السيد محمود عبدالواحد","معلم خبير ","عربى  ب","قهبونة الحسينية ","السلام بطلبة للتعليم الاساسى"]
[463,"عادل كامل محمد عبدالله بدر","معلم خبير ","عربى  ب","قهبونة الحسينية ","السلام بطلبة للتعليم الاساسى"]
[464,"عبدالسلام عبدالرحمن محمد","معلم خبير ","مجال زراعى ب","قهبونة الحسينية ","السلام بطلبة للتعليم الاساسى"]
[465,"ابراهيم محمد عبدالسلام محمد","معلم خبير","رياضيات  ب","قهبونة الحسينية ","السلام بطلبة للتعليم الاساسى"]
[466,"أحمد عبدالرحمن محمد حسن ","معلم خبير","رياضيات  ب","قهبونة الحسينية ","السلام بطلبة للتعليم الاساسى"]
[467,"محمد عبدالرؤوف أبو بكر محمد","معلم خبير","دراسات ب","قهبونة الحسينية ","السلام بطلبة للتعليم الاساسى"]
[468,"فوزية عبدالله عبدالرحيم مصبح","امين معمل","ـ","قهبونة الحسينية ","السلام بطلبة للتعليم الاساسى"]
[469,"كريمة عبدالله عبدالعظيم مطاوع","مشرف نشاط","ـ","قهبونة الحسينية ","السلام بطلبة للتعليم الاساسى"]
[470,"منى شحاته هاشم سالم","فنى تشغيل","ـ","قهبونة الحسينية ","السلام بطلبة للتعليم الاساسى"]
[471,"هالة على حلمى محمد","فنى تشغيل","ـ","قهبونة الحسينية ","السلام بطلبة للتعليم الاساسى"]
[472,"إبراهيم منصور محمد حسن","كاتب ثالث","ـ","قهبونة الحسينية ","السلام بطلبة للتعليم الاساسى"]
[473,"درية عبدالعظيم متولى أحمد","كاتب ثالث","ـ","قهبونة الحسينية ","السلام بطلبة للتعليم الاساسى"]
[474,"عفاف على سالم ","معلم خبير ","لغه عربيه ","الملكيين البحريه ","السيد محمد سالم للتعليم الاساسى"]
[475,"سكينه الشبراوي ابراهيم ","وكيله المدرسة ",null,"الملكيين البحريه ","السيد محمد سالم للتعليم الاساسى"]
[476,"ابراهيم محمد عبد الرحمن ","معلم أول ا","لغه عربيه ","فاقوس ","السيد محمد سالم للتعليم الاساسى"]
[477,"الفت السيد محمد ","معلم أول ا ","لغه عربيه ","الملكيين البحريه ","السيد محمد سالم للتعليم الاساسى"]
[478,"شمس ابراهيم عبدالعال ","معلم خبير ","رياضيات ","الملكيين البحريه ","السيد محمد سالم للتعليم الاساسى"]
[479,"محمد ابراهيم محمد على","معلم أول ا ","تربيه رياضيه ","الملكيين البحريه ","السيد محمد سالم للتعليم الاساسى"]
[480,"عبد الفتاح كريم عمر","معلم أول ا ","دراسات ","الحسينيه ","السيد محمد سالم للتعليم الاساسى"]
[481,"صفاء عبد الرحمن حسين ","اخصائي اجتماعي ",null,"الملكيين البحريه ","السيد محمد سالم للتعليم الاساسى"]
[482,"احمد محمد شعلان ","اخصائي اجتماعي اول ا",null,"الملكيين البحريه ","السيد محمد سالم للتعليم الاساسى"]
[483,"خالد عباس يوسف","مشرف نشاط","م نشاط ","الملكيين البحريه ","السيد محمد سالم للتعليم الاساسى"]
[484,"سمير عبدالله زيدان ","مشرف نشاط ","م نشاط ","الملكيين البحريه ","السيد محمد سالم للتعليم الاساسى"]
[485,"فاديه عبدالعاطى عطيه","مشرف نشاط ","م نشاط ","الملكيين البحريه ","السيد محمد سالم للتعليم الاساسى"]
[486,"حنان محمد قطب","ادارى","كاتب","الملكيين البحريه ","السيد محمد سالم للتعليم الاساسى"]
[487,"شيماء احمد فوزى","ادارى ","كاتب ","الملكيين البحريه ","السيد محمد سالم للتعليم الاساسى"]
[488,"فؤاد عبدالعال محمد عمار","مدير المدرسة ","لغة عربية ","2بحر البقر","الشهداء ببحر البقر للتعليم الاساسى"]
[489,"سحر عبد المنعم محمد الصياد","م خبير","اقتصاد","2بحر البقر","الشهداء ببحر البقر للتعليم الاساسى"]
[490,"خيرات على السيد حسين","معلم خبير","تربيةفنية ","2بحر البقر","الشهداء ببحر البقر للتعليم الاساسى"]
[491,"ممدوح محمد نسيم صادق","معلم أول أ ","لغة عربية ","2بحر البقر","الشهداء ببحر البقر للتعليم الاساسى"]
[492,"إبراهيم محمد عبد الكريم مؤنس","معلم أول أ ","لغة عربية ","2بحر البقر","الشهداء ببحر البقر للتعليم الاساسى"]
[493,"محمد عبد السميع عبد الحميد","معلم أول ا","لغة انجليزية","2بحر البقر","الشهداء ببحر البقر للتعليم الاساسى"]
[494,"منى عبدالفتاح محمود","معلم اول ","لغة انجليزية","2بحر البقر","الشهداء ببحر البقر للتعليم الاساسى"]
[495,"إبراهيم محمد عبد الوهاب","معلم أول أ ","دراسات","2بحر البقر","الشهداء ببحر البقر للتعليم الاساسى"]
[496,"زينب محمد يوسف محمد","معلم أول ","دراسات","2بحر البقر","الشهداء ببحر البقر للتعليم الاساسى"]
[497,"أحمد عبد الكريم السيد","معلم أول ","علوم","2بحر البقر","الشهداء ببحر البقر للتعليم الاساسى"]
[498,"عصام السيد عطية ","أخصائى أول ا","أخصائى ","2بحر البقر","الشهداء ببحر البقر للتعليم الاساسى"]
[499,"منى محمد عبدا لحفيظ ","أخصائية اول","أخصائى ","2بحر البقر","الشهداء ببحر البقر للتعليم الاساسى"]
[500,"محمود عبدالله محمد شرف","معلم اول ا","دراسات","2بحر البقر","الشهداء ببحر البقر للتعليم الاساسى"]
[501,"هانى السيدمحمد اسماعيل","معلم اول ا","تربية رياضية","الجمالية","الشهداء ببحر البقر للتعليم الاساسى"]
[502,"عايدة مصطفى احمد على","كاتب رابع","إدارى","2بحر البقر","الشهداء ببحر البقر للتعليم الاساسى"]
[503,"سماح أحمد السيد حسين ","كاتب رابع","إدارى","2بحر البقر","الشهداء ببحر البقر للتعليم الاساسى"]
[504,"نورا عوده على عليان","م نشاط وسائل","دبلوم صنايع","2بحر البقر","الشهداء ببحر البقر للتعليم الاساسى"]
[505,"إيمان متولى محمد يوسف","م نشاط وسائل","دبلوم صنايع","2بحر البقر","الشهداء ببحر البقر للتعليم الاساسى"]
[506,"هدى محمد عبد الكريم خليل","م نشاط وسائل","دبلوم زراعة","2بحر البقر","الشهداء ببحر البقر للتعليم الاساسى"]
[507,"هدى حسن حسن الخصوصى","كاتب ربع","إدارى","2 بحر البقر","الشهداء ببحر البقر للتعليم الاساسى"]
[508,"عبدالبر محمد على محمد","معلم خبير","معلم فصل","2بحر البقر","الشهداء ببحر البقر للتعليم الاساسى"]
[509,"عبدالحميد ابراهيم محمد محمود","معلم اول","لغة عربية","2 بحر البقر","الشهداء ببحر البقر للتعليم الاساسى"]
[510,"عبدالسلام محمد عبدالرحمن ","معلم اول","لغة عربية","2بحر البقر","الشهداء ببحر البقر للتعليم الاساسى"]
[511,"سلوى السيد ابراهيم السيد","معلم اول","معلم فصل","2بحر البقر","الشهداء ببحر البقر للتعليم الاساسى"]
[512,"سمر جمال ابراهيم محمد","معلم اول","لغة انجليزية","2بحر البقر","الشهداء ببحر البقر للتعليم الاساسى"]
[513,"فاطمة الزهراء يسرى عمر السيد","معلم اول","رياضيات","2بحر البقر","الشهداء ببحر البقر للتعليم الاساسى"]
[514,"ابراهيم عبد الحليم احمد عبدالقادر","معلم اول","معلم فصل","2بحر البقر","الشهداء ببحر البقر للتعليم الاساسى"]
[515,"انتصار احمد عبدالله محمود","معلم اول","معلم فصل","2بحر البقر","الشهداء ببحر البقر للتعليم الاساسى"]
[516,"سامى محمد عبد العزيز جاد","معلم اول","علوم","1بحر البقر","الشهداء ببحر البقر للتعليم الاساسى"]
[517,"حنان محمد احمد نور الدين","معلم اول","لغة عربية","2بحر البقر","الشهداء ببحر البقر للتعليم الاساسى"]
[518,"امال التهامى عبدالقادر السيد","مشرف نشاط",null,"2بحر البقر","الشهداء ببحر البقر للتعليم الاساسى"]
[519,"محمد السيدمحمد احمد","معلم اول","دراسات ","الحسينية","الشهداء ببحر البقر للتعليم الاساسى"]
[520,"حنان يسرى محمد نسيم","مشرف نشاط",null,"2بحر البقر","الشهداء ببحر البقر للتعليم الاساسى"]
[521,"فاتن محمد عبدالوهاب السيد","مشرف نشاط",null,"2بحر البقر","الشهداء ببحر البقر للتعليم الاساسى"]
[522,"فايزة محمد جاد جاد الله","معلم خبير","معلم فصل","الاخيوة","الشهيد احمد اسماعيل الابتدائيه بالاخيوة"]
[523,"وداد محمد احمد علي","معلم خبير","معلم فصل","الاخيوة","الشهيد احمد اسماعيل الابتدائيه بالاخيوة"]
[524,"يوسف عبد الرحمن عبد الله","معلم خبير","معلم فصل","الصالحية القديمة","الشهيد احمد اسماعيل الابتدائيه بالاخيوة"]
[525,"خالد عبد المنعم سلامه خليل","معلم خبير","معلم فصل","الاخيوة","الشهيد احمد اسماعيل الابتدائيه بالاخيوة"]
[526,"سناء خليل محمد سالم","معلم خبير","معلم فصل","الاخيوة","الشهيد احمد اسماعيل الابتدائيه بالاخيوة"]
[527,"عبد العزيز ابراهيم علي ابراهيم","معلم خبير","معلم فصل","الاخيوة","الشهيد احمد اسماعيل الابتدائيه بالاخيوة"]
[528,"اسماء احمد عمرو محمد","معلم خبير","معلم فصل","الاخيوة","الشهيد احمد اسماعيل الابتدائيه بالاخيوة"]
[529,"محمد السيد محمد الهادي","معلم أول أ","رياضيات","الاخيوة","الشهيد احمد اسماعيل الابتدائيه بالاخيوة"]
[530,"محمد فتحي شحاتة مقبل","أخصائي مسرح","أخصائي مسرح","الاخيوة","الشهيد احمد اسماعيل الابتدائيه بالاخيوة"]
[531,"ليلي ابراهيم إبراهيم مقبل","معلم","انجليزي","الاخيوة","الشهيد احمد اسماعيل الابتدائيه بالاخيوة"]
[532,"فاطمة محمد احمد مصطفى","أمين مكتبة","امين مكتبة","الاخيوة","الشهيد احمد اسماعيل الابتدائيه بالاخيوة"]
[533,"مشيره احمد المصيلحي محمد","أخصائي اجتماعي أول","اخصائي اجتماعي","الاخيوة","الشهيد احمد اسماعيل الابتدائيه بالاخيوة"]
[534,"اكرام سليمان جاد الحق محمد","مشرف نشاط","مشرف نشاط","الاخيوة","الشهيد احمد اسماعيل الابتدائيه بالاخيوة"]
[535,"فادية محمد اسماعيل خليل","كاتب أول","كاتب أول","الاخيوة","الشهيد احمد اسماعيل الابتدائيه بالاخيوة"]
[536,"السيد احمد السيد ابراهيم","كاتب أول","كاتب أول","الاخيوة","الشهيد احمد اسماعيل الابتدائيه بالاخيوة"]
[537,"علاء محمد الحسيني محمد خاطر","مشرف نشاط","مشرف نشاط","الاخيوة","الشهيد احمد اسماعيل الابتدائيه بالاخيوة"]
[538,"عبدالعال السيد ابراهيم محمد","مدير","مدير ","عزبة المناجاة","الشهيد احمد نجم الابتدائيه"]
[539,"فتحى سعدالدين حسن على","وكيل","وكيل","عزبة المناجاة","الشهيد احمد نجم الابتدائيه"]
[540,"شريف احمدحسين سالم","معلم خبير","لغة عربية","عزبة المناجاة","الشهيد احمد نجم الابتدائيه"]
[541,"عبدالمنعم رياض عطية ابراهيم","معلم خبير","لغة عربية","عزبة المناجاة","الشهيد احمد نجم الابتدائيه"]
[542,"اشرف رشدى الشوادفى امام","معلم اول","لغة عربية","سعود","الشهيد احمد نجم الابتدائيه"]
[543,"عبدالمنعم السيد يوسف السيد","خط عربى","فنى خط","الحسينية","الشهيد احمد نجم الابتدائيه"]
[544,"احمد محمد السيد محمد احمد الطنانى","معلم خبير","مجال زراعى","عزبة المناجاة","الشهيد احمد نجم الابتدائيه"]
[545,"راوية ابراهيم عباس عبدربه","معلم اول","داراسات","سعود","الشهيد احمد نجم الابتدائيه"]
[546,"امال عبدالله موسى على","معلم اول","داراسات","عزبة المناجاة","الشهيد احمد نجم الابتدائيه"]
[547,"جمال عبدالغنى محمد محمد","معلم خبير","لغة عربية","الحسينية","الشهيد احمد نجم الابتدائيه"]
[548,"ثروت محمد عبدالعال محمد","معلم خبير","رياضة","الحسينية","الشهيد احمد نجم الابتدائيه"]
[549,"غادة فاروق محمدمحمد","معلم اول","لغة عربية","سعود","الشهيد احمد نجم الابتدائيه"]
[550,"احمد السيد احمد السيد","معلم خبير","رياضة","الحسينية","الشهيد احمد نجم الابتدائيه"]
[551,"عبدالصمد محمد ابراهيم محمد","مشرف نشاط","مشرف نشاط","سعود","الشهيد احمد نجم الابتدائيه"]
[552,"صلاح كامل ميلاد موسى","معلم خبير","رياضة","الحسينية","الشهيد احمد نجم الابتدائيه"]
[553,"غادة ابراهيم مصطفى محمد","فنى تشغيل","فنى تشغيل","عزبة المناجاة","الشهيد احمد نجم الابتدائيه"]
[554,"هناء غازى محمد غازى","كاتب اول ا","كاتب اول","عزبة المناجاة","الشهيد احمد نجم الابتدائيه"]
[555,"محمدابراهيم حسن ابراهيم","كاتب اول ا","كاتب اول","عزبة المناجاة","الشهيد احمد نجم الابتدائيه"]
[556,"محمد فهيم عطية حسين","معلم خبير","رياضة","الحسينية","الشهيد احمد نجم الابتدائيه"]
[557,"ايهاب على ابراهيم عبدالجواد","معلم اول","حاسب الى","الحسينية","الشهيد احمد نجم الابتدائيه"]
[558,"هناء عبدالعزيزمحمدمحمد","معلم خبير","لغة عربية","عزبة المناجاة","الشهيد احمد نجم الابتدائيه"]
[559,"عواطف ابراهيم حسن ابراهيم","معلم خبير","لغة عربية","عزبة المناجاة","الشهيد احمد نجم الابتدائيه"]
[560,"كوثر السيد ابراهيم عبدالحق","معلم خبير","لغة عربية","عزبة المناجاة","الشهيد احمد نجم الابتدائيه"]
[561,"رياض عباس محمد تابراهيم","معلم اول","لغة عربية","عزبة المناجاة","الشهيد احمد نجم الابتدائيه"]
[562,"فادية احمد حسين محمد","فنى تشغيل","فنى تشغيل","عزبة المناجاة","الشهيد احمد نجم الابتدائيه"]
[563,"ايناس عبدالعزيز محمود محمد","معلم مساعد","لغة عربية","عزبة المناجاة","الشهيد احمد نجم الابتدائيه"]
[564,"اسماء على اسماعيل على","معلم مساعد","انجليزى","الحسينية","الشهيد احمد نجم الابتدائيه"]
[565,"سعده احمد احمد محمد","معلم اول ","دراسات","سعود","الشهيد احمد نجم الابتدائيه"]
[566,"عبير محمد السيد محمد ","اخصائى اجتماعى","اخصائى اجتماعى","عزبة المناجاة","الشهيد احمد نجم الابتدائيه"]
[567,"بشرى حجازى اعطية احمد","عامل معمل","عامل معمل","سعود","الشهيد احمد نجم الابتدائيه"]
[568,"نورا محمد سعون ","كاتب رابع","كاتب رابع","عزبة المناجاة","الشهيد احمد نجم الابتدائيه"]
[569,"محمد عبدالمعطى عبدالعال سالم","مدير المدرسة","علوم","الحمادين","الشهيد محمود صلاح خليل الابتدائيه"]
[570,"السيد عبدالحليم احمد ابراهيم","معلم خبير","معلم فصل","الحمادين","الشهيد محمود صلاح خليل الابتدائيه"]
[571,"محمد احمد حسن حسين","معلم خبير","معلم فصل","الحمادين","الشهيد محمود صلاح خليل الابتدائيه"]
[572,"بهية السيد مصبح على","معلم خبير","معلم فصل","الحمادين","الشهيد محمود صلاح خليل الابتدائيه"]
[573,"السيد حسن ابراهيم محمد","معلم خبير","معلم فصل","الحمادين","الشهيد محمود صلاح خليل الابتدائيه"]
[574,"احمد مكاوى عبدالكريم مكاوى","معلم اول ا","معلم فصل","الحمادين","الشهيد محمود صلاح خليل الابتدائيه"]
[575,"سمير محمد على الديب","معلم اول ا","علوم","الحمادين","الشهيد محمود صلاح خليل الابتدائيه"]
[576,"محمد السيد محمد عبدالله","معلم اول ا","لغة انجليزية","قهبونه","الشهيد محمود صلاح خليل الابتدائيه"]
[577,"عواطف محمد على شريف","معلم خبير","مجال زراعي","الحمادين","الشهيد محمود صلاح خليل الابتدائيه"]
[578,"سليمان محمد محمود سالم","معلم اول","مجال زراعي","الحمادين","الشهيد محمود صلاح خليل الابتدائيه"]
[579,"فادية علي احمد محمد","معلم اول","تربية رياضية","الحمادين","الشهيد محمود صلاح خليل الابتدائيه"]
[580,"محمد عبداللطيف حسن حسين","اخصائي اول اجتماعي",null,"الحمادين","الشهيد محمود صلاح خليل الابتدائيه"]
[581,"عايدة عبدالعزيز محمد متولي","اخصائي اول نفسي",null,"الحمادين","الشهيد محمود صلاح خليل الابتدائيه"]
[582,"ولاء عصام ابراهيم محمد","معلم اول","حاسب الي","قهبونه","الشهيد محمود صلاح خليل الابتدائيه"]
[583,"سامية اسماعيل محمد اسماعيل","فني وسائل",null,"الحمادين","الشهيد محمود صلاح خليل الابتدائيه"]
[584,"عادل السيد محمد مصطفى","فني وسائل",null,"الحمادين","الشهيد محمود صلاح خليل الابتدائيه"]
[585,"محمود محمد حسن","كاتب",null,"الحمادين","الشهيد محمود صلاح خليل الابتدائيه"]
[586,"نفوسة حسنى عبدالحليم محمد","كاتب",null,"الحمادين","الشهيد محمود صلاح خليل الابتدائيه"]
[587,"محمد اسماعيل محمد سالم ","مشرف نشاط",null,"الحمادين","الشهيد محمود صلاح خليل الابتدائيه"]
[588,"ايمان عبدالرحمن محمد حسين","معلم",null,"الحمادين","الشهيد محمود صلاح خليل الابتدائيه"]
[589,"ايمان حسين محمد سالم","مشرف نشاط",null,"الحمادين","الشهيد محمود صلاح خليل الابتدائيه"]
[590,"عيد إبراهيم يعقوب برهام ","مدير المدرسة ","لغة عربية ","كوبرى بحر البقر","الشوابكة للتعليم الاساسى"]
[591,"سعدية عبدالحميد حسن حسانين ","معلم خبير","لغة عربية ","كوبرى بحر البقر","الشوابكة للتعليم الاساسى"]
[592,"منال محمد محمود كريم ","معلم خبير","لغة عربية ","كوبرى بحر البقر","الشوابكة للتعليم الاساسى"]
[593,"ملكه آمين سليم صالح ","معلم أول ","لغة عربية ","بندر الحسينية ","الشوابكة للتعليم الاساسى"]
[594,"هدير عبدالباسط محجوب","معلم مساعد","لغة انجليزية","سعود ","الشوابكة للتعليم الاساسى"]
[595,"زينب بسيونى إبراهيم عبدالسميع","معلم مساعد","لغة انجليزية","ابو شميس ","الشوابكة للتعليم الاساسى"]
[596,"عباس سالم محمد محمد ","معلم أول ","دراسات","كوبرى بحر البقر","الشوابكة للتعليم الاساسى"]
[597,"محمد محمد موسى عبدالستار","معلم أول ","فرنساوى","واحد بحر البقر","الشوابكة للتعليم الاساسى"]
[598,"حمدى ابراهيم يعقوب برهام","معلم أول أ","مجالات","كوبرى بحر البقر","الشوابكة للتعليم الاساسى"]
[599,"محمود محمد سالم على ","معلم أول أ","أخصائى اجتماعى","سعود ","الشوابكة للتعليم الاساسى"]
[600,"ابراهيم محمد موسى عبدالستار","م نشاط","م نشاط","واحد بحر البقر","الشوابكة للتعليم الاساسى"]
[601,"صفاء صابر على عبدالرحمن","م نشاط","م نشاط","كوبرى بحر البقر","الشوابكة للتعليم الاساسى"]
[602,"شهيرة ابو جرير  يعقوب برهام","م نشاط","م نشاط","كوبرى بحر البقر","الشوابكة للتعليم الاساسى"]
[603,"هناء ابراهيم عبدالحميد الصيفى ","م نشاط","م نشاط","كوبرى بحر البقر","الشوابكة للتعليم الاساسى"]
[604,"بدور جمال محمد ابو الفتوح","م نشاط","م نشاط","جزيرة برد","الشوابكة للتعليم الاساسى"]
[605,"حنان حسن موسى حسن ","م نشاط","م نشاط","كوبرى بحر البقر","الشوابكة للتعليم الاساسى"]
[606,"عيد عبدالعظيم حسن محمد","مدير",null,"الاخيوة","الصباغ للتعليم الاساسى"]
[607,"رضا السيد محمد احمد","معلم أول أ","لغة عربية ع","الاخيوة","الصباغ للتعليم الاساسى"]
[608,"محمد عبده محمد بركات","معلم أول ","رياضيات ع","الاخيوة","الصباغ للتعليم الاساسى"]
[609,"انجى جرجس تادرس ميلاده","معلم  اول أ","علوم ع","الاخيوة","الصباغ للتعليم الاساسى"]
[610,"رشا سمير معوض عبده","معلم أول","لغة انجليزية ع","الاخيوة","الصباغ للتعليم الاساسى"]
[611,"عبدالمسيح عبدالشهيد فرج بغدادى","معلم أول أ","حاسب آلى ع","الاخيوة","الصباغ للتعليم الاساسى"]
[612,"احمد حامد ابراهيم عبدالواحد","معلم خبير","لغة عربية ابتدائى","الاخيوة","الصباغ للتعليم الاساسى"]
[613,"احمد صلاح محمد حسانين","معلم أول","لغة عربية ابتدائى","الاخيوة","الصباغ للتعليم الاساسى"]
[614,"السيد محمد ابراهيم علي","معلم خبير ","رياضيات ابتدائى","الاخيوة","الصباغ للتعليم الاساسى"]
[615,"ثابت بشارة كيرلس بربرى","معلم خبير","رياضيات ابتدائى","الاخيوة","الصباغ للتعليم الاساسى"]
[616,"عبدالحميد محمد احمد ابراهيم","معلم أول","دراسات ابتدائى","الاخيوة","الصباغ للتعليم الاساسى"]
[617,"ابراهيم جاد احمد حسن","معلم خبير","دراسات ابتدائى","الاخيوة","الصباغ للتعليم الاساسى"]
[618,"مجدى محمد حسانين حماد","معلم خبير","علوم ابتدائى","الاخيوة","الصباغ للتعليم الاساسى"]
[619,"سامح السيد محمدين دسوقى","فنى وسائل",null,"قهبونه","الصباغ للتعليم الاساسى"]
[620,"راويه مصطفى احمد على","فنى وسائل",null,"الاخيوة","الصباغ للتعليم الاساسى"]
[621,"زينب على محمد خليل","مشرف نشاط",null,"الاخيوة","الصباغ للتعليم الاساسى"]
[622,"شادية محمد احمد عثمان","اخصائى مكتبة",null,"الاخيوة","الصباغ للتعليم الاساسى"]
[623,"شرين متولى عبدالعال متولى","اخصائى اجتماعى",null,"الاخيوة","الصباغ للتعليم الاساسى"]
[624,"هالة محمد محمد الشوادفى","آمين معمل",null,"الاخيوة","الصباغ للتعليم الاساسى"]
[625,"هدى فتحى محمود احمد","فنى وسائل",null,"الاخيوة","الصباغ للتعليم الاساسى"]
[626,"منى ابراهيم عبدالرازق امام","كاتب رابع",null,"الاخيوة","الصباغ للتعليم الاساسى"]
[627,"نبيل قطب الظواهرى المنير","معلم أول أ - وكيل مدرسة","وكيل المدرسة","الظواهرية - مركز م.ابوعمر","الظواهرية للتعليم الاساسى"]
[628,"هبة محمد حسن سيد احمد","معلم أول أ","لغة عربية","الظواهرية - مركز م.ابوعمر","الظواهرية للتعليم الاساسى"]
[629,"ياسمين صالح ابراهيم على","معلم أول","لغة عربية","الظواهرية - مركز م.ابوعمر","الظواهرية للتعليم الاساسى"]
[630,"فريجة يحيى منصور عبدالحميد","معلم أول أ","لغة انجليزية","الظواهرية - مركز م.ابوعمر","الظواهرية للتعليم الاساسى"]
[631,"مديحه محمد عطية مشرف","معلم أول","علوم","السعدى - مركز الحسينية","الظواهرية للتعليم الاساسى"]
[632,"محمود عبدالفتاح منصور يونس","معلم أول","علوم","الظواهرية - مركز م.ابوعمر","الظواهرية للتعليم الاساسى"]
[633,"محمد عبدالعزيز محمد علي","معلم أول أ","دراسات اجتماعية","الظواهرية - مركز م.ابوعمر","الظواهرية للتعليم الاساسى"]
[634,"فاطمة السيد موسى عبدالله","معلم أول أ","دراسات اجتماعية","الظواهرية - مركز م.ابوعمر","الظواهرية للتعليم الاساسى"]
[635,"سامية محمد عبدالعال السيد","معلم أول أ","دراسات اجتماعية","الظواهرية - مركز م.ابوعمر","الظواهرية للتعليم الاساسى"]
[636,"سوسن عبدالمنعم عبدالهادى عبدالعاطى","معلم أول","دراسات اجتماعية","الظواهرية - مركز م.ابوعمر","الظواهرية للتعليم الاساسى"]
[637,"السيد حسن محمد اسماعيل","معلم خبير","معلم فصل","الظواهرية - مركز م.ابوعمر","الظواهرية للتعليم الاساسى"]
[638,"امينة ابراهيم هلال مصطفى","معلم خبير","معلم فصل","الظواهرية - مركز م.ابوعمر","الظواهرية للتعليم الاساسى"]
[639,"خيرية عبد الحميد الجالى اسماعيل","معلم خبير","معلم فصل","الظواهرية - مركز م.ابوعمر","الظواهرية للتعليم الاساسى"]
[640,"ناجى ابراهيم على منصور","معلم خبير","معلم فصل","الظواهرية - مركز م.ابوعمر","الظواهرية للتعليم الاساسى"]
[641,"هويدا محمد عبد الفضيل خلف","معلم خبير","معلم فصل","الظواهرية - مركز م.ابوعمر","الظواهرية للتعليم الاساسى"]
[642,"سماء محمد احمد خازندار","معلم مساعد","معلم فصل","الظواهرية - مركز م.ابوعمر","الظواهرية للتعليم الاساسى"]
[643,"ابراهيم على البدرى على الطنطاوى","معلم خبير","مجال زراعى","الظواهرية - مركز م.ابوعمر","الظواهرية للتعليم الاساسى"]
[644,"حمادة محمد عطية صالح","معلم","تربية رياضية","السعدى - مركز الحسينية","الظواهرية للتعليم الاساسى"]
[645,"طلعت محمود حسن طنطاوى","فنى تدريس ثالث","تربية فنية","عيلوه - مركز الحسينية","الظواهرية للتعليم الاساسى"]
[646,"اميره محمد توفيق سالم","أمين مكتبة أول أ","مكتبة","الظواهرية - مركز م.ابوعمر","الظواهرية للتعليم الاساسى"]
[647,"عبدالسلام ابراهيم السيد سويلم","فنى رابع","امين معمل","الظواهرية - مركز م.ابوعمر","الظواهرية للتعليم الاساسى"]
[648,"عبير عبدالكريم محمد الامين","فنى تشغيل وسائل تعليمية","فنى تشغيل","الظواهرية - مركز م.ابوعمر","الظواهرية للتعليم الاساسى"]
[649,"لمياء عبدالرازق على احمد","فنى رابع","امين معمل","الظواهرية - مركز م.ابوعمر","الظواهرية للتعليم الاساسى"]
[650,"رحاب حمدى عبدالله عبدالعال","فنى تشغيل وسائل تعليمية","فنى تشغيل","الظواهرية - مركز م.ابوعمر","الظواهرية للتعليم الاساسى"]
[651,"عايده محمد عبدالرحمن غالب","فنى تشغيل وسائل تعليمية","فنى تشغيل","الظواهرية - مركز م.ابوعمر","الظواهرية للتعليم الاساسى"]
[652,"محمود صلاح الدين عبد الله السيد","مشرف نشاط / خدمات","مشرف نشاط","الظواهرية - مركز م.ابوعمر","الظواهرية للتعليم الاساسى"]
[653,"هناء عبدالعزيز ابراهيم محمود","فنى تشغيل وسائل تعليمية","فنى تشغيل","الظواهرية - مركز م.ابوعمر","الظواهرية للتعليم الاساسى"]
[654,"اماني محمد عبدالهادي عبدالعاطي","كاتب ثالث- سكرتير ثالث","كاتب ثالث","عيلوه - مركز الحسينية","الظواهرية للتعليم الاساسى"]
[655,"فردوس قطب موسى ابراهيم","كاتب رابع- سكرتير رابع","كاتب رابع","الظواهرية - مركز م.ابوعمر","الظواهرية للتعليم الاساسى"]
[656,"محمد حسين سالم محمد","حرفى تجليد مساعد","عامل","الشرابنة - مركز الحسينية","الظواهرية للتعليم الاساسى"]
[657,"عادل  صالح راضى رسلان","وكيل المدرسة","رياضيات","العقايلة المناجاة الكبرى","العقايلة للتعليم الاساسى"]
[658,"سميرة فرج عبد العال سليم","معلم خبير","اللغة العربية","العقايلة المناجاة الكبرى","العقايلة للتعليم الاساسى"]
[659,"منال محمد السيد عبده","معلم اول أ","اللغة العربية","الجمالية","العقايلة للتعليم الاساسى"]
[660,"ابتسام عبده صديق سالم","معلم أول","اللغة العربية","سعود","العقايلة للتعليم الاساسى"]
[661,"سحر محمد السيد محمد","معلم مساعد","انجليزى","الجمالية","العقايلة للتعليم الاساسى"]
[662,"عادل شوقي مسلم سلامة","معلم خبير","رياضيات","العقايلة المناجاة الكبرى","العقايلة للتعليم الاساسى"]
[663,"عبد الستار محمد عبد الحميد بكرش","معلم خبير","علوم","الاخيوة","العقايلة للتعليم الاساسى"]
[664,"مايسه حسن مسعد ابراهيم","معلم أول","دراسات","سعود","العقايلة للتعليم الاساسى"]
[665,"فوزية عزمي عبد الحميد احمد","معلم خبير","معلم فصل","عزبة عبس المناجاة الصغرى","العقايلة للتعليم الاساسى"]
[666,"منى السيد قنديل منصور","معلم اول أ","معلم فصل","العقايلة المناجاة الكبرى","العقايلة للتعليم الاساسى"]
[667,"محمد شحاته السيد محمد","معلم","حاسب الى","سعود","العقايلة للتعليم الاساسى"]
[668,"احمد محمد احمد محمود","معلم خبير","تربية زراعية","المناجاه الصغرى","العقايلة للتعليم الاساسى"]
[669,"هاله محمد نصر اسماعيل","فنى تشغيل  رابع","فنى تشغيل  رابع","العقايلة المناجاة الكبرى","العقايلة للتعليم الاساسى"]
[670,"الفت محمد السيد سالم","فنى تشغيل  رابع","فنى تشغيل  رابع","العقايلة المناجاة الكبرى","العقايلة للتعليم الاساسى"]
[671,"شيزان عبدالله الحاج رزق بخيت","فنى تشغيل  رابع","فنى تشغيل  رابع","سعود","العقايلة للتعليم الاساسى"]
[672,"محمد عبدالوهاب محمد عطية","معلم خبير","اللغة العربية","سعود","العقايلة للتعليم الاساسى"]
[673,"حسام حامد احمد حماد","معلم اول أ","اللغة العربية","العقايلة المناجاة الكبرى","العقايلة للتعليم الاساسى"]
[674,"سلوى السيد عبدالرحمن عبد الخالق","معلم اول أ","اللغة العربية","المناجاة الكبرى","العقايلة للتعليم الاساسى"]
[675,"سميحة على محمد على","معلم اول أ","انجليزى","الجمالية","العقايلة للتعليم الاساسى"]
[676,"اسلام يحي ارياض عبدالواحد","معلم اول  ","رياضيات","سعود","العقايلة للتعليم الاساسى"]
[677,"محمود احمد على محمد","معلم","علوم","الملكيين البحرية","العقايلة للتعليم الاساسى"]
[678,"هيثم عبداللطيف الطيب محمد","معلم اول أ","دراسات","سعود","العقايلة للتعليم الاساسى"]
[679,"أشرف عبدالرحمن منصور جسن","معلم اول  ","حاسب الى","الجمالية","العقايلة للتعليم الاساسى"]
[680,"اميره ابراهيم كمال محمد سيد احمد","معلم اول  ","حاسب الى","العقايلة المناجاة الكبرى","العقايلة للتعليم الاساسى"]
[681,"سعيد احمد محمد الشمشيرى","معلم خبير","تربية فنية","الجمالية","العقايلة للتعليم الاساسى"]
[682,"عماد  عطية سليمان سليم","اخصائى اول","مكتبات","العقايلة المناجاة الكبرى","العقايلة للتعليم الاساسى"]
[683,"عزيزه حسين خليل نجم","مشرف نشاط أول أ","مشرف نشاط أول أ","عزبة عبس المناجاة الصغرى","العقايلة للتعليم الاساسى"]
[684,"ايمان محمد توفيق سالم","فنى تشغيل  رابع","فنى تشغيل  رابع","العقايلة المناجاة الكبرى","العقايلة للتعليم الاساسى"]
[685,"زينات عصمت عبدالوهاب ابراهيم","مشرف نشاط أول أ","مشرف نشاط أول أ","عزبة عبس المناجاة الصغرى","العقايلة للتعليم الاساسى"]
[686,"ميرفت معراج محمد عبد المولى","فنى تشغيل  رابع","فنى تشغيل  رابع","عزبة عبس المناجاة الصغرى","العقايلة للتعليم الاساسى"]
[687,"سونية على الصادق","فنى تشغيل  رابع","امين معمل","المناجاه الصغرى","العقايلة للتعليم الاساسى"]
[688,"محمد السيد منصور احمد","معلم خبير","معلم فصل","الجمالية- م الحسينية","العمدة رافت غياض للتعليم الاساسى"]
[689,"دولت سالم محمد حسن","معلم خبير","معلم فصل","الجمالية- م الحسينية","العمدة رافت غياض للتعليم الاساسى"]
[690,"جمالات احمد محمد السيد","معلم خبير","معلم فصل","الجمالية- م الحسينية","العمدة رافت غياض للتعليم الاساسى"]
[691,"زينب حسن على منصور","معلم خبير","معلم فصل","الجمالية- م الحسينية","العمدة رافت غياض للتعليم الاساسى"]
[692,"امل ادريس عبدالعزيز عبدالحميد","معلم خبير","معلم فصل","الجمالية- م الحسينية","العمدة رافت غياض للتعليم الاساسى"]
[693,"هويدا سباعى سليمان سيد احمد","معلم خبير","معلم فصل","الجمالية- م الحسينية","العمدة رافت غياض للتعليم الاساسى"]
[694,"غاده عيسى على منصور","معلم خبير","معلم فصل","الجمالية- م الحسينية","العمدة رافت غياض للتعليم الاساسى"]
[695,"صباح محمد عطا الله حسين","معلم اول أ","معلم فصل","الجمالية- م الحسينية","العمدة رافت غياض للتعليم الاساسى"]
[696,"علاء الدين فؤاد محمود إبراهيم","معلم اول أ","معلم فصل","الجمالية- م الحسينية","العمدة رافت غياض للتعليم الاساسى"]
[697,"السيد محمد مسعود سالم","معلم اول","معلم فصل","الجمالية- م الحسينية","العمدة رافت غياض للتعليم الاساسى"]
[698,"رزق مسعد رزق سليمان","معلم اول","معلم فصل","الاخيوة - م الحسينية","العمدة رافت غياض للتعليم الاساسى"]
[699,"عبدالناصر حمد محمد عبدالجواد","اخصائى مسرح","معلم فصل","الجمالية- م الحسينية","العمدة رافت غياض للتعليم الاساسى"]
[700,"سماح عبدا لرحمن سالم محمد","اخصائى نفسى","معلم فصل","الجمالية- م الحسينية","العمدة رافت غياض للتعليم الاساسى"]
[701,"فتحية محمود محمد سيد احمد","م نشاط","معلم فصل","الجمالية- م الحسينية","العمدة رافت غياض للتعليم الاساسى"]
[702,"مديحة محمد على حسين","م نشاط","معلم فصل","الجمالية- م الحسينية","العمدة رافت غياض للتعليم الاساسى"]
[703,"احمد فرج إسماعيل اسماعيل","م نشاط","معلم فصل","الجمالية- م الحسينية","العمدة رافت غياض للتعليم الاساسى"]
[704,"ألفت احمد محمد محمد","معلم خبير","معلم فصل (لغة عربية)","سماكين الشرق  مركز الحسينية","العوامرة للتعليم الاساسى ب"]
[705,"فايزه محمد رأفت إبراهيم","معلم خبير","معلم فصل (لغة عربية)","سماكين الشرق  مركز الحسينية","العوامرة للتعليم الاساسى ب"]
[706,"مرفت عبد العزيز سليمان ابراهيم","معلم خبير","رياضيات","سماكين الشرق  مركز الحسينية","العوامرة للتعليم الاساسى ب"]
[707,"نفيسة عبد الفتاح عبد الحق ","معلم خبير","معلم فصل (لرياضيات)","سماكين الشرق  مركز الحسينية","العوامرة للتعليم الاساسى ب"]
[708,"حنان أحمد محمد إبراهيم","معلم خبير","معلم فصل (لغة عربية)","سماكين الشرق  مركز الحسينية","العوامرة للتعليم الاساسى ب"]
[709,"رضة إبراهيم على محمد","معلم خبير","معلم فصل (لرياضيات)","سماكين الشرق  مركز الحسينية","العوامرة للتعليم الاساسى ب"]
[710,"صفية عبد الرحمن محمد سليمان","معلم خبير","معلم فصل (لرياضيات)","سماكين الشرق  مركز الحسينية","العوامرة للتعليم الاساسى ب"]
[711,"عواطف عبد الهادى محمد سالم","معلم خبير","لغة عربية","سماكين الشرق  مركز الحسينية","العوامرة للتعليم الاساسى ب"]
[712,"رابحة حسن على إبراهيم","معلم خبير","معلم فصل (لغة عربية)","قصاصين الشرق  مركز الحسينية","العوامرة للتعليم الاساسى ب"]
[713,"محمد عبدالحق اسماعيل حسانين","معلم خبير","معلم فصل (لغة عربية)","قصاصين الشرق  مركز الحسينية","العوامرة للتعليم الاساسى ب"]
[714,"ماجده زغلول أحمد عبدالرازق","معلم أول أ","لغة انجليزية","سماكين الشرق  مركز الحسينية","العوامرة للتعليم الاساسى ب"]
[715,"شرين محمد نجيب محمد","معلم أول","حاسب آلى","سماكين الشرق  مركز الحسينية","العوامرة للتعليم الاساسى ب"]
[716,"سناء على محمد على","معلم أول","دراسات اجتماعية","قصاصين الشرق  مركز الحسينية","العوامرة للتعليم الاساسى ب"]
[717,"نوره عبدالستار موسى محمد","امين مكتبة","ـــــــــ","الصالحية القديمة مركز فاقوس","العوامرة للتعليم الاساسى ب"]
[718,"نها الشبراوى إبراهيم محمد","فنى تشغيل وسائل","ــــــــ","سماكين الشرق  مركز الحسينية","العوامرة للتعليم الاساسى ب"]
[719,"هويدا محمد رأفت إبراهيم سليمان","فنى تشغيل وسائل","ــــــــ","سماكين الشرق  مركز الحسينية","العوامرة للتعليم الاساسى ب"]
[720,"فكرية السيد على على","فنى تشغيل وسائل","ــــــــ","سماكين الشرق  مركز الحسينية","العوامرة للتعليم الاساسى ب"]
[721,"وفاء محمد على محمد","فنى تشغيل وسائل","ــــــــ","سماكين الشرق  مركز الحسينية","العوامرة للتعليم الاساسى ب"]
[722,"سونة غازى محمد غازى","فنى تشغيل وسائل","ــــــــ","سماكين الشرق  مركز الحسينية","العوامرة للتعليم الاساسى ب"]
[723,"فاطمة إبراهيم هاشم عبدالله","امين معمل","ــــــــ","سماكين الشرق  مركز الحسينية","العوامرة للتعليم الاساسى ب"]
[724,"نجلاء السيد عبدالبديع على","ش 0 ع","ــــــــ","سماكين الشرق  مركز الحسينية","العوامرة للتعليم الاساسى ب"]
[725,"شرين حسين أحمد هنداوى","سكرتير","ــــــــ","سماكين الشرق  مركز الحسينية","العوامرة للتعليم الاساسى ب"]
[726,"عبد الرحمن احمد السيد بهنساوى","معلم خبير","رياضيات","الملكيين البحرية","القرامدة للتعليم الاساسى"]
[727,"طارق فتحى وهيدى حسنين ","معلم خبير","رياضيات","قهبونة","القرامدة للتعليم الاساسى"]
[728,"احمد على السيد ابراهيم","معلم خبير","مجال صناعى","الاخيوة","القرامدة للتعليم الاساسى"]
[729,"السيد دسوقى حسن السيد","معلم خبير","لغة عربية","الملكيين البحرية","القرامدة للتعليم الاساسى"]
[730,"نادرة احمد محمد قاسم","معلم خبير","لغة عربية","الملكيين القبلية","القرامدة للتعليم الاساسى"]
[731,"عبد العزيز سالم على","معلم خبير","لغة عربية","قهبونة","القرامدة للتعليم الاساسى"]
[732,"السيدعبد المعطى عبد العال","معلم خبير","لغة عربية","الحمادين","القرامدة للتعليم الاساسى"]
[733,"احمد على سليم سالم","معلم اول ا ","لغة عربية","قهبونة","القرامدة للتعليم الاساسى"]
[734,"امانى عطوه عبد السلام","اخصائى اجتماعى","اخصائى","قهبونة","القرامدة للتعليم الاساسى"]
[735,"محمد عبد الستار عبد العال","معلم مساعد","انجليزى","الملكيين البحرية","القرامدة للتعليم الاساسى"]
[736,"محمد السيد احمد ","م نشاط","م نشاط","قهبونة","القرامدة للتعليم الاساسى"]
[737,"عبده ابراهيم ابراهيم شلبى","كاتب","كاتب","الملكيين القبلية","القرامدة للتعليم الاساسى"]
[738,"كريمة السيد ابو زيد","كاتب","كاتب","الملكيين القبلية","القرامدة للتعليم الاساسى"]
[739,"مهم سعيد مهم حنفى","معلم خبير ","مدير المدرسة","وكيل النيابة - صان الحجر - شرقية","القعابة للتعليم الأساسى"]
[740,"رمضان محمد اسماعيل سلامة ","معلم خبير ","رياضيات ","المساعيد - صان الحجر - شرقية","القعابة للتعليم الأساسى"]
[741,"حسن محمد حسن عوض ","معلم خبير ","عربى ","المساعيد - صان الحجر - شرقية","القعابة للتعليم الأساسى"]
[742,"احمد محمد عبدالمنعم عبدالمنعم ","معلم خبير ","رياضيات ","الناصرية - صان الحجر - شرقية","القعابة للتعليم الأساسى"]
[743,"فاطمة محمد اسماعيل حسين","معلم خبير ","عربى ","القعابة - صان الحجر - شرقية","القعابة للتعليم الأساسى"]
[744,"حسن سعيد حسن متولى  ","معلم اول","عربى ","الناصرية - صان الحجر - شرقية","القعابة للتعليم الأساسى"]
[745,"سمر السيد عبدالسلام احمد","معلم اول","حاسب آلى ","الحسينية - شرقية","القعابة للتعليم الأساسى"]
[746,"محمد ثروت محمد عبدالعاطى ","معلم اول","لغة عربية ","الحجازية - الحسينية - شرقية","القعابة للتعليم الأساسى"]
[747,"حنان محمد رضا محمد ابراهيم","معلم اول أ ","دراسات","الناصرية - صان الحجر - شرقية","القعابة للتعليم الأساسى"]
[748,"احمد محمود محمد على","معلم اول","عربى ","ام صوير - الحسينية - شرقية","القعابة للتعليم الأساسى"]
[749,"محمد حسن مسلم سليمان ","معلم أول ","رياضيات ","القعابة - صان الحجر - شرقية","القعابة للتعليم الأساسى"]
[750,"شادي على ابراهيم عبدالعال","معلم أول","لغة انجليزية","القعابة - صان الحجر - شرقية","القعابة للتعليم الأساسى"]
[751,"محمد سالم مسلم سالم","معلم","اخصائى تدريس","القعابة - صان الحجر - شرقية","القعابة للتعليم الأساسى"]
[752,"محمد عطيه جمعه داوود","معلم اول","رياضيات ","القعابة - صان الحجر - شرقية","القعابة للتعليم الأساسى"]
[753,"رمضان حسن حسين حسن","معلم أول أ","اخصائى","المصرى - الحسينية - شرقية","القعابة للتعليم الأساسى"]
[754,"محمد حمدى مصطفى احمد","مشرف نشاط",null,"الناصرية - صان الحجر - شرقية","القعابة للتعليم الأساسى"]
[755,"هدى السيد عبدالعال مصطفى","مشرف نشاط",null,"المهندس - فاقوس - شرقية","القعابة للتعليم الأساسى"]
[756,"وردة عبدالقادر مصطفى محمد ","فنى تشغيل",null,"القعابة - صان الحجر - شرقية","القعابة للتعليم الأساسى"]
[757,"عطيات السيد على بكرى","فنى معمل",null,"القعابة - صان الحجر - شرقية","القعابة للتعليم الأساسى"]
[758,"لمياء محمد ابراهيم عبدالعال","كاتب",null,"القعابة - صان الحجر - شرقية","القعابة للتعليم الأساسى"]
[759,"ولاء عبدالرحمن عبدالسلام محمد","فنى معمل",null,"الناصرية - صان الحجر - شرقية","القعابة للتعليم الأساسى"]
[760,"محمد عبدالعزيز حمد محمد","كاتب",null,"القعابة - صان الحجر - شرقية","القعابة للتعليم الأساسى"]
[761,"عبدالله سليمان خضر عبدالله","عامل",null,"القعابة - صان الحجر - شرقية","القعابة للتعليم الأساسى"]
[762,"على السيد على السيد","عامل خدمات",null,"القعابة - صان الحجر - شرقية","القعابة للتعليم الأساسى"]
[763,"عبدالغفار مشرف محمد احمد","معلم خبير","معلم فصل ","الملكيين القبلية","اللواء صلاح السيد صديق للتعليم الاساسى"]
[764,"محمد احمد علي حسين","معلم خبير","معلم فصل ","قهبونه ","اللواء صلاح السيد صديق للتعليم الاساسى"]
[765,"فاطمه حسن محمد على ","معلم خبير","معلم فصل ","الملكيين القبلية","اللواء صلاح السيد صديق للتعليم الاساسى"]
[766,"امال ابراهيم محمد سبيع ","معلم خبير","معلم فصل ","الملكيين القبلية","اللواء صلاح السيد صديق للتعليم الاساسى"]
[767,"امل عبدالعال عمر ابراهيم ","معلم خبير","معلم فصل ","الملكيين القبلية","اللواء صلاح السيد صديق للتعليم الاساسى"]
[768,"زينب الشبراوى ابراهيم احمد","معلم خبير","معلم فصل ","الملكيين القبلية","اللواء صلاح السيد صديق للتعليم الاساسى"]
[769,"فاطمه السيد عبدالسلام محمد","معلم اول أ","لغة عربية","الملكيين القبلية","اللواء صلاح السيد صديق للتعليم الاساسى"]
[770,"حمدي علي احمد سالم","معلم اول ا","لغه عربية","قهبونه ","اللواء صلاح السيد صديق للتعليم الاساسى"]
[771,"فاطمه عبده ابراهيم ابراهيم","معلم مساعد","لغه عربية","الملكيين القبلية","اللواء صلاح السيد صديق للتعليم الاساسى"]
[772,"تهاني احمد ابراهيم عبدالله","معلم مساعد","لغه عربية","المناصرة","اللواء صلاح السيد صديق للتعليم الاساسى"]
[773,"امل عمر احمد سالم ","اخصائي اجتماعي",0,"العطلات فاقوس","اللواء صلاح السيد صديق للتعليم الاساسى"]
[774,"ابراهيم عبدالكريم صالح محمد","مشرف نشاط",0,"الملكيين القبلية","اللواء صلاح السيد صديق للتعليم الاساسى"]
[775,"السيد محمد توفيق محمد","مشرف نشاط",0,"الملكيين القبلية","اللواء صلاح السيد صديق للتعليم الاساسى"]
[776,"سماح محمد ابراهيم عطيه","مشرف نشاط",0,"الملكيين القبلية","اللواء صلاح السيد صديق للتعليم الاساسى"]
[777,"ايهاب محمد شوقي علي بهنساوى","تربيه رياضيه",0,"الملكيين القبلية","اللواء صلاح السيد صديق للتعليم الاساسى"]
[778,"وفاء محمد محمد جبر ","رياض اطفال ",0,"الملكيين القبلية","اللواء صلاح السيد صديق للتعليم الاساسى"]
[779,"مني السيد حسن الصاوي ","رياض اطفال ",0,"الملكيين القبلية","اللواء صلاح السيد صديق للتعليم الاساسى"]
[780,"احمد محمد احمد محمد","كاتب",0,"الملكيين القبلية","اللواء صلاح السيد صديق للتعليم الاساسى"]
[781,"عماد محمد محمد ابراهيم ","معلم خبير ","مدير المدرسة "," الشربينى ","الملكيين للتعليم الاساسى"]
[782,"احمد محمد احمد عبدالغنى ","معلم خبير ","معلم فصل ","عزبة ابو غازى  ","الملكيين للتعليم الاساسى"]
[783,"عبدالسلام محمد امين ","معلم خبير ","معلم فصل ","عزبة ابو عمرو","الملكيين للتعليم الاساسى"]
[784,"محمود ابراهيم محمد حسين ","معلم خبير ","معلم فصل ","عزية الحاج مغازى ","الملكيين للتعليم الاساسى"]
[785,"ابراهيم محمد احمد درويش","معلم خبير ","معلم فصل ","الملكيين البحرية ","الملكيين للتعليم الاساسى"]
[786,"ايمن احمد حسن على ","معلم خبير ","معلم فصل ","الملكيين البحرية ","الملكيين للتعليم الاساسى"]
[787,"ابراهيم ابراهيم حمدان ","معلم خبير ","معلم فصل ","الملكيين البحرية ","الملكيين للتعليم الاساسى"]
[788,"وائل ابراهيم محمد ابو العينين ","معلم خبير ","معلم فصل ","عزبة حنانة ","الملكيين للتعليم الاساسى"]
[789,"السيد موسى عبدالسلام ","معلم خبير ","لغة عربية ","الحسينية ","الملكيين للتعليم الاساسى"]
[790,"محمد محمد احمد حموده","معلم اول أ","لغة عربية ","الملكيين البحرية ","الملكيين للتعليم الاساسى"]
[791,"ولاء السيد احمد عبدالجليل ","معلم اول ","اقتصاد ","الملكيين البحرية ","الملكيين للتعليم الاساسى"]
[792,"محمد عبدالحميد ابراهيم السيد ","معلم اول ","معلم فصل ","الحسينية ","الملكيين للتعليم الاساسى"]
[793,"محمد السيد محمد على ","معلم اول ","حاسب ألى","مشأة خليل ","الملكيين للتعليم الاساسى"]
[794,"احمد عبدالودود السيد ","معلم اول ","دراسات ","عزية الحاج مغازى ","الملكيين للتعليم الاساسى"]
[795,"سنية على عبدالعال مصطفى ","معلم اول ","رياض اظفال","الملكيين البحرية ","الملكيين للتعليم الاساسى"]
[796,"فاطمة عبدالرحمن السيد ","معلم ","معلم فصل ","الملكيين البحرية ","الملكيين للتعليم الاساسى"]
[797,"اميرة السيد احمد حسن ","معلم ","اخصائى ","الملكيين البحرية ","الملكيين للتعليم الاساسى"]
[798,"على سالم نصار حسين ","مشرف نشاط ","م نشاط","الملكيين البحرية ","الملكيين للتعليم الاساسى"]
[799,"على محمود على ","مشرف نشاط ","م نشاط","الملكيين البحرية ","الملكيين للتعليم الاساسى"]
[800,"الباز محمد حسن سمرى ","مشرف نشاط ","م نشاط","الملكيين البحرية ","الملكيين للتعليم الاساسى"]
[801,"ايمان السيد احمد حسن ","ادارية ","ادارية ","الملكيين البحرية ","الملكيين للتعليم الاساسى"]
[802,"أحمد محمد احمد خليل","مدير ","-","المناجاه الصغرى ","المناجاه الصغرى للتعليم الاساسى "]
[803,"حسن احمد حسن سيد احمد ","وكيل ","-","المناجاه الصغرى ","المناجاه الصغرى للتعليم الاساسى "]
[804,"نعمات أبو الفتوح محمد ","م خبير","لغة عربية","المناجاه الصغرى ","المناجاه الصغرى للتعليم الاساسى "]
[805,"آيات السعدى على عطاالله ","م خبير","لغة عربية","المناجاه الصغرى ","المناجاه الصغرى للتعليم الاساسى "]
[806,"شويكار فؤاد محمد اسماعيل","م خبير","لغة عربية","المناجاه الصغرى ","المناجاه الصغرى للتعليم الاساسى "]
[807,"أمل عبدالله محمد اسماعيل","م خبير","لغة عربية","المناجاه الصغرى ","المناجاه الصغرى للتعليم الاساسى "]
[808,"جميلة الباز عطاالله محمد ","م خبير","لغة عربية","المناجاه الصغرى ","المناجاه الصغرى للتعليم الاساسى "]
[809,"أفكار عبدالحميد السيد على ","م خبير","لغة عربية","المناجاه الصغرى ","المناجاه الصغرى للتعليم الاساسى "]
[810,"أمانى ابراهيم يوسف ابراهيم"," معلم أول أ","لغة عربية","المناجاه الصغرى ","المناجاه الصغرى للتعليم الاساسى "]
[811,"سماء عبده مسلم سلامة","معم مساعد","لغة عربية","المناجاه الكبرى","المناجاه الصغرى للتعليم الاساسى "]
[812,"فاطمه الباز عطاالله محمد","م خبير","رياضيات","المناجاه الصغرى ","المناجاه الصغرى للتعليم الاساسى "]
[813,"عايده محمد محمد اسماعيل","م خبير","رياضيات","المناجاه الصغرى","المناجاه الصغرى للتعليم الاساسى "]
[814,"أمل محمد حسن احمد","م خبير","رياضيات","المناجاه الصغرى","المناجاه الصغرى للتعليم الاساسى "]
[815,"محاسن عبدالرحمن اسماعيل خليل","م أول أ","رياضيات","المناجاه الصغرى","المناجاه الصغرى للتعليم الاساسى "]
[816,"عبدالسلام عبدالرحمن سليم ","م خبير","دراسات","الحسينية ","المناجاه الصغرى للتعليم الاساسى "]
[817,"محمد  السيد عبدالسلام ابراهيم","معلم مساعد","دراسات","عليوة","المناجاه الصغرى للتعليم الاساسى "]
[818,"صلاح ابراهيم عطاالله محمد","م خبير","علوم","المناجاه الصغرى ","المناجاه الصغرى للتعليم الاساسى "]
[819,"زينات شاكر محمد محمد","كبير معلمين","انجليزى","المناجاه الصغرى","المناجاه الصغرى للتعليم الاساسى "]
[820,"ريمال طلبة احمد محمد ","م أول أ","انجليزى","المناجاه الصغرى","المناجاه الصغرى للتعليم الاساسى "]
[821,"محمود مسعد عبدالحليم السيد","م أول أ","انجليزى","المناجاه الصغرى","المناجاه الصغرى للتعليم الاساسى "]
[822,"غادة سعد محمد احمد","معلم","رياض أطفال","المناجاه الصغرى","المناجاه الصغرى للتعليم الاساسى "]
[823,"مروة السيد عبدالعال محمد ","اخصائى اجتماعى ","-","المناجاه الصغرى ","المناجاه الصغرى للتعليم الاساسى "]
[824,"إيمان عادل عزازى ","اخصائى اجتماعى ","-","سعود","المناجاه الصغرى للتعليم الاساسى "]
[825,"ساميه عبدالرازق عبدالله","اخصائى نفسى","-","سعود","المناجاه الصغرى للتعليم الاساسى "]
[826,"إيمان محمد السيد عبدالعال","مشرف نشاط","-","سعود","المناجاه الصغرى للتعليم الاساسى "]
[827,"دعاء احمد على ","مشرف نشاط","-","المناجاه الصغرى","المناجاه الصغرى للتعليم الاساسى "]
[828,"هبه قطب محمد ابراهيم ","مشرف نشاط","-","المناجاه الصغرى","المناجاه الصغرى للتعليم الاساسى "]
[829,"آمال محمد عبدالرحمن ","فنى وسائل","-","سعود","المناجاه الصغرى للتعليم الاساسى "]
[830,"مرفت رفعت عبدالوهاب ابراهيم","كاتب أول","-","المناجاه الصغرى","المناجاه الصغرى للتعليم الاساسى "]
[831,"مديحه على محمد اسماعيل","كاتب أول","-","المناجاه الصغرى ","المناجاه الصغرى للتعليم الاساسى "]
[832,"عايده عبدالفتاح محمد حسين","كاتب رايع ","-","سعود","المناجاه الصغرى للتعليم الاساسى "]
[833,"غريب السيد مسعودحسين","معلم خبير ","دراسات","المناجاه الكبرى","المناجاه الكبرى الجديده الاعداديه"]
[834,"حمدى عبدالخالق عبدالسلام احمد","معلم اول أ","لغة عربية","سعود","المناجاه الكبرى الجديده الاعداديه"]
[835,"محمد عبدالعال حماد سالم","معلم اول أ","انجليزى","العقايله","المناجاه الكبرى الجديده الاعداديه"]
[836,"إبراهيم السيد احمد محمد","معلم اول أ","رياضيات","الجمالية","المناجاه الكبرى الجديده الاعداديه"]
[837,"محمودابراهيم محمدعبدالمجيد","معلم اول أ","رياضيات","الملكيين","المناجاه الكبرى الجديده الاعداديه"]
[838,"احمد عبدالعال احمد سليمان","معلم اول أ","علوم","المناجاه الكبرى","المناجاه الكبرى الجديده الاعداديه"]
[839,"محمد باز شاكر محمد","معلم اول أ","تربية رياضية","المناجاه الصغرى","المناجاه الكبرى الجديده الاعداديه"]
[840,"علاء محمود السيد إبراهيم ","معلم ","اخصائى اجتماعى","المناجاه الكبرى","المناجاه الكبرى الجديده الاعداديه"]
[841,"محمود محمد السيد محمد","م نشاط ","وسائل تعلمية","المناجاه الصغرى","المناجاه الكبرى الجديده الاعداديه"]
[842,"سلوي إبراهيم عبدالقادر ابراهيم","فني تشغيل","مكتبات","الاخيوه","المناجاه الكبرى الجديده الاعداديه"]
[843,"مني محمد احمد عبد الحق","فني تشغيل","رسم","المناجاه الكبرى","المناجاه الكبرى الجديده الاعداديه"]
[844,"هدي كمال محمد سليمان","فني معامل","امين معمل","المناجاه الكبرى","المناجاه الكبرى الجديده الاعداديه"]
[845,"محمد مسعد عبدالحليم السيد","كاتب اول","سكرتير","المناجاه الصغرى","المناجاه الكبرى الجديده الاعداديه"]
[846,"احمد احمد محمد حسن","معلم خبير","معلم فصل","الملكيين القبلية","المناصرة للتعليم الاساسى"]
[847,"اسماء حسن نجم عطية","معلم أول أ","لغة إنجليزية","قهبونة","المناصرة للتعليم الاساسى"]
[848,"احمد محمود محمد ابراهيم","اخصائي مسرح","مسرح","قهبونة","المناصرة للتعليم الاساسى"]
[849,"محمد سالم عطية مرجان ","معلم خبير","مجال زراعة ","الحمادين ","المناصرة للتعليم الاساسى"]
[850,"بهى حسن ابراهيم على","معلم خبير","معلم فصل","المناصرة ","المناصرة للتعليم الاساسى"]
[851,"ياسر محمد عزاز متولى","معلم خبير","دراسات","قهبونة","المناصرة للتعليم الاساسى"]
[852,"احمد السيد محمد سلامة","فني تشغيل ","فني تشغيل ","المناصرة","المناصرة للتعليم الاساسى"]
[853,"الصاوي السيد الصاوي","فني تشغيل ","فني تشغيل ","قهبونة","المناصرة للتعليم الاساسى"]
[854,"ايمن مصطفى غريب يوسف","إداري","إداري","المناصرة","المناصرة للتعليم الاساسى"]
[855,"مروة ابراهيم صالح متولي","فني تشغيل ","فني تشغيل ","الحمادين ","المناصرة للتعليم الاساسى"]
[856,"يسرى احمد احمد محمد","اخصائي اجتماعي","اخصائي اجتماعي","الحمادين ","المناصرة للتعليم الاساسى"]
[857,"سعيد احمد عبدالقادر خليل","إداري","إداري","الحمادين ","المناصرة للتعليم الاساسى"]
[858,"عيسى عبدالرحمن جاد على","فني تشغيل ","فني تشغيل ","الملكيين القبلية","المناصرة للتعليم الاساسى"]
[859,"قدرى حافظ حسن الجندى","معلم خبير ","تربية زراعية ","الحمادين ","المناصرة للتعليم الاساسى"]
[860,"محمد السيد عبدالرحمن يوسف","مدير المدرسة","دراسات إجتماعية","الناصرية - صان الحجر - شرقية","الناصرية الاعداديه"]
[861,"محمد صبرى محمود","معلم أول أ","اللغة العربية","ازولين - الحسينية - شرقية","الناصرية الاعداديه"]
[862,"هويده صبرى محمود","معلم أول أ","اللغة العربية","الناصرية - صان الحجر - شرقية","الناصرية الاعداديه"]
[863,"محمد عبد العظيم على","معلم أول ","اللغة العربية","الناصرية - صان الحجر - شرقية","الناصرية الاعداديه"]
[864,"ولاء السيد عبدالرحمن يوسف","معلم أول أ","انجليزى","الناصرية - صان الحجر - شرقية","الناصرية الاعداديه"]
[865,"ابراهيم عبد الحفيظ محمد ابراهيم","معلم أول","علوم","الناصرية - صان الحجر - شرقية","الناصرية الاعداديه"]
[866,"زينب عطوة عبده","إدارى",null,"الناصرية - صان الحجر - شرقية","الناصرية الاعداديه"]
[867,"ايمان السيد رمضان","أمين معمل",null,"الناصرية - صان الحجر - شرقية","الناصرية الاعداديه"]
[868,"سميه محمود فتحى","مشرف نشاط",null,"الناصرية - صان الحجر - شرقية","الناصرية الاعداديه"]
[869,"حنان شحاته عبده","مشرف نشاط",null,"الناصرية - صان الحجر - شرقية","الناصرية الاعداديه"]
[870,"عائشة عبد الفضيل محمد","أمين مكتبة",null,"الناصرية - صان الحجر - شرقية","الناصرية الاعداديه"]
[871,"كوثر فتحى محمد إسماعيل","إدارى",null,"الناصرية - صان الحجر - شرقية","الناصرية الاعداديه"]
[872,"هدى السيد محمد إسماعيل","إدارى",null,"الناصرية - صان الحجر - شرقية","الناصرية الاعداديه"]
[873,"احمد محمد سعيد يوسف مرزوق","مدير المدرسة ","لغة انجليزية ","النجيحى","النجيحى للتعليم الاساسى"]
[874,"عبد الله عبد المنعم الشربيني الشربيني","معلم خبير","لغة عربية","النجيحى","النجيحى للتعليم الاساسى"]
[875,"حسن عبد الرحمن عبد العال حسين","معلم خبير","لغة عربية","النجيحى","النجيحى للتعليم الاساسى"]
[876,"محمد محمد جمعه سليمان","معلم خبير","لغة عربية ب","عرب درويش","النجيحى للتعليم الاساسى"]
[877,"ايمان السيد طه على بدير","معلم","لغة عربية","الموالك","النجيحى للتعليم الاساسى"]
[878,"هبة محمد الامين السيد محمد","معلم خبير","لغة انجليزية","غبريال ","النجيحى للتعليم الاساسى"]
[879,"ضياء جمال محمد محمد","معلم أول","دراسات  ب","ام صوير ","النجيحى للتعليم الاساسى"]
[880,"شيماء تهامي غريب عيسى","معلم اول","حاسب آلى ب","عرب درويش","النجيحى للتعليم الاساسى"]
[881,"عاطف الشوادفى محمد ابراهيم","معلم أول","حاسب آلى ب","الزمامته","النجيحى للتعليم الاساسى"]
[882,"سامح فتحي السيد حسين","معلم أول","تربيه فنيه","النجيحى","النجيحى للتعليم الاساسى"]
[883,"احمد السيد حسن حسن","معلم خبير","مجال زراعى ب","المغربي","النجيحى للتعليم الاساسى"]
[884,"هبه شكري عبداللطيف حسين","معلم مساعد","رياض اطفال","ام عجرم","النجيحى للتعليم الاساسى"]
[885,"امل على حسن مصطفى","معلم مساعد","رياض اطفال","عرب درويش","النجيحى للتعليم الاساسى"]
[886,"سلوى عبدالباسط محمود محمد","اخصائي اجتماعى","اخصائي اجتماعى","النجيحى","النجيحى للتعليم الاساسى"]
[887,"نهال عبوده محمد احمد","اخصائي اجتماعى","اخصائي اجتماعى","عرب درويش","النجيحى للتعليم الاساسى"]
[888,"اميره عبدالملك سمعان سلامه","مشرف نشاط","فنى تشغيل  وسائل ","غبريال ","النجيحى للتعليم الاساسى"]
[889,"رانيا فتحى احمد سعد","مشرف نشاط","فنى تشغيل وسائل ","المغربي","النجيحى للتعليم الاساسى"]
[890,"فاطمه عبدالقادر احمد رضوان","مشرف نشاط","فنى تشغيل  وسائل ب","عرب درويش","النجيحى للتعليم الاساسى"]
[891,"صفاء حلمى عطيه زايد","كاتب رابع","ادارى ","جزيرة النص","النجيحى للتعليم الاساسى"]
[892,"هبه محمد عبدالفتاح ابراهيم","كاتب رابع","ادارى ","ام عجرم","النجيحى للتعليم الاساسى"]
[893,"لبنى احمد ابراهيم مرسى","كاتب رابع ","ادارى ","النجيحى","النجيحى للتعليم الاساسى"]
[894,"السيد عبدالمعبود السيد ","مدير المدرسة","ــ","عزبة علاق ـ سماكين الغرب","النشاوية الابتدائيه"]
[895,"سميحة محمد عثمان ابراهيم ","معلم خبير ","عربي ودراسات ","النشاوية ــ سماكين الغرب","النشاوية الابتدائيه"]
[896,"تهانى عبده ابراهيم موسى","معلم خبير ","لغة عربية ودين","النشاوية ــ سماكين الغرب","النشاوية الابتدائيه"]
[897," احمد ابوبكر الصديق اسماعيل","معلم اول ","لغة عربية ودين","النشاوية ـ سماكين الغرب","النشاوية الابتدائيه"]
[898,"السيد محمد عبدالمعبود","معلم خبير ","رياضيات","النشاوية ـ سماكين الغرب","النشاوية الابتدائيه"]
[899," بركات محمود يوسف ابراهيم","معلم خبير ","علوم","النشاوية ـ سماكين الغرب","النشاوية الابتدائيه"]
[900," محمد عمر محمد احمد","معلم خبير ","علوم ","النشاوية ـ سماكين الغرب","النشاوية الابتدائيه"]
[901,"على محمد محمد صالح ","معلم اول ","لغة انجليزية","سماكين الغرب","النشاوية الابتدائيه"]
[902,"رندا فوزى عبد المعبود السيد ","معلم ","كمبيوتر وتكنولوجيا المعلومات","عزبة علاق ـ سماكين الغرب","النشاوية الابتدائيه"]
[903,"نجلاء عبدالفتاح عبدالونيس ","اخصائي اجتماعى","اخصائي اجتماعى","نجع عبدالسلام ــــ سماكين الغرب","النشاوية الابتدائيه"]
[904,"صالح محمد محمد مصطفى ","م . نشاط","مشرف مجال زراعى","النشاوية ـ سماكين الغرب","النشاوية الابتدائيه"]
[905,"محمد ابراهيم محمد مصطفى","م . نشاط","مشرف مجال صناعى","النشاوية ـ سماكين الغرب","النشاوية الابتدائيه"]
[906,"رندا السيد ابوالمعاطى","فنى تشغيل","فنى وسائل تعليمية ","عزبة ريزو ــ سماكين الغرب","النشاوية الابتدائيه"]
[907,"رشا فؤاد عبدالمحسن عبدالفتاح","امين معمل","امين معمل","سنيطة ــ فاقوس","النشاوية الابتدائيه"]
[908,"منى محمد بدراوى محمد ","كاتب رابع ","كاتب رابع ","النشاوية ـ سماكين الغرب","النشاوية الابتدائيه"]
[909," ابراهيم احمد عثمان ابراهيم","عامل ","عامل ","النشاوية ـ سماكين الغرب","النشاوية الابتدائيه"]
[910,"حسن عبدالعزيز محمد على","مدير المدرسه"," ","الحسينية ","النشاوية الاعداديه"]
[911,"عبدالسلام احمد سالم ","معلم خبير","لغه عربية","قنتير - مركز فاقوس","النشاوية الاعداديه"]
[912,"محمد محمد عثمان ابرهيم","اخصائي اجتماعى","اخصائي اجتماعى","النشاويه سماكين الغرب","النشاوية الاعداديه"]
[913,"اخلاص عمر محمد","كاتب رابع","ادارى ","المصرى سماكين الغرب","النشاوية الاعداديه"]
[914,"فاطمة صابر احمد","امين معمل","ادارى ","النشاويه سماكين الغرب","النشاوية الاعداديه"]
[915,"ابراهيم يوسف احمد ","مشرف نشاط ","(فارغ)","ابو عيسى - سماكين الغرب ","النشاوية الاعداديه"]
[916,"عمر أحمد علي سالم","مدير المدرسة","دراسات","2 بحر البقر","أبو بكر الصديق للتعليم الاساسى"]
[917,"السيد عبد الرازق نصار","وكيل المدرسة","علوم","7 الصالحية","أبو بكر الصديق للتعليم الاساسى"]
[918,"عبد الرازق سالم عامر","كبير معلمين","لغة عربية","الحسينية","أبو بكر الصديق للتعليم الاساسى"]
[919,"فتحي بركات محمد","معلم خبير","لغة عربية","7 الصالحية","أبو بكر الصديق للتعليم الاساسى"]
[920,"أشرف عبد العظيم متولي","معلم خبير","رياضيات","قهبونة","أبو بكر الصديق للتعليم الاساسى"]
[921,"هند سعيد عطية","معلم خبير","لغة عربية","7 الصالحية","أبو بكر الصديق للتعليم الاساسى"]
[922,"مصطفى محمد إبراهيم","معلم أول أ","رياضيات","7 الصالحية","أبو بكر الصديق للتعليم الاساسى"]
[923,"السيد سالم حسين","معلم أول","لغة عربية","م أبو عمر","أبو بكر الصديق للتعليم الاساسى"]
[924,"أحمد عبد الله أحمد","معلم أول","تكنولوجيا","7 الصالحية","أبو بكر الصديق للتعليم الاساسى"]
[925,"عمرو عزت محمد طه","معلم مساعد","لغة إنجليزية","الحسينية","أبو بكر الصديق للتعليم الاساسى"]
[926,"أحمد محمد أمين","فني تشغيل",null,"7 الصالحية","أبو بكر الصديق للتعليم الاساسى"]
[927,"أحمد زغلول سعد","فني تشغيل",null,"سعود","أبو بكر الصديق للتعليم الاساسى"]
[928,"سعاد السيد عوض الله","أمين معمل",null,"واحد الصالحية","أبو بكر الصديق للتعليم الاساسى"]
[929,"السيدة السعيد عبد الفتاح","أخصائي اجتماعي",null,"7 الصالحية","أبو بكر الصديق للتعليم الاساسى"]
[930,"مجدى أحمد موسى جاد","مدير مدرسة ","-","الاخيوة","أبو سعفان للتعليم الاساسى "]
[931,"سومية السيد طلبة السيد ","معلم أول ","لغة عربية ","الاخيوة","أبو سعفان للتعليم الاساسى "]
[932,"هبه عبدالله ابراهيم ابراهيم ","معلم أول ","لغة عربية ","الجمالية","أبو سعفان للتعليم الاساسى "]
[933,"تهانى عبدالله ابراهيم عبدالله ","معلم أول ","لغة عربية ","الجمالية","أبو سعفان للتعليم الاساسى "]
[934,"دعاء عادل عقيل محمود","معلم ","لغة عربية ","الاخيوة","أبو سعفان للتعليم الاساسى "]
[935,"أمل محمد فتح الدين  محمد عبدالوهاب ","م خبير","انجليزى","الاخيوة","أبو سعفان للتعليم الاساسى "]
[936,"سمر احمد محمد خليل","معلم ","انجليزى","الاخيوة","أبو سعفان للتعليم الاساسى "]
[937,"هويدا عبدالعزيز محمد مبارك ","م خبير","دراسات","الاخيوة","أبو سعفان للتعليم الاساسى "]
[938,"سماح محمد عبدالدايم  ","معلم أول ","دراسات","الاخيوة","أبو سعفان للتعليم الاساسى "]
[939,"محمد أحمد ابراهيم سالم ","معلم أول ","علوم","الحسينية ","أبو سعفان للتعليم الاساسى "]
[940,"نجلاء على احمد ","معلم أول ","علوم","سعود","أبو سعفان للتعليم الاساسى "]
[941,"الحسين محمد السيد يوسف","معلم أول ","رياضيات","الاخيوة","أبو سعفان للتعليم الاساسى "]
[942,"أحمد الشبراوى محمد محمد","معلم اول أ","مجال زراعى","الاخيوة","أبو سعفان للتعليم الاساسى "]
[943,"منى سعيد عبدالعزيز السيد","معلم أول ","حاسب آلى","الاخيوة","أبو سعفان للتعليم الاساسى "]
[944,"مها عبدالعزيز أحمد ","معلم أول أ ","روضة","الاخيوة","أبو سعفان للتعليم الاساسى "]
[945,"أمانى ابدير عبدالسلام ","معلم أول ","روضة","الاخيوة","أبو سعفان للتعليم الاساسى "]
[946,"فاطمة محمد عبدالمجيد مرسى","أخصائى اجتماعى","أخصائى اجتماعى","الاخيوة","أبو سعفان للتعليم الاساسى "]
[947,"سعاد محمد على محمد","أخصائى نفسى ","أخصائى نفسى","الجمالية","أبو سعفان للتعليم الاساسى "]
[948,"عبدالمنعم محمد احمد محمد","مشرف نشاط","-","سعود","أبو سعفان للتعليم الاساسى "]
[949,"أمل عبدالسلام محمود ابراهيم","مشرف نشاط","-","سعود","أبو سعفان للتعليم الاساسى "]
[950,"داليا محمد حنفى ","مشرف نشاط","-","الجمالية","أبو سعفان للتعليم الاساسى "]
[951,"عصام محمد محمد احمد ","ادارى ","-","الاخيوة","أبو سعفان للتعليم الاساسى "]
[952,"تحية كامل عبدالسلام طنطاوى ","مدير المدرسة ",null,"تانيس كوبرى سليم ","أبوشربى الإبتدائيه المشتركه"]
[953,"عز عبدالفضيل عبدالفضيل على","معلم خبير ","لغة عربية ","ازولين بشارة ترعةسمير","أبوشربى الإبتدائيه المشتركه"]
[954,"فاطمة محمد دسوقى","معلم خبير ","رياضيات ","كبارى شلبى كوبرى سليم ","أبوشربى الإبتدائيه المشتركه"]
[955,"سامية سليمان السيد","معلم أول ","لغة عربية ","ازولين بشارة ترعةسمير ","أبوشربى الإبتدائيه المشتركه"]
[956,"محمد حسن علي ","معلم أول ","دراسات ","الحسينية ","أبوشربى الإبتدائيه المشتركه"]
[957,"محمد محمود السيد موسى ","م.نشاط","مسئول تطوير ","الفولى الصغيرة البلابسة ","أبوشربى الإبتدائيه المشتركه"]
[958,"محمد على سليم ","م.نشاط","أمين معمل","ازولين بشارة ترعةسمير ","أبوشربى الإبتدائيه المشتركه"]
[959,"حسنى محمد عبد القادر ","م.نشاط","مندوب إدارة ","السعدي بشارة ","أبوشربى الإبتدائيه المشتركه"]
[960,"علاء محمد محمد ","م.نشاط","مشرف المكتبة ","الفولى الصغيرة ","أبوشربى الإبتدائيه المشتركه"]
[961,"نانى سعيد محمد ","م.نشاط","فنى وسائل ","ازولين بشارة ترعةسمير ","أبوشربى الإبتدائيه المشتركه"]
[962,"عطيات محمد الخميسى ","م.نشاط","مجالات ","ازولين بشارة ترعةسمير ","أبوشربى الإبتدائيه المشتركه"]
[963,"اسامه السيد محمد خليل","معلم خبير","قيادة أولى","الاخيوة","أولاد مرعى الابتدائيه"]
[964,"امال احمد ابراهيم سليم","معلم خبير","معلم فصل","الاخيوة","أولاد مرعى الابتدائيه"]
[965,"امل محمد سلامه حسن","معلم خبير","معلم فصل","الاخيوة","أولاد مرعى الابتدائيه"]
[966,"ناصر محمد كامل احمد","معلم خبير","معلم فصل","الاخيوة","أولاد مرعى الابتدائيه"]
[967,"سهير السيد الانور محمود","معلم خبير","لغة عربية","الاخيوة","أولاد مرعى الابتدائيه"]
[968,"هناء عيسى محمد عيسى","معلم خبير","معلم فصل","الاخيوة","أولاد مرعى الابتدائيه"]
[969,"عفاف احمد احمد على غيث","معلم خبير","رياضيات","الاخيوة","أولاد مرعى الابتدائيه"]
[970,"فاطمة عبدالحق السيد عبدالواحد","معلم خبير","معلم فصل","الاخيوة","أولاد مرعى الابتدائيه"]
[971,"زينب مختار متولى رضوان","معلم خبير","معلم فصل","الاخيوة","أولاد مرعى الابتدائيه"]
[972,"سميره محمد الحسينى محمد","معلم خبير","معلم فصل","الاخيوة","أولاد مرعى الابتدائيه"]
[973,"فاديه عبدالله متولى اسماعيل","معلم خبير","معلم فصل","الاخيوة","أولاد مرعى الابتدائيه"]
[974,"السيد احمد محمد على متولى","معلم خبير","معلم فصل","الاخيوة","أولاد مرعى الابتدائيه"]
[975,"هناء احمد عبدالهادى عبدالرحمن ","معلم خبير","لغة انجليزية","الاخيوة","أولاد مرعى الابتدائيه"]
[976,"الهام محمد عبدالحكيم موسى","معلم خبير","حاسب آلي","الاخيوة","أولاد مرعى الابتدائيه"]
[977,"جيهان عزيز ميخائيل اسكندر","معلم خبير","معلم فصل","الاخيوة","أولاد مرعى الابتدائيه"]
[978,"حمدى محمود حسين إسماعيل ","معلم أول أ","معلم فصل","الاخيوة","أولاد مرعى الابتدائيه"]
[979,"تهانى احمد حسن احمد جبر","معلم","لغة عربية","الاخيوة","أولاد مرعى الابتدائيه"]
[980,"كريمه السيد محمد الصادق","معلم","لغة عربية","الاخيوة","أولاد مرعى الابتدائيه"]
[981,"اسماعيل محمد اسماعيل السيد","معلم أول أ","معلم فصل","الاخيوة","أولاد مرعى الابتدائيه"]
[982,"علاء عبدالحليم مكاوى احمد","مشرف نشاط ","الأمن","الاخيوة","أولاد مرعى الابتدائيه"]
[983,"هبة محمد احمد شحاتة","مشرف نشاط ","فني وسائل","الاخيوة","أولاد مرعى الابتدائيه"]
[984,"أماني أحمد سالم ابراهيم طنطاوي","معلم أول أ","لغة عربية","الاخيوة","أولاد مرعى الابتدائيه"]
[985,"سماح متولى ابو العطا متولى","معلم خبير","معلم فصل","الاخيوة","أولاد مرعى الابتدائيه"]
[986,"مريم مصطفى أحمد حسين","معلم","لغة عربية","الاخيوة","أولاد مرعى الابتدائيه"]
[987,"سمية عبد العزيز أحمد دياب","معلم أول أ","دراسات اجتماعية","الاخيوة","أولاد مرعى الابتدائيه"]
[988,"محمد صالح محمد اسماعيل","معلم أول","لغة عربية","الاخيوة","أولاد مرعى الابتدائيه"]
[989,"مها برعي جاد محمد","أخصائي اجتماعي أول أ","أخصائي اجتماعي","الاخيوة","أولاد مرعى الابتدائيه"]
[990,"فاطمة أحمد ابراهيم سليمان","أخصائي مساعد ","أخصائي مساعد","الاخيوة","أولاد مرعى الابتدائيه"]
[991,"هالة السيد حسين صباح","أخصائي نفسي أول أ","أخصائي نفسي أول أ","الاخيوة","أولاد مرعى الابتدائيه"]
[992,"احمد ابراهيم علي ","كبير معلمين ","رياضيات ","بحر البقر زراعه واحد","بحر البقر الاعداديه "]
[993,"حسنى على محمد ","معلم خبير ","تربية زراعية ","سعود","بحر البقر الاعداديه "]
[994,"عبد الناصر عبد العزيز محمد ","معلم أول ا","لغه انجليزيه ","عزبة اليمن ","بحر البقر الاعداديه "]
[995,"محمد عبد العزيز محمد محمد ","معلم أول ا ","لغه انجليزيه ","واحد الصالحية ببحر البقر ","بحر البقر الاعداديه "]
[996,"سمير شعبان عبد الشافى ","معلم أول ا ","تربية زراعية ","واحد الصالحية ببحر البقر ","بحر البقر الاعداديه "]
[997,"اسماعيل عبد الرازق اسماعيل ","معلم أول ","دراسات ","واحد الصالحية ببحر البقر ","بحر البقر الاعداديه "]
[998,"ساميه احمد غازى ","معلم أول ا ","علوم ","واحد الصالحية ببحر البقر ","بحر البقر الاعداديه "]
[999,"ميادا محمد طلبه ","معلم أول ","اقتصاد ","واحد الصالحية ببحر البقر ","بحر البقر الاعداديه "]
[1000,"سمر صبرى سليمان ","معلم","تربية زراعية ","واحد الصالحية ببحر البقر ","بحر البقر الاعداديه "]
[1001,"سوزان عطيه ابراهيم ","امين معمل","أمين معمل","واحد الصالحية ببحر البقر ","بحر البقر الاعداديه "]
[1002,"إيمان محمد رشدي ","امين مكتبه ","امين مكتبه ","واحد الصالحية ببحر البقر ","بحر البقر الاعداديه "]
[1003,"ناظك حسينى  احمد ","مشرف نشاط","مشرف نشاط ","واحد الصالحية ببحر البقر ","بحر البقر الاعداديه "]
[1004,"بهيه عبد العزيز برعى ","مشرف نشاط ","مشرف نشاط ","واحد الصالحية ببحر البقر ","بحر البقر الاعداديه "]
[1005,"محمد محمد عبد المجيد ","مشرف نشاط ","مشرف نشاط ","الحسينيه ","بحر البقر الاعداديه "]
[1006,"داليا محمد عباس ","كاتب رابع ","كاتب رابع ","واحد الصالحية ببحر البقر ","بحر البقر الاعداديه "]
[1007,"امانى متولى عبد الرحمن","كاتب رابع","كاتب رابع","واحد الصالحية ببحر البقر ","بحر البقر الاعداديه "]
[1008,"محمد عبدالمعطى محمد عبدالمعطى","مدير","لغه عربيه","بحر البقر","بدر الابتدائيه ببحر البقر "]
[1009,"علاء ابراهيم عبدالستار ابراهيم","وكيل","لغه عربيه","بحر البقر","بدر الابتدائيه ببحر البقر "]
[1010,"كريمه السيد ذكى عبدالقوى","معلم خبير","لغه عربيه","بحر البقر","بدر الابتدائيه ببحر البقر "]
[1011,"عبير محمد عبدالرحمن ابراهيم ","معلم خبير","لغه عربيه","بحر البقر","بدر الابتدائيه ببحر البقر "]
[1012,"فكرى عبدالعزيز محمود البيلى ","معلم خبير","لغه عربيه","بحر البقر","بدر الابتدائيه ببحر البقر "]
[1013,"خليل عبدالرحمن يوسف السيد","معلم اول ا","لغه عربيه","بحر البقر","بدر الابتدائيه ببحر البقر "]
[1014,"عبدالمنعم احمد عبدالكريم خليل","معلم اول ا","لغه عربيه","بحر البقر","بدر الابتدائيه ببحر البقر "]
[1015,"روناء عادل احمد مجاهد ","معلم مساعد","لغه انجليزيه ","الحسينيه ","بدر الابتدائيه ببحر البقر "]
[1016,"وائل عبدالمجيد عبدالهادى سعد","معلم اول ا","رياضيات","بحر البقر","بدر الابتدائيه ببحر البقر "]
[1017,"صفيه اسماعيل صالح على ","معلم اول ا","دراسات اجتماعيه","بحر البقر","بدر الابتدائيه ببحر البقر "]
[1018,"منى محمد كريم عبدالمطلب ","معلم مساعد","دراسات اجتماعيه","بحر البقر","بدر الابتدائيه ببحر البقر "]
[1019,"نهاد احمد شكر عبدالرحمن ","معلم اول ","علوم ","بحر البقر","بدر الابتدائيه ببحر البقر "]
[1020,"هاله عبدالله على محمد","معلم اول ","حاسب الى ","بحر البقر","بدر الابتدائيه ببحر البقر "]
[1021,"كريمه محمد حسن ","اخصائى اجتماعى",null,"بحر البقر","بدر الابتدائيه ببحر البقر "]
[1022,"دعاء محمد عبدالرحمن ابراهيم ","اخصائى مكتبات ",null,"بحر البقر","بدر الابتدائيه ببحر البقر "]
[1023,"امل محمد صالح محمد","مشرف نشاط",null,"بحر البقر","بدر الابتدائيه ببحر البقر "]
[1024,"ناظك ابراهيم يوسف عبدالحق","فنى تشغيل وسائل ",null,"بحر البقر","بدر الابتدائيه ببحر البقر "]
[1025,"امال كامل محمد احمد","فنى تشغيل وسائل ",null,"بحر البقر","بدر الابتدائيه ببحر البقر "]
[1026,"صفاء عبدالفتاح محمود ابراهيم","فنى تشغيل وسائل ",null,"بحر البقر","بدر الابتدائيه ببحر البقر "]
[1027,"هدى محمد السيد ابراهيم ","فنى تشغيل وسائل ",null,"بحر البقر","بدر الابتدائيه ببحر البقر "]
[1028,"ولاء عبدالكريم محمود الموجى","فنى تشغيل وسائل ",null,"بحر البقر","بدر الابتدائيه ببحر البقر "]
[1029,"سماح جبر سالم الاعرج","فنى تشغيل وسائل ",null,"بحر البقر","بدر الابتدائيه ببحر البقر "]
[1030,"انتصار فاروق عبدالرحمن خداش ","فنى تشغيل وسائل ",null,"بحر البقر","بدر الابتدائيه ببحر البقر "]
[1031,"هدى متولى عطيه على ","امين معمل ",null,"بحر البقر","بدر الابتدائيه ببحر البقر "]
[1032,"ليلى سليمان على محمد","كاتب اول",null,"بحر البقر","بدر الابتدائيه ببحر البقر "]
[1033,"لبنى عبدالكريم محمود ","كاتب اول ",null,"بحر البقر","بدر الابتدائيه ببحر البقر "]
[1034,"محمد احمد راشد ","كاتب ثان ",null,"بحر البقر","بدر الابتدائيه ببحر البقر "]
[1035,"محمد عبدالمنعم جايل محمد","معلم خبير","مدير","الحمر - الظواهرية","بهاء الدين الابتدائيه بتيمور "]
[1036,"عادل السيد سباعى عبدالجواد","معلم خبير","رياضيات","الظواهرية","بهاء الدين الابتدائيه بتيمور "]
[1037,"صلاح محمد السيد سليم","معلم خبير","رياضيات","تيمور","بهاء الدين الابتدائيه بتيمور "]
[1038,"عبدالعزيز اسماعيل عبداللطيف","معلم خبير","لغة عربية","الحمر - الظواهرية","بهاء الدين الابتدائيه بتيمور "]
[1039,"جبريل رمضان محمود مرسى","معلم خبير","رياضيات","تيمور","بهاء الدين الابتدائيه بتيمور "]
[1040,"نور عبدالفتاح سليمان غانم","معلم خبير","لغة عربية","الظواهرية","بهاء الدين الابتدائيه بتيمور "]
[1041,"محمد على موسى الصادق","معلم اول أ","رياضيات","الظواهرية","بهاء الدين الابتدائيه بتيمور "]
[1042,"محمود طلب عبدالمجيد بغدادى","معلم اول ","لغة عربية","البغادوة - الظواهرية","بهاء الدين الابتدائيه بتيمور "]
[1043,"مارسيل شوقى ابراهيم مشرقى","معلم اول ","رياضيات","عزبة الصعايدة","بهاء الدين الابتدائيه بتيمور "]
[1044,"رشا عبدالحليم احمد عبدالعزيز","معلم اول ","علوم","الظواهرية","بهاء الدين الابتدائيه بتيمور "]
[1045,"ابراهيم حسن احمد عطية","معلم خبير","اخصائى اجتماعى","الظواهرية","بهاء الدين الابتدائيه بتيمور "]
[1046,"روعة محمد محمد الحديدى","معلم مساعد","لغة E","عليوة","بهاء الدين الابتدائيه بتيمور "]
[1047,"السيد على جمعة على","معلم مساعد","]دراسات","الظواهرية","بهاء الدين الابتدائيه بتيمور "]
[1048,"محمد منصور حسن عبداللطيف","مشرف نشاط","مجال زراعى","تيمور","بهاء الدين الابتدائيه بتيمور "]
[1049,"عادل حسين سالم اسماعيل","كاتب ","سكرتير","تيمور","بهاء الدين الابتدائيه بتيمور "]
[1050,"هناء السيد موسى عبدالله","فنى تشغيل","أمين تزريدات","الفخفاخ - الظواهرية","بهاء الدين الابتدائيه بتيمور "]
[1051,"ثريا فتحى حسين محمد","فنى تشغيل","سئون طلبة","تيمور","بهاء الدين الابتدائيه بتيمور "]
[1052,"احمد محمود على محمد عباس ","مدير المدرسة ","انجليزى ","الاخيوة - حسينية ","توفيق فتحى قطب للتعليم الاساسى"]
[1053,"مجدى سليمان محمد على البقرى","وكيل المدرسة ","اخصائى صحافة ","الاخيوة - حسينية ","توفيق فتحى قطب للتعليم الاساسى"]
[1054,"عبدالحميد محمد احمد ابراهيم ","معلم اول ","دراسات ","الصالحية القديمة","توفيق فتحى قطب للتعليم الاساسى"]
[1055,"احمد ابراهيم محمد المسيرى ","اخصائى اجتماعى","اخصائى ","قهبونة الحسينية","توفيق فتحى قطب للتعليم الاساسى"]
[1056,"ريهام محمد محمد حسن محمد","معلم مساعد ","انجليزى ","قهبونة الحسينية","توفيق فتحى قطب للتعليم الاساسى"]
[1057,"راندا ابراهيم وهيدى الشرقاوى ","معلم اول  ","لغة  عربية ","الاخيوة - حسينية ","توفيق فتحى قطب للتعليم الاساسى"]
[1058,"ياسمين رفعت محمد احمد محمد","معلم مساعد ","انجليزى ","الجمالية - حسينية ","توفيق فتحى قطب للتعليم الاساسى"]
[1059,"ابتسام محمد احمد محمد شريف","معلم اول ","حاسب الى ","الحمادين - حسينية ","توفيق فتحى قطب للتعليم الاساسى"]
[1060,"محمد عبدالرحمن ابراهيم محمد","كاتب ثالث","ادارى ","قهبونة الحسينية","توفيق فتحى قطب للتعليم الاساسى"]
[1061,"هاله عبدالعظيم مصطفي عطيه","معلم_اول","لغة عربية","جزيرة عليوة","جزيرة عليوة الاعداديه"]
[1062,"رضا السيد حسين السيد ","معلم_اول","لغة عربية","جزيرة عليوة","جزيرة عليوة الاعداديه"]
[1063,"عبدالعزيزعبدالله ابراهيم عبدالله","معلم_اول","دراسات","جزيرة عليوة","جزيرة عليوة الاعداديه"]
[1064,"محمد محمد علي عبدالعاطي","م خبير","مجالات","جزيرة عليوة","جزيرة عليوة الاعداديه"]
[1065,"سلوي محمد الامين عبد الجواد","م خبير","تربية فنية","جزيرة عليوة","جزيرة عليوة الاعداديه"]
[1066,"محمد محمود بنداري مجاور","معلم","تربية رياضية","جزيرة عليوة","جزيرة عليوة الاعداديه"]
[1067,"ايات عبد الحميد ابراهيم عبد الله","معلم","اقتصاد","بندر الحسينية","جزيرة عليوة الاعداديه"]
[1068,"هيام رشاد علي الغرباوي","امينة معمل","فنى معمل","السعدى","جزيرة عليوة الاعداديه"]
[1069,"عفاف محمد علي محمد ","امينة معمل","فنى معمل","جزيرة عليوة","جزيرة عليوة الاعداديه"]
[1070,"ناهد محمد على محمد","امينة معمل","فنى معمل","سعود","جزيرة عليوة الاعداديه"]
[1071,"اشرف يوسف احمد يوسف","أخصائى أول","تربية اجتماعية","جزيرة عليوة","جزيرة عليوة الاعداديه"]
[1072,"شرين محمد عبدالحميد السيد","أخصائى أول","تربية نفسية","سعود","جزيرة عليوة الاعداديه"]
[1073,"مجدي عبدالحميد سطام عبدالحميد","معلم خبير","مدير المدرسة","الحسينية","جزيرة عليوة ب الجديده"]
[1074,"فتحي يونس عبدالسلام ادريس","معلم خبير","لغة عربية","جزيرة عليوة","جزيرة عليوة ب الجديده"]
[1075,"محمد عبدالستار حمودة عمر","معلم خبير","لغة عربية","جزيرة عليوة","جزيرة عليوة ب الجديده"]
[1076,"رضا الشوادفي حسن احمد","معلم أول أ","لغة عربية","الحسينية","جزيرة عليوة ب الجديده"]
[1077,"محمد عبدالستار إبراهيم  محمد","معلم أول أ","لغة عربية","جزيرة سعود","جزيرة عليوة ب الجديده"]
[1078,"مرفت السيد محمد شحاتة","معلم خبير","لغة عربية","جزيرة عليوة","جزيرة عليوة ب الجديده"]
[1079,"حنان محمد عبدالعظيم محمد","معلم خبير","لغة عربية","جزيرة عليوة","جزيرة عليوة ب الجديده"]
[1080,"هناء كامل محمد عبدالله","معلم خبير","لغة عربية","جزيرة عليوة","جزيرة عليوة ب الجديده"]
[1081,"ملكة وهبة عبدالعزيز يوسف","معلم خبير","رياضيات","جزيرة عليوة","جزيرة عليوة ب الجديده"]
[1082,"مرفت احمد ابوبكر سيد احمد","معلم أول أ","رياضيات","الحسينية","جزيرة عليوة ب الجديده"]
[1083,"لمياء بدر الدين يوسف سالم ","معلم خبير","رياضيات","جزيرة عليوة","جزيرة عليوة ب الجديده"]
[1084,"مرفت سليمان عطية السيد","معلم خبير","رياضيات","جزيرة عليوة","جزيرة عليوة ب الجديده"]
[1085,"ماجدة جودة مرسي يحي","معلم أول","رياضيات","جزيرة عليوة","جزيرة عليوة ب الجديده"]
[1086,"الفت عبدالعال موسي ابراهيم","معلم ","رياضيات","جزيرة عليوة","جزيرة عليوة ب الجديده"]
[1087,"تيسير فرج عبدالرحمن عبدالرحيم","معلم أول","رياضيات","جزيرة عليوة","جزيرة عليوة ب الجديده"]
[1088,"عبدالله محمد عيدالسلام  ادريس","معلم أول","لغة انجليزية","جزيرة عليوة","جزيرة عليوة ب الجديده"]
[1089,"تغريد عبدالفتاح عبدالسميع محمود","معلم أول","لغة انجليزية","الظواهرية","جزيرة عليوة ب الجديده"]
[1090,"محمد عبدالعاطي حسن خليفه","معلم خبير","مجال زراعي","جزيرة عليوة","جزيرة عليوة ب الجديده"]
[1091,"اسراء حسيني عبدالعزيز احمد","معلم رياض اطفال ","معلم رياض أطفال","جزيرة عليوة","جزيرة عليوة ب الجديده"]
[1092,"عبدالحميد إبراهيم عثمان علي","مشرف نشاط","مشرف نشاط","الحسينية","جزيرة عليوة ب الجديده"]
[1093,"عبدالسلام عبدالحميد عبدالرحمن محمد","مشرف نشاط","مشرف نشاط","جزيرة عليوة","جزيرة عليوة ب الجديده"]
[1094,"همت فهمي احمد محمود","امين معمل ","امين معمل ","جزيرة عليوة ","جزيرة عليوة ب الجديده"]
[1095,"سحر حمدي عبدالسميع سيد احمد","امين معمل ","امين معمل ","جزيرة سعود","جزيرة عليوة ب الجديده"]
[1096,"نسمه سعد محمد احمد","فني تشغيل ","فني تشغيل ","الحسينية","جزيرة عليوة ب الجديده"]
[1097,"هلال محمد عمر محمد","مدير المدرسه","تربيه فنيه ","الظواهريه","جمال الحسينى للتعليم الاساسى"]
[1098,"عبدالعزيز محمد عبدالعزيز خالد","وكيل المدرسه ","اخصائى اجتماعى ","السعدى","جمال الحسينى للتعليم الاساسى"]
[1099,"داليا محمد عوض حميده ","معلم مساعد","لغة عربيه ","الظواهريه","جمال الحسينى للتعليم الاساسى"]
[1100,"عماد ابراهيم محمد منصور","معلم اول أ","لغه انجليزيه","الظواهريه","جمال الحسينى للتعليم الاساسى"]
[1101,"امنيه السيد عبدالفتاح الطنطاوى ","معلم مساعد","لغه انجليزيه","الظواهريه","جمال الحسينى للتعليم الاساسى"]
[1102,"احمد السيد يوسف السيد","معلم اول أ","علوم","الحسينية ","جمال الحسينى للتعليم الاساسى"]
[1103,"عاطف السيد ابراهيم احمد ","معلم اول ","دراسات ","الظواهريه ","جمال الحسينى للتعليم الاساسى"]
[1104,"محمد عبدالسلام السيد عبدالعزيز ","معلم اول ","معلم فصل ","عليوه","جمال الحسينى للتعليم الاساسى"]
[1105,"عماد على عبدالهادى على ","اخصائى نفسى اول أ",null,"الظواهريه","جمال الحسينى للتعليم الاساسى"]
[1106,"السيد عبدالكريم غريب حسانين ","اخصائى اجتماعى اول ",null,"السعدى","جمال الحسينى للتعليم الاساسى"]
[1107,"تامر احمد فؤاد عبدالرحمن","اخصائى صحافة واعلام اول أ",null,"الحسينية ","جمال الحسينى للتعليم الاساسى"]
[1108,"راضى السيد على خليل ","فنى تشغيل وسائل تعليميه ",null,"الظواهريه","جمال الحسينى للتعليم الاساسى"]
[1109,"عبلة محمد عبدالحميد الشناوى ","فنى تشغيل وسائل تعليميه ",null,"الظواهريه","جمال الحسينى للتعليم الاساسى"]
[1110,"لمياء جمال عبدالرحمن عبدالغنى ","فنى تشغيل وسائل تعليميه ",null,"الظواهريه","جمال الحسينى للتعليم الاساسى"]
[1111,"رشا محمد ابراهيم على ","فنى تشغيل وسائل تعليميه ",null,"الظواهريه","جمال الحسينى للتعليم الاساسى"]
[1112,"سلوى سرحان ابراهيم عبدالعزيز ","كاتب رابع  سكرتير رابع",null,"الظواهريه","جمال الحسينى للتعليم الاساسى"]
[1113,"ثومه احمد عبدالرحمن السيد ","كاتب رابع  سكرتير رابع",null,"الظواهريه","جمال الحسينى للتعليم الاساسى"]
[1114,"محمود احمد عبدالله اسماعيل","معلم خبير","لغة عربية","جميمه","جميمه للتعليم الاساسى"]
[1115,"عبير عبدالسلام محمد خضر","معلم خبير","لغة عربية","جميمه","جميمه للتعليم الاساسى"]
[1116,"ابتسام عطيه عبدالعال السيد","معلم اول أ","لغة عربية","الحسينيه","جميمه للتعليم الاساسى"]
[1117,"رأفت احمد ابراهيم احمد","معلم اول","لغة عربية","الحسينيه","جميمه للتعليم الاساسى"]
[1118,"اشرف توفيق محمد عليوه","معلم خبير","لغة عربية","محمد عبيد","جميمه للتعليم الاساسى"]
[1119,"سناء عبدالحليم محمد هنداوى","معلم خبير","لغة عربية","جميمه","جميمه للتعليم الاساسى"]
[1120,"ساميه محمد محمد احمد","معلم خبير","لغة عربية","ع ذكى","جميمه للتعليم الاساسى"]
[1121,"وفاء حسن محمد رضوان","معلم اول","لغة عربية","ع ذكى","جميمه للتعليم الاساسى"]
[1122,"فاطمه يوسف ابراهيم هنداوى","معلم اول أ","لغة عربية","جميمه","جميمه للتعليم الاساسى"]
[1123,"عادل سليمان حسن حمدان","معلم اول أ","رياضيات","قهبونه","جميمه للتعليم الاساسى"]
[1124,"ابوزيد السيد ابوزيد ابراهيم","معلم خبير","رياضيات","الحسينيه","جميمه للتعليم الاساسى"]
[1125,"محمد توفيق عبدالعزيز هنداوى","معلم خبير","رياضيات","جميمه","جميمه للتعليم الاساسى"]
[1126,"سامى محمد عبدالرازق سرور","معلم اول","دراسات","جميمه","جميمه للتعليم الاساسى"]
[1127,"باز عبدالغفار على محمد ","معلم خبير","دراسات","جميمه","جميمه للتعليم الاساسى"]
[1128,"عماد سليمان على محمد","معلم اول أ","دراسات","ازولين","جميمه للتعليم الاساسى"]
[1129,"سلوى فتحى برعى الشبراوى","معلم اول ","حاسب الى","جميمه","جميمه للتعليم الاساسى"]
[1130,"هايدى حسين السيد حسين","معلم ","انجليزى","ع ذكى","جميمه للتعليم الاساسى"]
[1131,"عبدالحميد سلامه على سلامه","معلم اول","تربية رياضيه","ازولين","جميمه للتعليم الاساسى"]
[1132,"مجدى احمد شريف هاشم","فنى خط عربى","فنى خط عربى","جميمه","جميمه للتعليم الاساسى"]
[1133,"عمر السيد عامر مصطفى","م نشاط","م نشاط","فايد خطاب","جميمه للتعليم الاساسى"]
[1134,"منجده ابراهيم محمد ابراهيم","م نشاط","م نشاط","فايد خطاب","جميمه للتعليم الاساسى"]
[1135,"حسن على محمد سعيد","اخصائى اجتماعى","اخصائى خبير","م ابوعامر","جميمه للتعليم الاساسى"]
[1136,"عريفه عبدالعزيز احمد عبدالعزيز","امين معمل","امين معمل","فايد خطاب","جميمه للتعليم الاساسى"]
[1137,"نجوى حسن احمد عبدالعال","امين معمل","امين معمل","جميمه","جميمه للتعليم الاساسى"]
[1138,"نجلاء على سليمان موسى","فنى تشغيل","فنى تشغيل","جميمه","جميمه للتعليم الاساسى"]
[1139,"منى محمود عبدالله اسماعيل","فنى تشغيل","فنى تشغيل","جميمه","جميمه للتعليم الاساسى"]
[1140,"محمد محمد هانى عبدالسميع","فنى تشغيل","فنى تشغيل","الحسينيه","جميمه للتعليم الاساسى"]
[1141,"هناء محمود احمد المهدى","فنى تشغيل","فنى تشغيل","محمد عبيد","جميمه للتعليم الاساسى"]
[1142,"مها عبدالمجيد عبدالمقصود مرسى","كاتب رابع","كاتب رابع","ابوصرار","جميمه للتعليم الاساسى"]
[1143,"سعد زايد محمد زايد","مدير المدرسة",null,"الحسينية","حسن ابراهيم سالم الابتدائيه"]
[1144,"كمال مكاوي عبدالكريم","كبير معلمين","معلم فصل","الحمادين","حسن ابراهيم سالم الابتدائيه"]
[1145,"سعد عبدالحميد اسماعيل حمودة","معلم خبير","معلم فصل","دوامة - فاقوس","حسن ابراهيم سالم الابتدائيه"]
[1146,"سحر عبداللطيف حسن حسين","معلم خبير","معلم فصل","الحمادين","حسن ابراهيم سالم الابتدائيه"]
[1147,"نزيه قطب احمد عبدالله","معلم خبير","علوم","الحمادين","حسن ابراهيم سالم الابتدائيه"]
[1148,"حسن ابوالمعاطي حسن حسين","معلم","معلم فصل","الحمادين","حسن ابراهيم سالم الابتدائيه"]
[1149,"عنايات قطب احمد عبدالله","معلم خبير","معلم فصل","الحمادين","حسن ابراهيم سالم الابتدائيه"]
[1150,"صفاء محمد عبدالمجيد حجازي","معلم خبير","معلم فصل","دوامة - فاقوس","حسن ابراهيم سالم الابتدائيه"]
[1151,"هالة محمد وهيدي حسانين","معلم اول ا","علوم","قهبونة","حسن ابراهيم سالم الابتدائيه"]
[1152,"حنان محمد احمد سالم","معلم اول ا","علوم","الحمادين","حسن ابراهيم سالم الابتدائيه"]
[1153,"شيماء عبدالفتاح عمر علي","معلم اول","معلم فصل","الحمادين","حسن ابراهيم سالم الابتدائيه"]
[1154,"حازم عثمان الشبراوي حسن","معلم اول","معلم فصل","الحمادين","حسن ابراهيم سالم الابتدائيه"]
[1155,"ولاء علي الصادق عرفات ","اخصائي اجتماعي اول",null,"الحمادين","حسن ابراهيم سالم الابتدائيه"]
[1156,"عبدالرحمن زكريا محمد حسن","مشرف نشاط",null,"الحمادين","حسن ابراهيم سالم الابتدائيه"]
[1157,"زينب عبدالعال ابراهيم سليمان ","مشرف نشاط",null,"الحمادين","حسن ابراهيم سالم الابتدائيه"]
[1158,"سناء عبدالسلام محمد علي","مشرف نشاط",null,"الحمادين","حسن ابراهيم سالم الابتدائيه"]
[1159,"سامية قطب علي شريف","فني تشغيل",null,"الحمادين","حسن ابراهيم سالم الابتدائيه"]
[1160,"التزام ابراهيم محمد ابراهيم","فني تشغيل",null,"الحمادين","حسن ابراهيم سالم الابتدائيه"]
[1161,"فاطمة محمد مجاهد درويش","فني معمل",null,"اكياد - فاقوس","حسن ابراهيم سالم الابتدائيه"]
[1162,"جملات حسن محمد ابراهيم","فني تشغيل",null,"الحمادين","حسن ابراهيم سالم الابتدائيه"]
[1163,"ضحى صالح سليمان سعد","كاتب",null,"م راغب","حسن ابراهيم سالم الابتدائيه"]
[1164,"وهيبة محمد عبدالعظيم محمد","كاتب",null,"الحمادين","حسن ابراهيم سالم الابتدائيه"]
[1165,"ناهد احمد صالح متولي","فني تشغيل",null,"الحمادين","حسن ابراهيم سالم الابتدائيه"]
[1166,"ليلى علي سالم مبروك","فني معمل",null,"الحمادين","حسن ابراهيم سالم الابتدائيه"]
[1167,"احلام محمد نجيب ","معلم اول ا",null,"دوامة - فاقوس","حسن ابراهيم سالم الابتدائيه"]
[1168,"ايمان احمد محمد احمد","معلم اول",null,"الحمادين","حسن ابراهيم سالم الابتدائيه"]
[1169,"طلعت عبدالعال قطب عبدالعال","معلم خبير","رياضيارت","الحمادين","حسن ابراهيم سالم الابتدائيه"]
[1170,"مايسه امين محمود على","معلم خبير","معلم فصل","الحسينية","حسين لبن الابتدائيه رقم1"]
[1171,"مرفت ابراهيم على عبدالعال","معلم خبير","معلم فصل","الحسينية","حسين لبن الابتدائيه رقم1"]
[1172,"ابراهيم اسماعيل عبدالله عبدالرحمن","معلم أول أ","لغة عربية","الحسينية","حسين لبن الابتدائيه رقم1"]
[1173,"احسان اسماعيل مكاوى النشاوى","معلم خبير","معلم فصل","الحسينية","حسين لبن الابتدائيه رقم1"]
[1174,"احمد ابراهيم عبدالنبى السويركى","معلم خبير","معلم فصل","الحسينية","حسين لبن الابتدائيه رقم1"]
[1175,"اشرف فتحى السيد احمد","معلم خبير","معلم فصل","الحسينية","حسين لبن الابتدائيه رقم1"]
[1176,"السيد ابراهيم السيد صالح","معلم خبير","معلم فصل","الحسينية","حسين لبن الابتدائيه رقم1"]
[1177,"امال ابراهيم عبدالسلام شمس الدين","معلم خبير","معلم فصل","الحسينية","حسين لبن الابتدائيه رقم1"]
[1178,"امال حسن خليفه بدران","معلم خبير","معلم فصل","الحسينية","حسين لبن الابتدائيه رقم1"]
[1179,"امل عبدالسلام محمد ابوعكر","معلم خبير","معلم فصل","الحسينية","حسين لبن الابتدائيه رقم1"]
[1180,"انتصار على محمد على حجاج","معلم خبير","معلم فصل","الحسينية","حسين لبن الابتدائيه رقم1"]
[1181,"ايمان السيد ابراهيم حسن","معلم خبير","معلم فصل","الحسينية","حسين لبن الابتدائيه رقم1"]
[1182,"حسن محمد محمد ابوالعطا","معلم خبير","معلم فصل","الحسينية","حسين لبن الابتدائيه رقم1"]
[1183,"حنان عبدالمنعم محمد عبدالعال","معلم خبير","معلم فصل","الحسينية","حسين لبن الابتدائيه رقم1"]
[1184,"رباب ابراهيم فهمي عبدالوهاب","معلم أول","لغة انجليزية","الحسينية","حسين لبن الابتدائيه رقم1"]
[1185,"رضه عبدالرحمن حسن ابراهيم","معلم خبير","معلم فصل","الحسينية","حسين لبن الابتدائيه رقم1"]
[1186,"ريهام شحاته ابراهيم علي","معلم خبير","معلم فصل","الحسينية","حسين لبن الابتدائيه رقم1"]
[1187,"سحر محمود اسماعيل سليمان","معلم خبير","معلم فصل","الحسينية","حسين لبن الابتدائيه رقم1"]
[1188,"سعدية احمد محمود عبدالله","معلم خبير","لغة عربية","الحسينية","حسين لبن الابتدائيه رقم1"]
[1189,"سناء امين يونس حسن موافى","معلم خبير","معلم فصل","الحسينية","حسين لبن الابتدائيه رقم1"]
[1190,"سهام عبدالرحمن محمود احمد","معلم خبير","معلم فصل","الحسينية","حسين لبن الابتدائيه رقم1"]
[1191,"شرين عيسى على منصور","معلم أول","دراسات اجتماعية","الحسينية","حسين لبن الابتدائيه رقم1"]
[1192,"صلاح الخضر علي شحاتة","معلم خبير","معلم فصل","الحسينية","حسين لبن الابتدائيه رقم1"]
[1193,"عبير محمد عبده مصطفى","معلم خبير","معلم فصل","الحسينية","حسين لبن الابتدائيه رقم1"]
[1194,"عزة فوزي عبد المجيد عطية شبيب","معلم خبير","مجال زراعي","الحسينية","حسين لبن الابتدائيه رقم1"]
[1195,"منصور على ابراهيم السيد","معلم خبير","معلم فصل","الحسينية","حسين لبن الابتدائيه رقم1"]
[1196,"مها عبدالله الشوادفى محمد","معلم أول أ","اخصائي نفسي","الحسينية","حسين لبن الابتدائيه رقم1"]
[1197,"ناهد السيد احمد خليل","معلم أول","علوم","الحسينية","حسين لبن الابتدائيه رقم1"]
[1198,"هبه على ابراهيم عبدالعال البهيمى","معلم خبير","مجال زراعي","الحسينية","حسين لبن الابتدائيه رقم1"]
[1199,"وداد احمد محمد احمد","معلم خبير","لغة عربية","الحسينية","حسين لبن الابتدائيه رقم1"]
[1200,"وفاء سليمان السيد سويلم","معلم أول","اخصائي اجتماعي","الحسينية","حسين لبن الابتدائيه رقم1"]
[1201,"ولاء عماره محمد حميد","معلم","لغة عربية","الحسينية","حسين لبن الابتدائيه رقم1"]
[1202,"اناس محمد محمود على","امين معمل","امين معمل","الحسينية","حسين لبن الابتدائيه رقم1"]
[1203,"عبدالسلام عبدالمنعم سلامة علي","مشرف نشاط ","مشرف نشاط ","الحسينية","حسين لبن الابتدائيه رقم1"]
[1204,"منى منصور على محمد","كاتب رابع","كاتب رابع","الحسينية","حسين لبن الابتدائيه رقم1"]
[1205,"نهله عبدالمنعم محمد عطية","كاتب رابع","كاتب رابع","الحسينية","حسين لبن الابتدائيه رقم1"]
[1206,"داليا حلمي متولي عبدالهادي","معلم أول","اخصائي صحافة","الحسينية","حسين لبن الابتدائيه رقم1"]
[1207,"فاطمة مختار احمد شعبان","فنى تشغيل","فنى تشغيل","الحسينية","حسين لبن الابتدائيه رقم1"]
[1208,"مرفت فكرى عبدالحميد ابوالحسن","فنى تشغيل","فنى تشغيل","الحسينية","حسين لبن الابتدائيه رقم1"]
[1209,"محمد الحسينى محمد محمد","معلم خبير","مدير المدرسة","الملكيين البحرية-الحسينية","حسينى الزمانى الابتدائيه"]
[1210,"هيام محمد عبد الرحمن حسن","معلم خبير","وكيل المدرسة","الملكيين البحرية-الحسينية","حسينى الزمانى الابتدائيه"]
[1211,"عاطف عبد الحميد عبد السلام","كبير معلمين","اللغةالعربية","الملكيين البحرية-الحسينية","حسينى الزمانى الابتدائيه"]
[1212,"إيناس حسينى محمد السيد","معلم خبير","اللغةالعربية","الملكيين البحرية-الحسينية","حسينى الزمانى الابتدائيه"]
[1213,"هناء عبد العال إبراهيم عمر","معلم خبير","الرياضيات","الملكيين البحرية-الحسينية","حسينى الزمانى الابتدائيه"]
[1214,"السيد محمد المرحلى عبد الواحد","معلم خبير","اللغةالعربية","الملكيين البحرية-الحسينية","حسينى الزمانى الابتدائيه"]
[1215,"السيد على أحمد سليمان","معلم خبير","الرياضيات","الملكيين البحرية-الحسينية","حسينى الزمانى الابتدائيه"]
[1216,"أبو هيكل محمد على محمد","معلم خبير","اللغةالعربية","الحسينية-الشرقية","حسينى الزمانى الابتدائيه"]
[1217,"أيمن حسن عبدالعال السيد","معلم اول أ","الرياضيات","الملكيين البحرية-الحسينية","حسينى الزمانى الابتدائيه"]
[1218,"محمد حسن السيد أحمد","معلم أول أ","التربية الرياضية","منشأة خليل-الحسينية","حسينى الزمانى الابتدائيه"]
[1219,"رانيا رفعت السيد حنفى","معلم أول","الحاسب الآلى","الحجازية-الحسينية","حسينى الزمانى الابتدائيه"]
[1220,"ياسر محمد عبد المجيد السيد","معلم أول","اللغة الإنجليزية","الحسينية-الشرقية","حسينى الزمانى الابتدائيه"]
[1221,"نفين زكريا موسى حسين","معلم أول","اللغة العربية","الملكيين البحرية-الحسينية","حسينى الزمانى الابتدائيه"]
[1222,"عبد الرحمن عبد الله السيد","أخصائى صحافة ","ـــــــــــــــــــ","الملكيين البحرية-الحسينية","حسينى الزمانى الابتدائيه"]
[1223,"سلوى مروان سالم عطية","أخصائى إجتماعى ","ـــــــــــــــــــ","منشأة خليل-الحسينية","حسينى الزمانى الابتدائيه"]
[1224,"يسرية حسن إبراهيم خليل","كاتبة","ـــــــــــــــــــ","المناصرة-الحسينية","حسينى الزمانى الابتدائيه"]
[1225,"منى سليمان خليفة بدران","كاتبة","ـــــــــــــــــــ","منشأة خليل-الحسينية","حسينى الزمانى الابتدائيه"]
[1226,"حافظ محمد محمد عبد الهادى","مشرف نشاط","ـــــــــــــــــــ","منشأة راغب-الحسينية","حسينى الزمانى الابتدائيه"]
[1227,"أشرف محمد محمد متولى","مشرف نشاط","ـــــــــــــــــــ","الملكيين البحرية-الحسينية","حسينى الزمانى الابتدائيه"]
[1228,"زينات محمد أحمد درويش","فنى تشغيل","ـــــــــــــــــــ","الملكيين البحرية-الحسينية","حسينى الزمانى الابتدائيه"]
[1229,"راوية محمد عوض محمد","فنى تشغيل","ـــــــــــــــــــ","الملكيين البحرية-الحسينية","حسينى الزمانى الابتدائيه"]
[1230,"حمدي عباس يونس أبو زيد","معلم خبير","رياضيات","ابوشوشة سماكين الغرب","حسيني أبوشوشة للتعليم الاساسى"]
[1231,"صبري احمد فتحي عبد الرحمن","معلم خبير","رياضيات","ابوشوشة سماكين الغرب","حسيني أبوشوشة للتعليم الاساسى"]
[1232,"سليمان محمود عبد السلام العناني","معلم أول أ","رياضيات","السماعنة فاقوس","حسيني أبوشوشة للتعليم الاساسى"]
[1233,"تامر محمد حنفي عوض","معلم أول أ","لغة عربية","الديدامون فاقوس","حسيني أبوشوشة للتعليم الاساسى"]
[1234,"عايده عبدالرحمن حسن عبدالرحمن","معلم أول أ","لغة عربية","ريزو سماكين الغرب","حسيني أبوشوشة للتعليم الاساسى"]
[1235,"محمد عبد الرحمن علي حسن","معلم أول أ","دراسات","ابوشوشة سماكين الغرب","حسيني أبوشوشة للتعليم الاساسى"]
[1236,"محمد ثروت الطنطاوي إبراهيم","معلم أول أ","لغة انجليزية","م القاضي مركز فاقوس","حسيني أبوشوشة للتعليم الاساسى"]
[1237,"شيماء حسن احمد حلمي","معلم أول أ","اقتصاد منزلي","الختاعنة فاقوس","حسيني أبوشوشة للتعليم الاساسى"]
[1238,"شيماء فهمي حسن علي الشحات","معلم أول","حاسب آلي","المصري سماكين الغرب","حسيني أبوشوشة للتعليم الاساسى"]
[1239,"ايه منير إبراهيم عبدالعال","معلم مساعد","معلم فصل","نجع عبدالسلام سماكين الغرب","حسيني أبوشوشة للتعليم الاساسى"]
[1240,"هالة عبدالباقي اسماعيل حسن","معلم مساعد","معلم فصل","الصوالحية سماكين الغرب","حسيني أبوشوشة للتعليم الاساسى"]
[1241,"سحر وجيه عبدالله السيد احمد","معلم مساعد","معلم فصل","سماكين الغرب","حسيني أبوشوشة للتعليم الاساسى"]
[1242,"رشا علي محمد سلامه","معلم مساعد","لغة عربية","سماكين الغرب","حسيني أبوشوشة للتعليم الاساسى"]
[1243,"أسماء محمد احمد علي شريف","معلم مساعد","معلم فصل","الحسينية","حسيني أبوشوشة للتعليم الاساسى"]
[1244,"عصام عبد الرحمن محمد حسين","أخصائي مكتبة أول أ","أخصائي مكتبة","سماكين الغرب","حسيني أبوشوشة للتعليم الاساسى"]
[1245,"محمد خميس منصور منصور","أخصائي صحافة واعلام أول","أخصائي صحافة واعلام","المصري سماكين الغرب","حسيني أبوشوشة للتعليم الاساسى"]
[1246,"عبير جابر جابر يوسف","اخصائي نفسي اول","اخصائي نفسي","سماكين الغرب","حسيني أبوشوشة للتعليم الاساسى"]
[1247,"سونيا حسن علي سيد احمد","اخصائي اجتماعي اول","اخصائي اجتماعي اول","سماكين الغرب","حسيني أبوشوشة للتعليم الاساسى"]
[1248,"السيد سعد السيد سيد احمد","امين معمل","امين معمل","منشاة راغب","حسيني أبوشوشة للتعليم الاساسى"]
[1249,"محمود محمد عبد الحفيظ محمد","مشرف نشاط","مشرف نشاط","ابوشوشة سماكين الغرب","حسيني أبوشوشة للتعليم الاساسى"]
[1250,"هنية إبراهيم السيد إبراهيم","مشرف نشاط","مشرف نشاط","علاق سماكين الغرب","حسيني أبوشوشة للتعليم الاساسى"]
[1251,"نادية عبدالله عبدالرحمن عبدالسلام","مشرف نشاط","مشرف نشاط","علاق سماكين الغرب","حسيني أبوشوشة للتعليم الاساسى"]
[1252,"فوزية فوزي عبدالمعبود السيد","مشرف نشاط","مشرف نشاط","علاق سماكين الغرب","حسيني أبوشوشة للتعليم الاساسى"]
[1253,"سهير توفيق موسى موسى","مشرف نشاط","مشرف نشاط","سماكين الغرب","حسيني أبوشوشة للتعليم الاساسى"]
[1254,"سمر إبراهيم لبيب حنا","مشرف نشاط","مشرف نشاط","ابوشوشة سماكين الغرب","حسيني أبوشوشة للتعليم الاساسى"]
[1255,"فاطمة احمد السيد إبراهيم","كاتب","كاتب","ابوشوشة سماكين الغرب","حسيني أبوشوشة للتعليم الاساسى"]
[1256,"عايده محمد سليم احمد","مدير مدرسة","بدون","عزبة المناجاه","حمد درمان الابتدائيه"]
[1257,"الهام حمد فضل درمان ","معلم خبير","لغة عربية","سعود البحرية","حمد درمان الابتدائيه"]
[1258,"حنان احمد منصور محمد","معلم خبير","لغة عربية","سعود البحرية","حمد درمان الابتدائيه"]
[1259,"عبدالملك احمد السيد حسن","معلم اول","لغة عربية","سعود البحرية","حمد درمان الابتدائيه"]
[1260,"رغده عبدالعظيم عبدالقادر","معلم اول","لغة عربية",{"$f":"E1260","v":"سعود البحرية"},"حمد درمان الابتدائيه"]
[1261,"سامية السيد محمد درويش","معلم مساعد","لغة انجليزية","سعود القبلية","حمد درمان الابتدائيه"]
[1262,"رحاب صلاح دخيل درمان","اخصائي نفسي ","بدون","سعود البحرية","حمد درمان الابتدائيه"]
[1263,"امل عبدالمعبود علي خليفة","اخصائي اجتماعي","بدون","سعود البحرية","حمد درمان الابتدائيه"]
[1264,"عبدالجليل محمد ابراهيم عبدالجليل","مشرف نشاط اول","انشطه","سعود البحرية","حمد درمان الابتدائيه"]
[1265,"منار رمضان محمد احمد ","امين معمل","بدون","سعود البحرية","حمد درمان الابتدائيه"]
[1266,"مهديه عبدالحميد سليمان علي","فني تشغيل","مكتبة","سعود البحرية","حمد درمان الابتدائيه"]
[1267,"نهي جلال فوزي ابراهيم","اداري","بدون","سعود البحرية","حمد درمان الابتدائيه"]
[1268,"هبه عبدالعظيم فايز عمر","اداري","بدون","سعود البحرية","حمد درمان الابتدائيه"]
[1269,"سليمان عبد الوهاب محمد عطية","معلم خبير","علوم","سعود","دار السلام الابتدائيه"]
[1270,"هاله عبد الكريم محمود إبراهيم","معلم خبير","لغة عربية","3 بحر البقر","دار السلام الابتدائيه"]
[1271,"عبد العزيز محمد عبد العزيز إمام","معلم خبير","لغة عربية","برد","دار السلام الابتدائيه"]
[1272,"سحر صلاح محمد شعبان","معلم خبير","لغة عربية","واحد بحر البقر","دار السلام الابتدائيه"]
[1273,"مروة على حسن على ","معلم مساعد","لغة إنجليزية","3 بحر البقر","دار السلام الابتدائيه"]
[1274,"شادى صلاح أحمد فضل","معلم أول . أ","دراسات إجتماعية","3 بحر البقر","دار السلام الابتدائيه"]
[1275,"على السيد إبراهيم جمعة","معلم أول","مجال زراعى","3 بحر البقر","دار السلام الابتدائيه"]
[1276,"أسماء السيد أحمد عبد البارى","معلم","أقتصاد منزلى","3 بحر البقر","دار السلام الابتدائيه"]
[1277,"عرفات إسماعيل محمد إسماعيل","أخصائى إجتماعى",0,"سعود","دار السلام الابتدائيه"]
[1278,"محمد محمد أحمد حسن","مشرف نشاط",0,"3 بحر البقر","دار السلام الابتدائيه"]
[1279,"حميدة حمادة عبد العزيز العوضى","أمين معمل",0,"3 بحر البقر","دار السلام الابتدائيه"]
[1280,"إيناس صلاح أحمد فضل","فنى تشغيل",0,"3 بحر البقر","دار السلام الابتدائيه"]
[1281,"نجلاء أحمد محمد خضر","فنى تشغيل",0,"3 بحر البقر","دار السلام الابتدائيه"]
[1282,"سناء عبد العزيز محمد عبد العزيز","فنى تشغيل",0,"3 بحر البقر","دار السلام الابتدائيه"]
[1283,"عادل السيد عبد المنعم حسانين","فنى تشغيل",0,"3 بحر البقر","دار السلام الابتدائيه"]
[1284,"محمد أحمد على حسن","كاتب",0,"3 بحر البقر","دار السلام الابتدائيه"]
[1285,"على عبد السميع عبد العال عبد القادر","كاتب",0,"3 بحر البقر","دار السلام الابتدائيه"]
[1286,"منى حلمى محمود إبراهيم","كاتب",0,"3 بحر البقر","دار السلام الابتدائيه"]
[1287,"السيد محمد السعدي يونس","مدير المدرسة","م زراعي","الظواهرية","زياد ابوعتمان الطحاوى للتعليم الاساسى"]
[1288,"السيد جمعه علي سليم ","وكيل المدرسة","دراسات","الظواهرية","زياد ابوعتمان الطحاوى للتعليم الاساسى"]
[1289,"احمد اسماعيل فهمي اسماعيل","معلم اول أ","لغة عربية","الظواهرية","زياد ابوعتمان الطحاوى للتعليم الاساسى"]
[1290,"محمد عبدالرحمن موسى مرسى","معلم اول","لغة عربية","الظواهرية","زياد ابوعتمان الطحاوى للتعليم الاساسى"]
[1291,"وائل احمد عبد العزيز عبدالحق","معلم اول","خط","الظواهرية","زياد ابوعتمان الطحاوى للتعليم الاساسى"]
[1292,"احمد خضر الشوادفي علي","معلم اول أ","علوم","الظواهرية","زياد ابوعتمان الطحاوى للتعليم الاساسى"]
[1293,"حسام احمد موسى عبداللطيف","معلم اول أ","حاسب آلي","الظواهرية","زياد ابوعتمان الطحاوى للتعليم الاساسى"]
[1294,"ابراهيم عبدالعاطى ابراهيم سالم","أخصائي.اول أ","أ.صحافة","الظواهرية","زياد ابوعتمان الطحاوى للتعليم الاساسى"]
[1295,"شادي محمد السيد عبدالهادي","أخصائي.اول أ","أ. اجتماعي","الحسينية","زياد ابوعتمان الطحاوى للتعليم الاساسى"]
[1296,"صابر عبدالعزيز على على","امين معمل","امين معمل","الظواهرية","زياد ابوعتمان الطحاوى للتعليم الاساسى"]
[1297,"ساميه حميده خالد حميده","كاتب اول","اداري","الحسينية","زياد ابوعتمان الطحاوى للتعليم الاساسى"]
[1298,"اسماعيل اسماعيل محمد علي","كاتب رابع","ادارى ","الظواهرية","زياد ابوعتمان الطحاوى للتعليم الاساسى"]
[1299,"عصام عبدالعزيز عبدالله عبدالمجيد","معلم أول أ - مدير مدرسة","دراسات","عليوه","سالم جندي الاعداديه"]
[1300,"محمد عبدالعزيز محمد عبدالعزيز","معلم أول أ","لغة عربية","سعود","سالم جندي الاعداديه"]
[1301,"وفاء عبدالله ابراهيم عبدالله","معلم أول أ","لغة عربية","سعود","سالم جندي الاعداديه"]
[1302,"الفت محمد ابراهيم خليل","معلم أول","لغة عربية","سعود","سالم جندي الاعداديه"]
[1303,"كمال محمود كمال احمد","كبير معلمين","رياضيات","عزبة المناجاه","سالم جندي الاعداديه"]
[1304,"شيماء عبدالحميد حسن علي سيد احمد","معلم أول أ","إنجليزي","عزبة المناجاه","سالم جندي الاعداديه"]
[1305,"محمد باز جاد عبدالكريم","معلم أول أ","فنية","عزبة المناجاه","سالم جندي الاعداديه"]
[1306,"هند عبدالله مصطفى مرسي عل","معلم أول","حاسب","عزبة المناجاه","سالم جندي الاعداديه"]
[1307,"شيرين محمد محمد غازى","معلم أول","اقتصاد منزلي","عزبة المناجاه","سالم جندي الاعداديه"]
[1308,"شيرين عطيه السيد عبدالعال","أمين مكتبة أول أ","المكتبة أمين مكتبة أول أ","عزبة المناجاه","سالم جندي الاعداديه"]
[1309,"محمد حسن محمد محمد","أخصائى اجتماعى أول","أخصائى اجتماعى أول","سعود","سالم جندي الاعداديه"]
[1310,"السيد محمد عليوه محمد","كاتب خامس - سكرتير خامس","كاتب خامس - سكرتير خامس","برد","سالم جندي الاعداديه"]
[1311,"مايسه عبدالحميد منصور محمد","فنى تشغيل وسائل تعليمية","فنى تشغيل وسائل تعليمية","عزبة المناجاه","سالم جندي الاعداديه"]
[1312,"ايناس سعيد حجازى محمد","فنى رابع","فنى رابع","عزبة المناجاه","سالم جندي الاعداديه"]
[1313,"هناء عبدالعزيز ابوالمعاطى رضوان","فنى رابع","فنى رابع","عزبة المناجاه","سالم جندي الاعداديه"]
[1314,"رئيسه محمد غازى محمد","فنى تشغيل وسائل تعليمية","فنى تشغيل وسائل تعليمية","عزبة المناجاه","سالم جندي الاعداديه"]
[1315,"ابراهيم السيد ابراهيم ابراهيم","فنى ثالث","فنى ثالث","عزبة المناجاه","سالم جندي الاعداديه"]
[1316,"ابراهيم ماهر ابراهيم محمد","فنى تشغيل وسائل تعليمية","فنى تشغيل وسائل تعليمية","عزبة المناجاه","سالم جندي الاعداديه"]
[1317,"عبدالمنعم احمد محمد محمد","معلم اول ا","لغة عربية","بندر الحسينية","سالم حسين سالم للتعليم الاساسى"]
[1318,"اشرف احمد على سليمان","معلم اول ا","لغة عربية","عزبة زنين المناجاة الكبرى","سالم حسين سالم للتعليم الاساسى"]
[1319,"محمد سعد عبدالعال","معلم خبير","رياضيات","سعود","سالم حسين سالم للتعليم الاساسى"]
[1320,"رابحة احمد محمد السيد","معلم اول ا","علوم","عزبة زنين المناجاة الكبرى","سالم حسين سالم للتعليم الاساسى"]
[1321,"عماد الدين محمد على","معلم مساعد","انجليزى","بندر الحسينية","سالم حسين سالم للتعليم الاساسى"]
[1322,"ايهاب هاشم ابراهيم","اخصائى صحافة خبير","صحافة","بندر الحسينية","سالم حسين سالم للتعليم الاساسى"]
[1323,"محمد محمود محمد احمد","اخصائى اجتماعى اول","اخصائى اجتماعى","بندر الحسينية","سالم حسين سالم للتعليم الاساسى"]
[1324,"جمعة محمد جمعة سليمان","امين معمل","امين معمل","عزبة زنين المناجاة الكبرى","سالم حسين سالم للتعليم الاساسى"]
[1325,"اسماء احمد عبدالعزيز","مشرف نشاط","فنى تشغيل","سعود","سالم حسين سالم للتعليم الاساسى"]
[1326,"حميدة صالح عبدالهادى","ادارية","ادارية","عزبة زنين المناجاة الكبرى","سالم حسين سالم للتعليم الاساسى"]
[1327,"ابراهيم محمد ابراهيم محمد عبده","كبير معلمين","معلم فصل _ رياضيات","العساكرة الصالحية القديمة","سلامة دبور للتعليم الاساسى ب"]
[1328,"ابوالقاسم عبدالوهاب حسن ابراهيم","معلم خبير","مجالات ","قصاصين الشرق","سلامة دبور للتعليم الاساسى ب"]
[1329,"احمد خضر الشبراوى عكاشة","عامل خدمات","عامل خدمات","جزيرة سعود","سلامة دبور للتعليم الاساسى ب"]
[1330,"عبد الرحمن محمد طلبة داود","مشرف نشاط / خدمات","مشرف نشاط","قصاصين الشرق","سلامة دبور للتعليم الاساسى ب"]
[1331,"عبدالبصير محمد عبدالبصير محمد","فنى تشغيل وسائل تعليمية","فنى تشغيل وسائل تعليمية","قصاصين الشرق","سلامة دبور للتعليم الاساسى ب"]
[1332,"عبير احمد اسماعيل موسى","فنى تشغيل وسائل تعليمية","فنى تشغيل وسائل تعليمية","قصاصين الشرق","سلامة دبور للتعليم الاساسى ب"]
[1333,"عبير عبدالسلام عبدالعال محمد شعلان","معلم خبير","دراسات اجتماعية","قصاصين الشرق","سلامة دبور للتعليم الاساسى ب"]
[1334,"علي احمد محمد على","معلم خبير","معلم فصل _ عربي","سماكين الشرق","سلامة دبور للتعليم الاساسى ب"]
[1335,"لمياء على محمد ابراهيم","معلم أول","لغة عربية ودين","قصاصين الشرق","سلامة دبور للتعليم الاساسى ب"]
[1336,"محمد عبد العليم محمد عبدالقادر","معلم خبير","معلم فصل _ عربي","سماكين الشرق","سلامة دبور للتعليم الاساسى ب"]
[1337,"محمد عبدالعال على سلامه","فنى تشغيل وسائل تعليمية","فنى تشغيل وسائل تعليمية","الإسماعيلية _ الغابة","سلامة دبور للتعليم الاساسى ب"]
[1338,"منى السيد محمود سالم","مشرف نشاط / خدمات","مشرف نشاط / خدمات","قصاصين الشرق","سلامة دبور للتعليم الاساسى ب"]
[1339,"منى عبدالغفار طعمه ابراهيم","فنى تشغيل وسائل تعليمية","فنى تشغيل وسائل تعليمية","قصاصين الشرق","سلامة دبور للتعليم الاساسى ب"]
[1340,"ناصر حسن ابراهيم سويلم","معلم خبير","معلم فصل _ عربي","قصاصين الشرق","سلامة دبور للتعليم الاساسى ب"]
[1341,"محمد محمود عبدالحق موسى","معلم خبير","لغة عربية ودين","قصاصين الشرق","سلامة دبور للتعليم الاساسى ب"]
[1342,"محمد احمد عبدالله محمود","معلم خبير","دمدبر المدرسة","قصاصين الشرق","سلامة دبور للتعليم الاساسى ع"]
[1343,"سليمان حسن سليمان محمد","معلم أول أ","لغة عربية ودين","قصاصين الشرق","سلامة دبور للتعليم الاساسى ع"]
[1344,"سماح احمدي علي علام","معلم أول أ","لغة عربية ودين","سماكين الشرق","سلامة دبور للتعليم الاساسى ع"]
[1345,"عبدالرحمن حسين عبدالرحمن عبدالقادر","كبير معلمين","لغة انجليزية","قصاصين الشرق","سلامة دبور للتعليم الاساسى ع"]
[1346,"عواطف احمد محمد محمد","فنى رابع","فنى رابع","قصاصين الشرق","سلامة دبور للتعليم الاساسى ع"]
[1347,"فاطمة عبدالعال ابراهيم محمد","فنى ثالث","فنى ثالث","قصاصين الشرق","سلامة دبور للتعليم الاساسى ع"]
[1348,"محمد ابراهيم احمد اسماعيل","كبير معلمين","علوم","قصاصين الشرق","سلامة دبور للتعليم الاساسى ع"]
[1349,"محمد محمد كامل صالح موسى","معلم أول","تربية رياضية","قصاصين الشرق","سلامة دبور للتعليم الاساسى ع"]
[1350,"مروه ابراهيم احمد شبانه","فنى تشغيل وسائل تعليمية","فنى تشغيل وسائل تعليمية","قصاصين الشرق","سلامة دبور للتعليم الاساسى ع"]
[1351,"هيثم صبرى محمد عبدالرحمن","معلم أول","رياضيات","قصاصين الشرق","سلامة دبور للتعليم الاساسى ع"]
[1352,"محمد مصطفى محمد الصادق","معلم أول أ","دراسات اجتماعية","قصاصين الشرق","سلامة دبور للتعليم الاساسى ع"]
[1353,"احمد حسن حامد ابراهيم","كبير معلمين","لغة انجليزية","قصاصين الشرق","سلامة دبور للتعليم الاساسى ع"]
[1354,"عايش سليمان عايش سلمي","كبير معلمين - مدير مدرسة","-","الجبهة - بحر البقر","سليم الدلح للتعليم الاساسى"]
[1355,"ايمان رضوان رضا الله رضوان","معلم خبير ","رياضيات","الجبهة - بحر البقر","سليم الدلح للتعليم الاساسى"]
[1356,"السيد عبد السميع فرج إسماعيل","معلم أول","رياضيات","مركز الحسينية","سليم الدلح للتعليم الاساسى"]
[1357,"خالد فوزى عبد الحميد ابراهيم ","معلم أول","لغة عربية","سعــــود - الحسينية","سليم الدلح للتعليم الاساسى"]
[1358,"عبد العظيم عبد الجليل محمد","معلم أول","لغة عربية","بحر البقر","سليم الدلح للتعليم الاساسى"]
[1359,"محمد عبد الله عبد العزيز سليم","معلم أول","لغة عربية","سعــــود - الحسينية","سليم الدلح للتعليم الاساسى"]
[1360,"اعتماد محمد محمد مرسي","معلم أول","علوم","الجبهة - بحر البقر","سليم الدلح للتعليم الاساسى"]
[1361,"سامية الشربيني الشربيني","معلم أول أ","تربية رياضية","الظواهرية - الحسينية","سليم الدلح للتعليم الاساسى"]
[1362,"عبد المقصود كامل عبد المقصود","أمين معمل","-","منشأة أبو عمر","سليم الدلح للتعليم الاساسى"]
[1363,"السيد علي سعد محمد","أمين معمل","-","الجبهة - بحر البقر","سليم الدلح للتعليم الاساسى"]
[1364,"مدحت محمد عبد العال شحاتة","فني تشغيل وسائل تعليمية","-","قرية 3 بحر البقر","سليم الدلح للتعليم الاساسى"]
[1365,"رجب اجميعان سلمي خميس","فني تشغيل وسائل تعليمية","-","الجبهة - بحر البقر","سليم الدلح للتعليم الاساسى"]
[1366,"محمد عبيد السيد محمد","فني تشغيل وسائل تعليمية","-","قرية 3 بحر البقر","سليم الدلح للتعليم الاساسى"]
[1367,"فرحانة عبد السميع حسن محمد","فني تشغيل وسائل تعليمية","-","قرية 4 بحر البقر","سليم الدلح للتعليم الاساسى"]
[1368,"حلمى على عباس الديداموني","سكرتير أول","-","سعــــود - الحسينية","سليم الدلح للتعليم الاساسى"]
[1369,"عائشة إبراهيم حسن عبد الحق العطار","كاتب رابع","-","المناجاة","سليم الدلح للتعليم الاساسى"]
[1370,"محمد صابر يوسف محمد","ويل المدرسة","لغة عربية","سعود البحرية","سليمان حميد قويطه للتعليم الاساسى"]
[1371,"محاسن عبدالعظيم سعد","معلم اول","لغة عربية",{"$f":"E1378","v":"سعود القبلية"},"سليمان حميد قويطه للتعليم الاساسى"]
[1372,"شرين حموده كمال احمد","معلم اول ","رياضيات","سعود البحرية","سليمان حميد قويطه للتعليم الاساسى"]
[1373,"علياء حندوسه محمد  محمود","معلم مساعد","رياضيات","سعود البحرية","سليمان حميد قويطه للتعليم الاساسى"]
[1374,"طارق عبدالجليل سعد نصر","معلم اول ","علوم","سعود البحرية","سليمان حميد قويطه للتعليم الاساسى"]
[1375,"ايمان عبداللطيف  حسن علي","معلم مساعد","دراسات","سعود البحرية","سليمان حميد قويطه للتعليم الاساسى"]
[1376,"فاتن فتحي ابراهيم محمد","معلم اول","حاسب الي","سعود القبلية","سليمان حميد قويطه للتعليم الاساسى"]
[1377,"فاطمه شاكر محمد محمد","فني تشغيل","معمل","سعود القبلية","سليمان حميد قويطه للتعليم الاساسى"]
[1378,"وفاء عبدالعزيز عبدالحميد محمد","فني تشغيل","مكتبة","سعود البحرية","سليمان حميد قويطه للتعليم الاساسى"]
[1379,"حافظ عبدالفتاح غالب ","اداري","_","سعود البحرية","سليمان حميد قويطه للتعليم الاساسى"]
[1380,"زينب حسين احمد ","اداري","_","سعود البحرية","سليمان حميد قويطه للتعليم الاساسى"]
[1381,"غريب محمد احمد غازى","وكيل المدرسة","لغة عربية","سماكين الشرق ","سماكين الشرق الابتدائيه"]
[1382,"وفاء محمد حسن على","معلم خبير ","لغة عربية","سماكين الشرق ","سماكين الشرق الابتدائيه"]
[1383,"ابراهيم السيد شريف","معلم خبير ","لغة عربية","سماكين الشرق ","سماكين الشرق الابتدائيه"]
[1384,"فايزة عبدالحميدعبدالعال سعفان","معلم خبير ","لغة عربية","سماكين الشرق ","سماكين الشرق الابتدائيه"]
[1385,"زكية السيد على السيد","معلم خبير ","لغة عربية","سماكين الشرق ","سماكين الشرق الابتدائيه"]
[1386,"عبدالرحمن احمد محمد سليمان","معلم خبير ","لغة عربية","سماكين الشرق ","سماكين الشرق الابتدائيه"]
[1387,"نادية ابراهيم على محمد","معلم خبير ","لغة عربية","سماكين الشرق ","سماكين الشرق الابتدائيه"]
[1388,"هناء سليمان عبدالحفيظ عبدالمقصود","معلم خبير ","لغة عربية","سماكين الشرق ","سماكين الشرق الابتدائيه"]
[1389,"هويدا محمد جاد ابرهيم","معلم خبير ","لغة عربية","سماكين الشرق ","سماكين الشرق الابتدائيه"]
[1390,"سهام محمد محمد احمد","معلم خبير ","لغة عربية","سماكين الشرق ","سماكين الشرق الابتدائيه"]
[1391,"فاطمه محمد محمد عزت","معلم خبير ","لغة عربية","سماكين الشرق ","سماكين الشرق الابتدائيه"]
[1392,"فاطمه السيد شريف حسين","معلم خبير ","لغة عربية","سماكين الشرق ","سماكين الشرق الابتدائيه"]
[1393,"هدى محمد اسماعيل محمد","معلم خبير ","لغة عربية","سماكين الشرق ","سماكين الشرق الابتدائيه"]
[1394,"زينب ابراهيم حسن عبد الحق","معلم خبير ","لغة عربية","سماكين الشرق ","سماكين الشرق الابتدائيه"]
[1395,"فوزية غريب يوسف سيد احمد","معلم خبير ","لغة عربية","سماكين الشرق ","سماكين الشرق الابتدائيه"]
[1396,"فوزية محمد سليمان سيد احمد","معلم خبير ","لغة عربية","سماكين الشرق ","سماكين الشرق الابتدائيه"]
[1397,"وفاء احمد سليمان دواد","معلم أول أ","لغة عربية","سماكين الشرق ","سماكين الشرق الابتدائيه"]
[1398,"وفاء عبد العال محمد عبدالعال","معلم أول ","لغة عربية","سماكين الشرق ","سماكين الشرق الابتدائيه"]
[1399,"حنان احمد عطية بدوى","معلم اول","لغة عربية","سماكين الشرق ","سماكين الشرق الابتدائيه"]
[1400,"امل محمد عبد الهادى عبد العاطى","معلم اول أ","لغة انجليزية","سماكين الشرق ","سماكين الشرق الابتدائيه"]
[1401,"اميرة ابراهيم عبدالرحمن عبدالعال","معلم أول","لغة انجليزية","سماكين الشرق ","سماكين الشرق الابتدائيه"]
[1402,"اية محمد السباعى محمد مبارك","معلم مساعد","لغة انجليزية","سماكين الشرق ","سماكين الشرق الابتدائيه"]
[1403,"نادرة ابراهيم عبد الكريم ابراهيم","معلم خبير ","رياضيات","سماكين الشرق ","سماكين الشرق الابتدائيه"]
[1404,"فايزة محمد محمود مسعد","معلم خبير ","رياضيات","سماكين الشرق ","سماكين الشرق الابتدائيه"]
[1405,"سامية محجوب حسن محجوب","معلم خبير ","رياضيات","سماكين الشرق ","سماكين الشرق الابتدائيه"]
[1406,"ايناس غريب يوسف سيد احمد","معلم خبير ","رياضيات","سماكين الشرق ","سماكين الشرق الابتدائيه"]
[1407,"سامية ابراهيم عبدالسلام على","معلم خبير ","رياضيات","سماكين الشرق ","سماكين الشرق الابتدائيه"]
[1408,"ممدوح طلعت عبد الحق عثمان","معلم خبير ","رياضيات","سماكين الشرق ","سماكين الشرق الابتدائيه"]
[1409,"سميرة محجوب حسن محجوب","معلم خبير ","رياضيات","سماكين الشرق ","سماكين الشرق الابتدائيه"]
[1410,"عواطف فهمى محمد حسن","معلم خبير ","علوم","سماكين الشرق ","سماكين الشرق الابتدائيه"]
[1411,"محمد فهمى مصطفى جلال","معلم خبير ","علوم","سماكين الشرق ","سماكين الشرق الابتدائيه"]
[1412,"سناء حسن على حسين","معلم خبير ","دراسات","سماكين الشرق ","سماكين الشرق الابتدائيه"]
[1413,"احمد ابراهيم يوسف سيد احمد","معلم خبير ","دراسات","سماكين الشرق ","سماكين الشرق الابتدائيه"]
[1414,"رؤيات عبد العزيز محمد الباز","معلم خبير ","تربية رياضية","سماكين الشرق ","سماكين الشرق الابتدائيه"]
[1415,"مشيرة على مصطفى البيلى","معلم خبير ","انشطة","سماكين الشرق ","سماكين الشرق الابتدائيه"]
[1416,"محمد السيد عبدالرحمن السيد","اخصائى نفسى","******","سماكين الشرق ","سماكين الشرق الابتدائيه"]
[1417,"منى محمد محمد مجاهد","اخصائى اجتماعى","******","سماكين الشرق ","سماكين الشرق الابتدائيه"]
[1418,"شهيرة السيد احمد السيد","اخصائى اجتماعى","******","سماكين الشرق ","سماكين الشرق الابتدائيه"]
[1419,"عتاب ابراهيم عبدالكريم ابراهيم","فنى تشغيل","******","سماكين الشرق ","سماكين الشرق الابتدائيه"]
[1420,"عريفة ابراهيم عبد الرحمن حسين","فنى تشغيل","******","سماكين الشرق ","سماكين الشرق الابتدائيه"]
[1421,"سهام محمد على احمد","فنى معمل","******","سماكين الشرق ","سماكين الشرق الابتدائيه"]
[1422,"هبه عبد الرحمن عبد العال","معلم أول أ","لغة عربية ","سماكين الشرق ","سماكين الشرق الاعداديه المشتركه"]
[1423,"ايمان احمد كمال ","معلم أول أ","لغة عربية ","سماكين الشرق ","سماكين الشرق الاعداديه المشتركه"]
[1424,"احمد محمد محمد حسنين","معلم أول ","لغة عربية ","سماكين الشرق ","سماكين الشرق الاعداديه المشتركه"]
[1425,"احمد حسن عثمان ","معلم خبير ","لغة انجليزية ","الغزازى","سماكين الشرق الاعداديه المشتركه"]
[1426,"نعيمة الشوادفى محمد","كبير معلمين","الرياضيات","سماكين الشرق ","سماكين الشرق الاعداديه المشتركه"]
[1427,"محمود عبد الرازق متولى ","معلم خبير ","الدراسات","سماكين الشرق ","سماكين الشرق الاعداديه المشتركه"]
[1428,"وفاء احمد صالح","معلم اول","علوم","سماكين الشرق ","سماكين الشرق الاعداديه المشتركه"]
[1429,"احمد توفيق محمود","معلم اول","الحاسب الالى","سماكين الشرق ","سماكين الشرق الاعداديه المشتركه"]
[1430,"داليا عطية احمد ","معلم اول","التربية الرياضية","الاخيوة","سماكين الشرق الاعداديه المشتركه"]
[1431,"منصور محمد موسى","معلم اول","اخصائى مكتبة","سماكين الشرق ","سماكين الشرق الاعداديه المشتركه"]
[1432,"محمود عبد العزيز على ","معلم خبير ","اخصائى صحافة","قصاصين الشرق ","سماكين الشرق الاعداديه المشتركه"]
[1433,"محمد فتحى شحاتة","معلم اول أ","اخصائى مسرح","الاخيوة","سماكين الشرق الاعداديه المشتركه"]
[1434,"محمد محمد محمد على ","مشرف نشاط","*****","سماكين الشرق ","سماكين الشرق الاعداديه المشتركه"]
[1435,"ترك ابراهيم عبد السلام ","فنى تشغيل","******","سماكين الشرق ","سماكين الشرق الاعداديه المشتركه"]
[1436,"ولاء السيد حسن","فنى تشغيل","*****","سماكين الشرق ","سماكين الشرق الاعداديه المشتركه"]
[1437,"هويدا السيد حسن ","فنى تشغيل","******","سماكين الشرق ","سماكين الشرق الاعداديه المشتركه"]
[1438,"ايمان سلامة احمد ","فنى تشغيل","******","سماكين الشرق ","سماكين الشرق الاعداديه المشتركه"]
[1439,"حنان صالح يوسف ","امين معمل","*****","سماكين الشرق ","سماكين الشرق الاعداديه المشتركه"]
[1440,"حكمت صابر عبد الحق ","كاتب اول","*****","سماكين الشرق ","سماكين الشرق الاعداديه المشتركه"]
[1441,"عبدالحق محمد علي حسين","مدير المدرسة",null,"سماكين الغرب","سماكين الغرب الابتدائيه1"]
[1442,"محمد سعيد عبدالله مصطفي","معلم خبير","لغة عربية","سماكين الغرب","سماكين الغرب الابتدائيه1"]
[1443,"محمد عبدالعزيز محمد امام","وكيل","لغة عربية","سماكين الغرب","سماكين الغرب الابتدائيه1"]
[1444,"امال عبدالحميد احمد السيد","معلم خبير","لغة عربية","سماكين الغرب","سماكين الغرب الابتدائيه1"]
[1445,"الست احمد ابراهيم عبدالله","معلم خبير","لغة عربية","سماكين الغرب","سماكين الغرب الابتدائيه1"]
[1446,"مجدة محمد السعيد محمد","معلم خبير","لغة عربية","سماكين الغرب","سماكين الغرب الابتدائيه1"]
[1447,"منال محمد عبداتلعليم عبدالعال","معلم خبير","لغة عربية","سماكين الغرب","سماكين الغرب الابتدائيه1"]
[1448,"زينب عبدالعزيز علي محمد","معلم خبير","لغة عربية","سماكين الغرب","سماكين الغرب الابتدائيه1"]
[1449,"سهير محمد حسن مرسي","معلم خبير","لغة عربية",{"$f":"E1442","v":"سماكين الغرب"},"سماكين الغرب الابتدائيه1"]
[1450,"نبيلة حسن ابراهيم عبدالله","معلم خبير","لغة عربية","سماكين الغرب","سماكين الغرب الابتدائيه1"]
[1451,"امل عبدالرازق محمد عبدالعال","معلم خبير","لغة عربية","سماكين الغرب","سماكين الغرب الابتدائيه1"]
[1452,"امل احمد محمد السيد","معلم خبير","لغة عربية","سماكين الغرب","سماكين الغرب الابتدائيه1"]
[1453,"اميرة عبدالحميد محمد محمد ","معلم اول أ","لغة عربية","سماكين الغرب","سماكين الغرب الابتدائيه1"]
[1454,"ايمان عبدالعزيز محمد امام","معلم اول أ","لغة عربية","سماكين الغرب","سماكين الغرب الابتدائيه1"]
[1455,"السيد محمد عبدالحميد علي","معلم اول","لغة عربية","سماكين الغرب","سماكين الغرب الابتدائيه1"]
[1456,"امل احمد محمد يوسف","معلم اول","لغة عربية","سماكين الغرب","سماكين الغرب الابتدائيه1"]
[1457,"امل محمد محمد عوض الله","معلم اول","لغة عربية","سماكين الغرب","سماكين الغرب الابتدائيه1"]
[1458,"روحية علي عبدالفتاح احمد","معلم اول","لغة عربية","سماكين الغرب","سماكين الغرب الابتدائيه1"]
[1459,"هناء سالم محمود علي","كبير معلمين","رياضيات","سماكين الغرب","سماكين الغرب الابتدائيه1"]
[1460,"عوض محمد عبدالعليم عبدالعال","معلم خبير","رياضيات","سماكين الغرب","سماكين الغرب الابتدائيه1"]
[1461,"محمد محمد السيد محمد","معلم خبير","رياضيات","سماكين الغرب","سماكين الغرب الابتدائيه1"]
[1462,"ناهد عمرو محمد عمار","معلم خبير","رياضيات","سماكين الغرب","سماكين الغرب الابتدائيه1"]
[1463,"امال احمد محمد حمودة","معلم خبير","رياضيات","سماكين الغرب","سماكين الغرب الابتدائيه1"]
[1464,"سامية عبدالواحد تمراز","معلم خبير","رياضيات","سماكين الغرب","سماكين الغرب الابتدائيه1"]
[1465,"نادية عبدالسلام علي محمد","معلم خبير","رياضيات","سماكين الغرب","سماكين الغرب الابتدائيه1"]
[1466,"علاء محمد محمد خليل","معلم اول","رياضيات","سماكين الغرب","سماكين الغرب الابتدائيه1"]
[1467,"نجلاء عبدالحي علي السيد","معلم خبير","رياضيات","سماكين الغرب","سماكين الغرب الابتدائيه1"]
[1468,"هند احمد محمد عبدالعزيز","معلم خبير","رياضيات","سماكين الغرب","سماكين الغرب الابتدائيه1"]
[1469,"اميرة جمال محمد علي","معلم اول أ","رياضيات","سماكين الغرب","سماكين الغرب الابتدائيه1"]
[1470,"حاتم عبدالرحمن شحاتة عبدالرحمن","معلم خبير","علوم","سماكين الغرب","سماكين الغرب الابتدائيه1"]
[1471,"منال محمد عبدالفتاح عبدالرحمن","معلم اول","انجليزي","فاقوس - اشكر","سماكين الغرب الابتدائيه1"]
[1472,"زينب ابراهيم محمد محمد","معلم اول","دراسات",{"$f":"E1465","v":"سماكين الغرب"},"سماكين الغرب الابتدائيه1"]
[1473,"مي ابراهيم موسي مرعي","معلم اول","حاسب الي","الحسينية","سماكين الغرب الابتدائيه1"]
[1474,"اميرة محمود محمد شحاتة","خ اجتماعي",null,{"$f":"E1468","v":"سماكين الغرب"},"سماكين الغرب الابتدائيه1"]
[1475,"اميمة عبدالعزيز منصور","فني تشفيل",null,"سماكين الغرب","سماكين الغرب الابتدائيه1"]
[1476,"سحر محمد عبدالرحمن احمد","خ نفيسي",null,"سماكين الغرب","سماكين الغرب الابتدائيه1"]
[1477,"عبدالرحمن محمود محمد حسن","م /نشاط أ",null,"سماكين الغرب","سماكين الغرب الابتدائيه1"]
[1478,"السيد ابراهيم علي منصور","م/ نشاط أ",null,"فاقوس - اشكر","سماكين الغرب الابتدائيه1"]
[1479,"احمد عبدالرحمن محمد سليمان","م/ نشاط أ",null,"سماكين الغرب","سماكين الغرب الابتدائيه1"]
[1480,"محمد عبدالعزيز عبدالحق يوسف","م/ نشاط أ",null,"الحسينية","سماكين الغرب الابتدائيه1"]
[1481,"امل عبدالقادر علي منصور","م /نشاط أ",null,{"$f":"#REF!","v":{"$error":"#REF!"}},"سماكين الغرب الابتدائيه1"]
[1482,"حنان السيد عثمان","م/ نشاط أ",null,{"$f":"E1475","v":"سماكين الغرب"},"سماكين الغرب الابتدائيه1"]
[1483,"هالة عبدالمجيد عبدالرحمن","م /نشاط أ",null,"سماكين الغرب","سماكين الغرب الابتدائيه1"]
[1484,"محمد السيد عبداللطيف حسين","سكرتير",null,"سماكين الغرب","سماكين الغرب الابتدائيه1"]
[1485,"اية سالم احمد ابراهيم ","معلم / مساعد","انجليزي","سماكين الغرب","سماكين الغرب الابتدائيه1"]
[1486,"علا السيد عبدالله محمد","معلم / مساعد","انجليزي","الملكيين البحرية","سماكين الغرب الابتدائيه1"]
[1487,"فاطمة ابراهيم عبدالجليل","معلم/ مساعد ","رياض اطفل","السماعنة - فاقوس","سماكين الغرب الابتدائيه1"]
[1488,"سامية  محمد احمد ","معلم / مساعد","رياض اطفل","السماعنة - فاقوس","سماكين الغرب الابتدائيه1"]
[1489,"هند حسين عبدالرحمن","معلم / مساعد","رياض اطفل","السماعنة - فاقوس","سماكين الغرب الابتدائيه1"]
[1490,"عيسوى محمد سالم عبدربه","مدير مدرسه","لغة عربية","الحسينيه","سماكين الغرب الابتدائيه2"]
[1491,"ابراهيم عبدالعزيز طلبه حسن","معلم أول أ","مجال صناعي","سماكين الغرب","سماكين الغرب الابتدائيه2"]
[1492,"احمد عبدالوهاب علي محمد","معلم خبير","لغة عربية","سماكين الغرب","سماكين الغرب الابتدائيه2"]
[1493,"اسامه عبدالفتاح عبدالعال احمد","معلم خبير","دراسات","سماكين الغرب","سماكين الغرب الابتدائيه2"]
[1494,"عبدالعزيز صابر محمد اسماعيل","معلم اول","صحافه","سماكين الغرب","سماكين الغرب الابتدائيه2"]
[1495,"محمد احمد محمد حسين","معلم خبير","لغة عربية","سماكين الغرب","سماكين الغرب الابتدائيه2"]
[1496,"مروة محمد عبدالدايم متولي","معلم اول","حاسب الى","سماكين الغرب","سماكين الغرب الابتدائيه2"]
[1497,"هدى منير محمود محمد","معلم مساعد","رياض اطفال","قنتير","سماكين الغرب الابتدائيه2"]
[1498,"نورا محمد عبدالقادر على","معلم مساعد","رياض اطفال","الديدامون","سماكين الغرب الابتدائيه2"]
[1499,"علي عبداللطيف هدية بخيت","كبير معلمين","لغة عربية","سماكين الغرب","سماكين الغرب الاعداديه"]
[1500,"محمد عبدالمنعم محمد عبدالمنعم","معلم اول أ","لغة عربية","سماكين الغرب","سماكين الغرب الاعداديه"]
[1501,"محمود محمد إبراهيم بسيوني","معلم اول أ","لغة عربية","سماكين الغرب","سماكين الغرب الاعداديه"]
[1502,"هشام السيد السيد سليمان","معلم اول أ","لغة عربية","الحسينية","سماكين الغرب الاعداديه"]
[1503,"نورة علي محمد أحمد","معلم اول أ","لغة عربية","سماكين الغرب","سماكين الغرب الاعداديه"]
[1504,"ولاء عبدالقادر حسن علي","معلم أول أ","لغة عربية","سماكين الغرب","سماكين الغرب الاعداديه"]
[1505,"عبدالناصرعبدالكريم عبدالله محمد","معلم خبير","انجليزي","سماكين الغرب","سماكين الغرب الاعداديه"]
[1506,"إبراهيم محمد محمد خليل","معلم خبير","انجليزي","سماكين الغرب","سماكين الغرب الاعداديه"]
[1507,"أيمن محمد محمد حسين","معلم اول أ","انجليزي","سماكين الغرب","سماكين الغرب الاعداديه"]
[1508,"عبدالرازق محمد السيد وهبة","كبير معلمين","رياضيات","سماكين الغرب","سماكين الغرب الاعداديه"]
[1509,"رانيا لطفي محمد مصطفي","معلم اول أ","علوم","سماكين الغرب","سماكين الغرب الاعداديه"]
[1510,"حنان علي سالم مبروك","معلم اول أ","علوم","سماكين الغرب","سماكين الغرب الاعداديه"]
[1511,"صلاح محمد أحمد السيد","معلم اول أ","دراسات","سماكين الغرب","سماكين الغرب الاعداديه"]
[1512,"سامية عبدالرحمن محمد عوض","معلم اول أ","دراسات","سماكين الغرب","سماكين الغرب الاعداديه"]
[1513,"أمل محمد الباز احمد","معلم أول أ","دراسات","سماكين الغرب","سماكين الغرب الاعداديه"]
[1514,"سهام ابراهيم حسن محمد ","معلم خبير","مجال زراعي","سماكين الغرب","سماكين الغرب الاعداديه"]
[1515,"انوار السيد حامد علاق‎","معلم اول","مجال زراعي","سماكين الغرب","سماكين الغرب الاعداديه"]
[1516,"عبدالعزيز صلاح الدين محمد محمد ","اجتماعي أول","اجتماعي أول","سماكين الغرب","سماكين الغرب الاعداديه"]
[1517,"أسماء عبدالرحمن إبراهيم عبدالحميد","أ . نفسي أول أ","أ . نفسي","سماكين الغرب","سماكين الغرب الاعداديه"]
[1518,"نها احمد عبدالحميد احمد","أ . نفسي أول أ","اخصائي مكتبة","سماكين الغرب","سماكين الغرب الاعداديه"]
[1519,"السيد علي احمد مرسي","كاتب ثالث","سكرتير ثالث","سماكين الغرب","سماكين الغرب الاعداديه"]
[1520,"رضا عبدالمعطي السيد","كاتب اول","اداري","سماكين الغرب","سماكين الغرب الاعداديه"]
[1521,"ياسر علي عبدالعزيز","مشرف نشاط","مشرف نشاط","سماكين الغرب","سماكين الغرب الاعداديه"]
[1522,"عبدالحميد محمد إبراهيم قريش","فني رابع","فني تشغيل","سماكين الغرب","سماكين الغرب الاعداديه"]
[1523,"صفاء ابراهيم محمد على","معلم اول أ","حاسب الى","شراره الاخيوه","شراره الابتدائيه"]
[1524,"سحر احمد محمود محمد","معلم خبير","معلم فصل","قهبونه الاخيوه","شراره الابتدائيه"]
[1525,"صفيه سليمان محمد على","معلم خبير","اقتصاد منزلى","شراره الاخيوه","شراره الابتدائيه"]
[1526,"سلوى محمد محمد عبدالواحد","معلم خبير","معلم فصل","شراره الاخيوه","شراره الابتدائيه"]
[1527,"رفيده سارى احمد منيع","معلم مساعد","لغه انجليزيه","الحمادين ","شراره الابتدائيه"]
[1528,"اسراء احمد عبدالعزيز عبده عبدالله","معلم مساعد","لغه عربيه","قهبونه","شراره الابتدائيه"]
[1529,"احمد السيد محمد مرشدى","كاتب رابع",null,"قهبونه","شراره الابتدائيه"]
[1530,"رشا اسماعيل ابراهيم على","وسائل تعليميه",null,"شراره الاخيوه","شراره الابتدائيه"]
[1531,"سناء محمد عبدالرحمن محمد","وسائل تعليميه",null,"شراره الاخيوه","شراره الابتدائيه"]
[1532,"عليا عبدالحميد محمد جادالحق","أمين معمل",null,"شراره الاخيوه","شراره الابتدائيه"]
[1533,"السيد الصادق عيسى الشافعى","كبير معلمين","مدير المدرسة","تانيس / صان الحجر","شهداء 6 اكتوبر بتانيس الاعداديه"]
[1534,"اسماعيل عبد اللطيف صابر عيسى","خبير","اللغة العربية ","م بشارة الفولى","شهداء 6 اكتوبر بتانيس الاعداديه"]
[1535,"سلمى محمد عبد الحميد محمد","معلم أول ا","اللغة العربية ","م بشارة الفولى","شهداء 6 اكتوبر بتانيس الاعداديه"]
[1536,"هبه محمد عوض عوض ","معلم أول ا","اللغة العربية ","كوبرى سليم ","شهداء 6 اكتوبر بتانيس الاعداديه"]
[1537,"نها احمد حسن الشبراوي","معلم اول ا","اللغة الانجليزية","صان الحجر","شهداء 6 اكتوبر بتانيس الاعداديه"]
[1538,"عوده رمضان محمد على","معلم اول ا","الدراسات","م بشارة الفولى","شهداء 6 اكتوبر بتانيس الاعداديه"]
[1539,"همت محمد احمد حسن","معلم اول ا","العلوم","قرية الاتحاد","شهداء 6 اكتوبر بتانيس الاعداديه"]
[1540,"ياسر محمد عبد الحق محمود","معلم اول","التربية الرياضية","الحسينية","شهداء 6 اكتوبر بتانيس الاعداديه"]
[1541,"راندا قاسم ابراهيم يوسف","اخصائي مكتبات","لا يوجد","تانيس / صان الحجر","شهداء 6 اكتوبر بتانيس الاعداديه"]
[1542,"عبده منصور عبد الرحمن حسانين","اخصائي اجتماعى أول أ","لا يوجد","تانيس / صان الحجر","شهداء 6 اكتوبر بتانيس الاعداديه"]
[1543,"منال الشحات محمد ابراهيم","اخصائي نفسى","لا يوجد","تانيس / صان الحجر","شهداء 6 اكتوبر بتانيس الاعداديه"]
[1544,"منال التميميى محمد يونس ","امين معمل","لا يوجد","تانيس / صان الحجر","شهداء 6 اكتوبر بتانيس الاعداديه"]
[1545,"عبد الحميد عبد الفتاح عبد الله حامد","فنى وسائل","لا يوجد","م بشارة الفولى","شهداء 6 اكتوبر بتانيس الاعداديه"]
[1546,"سهير محمد عبد المجيد امين ","فنى وسائل","لا يوجد","تانيس / صان الحجر","شهداء 6 اكتوبر بتانيس الاعداديه"]
[1547,"السيد سليمان على محمد","امين مرافق زراعية","لا يوجد","ازولين ","شهداء 6 اكتوبر بتانيس الاعداديه"]
[1548,"على عبد الله على ابو المعاطي","ادارى ","لا يوجد","صان الحجر","شهداء 6 اكتوبر بتانيس الاعداديه"]
[1549,"محمد عبدالله محمد عبدالله","مدير المدرسة","ـ","تانيس ","شهداء 6 أكتوبر الابتدائيه بتانيس"]
[1550,"شعبان عبدالسلام حسن","معلم خبير","رياضيات","كوبرى سليم","شهداء 6 أكتوبر الابتدائيه بتانيس"]
[1551,"أشرف محمد حسن هجرس","معلم أول أ","لغة عربية","المساعيد","شهداء 6 أكتوبر الابتدائيه بتانيس"]
[1552,"عيد السيد عبدالله عمر","معلم خبير","رياضيات","السعدى","شهداء 6 أكتوبر الابتدائيه بتانيس"]
[1553,"عبدالله محمد غريب ","معلم خبير","لغة عربية","الحسينية","شهداء 6 أكتوبر الابتدائيه بتانيس"]
[1554,"عادل محمود حسن","معلم أول أ","رياضيات","الفولى","شهداء 6 أكتوبر الابتدائيه بتانيس"]
[1555,"اسماعيل السيد أحمد","معلم أول أ","لغة عربية","تانيس","شهداء 6 أكتوبر الابتدائيه بتانيس"]
[1556,"أسماء رفعت أحمد","معلم أول أ","لغة عربية","تانيس","شهداء 6 أكتوبر الابتدائيه بتانيس"]
[1557,"أحمد نمر سليمان","معلم أول أ","لغة عربية","الفولى","شهداء 6 أكتوبر الابتدائيه بتانيس"]
[1558,"إساراء عبدالسلام عبدالفتاح","معلم","لغة انجليزية","جزيرة سعود","شهداء 6 أكتوبر الابتدائيه بتانيس"]
[1559,"خلود رشدى البدرى","معلم","لغة انجليزية","السعدى","شهداء 6 أكتوبر الابتدائيه بتانيس"]
[1560,"آية هاشم حامد","معلم","عـلـــوم","كوبرى سليم","شهداء 6 أكتوبر الابتدائيه بتانيس"]
[1561,"حسين محمود محمد","مشرف نشاط","ـ","تانيس","شهداء 6 أكتوبر الابتدائيه بتانيس"]
[1562,"عبده منصور عبدالرحمن","أخصائى إجتماعى","ـ","تانيس","شهداء 6 أكتوبر الابتدائيه بتانيس"]
[1563,"محمد اسماعيل عبدالعزيز","م نشاط","ـ","كبارى شلبى","شهداء 6 أكتوبر الابتدائيه بتانيس"]
[1564,"إيمان منصور محمدى","معلم","حاسب آلى","تانيس","شهداء 6 أكتوبر الابتدائيه بتانيس"]
[1565,"رئيفة عبدالفتاح على","م نشاط","ـ","كوبرى سليم","شهداء 6 أكتوبر الابتدائيه بتانيس"]
[1566,"حنان فرج المندوه","فنى تشغيل","ـ","العزبة البيضاء","شهداء 6 أكتوبر الابتدائيه بتانيس"]
[1567,"فيفيان فهمى عزيز","فنى تشغيل","ـ","كوبرى سليم","شهداء 6 أكتوبر الابتدائيه بتانيس"]
[1568,"شربات عبدالمنعم عبدالمولى","أخصائى نفسى","ـ","كوبرى سليم","شهداء 6 أكتوبر الابتدائيه بتانيس"]
[1569,"رضى الشحات بغدادى","فنى تشغيل","ـ","كوبرى سليم","شهداء 6 أكتوبر الابتدائيه بتانيس"]
[1570,"إنتصار حسين سالم","أمين معمل","ـ","تانيس","شهداء 6 أكتوبر الابتدائيه بتانيس"]
[1571,"فاطمة عطيه السيد","كاتب رابع","ـ","صان الحجر","شهداء 6 أكتوبر الابتدائيه بتانيس"]
[1572,"كامليا صابر ابراهيم","كاتب رابع","ـ","كوبرى سليم","شهداء 6 أكتوبر الابتدائيه بتانيس"]
[1573,"نها عطيه عبدالحليم","كاتب رابع","ـ","العزبة البيضاء","شهداء 6 أكتوبر الابتدائيه بتانيس"]
[1574,"اسماعيل محمود اسماعيل","عامل حرفى","ـ","تانيس","شهداء 6 أكتوبر الابتدائيه بتانيس"]
[1575,"حسام محى الدين محمد فرحات","كبير معلمين","مجال زراعى","كوبرى بحر البقر","طلال معجل الطحاوى للتعليم الاساسى"]
[1576,"نسمه عزت حسن","معلم أول أ","رياضيات","المناجاة","طلال معجل الطحاوى للتعليم الاساسى"]
[1577,"سليمان محمد سليمان","معلم أول أ","دراسات","سعود","طلال معجل الطحاوى للتعليم الاساسى"]
[1578,"صابرين ابراهيم عبدالعال","معلم أول أ","اقتصاد منزلى","المناجاة","طلال معجل الطحاوى للتعليم الاساسى"]
[1579,"منصور محمد غريب","معلم أول ","لغة عربية","سعود","طلال معجل الطحاوى للتعليم الاساسى"]
[1580,"احمد محمد ابراهيم عبدالجليل ","أخصائى اول","اخصائى اجتماعى","المناجاة","طلال معجل الطحاوى للتعليم الاساسى"]
[1581,"ابتسام ممدوح محمد","معلم أول","خط عربى","المناجاة","طلال معجل الطحاوى للتعليم الاساسى"]
[1582,"احمد عاطف صالح","معلم مساعد","لغة عربية","السعدى","طلال معجل الطحاوى للتعليم الاساسى"]
[1583,"احمد وجيه عبدالكريم","معلم مساعد","علوم","الحسينية","طلال معجل الطحاوى للتعليم الاساسى"]
[1584,"امل صلاح عيد سليمان","معلم مساعد","لغة عربية","سعود","طلال معجل الطحاوى للتعليم الاساسى"]
[1585,"عاطف محمد عبدالسلام","كاتب","ادارى","بحر البقر","طلال معجل الطحاوى للتعليم الاساسى"]
[1586,"السيد عبالعال السيد","كاتب","ادارى","المناجاة","طلال معجل الطحاوى للتعليم الاساسى"]
[1587,"محمد حلمى ابراهيم","فنى تشغيل","فنى معمل","المناجاة","طلال معجل الطحاوى للتعليم الاساسى"]
[1588,"ساميه احمد سلامه","فنى تشغيل","مشرف نشاط","المناجاة","طلال معجل الطحاوى للتعليم الاساسى"]
[1589,"ساميه محمد اسماعيل","فنى تشغيل","مشرف نشاط","المناجاة","طلال معجل الطحاوى للتعليم الاساسى"]
[1590,"مرسى محمد سالم","عامل","عامل","الحسينية","طلال معجل الطحاوى للتعليم الاساسى"]
[1591,"إبراهيم محمد مرسي الوصيفي","مدير المدرسة","مدير المدرسة","م . أبو عامر - الحسينية ","عبدالرحمن حسين يوسف قرمد الابتدائيه"]
[1592,"جيهان محمد محمد الشرقاوي ","معلم أول ","لغة عربية","الشرابنة - الحسينية","عبدالرحمن حسين يوسف قرمد الابتدائيه"]
[1593,"رأفت عبدالعظيم سالم عطيه ","معلم أول ","لغة عربية","الحجازية - الحسينية ","عبدالرحمن حسين يوسف قرمد الابتدائيه"]
[1594,"عبدالرحمن إبراهيم الدسوقي عبدالرحمن محمد ","معلم أول أ","لغة عربية","النوايلة - الحسينية","عبدالرحمن حسين يوسف قرمد الابتدائيه"]
[1595,"عبدالرحمن محمد إبراهيم يوسف ","معلم خبير","لغة عربية","ام صوير - الحسينية","عبدالرحمن حسين يوسف قرمد الابتدائيه"]
[1596,"محمد السيد احمد محمد يوسف","معلم خبير","لغة عربية","الحجازية - الحسينية ","عبدالرحمن حسين يوسف قرمد الابتدائيه"]
[1597,"سحر محمد احمد احمد ","معلم ","لغة انجليزية","الحجازية - الحسينية ","عبدالرحمن حسين يوسف قرمد الابتدائيه"]
[1598,"لمياء عبدالودود محمد الصادق ","معلم خبير","رياضيات ","الحجازية - الحسينية ","عبدالرحمن حسين يوسف قرمد الابتدائيه"]
[1599,"عبدالله محمد إسماعيل سيف النصر ","معلم خبير","رياضيات ","ام صوير - الحسينية","عبدالرحمن حسين يوسف قرمد الابتدائيه"]
[1600,"جيهان السيد رأفت طه محمد البنا ","معلم خبير","رياضيات ","ام صوير - الحسينية","عبدالرحمن حسين يوسف قرمد الابتدائيه"]
[1601,"ايمان عبدالفتاح عبدالعزيز حسين","معلم خبير","رياضيات ","ام صوير - الحسينية","عبدالرحمن حسين يوسف قرمد الابتدائيه"]
[1602,"انتصار محمد علي احمد","معلم أول","دراسات اجتماعية","ام عجرم - فاقوس","عبدالرحمن حسين يوسف قرمد الابتدائيه"]
[1603,"سحر حسن إبراهيم عيسى ","أخصائي نفسي أول","أخصائي نفسي أول","ام صوير - الحسينية","عبدالرحمن حسين يوسف قرمد الابتدائيه"]
[1604,"هبه محمد علي نصار ","أخصائي اجتماعي أول ","أخصائي اجتماعي أول ","ام صوير - الحسينية","عبدالرحمن حسين يوسف قرمد الابتدائيه"]
[1605,"حسام عبدالمجيد محمد محمد رفاعي","مشرف نشاط أ","مشرف نشاط أ","ام صوير - الحسينية","عبدالرحمن حسين يوسف قرمد الابتدائيه"]
[1606,"أماني شحاته علي السيد","فني تشغيل وسائل تعليمية ","فني تشغيل وسائل تعليمية ","ام صوير - الحسينية","عبدالرحمن حسين يوسف قرمد الابتدائيه"]
[1607,"جيهان السيد محمد محمد ","فني معمل رابع","فني معمل رابع","الشرابنة - الحسينية","عبدالرحمن حسين يوسف قرمد الابتدائيه"]
[1608,"محمد إبراهيم السيد عبدالرحمن ","كاتب ثالث -سكرتير  ثالث","كاتب ثالث -سكرتير  ثالث","الحجازية - الحسينية ","عبدالرحمن حسين يوسف قرمد الابتدائيه"]
[1609,"عماد محمد عبدالعزيز حسين ","مدير المدرسة ","مدير المدرسة ","ام.صوير _الحسينية ","عبدالرحمن قرمد الاعداديه"]
[1610,"ابراهيم السيد ابراهيم ","مسئول التطوير ","أخصائي  تكنولوجى ","الكسايبه الحسينية ","عبدالرحمن قرمد الاعداديه"]
[1611,"السيد سليمان على حسن ","معلم اول.ا ","عربي ","م.ابوعامر _الحسينية ","عبدالرحمن قرمد الاعداديه"]
[1612,"داليا محمد احمد سيد احمد ","معلم اول.ا ","عربي ","الشرابنة _الحسينية ","عبدالرحمن قرمد الاعداديه"]
[1613,"سالم محمد على محمد ","معلم اول.ا ","E","المساعيد _الحسينية ","عبدالرحمن قرمد الاعداديه"]
[1614,"رحاب حسين محمد محمد ","معلم اول.ا ","علوم ","ام.صوير _الحسينية ","عبدالرحمن قرمد الاعداديه"]
[1615,"فاطمة على عبدالفتاح على ","معلم اول.ا ","حاسب آلي ","الحسينية ","عبدالرحمن قرمد الاعداديه"]
[1616,"دعاء محمد غريب على ","معلم اول.ا ","دراسات ","ام عجر _فاقوس ","عبدالرحمن قرمد الاعداديه"]
[1617,"حسام احمد محمد زاهر ","أخصائي نفسي ","أخصائي نفسي ","ام.صوير _الحسينية ","عبدالرحمن قرمد الاعداديه"]
[1618,"فاطمة محمد محمود محمد ","معلم اول.ا ","رياض أطفال ","الغرقدة_الحسينية","عبدالرحمن قرمد الاعداديه"]
[1619,"لوزه محمودى محمد عوض ","معلم اول ","اقتصاد","الحجازية ","عبدالرحمن قرمد الاعداديه"]
[1620,"اسلام  عبدالعال حسن رزق ","فنى معمل ثالث ","امين معمل ","الحجازية _الحسينية ","عبدالرحمن قرمد الاعداديه"]
[1621,"سماح حسن السيد محمد السيد ","مشرف نشاط ","مشرف نشاط ","ام.صوير _الحسينية ","عبدالرحمن قرمد الاعداديه"]
[1622,"امانى محمد صالح سلامه ","فنى تشغيل وسائل تعليمة ","فنى وسائل ","الحجازية _الحسينية ","عبدالرحمن قرمد الاعداديه"]
[1623,"عوده خميس محمد خميس ","كاتب خامس ","ادارى","المساعيد _الحسينية ","عبدالرحمن قرمد الاعداديه"]
[1624,"حليمه عبده ابراهيم محمد ","كاتب رابع ","اداري ","الحجازية _الحسينية ","عبدالرحمن قرمد الاعداديه"]
[1625,"أشرف حسام الدين السيد محمد ","كاتب رابع ","اداري ","الزمامته_الحسينية","عبدالرحمن قرمد الاعداديه"]
[1626,"عبدالخالق عبدالمنعم وهيدى الشرقاوى","مدير مدرسة","مدير مدرسة","الحسينية","عبدالسلام عطوان الاعداديه بنين رقم1"]
[1627,"على محمد على السيد","معلم اول أ","اللغه العربية","الحسينية","عبدالسلام عطوان الاعداديه بنين رقم1"]
[1628,"هبه عبدالمنعم احمد","معلم اول أ","اللغه العربية","الحسينية","عبدالسلام عطوان الاعداديه بنين رقم1"]
[1629,"رحاب محمد محمود","معلم اول أ","اللغه العربية","الحسينية","عبدالسلام عطوان الاعداديه بنين رقم1"]
[1630,"محمد اسماعيل احمد السيد","معلم اول أ","اللغة الانجليزية","الحسينية","عبدالسلام عطوان الاعداديه بنين رقم1"]
[1631,"هانى ابراهيم بندارى احمد","معلم اول أ","اللغة الانجليزية","الحسينية","عبدالسلام عطوان الاعداديه بنين رقم1"]
[1632,"لمياء شكرى باز حسين","معلم اول أ","اللغة الانجليزية","الحسينية","عبدالسلام عطوان الاعداديه بنين رقم1"]
[1633,"غاده احمد محمد على","معلم اول أ","الدراسات","الحسينية","عبدالسلام عطوان الاعداديه بنين رقم1"]
[1634,"اميمه عبداللطيف محمود ابراهيم","معلم اول أ","الدراسات","الحسينية","عبدالسلام عطوان الاعداديه بنين رقم1"]
[1635,"سهام محمود صالح جلهوم","معلم اول أ","الدراسات","الحسينية","عبدالسلام عطوان الاعداديه بنين رقم1"]
[1636,"رأفت عبدالرازق محمد خليل","معلم خبير ","الرياضيات","الحسينية","عبدالسلام عطوان الاعداديه بنين رقم1"]
[1637,"عصام عزمى فؤاد عبدالله","معلم اول","الرياضيات","الحسينية","عبدالسلام عطوان الاعداديه بنين رقم1"]
[1638,"ياسر محمد احمد عوض","معلم اول أ ","العلوم","الحسينية","عبدالسلام عطوان الاعداديه بنين رقم1"]
[1639,"امانى على محمود محمد","معلم اول أ ","العلوم","الحسينية","عبدالسلام عطوان الاعداديه بنين رقم1"]
[1640,"عبدالحليم محمد على امام","معلم اول أ","الحاسب الالى","الحسينية","عبدالسلام عطوان الاعداديه بنين رقم1"]
[1641,"مياده عبدالاله جابر يونس","معلم اول","الحاسب الالى","الحسينية","عبدالسلام عطوان الاعداديه بنين رقم1"]
[1642,"احمد صبرى عبدالفتاح على","معلم اول أ ","التربية الرياضية","الحسينية","عبدالسلام عطوان الاعداديه بنين رقم1"]
[1643,"نهى عبدالمعطى عبدالعال محمد","معلم اول أ","التربية الموسيقية","الحسينية","عبدالسلام عطوان الاعداديه بنين رقم1"]
[1644,"ثابت حسين حسين جلهوم","اخصائى أول اجتماعى","التربية الاجتماعية","الحسينية","عبدالسلام عطوان الاعداديه بنين رقم1"]
[1645,"وسام عبدالرحمن على احمد","اخصائى أول اجتماعى","التربية الاجتماعية","الحسينية","عبدالسلام عطوان الاعداديه بنين رقم1"]
[1646,"عطيات عوض عبدالمجيد عطيه","مشرف نشاط","مشرف نشاط","الحسينية","عبدالسلام عطوان الاعداديه بنين رقم1"]
[1647,"غادة عبدالرحمن محمد السيد","فنى تشغيل ","فنى تشغيل","الحسينية","عبدالسلام عطوان الاعداديه بنين رقم1"]
[1648,"شيماء محمد امين عبدالرحمن","فنى تشغيل ","فنى تشغيل","الحسينية","عبدالسلام عطوان الاعداديه بنين رقم1"]
[1649,"ليلى بشارة كيرلس بربرى","فنى تشغيل ","فنى تشغيل","الحسينية","عبدالسلام عطوان الاعداديه بنين رقم1"]
[1650,"فاطمه محمد السيد سيداحمد","فنى تشغيل ","فنى تشغيل","الحسينية","عبدالسلام عطوان الاعداديه بنين رقم1"]
[1651,"اعتماد عبدالعظيم احمد على","كاتب اول","سكرتير","الحسينية","عبدالسلام عطوان الاعداديه بنين رقم1"]
[1652,"غادة عبدالحميد شوقي عبدالحميد","مديرة المدرسة","لغة انجليزية","الحسينية","عبدالسلام عطوان الاعداديه بنين رقم2"]
[1653,"سامية حسن ابراهيم","وكيلة المدرسة","تربية اجتماعية","الحسينية","عبدالسلام عطوان الاعداديه بنين رقم2"]
[1654,"لطفي حلمي جاد","وكيل المدرسة","لغة عربية","الحسينية","عبدالسلام عطوان الاعداديه بنين رقم2"]
[1655,"صالح محمود ابراهيم","كبير معلمين","لغة عربية","الحسينية","عبدالسلام عطوان الاعداديه بنين رقم2"]
[1656,"ماهر عبدالله سليم","معلم أول","لغة عربية","الحسينية","عبدالسلام عطوان الاعداديه بنين رقم2"]
[1657,"علاء السيد حسن محمد","كبير معلمين","لغة انجليزية","الحسينية","عبدالسلام عطوان الاعداديه بنين رقم2"]
[1658,"سلوى محمد محمود","معلم خبير","دراسات","الحسينية","عبدالسلام عطوان الاعداديه بنين رقم2"]
[1659,"ماجد مكرم فرج","كبير معلمين","علوم","الحسينية","عبدالسلام عطوان الاعداديه بنين رقم2"]
[1660,"اميرة سراج الدين محمد","معلم اول أ","تربية فنية","الحسينية","عبدالسلام عطوان الاعداديه بنين رقم2"]
[1661,"رحيمة عمر عبدربه","معلم اول ","تربية فنية","الحسينية","عبدالسلام عطوان الاعداديه بنين رقم2"]
[1662,"حافظة ابراهيم حسن","معلم اول أ","حاسب آلي","الحسينية","عبدالسلام عطوان الاعداديه بنين رقم2"]
[1663,"احمد بهاء الدين سالم","معلم اول ","حاسب آلي","الحسينية","عبدالسلام عطوان الاعداديه بنين رقم2"]
[1664,"نجوى عزت ابراهيم","معلم اول أ","تربية موسيقية","الحسينية","عبدالسلام عطوان الاعداديه بنين رقم2"]
[1665,"رانيا يحيى محمد عاطف","اخصائي أول تطوير","تطوير","الحسينية","عبدالسلام عطوان الاعداديه بنين رقم2"]
[1666,"يحيى السيد ابراهيم شاهين","معلم خبير","تربية رياضية","الحسينية","عبدالسلام عطوان الاعداديه بنين رقم2"]
[1667,"محمد محمد عبدالعزيز","اخصائي اول اجتماعي","اخصائي اجتماعي","الحسينية","عبدالسلام عطوان الاعداديه بنين رقم2"]
[1668,"ماجدة حسن ابراهيم","اخصائي خبير صحافة","صحافة","الحسينية","عبدالسلام عطوان الاعداديه بنين رقم2"]
[1669,"سعاد سليمان عبدالرحمن","معلم خبير","تربية زراعية","الحسينية","عبدالسلام عطوان الاعداديه بنين رقم2"]
[1670,"عادل علي محمود","معلم خبير","تربية زراعية","الظواهرية","عبدالسلام عطوان الاعداديه بنين رقم2"]
[1671,"عريفة محمد حسن","مشرف نشاط","مشرف نشاط","الحسينية","عبدالسلام عطوان الاعداديه بنين رقم2"]
[1672,"لمياء مختار رمضان","امين معمل","امين معمل","الحسينية","عبدالسلام عطوان الاعداديه بنين رقم2"]
[1673,"الين عبدالباقي فهمي","كاتب اول","كاتب اول","الحسينية","عبدالسلام عطوان الاعداديه بنين رقم2"]
[1674,"اماني محمد احمد خليل","فني تشغيل","فني تشغيل","الحسينية","عبدالسلام عطوان الاعداديه بنين رقم2"]
[1675,"فاضل طلبه حسن ","مدير",null,"منشاه راغب","عبدالكريم منصور الابتدائيه "]
[1676," اشرف الشبراوى محمد ","معلم خبير ","لغه عربيه","مساكين الغرب","عبدالكريم منصور الابتدائيه "]
[1677,"منال عبدالرحمن منصور","معلم خبير ","لغه عربيه","منشاه خليل","عبدالكريم منصور الابتدائيه "]
[1678,"عبدالحميد احمد محمد ","معلم خبير ","لغه عربيه ","منشاه راغب ","عبدالكريم منصور الابتدائيه "]
[1679,"محمد شحاته عياده ","معلم خبير ","رياضيات","منشاه راغب ","عبدالكريم منصور الابتدائيه "]
[1680,"ثروت محمد عبدالرحمن ","معلم خبير ","م زراعه","منشاه راغب","عبدالكريم منصور الابتدائيه "]
[1681,"محمد على عبدالرحمن","معلم خبير ","لغه عربيه","منشاه راغب ","عبدالكريم منصور الابتدائيه "]
[1682,"ناديه عبدالقادر حسن","معلم خبير ","لغه عربيه","منشاه راغب","عبدالكريم منصور الابتدائيه "]
[1683,"منال عبدالقادر حسن ","معلم اول أ","لغه عربيه ","منشاه خليل ","عبدالكريم منصور الابتدائيه "]
[1684,"هشام عبدالستار احمد ","معلم اول ","لغه عربيه","منشاه راغب","عبدالكريم منصور الابتدائيه "]
[1685,"نهال ناشد عبدالسلام ","معلم مساعد ","رياضه اطفال","منشاه خليل ","عبدالكريم منصور الابتدائيه "]
[1686," ايه عبدالنبي على ","معلم مساعد ","لغه انجليزيه","الحمادين ","عبدالكريم منصور الابتدائيه "]
[1687,"زينب عمر احمد ","اخصائيه اجتماعيه ",null,"قهبونه","عبدالكريم منصور الابتدائيه "]
[1688,"محمد عطيه محمود ","مشرف نشاط",null,"منشاه خليل ","عبدالكريم منصور الابتدائيه "]
[1689,"نعمه محمود محمد ","مشرف نشاط ",null,"منشاه راغب","عبدالكريم منصور الابتدائيه "]
[1690,"هشام عبدالقادر على ","مشرف نشاط ",null,"منشاه راغب","عبدالكريم منصور الابتدائيه "]
[1691,"حنان عبدالقادر على ","مشرف نشاط",null,"منشاه خليل ","عبدالكريم منصور الابتدائيه "]
[1692,"ورد متولى حسن","مشرف نشاط ",null,"منشاه خليل ","عبدالكريم منصور الابتدائيه "]
[1693,"عفاف عبدالكريم منصور","مشرف نشاط ",null,"منشاه خليل ","عبدالكريم منصور الابتدائيه "]
[1694,"وفاء الشبراوى محمد ","مشرف نشاط ",null,"منشاه راغب","عبدالكريم منصور الابتدائيه "]
[1695,"منال يحيي محمود ","إدارى ",null,"منشاه راغب ","عبدالكريم منصور الابتدائيه "]
[1696,"غاده محمد عبدالله ","إدارى ",null,"منشاه خليل ","عبدالكريم منصور الابتدائيه "]
[1697,"هناء السيد محمد ","إدارى ",null,"منشاه راغب","عبدالكريم منصور الابتدائيه "]
[1698,"سعد موسى عبدالعال","إدارى ",null,"منشاه راغب","عبدالكريم منصور الابتدائيه "]
[1699,"كمال عبدالغنى حامد ","عامل ",null,"منشاه خليل ","عبدالكريم منصور الابتدائيه "]
[1700,"السيد محيسن عبدالله ","عامل",null,"منشاه راغب","عبدالكريم منصور الابتدائيه "]
[1701,"السيد حسن عبده أحمد ","معلم أول ا (مدير مكلف)  ","لغة عربية ","أبو شميس /سعود /الحسينية ","عبدالهادي عمارة للتعليم الاساسى"]
[1702,"نزيهة سليمان إسماعيل إبراهيم ","وكيل متفرغ ","لغة إنجليزية ","أبو شميس /سعود /الحسينية ","عبدالهادي عمارة للتعليم الاساسى"]
[1703,"فرج حسن عبدالحميد حسن ","معلم أول أ","لغة عربية ","أبو شميس /سعود /الحسينية ","عبدالهادي عمارة للتعليم الاساسى"]
[1704,"محمد الديداموني باز ","معلم أول ","معلم فصل ","أبو شميس /سعود /الحسينية ","عبدالهادي عمارة للتعليم الاساسى"]
[1705,"أبو المجد سلامة أبو المجد مبارك ","معلم أول ","رياضيات ","أبو شميس /سعود /الحسينية ","عبدالهادي عمارة للتعليم الاساسى"]
[1706,"فاطمة محمد عبدالفتاح","معلم أول ","رياضيات","الحسينية _ شرقية ","عبدالهادي عمارة للتعليم الاساسى"]
[1707,"علي عبدالحميد عبدالرحمن عبدالعال ","معلم أول أ","حاسب آلي ","أبو شميس /سعود /الحسينية ","عبدالهادي عمارة للتعليم الاساسى"]
[1708,"سمير باز السيد عبدالجليل ","معلم أول ","حاسب آلي ","أبو شميس /سعود /الحسينية ","عبدالهادي عمارة للتعليم الاساسى"]
[1709,"لبنى عبدالعظيم شحاتة عبدالعال","معلم أول أ","علوم","أبو شميس /سعود /الحسينية ","عبدالهادي عمارة للتعليم الاساسى"]
[1710,"نوسة حمودة إبراهيم ","خ مكتبات أول ا","مكتبات ","سعود /الحسينية ","عبدالهادي عمارة للتعليم الاساسى"]
[1711,"إبمان عبدالرحيم عبدالعال","خ نفسي أول ا","خ نفسي ","أبو شميس /سعود /الحسينية ","عبدالهادي عمارة للتعليم الاساسى"]
[1712,"ريحاب محمد موسى علون ","أمين معمل ","أمين معمل ","أبو شميس /سعود /الحسينية ","عبدالهادي عمارة للتعليم الاساسى"]
[1713,"فاتن حنضل محمد عامر ","أمين معمل ","أمين معمل ","أبو شميس /سعود /الحسينية ","عبدالهادي عمارة للتعليم الاساسى"]
[1714,"نجلاء محمود إبراهيم ","فني تشغيل ","فني تشغيل ","سعود /الحسينية ","عبدالهادي عمارة للتعليم الاساسى"]
[1715,"عايدة عطية محمد عبدالرازق ","فني تشغيل ","فني تشغيل ","أبو شميس /سعود /الحسينية ","عبدالهادي عمارة للتعليم الاساسى"]
[1716,"رزق عبدالحميد عبدالهادي ايوب","م نشاط","م نشاط","أبو شميس /سعود /الحسينية ","عبدالهادي عمارة للتعليم الاساسى"]
[1717,"ممدوح ابراهيم كمال الدين","م نشاط","م نشاط","أبو شميس /سعود /الحسينية ","عبدالهادي عمارة للتعليم الاساسى"]
[1718,"محمد عبد الحي محمد محمد","مدير المدرسة","ت اجتماعية","قرية  1 بحر البقر ","عثمان بن عفان الاعداديه"]
[1719,"إبراهيم محمد إبراهيم محمد","معلم خبير ","مجال زراعي","بندر الحسينية","عثمان بن عفان الاعداديه"]
[1720,"اسامه محمد جاد احمد","معلم أول ","رياضيات","قرية 11 بحر البقر ","عثمان بن عفان الاعداديه"]
[1721,"أسامه عبدا لرحمن محمود سعد","معلم أول  ","علوم","قرية 1 بحر البقر ","عثمان بن عفان الاعداديه"]
[1722,"احمد عبد الفتاح عبا س ابراهيم","معلم أول  ","حاسب آلي","قرية 1 بحر البقر ","عثمان بن عفان الاعداديه"]
[1723,"سميرة محمد احمد حسن","فني تشغيل","فني تشغيل","قرية 3 بحر البقر ","عثمان بن عفان الاعداديه"]
[1724,"اسماعيل محمود عثمان صالح","كاتب رابع","إداري","قرية 3 بحرالبقر","عثمان بن عفان الاعداديه"]
[1725,"عزيزة شحاتة عبد الرحمن حسن","كاتب رابع","إداري","قرية 2 بحر البقر ","عثمان بن عفان الاعداديه"]
[1726,"أمانى محمد السيد فراج","معلم  ا ا","لغة عربية","الحمر الضواهرية","على المفتى للتعليم الاساسى"]
[1727,"السيد على عبد الدايم مبارك","معلم ا ا","دراسات","الحمر الضواهرية","على المفتى للتعليم الاساسى"]
[1728,"أحمد نجيب محمد محمود","معلم ا ا","ت رياضية"," الضواهرية","على المفتى للتعليم الاساسى"]
[1729,"أحمد قطب ابراهيم فرحان","معلم ا ا","مكتبة"," الضواهرية","على المفتى للتعليم الاساسى"]
[1730,"حمدى فوزى قطب حسن","فنى تشغيل","وسائل","الحمر الضواهرية","على المفتى للتعليم الاساسى"]
[1731,"منى حامد محمد على","معلم خبير","اقتصاد","الحمر الضواهرية","على المفتى للتعليم الاساسى"]
[1732,"أحلام على السيد حسين","معلم ا ا","انجليزية","الحمر الضواهرية","على المفتى للتعليم الاساسى"]
[1733,"حنان على احمد احمد","اخصائى صحافة","صحافة","الحمر الضواهرية","على المفتى للتعليم الاساسى"]
[1734,"هدى اسماعيل حسن مصطفى","اخصائى نفسى","نفسى","الحمر الضواهرية","على المفتى للتعليم الاساسى"]
[1735,"هناء عبد السلام صالح رزق ","امين معمل","معمل","عليوة","على المفتى للتعليم الاساسى"]
[1736,"رضا سلامة عيد سلامة","فنى تشغيل","وسائل","الحمر الضواهرية","على المفتى للتعليم الاساسى"]
[1737,"نورة محمد الشافعى ابراهيم","امين معمل","معمل","الحمر الضواهرية","على المفتى للتعليم الاساسى"]
[1738,"حسين حسن ابراهيم حسن","ادارى","سكرتير","الحمر الضواهرية","على المفتى للتعليم الاساسى"]
[1739,"حسن ياسين اسماعيل ياسين ","معلم خبير","م فصل","الضواهرية","على المفتى للتعليم الاساسى"]
[1740,"عبد الرحمن صابر عبد الدايم مبارك ","معلم خبير","م فصل","الحمر الضواهرية","على المفتى للتعليم الاساسى"]
[1741,"محمد أحمد محمد منصور ","معلم خبير","م فصل","الحمر الضواهرية","على المفتى للتعليم الاساسى"]
[1742,"كامل نصر محمد يونس ","معلم خبير","م فصل","عليوة","على المفتى للتعليم الاساسى"]
[1743,"رانيا فهمى ابو المعاطى على","معلم ا ا","م فصل","الحمر الضواهرية","على المفتى للتعليم الاساسى"]
[1744,"محمد سليم عثمان على","م نشاط","وسائل","عليوة","على المفتى للتعليم الاساسى"]
[1745,"السيد خليل على خليل ","معلم خبير","معلم فصل","3 الصالحية ","على بن ابي طالب الابتدائيه"]
[1746,"مرفت محمد أمين امين","معلم خبير","معلم فصل","3 الصالحية ","على بن ابي طالب الابتدائيه"]
[1747,"فايزة سليمان على سليمان","معلم خبير","معلم فصل","3 الصالحية ","على بن ابي طالب الابتدائيه"]
[1748,"السيد يوسف احمد محمد عباس","معلم خبير","معلم فصل","3 الصالحية ","على بن ابي طالب الابتدائيه"]
[1749,"عادل عبدالقادر عبدالحميد ادريس","كبير معلمين","معلم فصل","واحد الصالحية","على بن ابي طالب الابتدائيه"]
[1750,"إيهاب شحاتة بيومي محمد","معلم أول ا","انجليزي","واحد الصالحية","على بن ابي طالب الابتدائيه"]
[1751,"نهله إبراهيم عبد الرحمن وائل ","معلم أول ا","انجليزي","3 الصالحية ","على بن ابي طالب الابتدائيه"]
[1752,"السيد حسن محمد ابراهيم","معلم","رياضيات","3 الصالحية ","على بن ابي طالب الابتدائيه"]
[1753,"عزت احمد السيد ابراهيم","معلم أول ","معلم فصل","3 الصالحية ","على بن ابي طالب الابتدائيه"]
[1754,"احمد احمد موسي عامر","معلم أول ","دراسات","واحد الصالحية","على بن ابي طالب الابتدائيه"]
[1755,"احمد سليمان محمد على ","معلم أول ","معلم فصل","واحد الصالحية","على بن ابي طالب الابتدائيه"]
[1756,"إبراهيم محمد صديق عوض ","معلم أول ","عربي","القصاصين","على بن ابي طالب الابتدائيه"]
[1757,"كريمه على عبدالبديع محمد","معلم أول ","عربي","واحد الصالحية","على بن ابي طالب الابتدائيه"]
[1758,"حسنة على عبد الفتاح على","أخصائي أول ا","ـــــــــــــــــ","3 الصالحية ","على بن ابي طالب الابتدائيه"]
[1759,"ابتسام الاحمدى طه على","امين معمل","ـــــــــــــــــ","واحد الصالحية","على بن ابي طالب الابتدائيه"]
[1760,"تامر عبدالحى محمد محمد","فني تشغيل","ـــــــــــــــــ","واحد الصالحية","على بن ابي طالب الابتدائيه"]
[1761,"رضا السيد محمد متولى","فني تشغيل","ـــــــــــــــــ","3 الصالحية ","على بن ابي طالب الابتدائيه"]
[1762,"ام الخير السيد سعيد عبد الحميد","أخصائي أول ","ـــــــــــــــــ","7 الصالحية","على بن ابي طالب الابتدائيه"]
[1763,"طارق محمد عبدالرحمن ابراهيم","فني تشغيل","ـــــــــــــــــ","واحد الصالحية","على بن ابي طالب الابتدائيه"]
[1764,"عزه محمد محمد السيد سالم","فني تشغيل","ـــــــــــــــــ","3 الصالحية ","على بن ابي طالب الابتدائيه"]
[1765,"وفاء محمد على محمد","فني تشغيل","ـــــــــــــــــ","3 الصالحية ","على بن ابي طالب الابتدائيه"]
[1766,"رضا محمد عبد القادر خالد","كاتب رابع","ـــــــــــــــــ","3 الصالحية ","على بن ابي طالب الابتدائيه"]
[1767,"عزت خضر على عياد","كاتب رابع","ـــــــــــــــــ","3 الصالحية ","على بن ابي طالب الابتدائيه"]
[1768,"محمد محمد عبد العال محمد","معلم خبير","عربي","القصاصين","على جبر الابتدائيه"]
[1769,"على حسيني محمد ابراهيم ","معلم خبير","رياضيات","الاخيوه","على جبر الابتدائيه"]
[1770,"على محمد حسين سيد احمد ","معلم خبير","عربي","الجمالية","على جبر الابتدائيه"]
[1771,"رشا الشحات محمد موسى ","كاتب رابع","ـــــــــــــ","واحد بحر البقر","على جبر الابتدائيه"]
[1772,"خالد سالم خضر محمد","فني تشغيل","ـــــــــــــ","3 الصالحية ","على جبر الابتدائيه"]
[1773,"نهال عبد الحميد محمد محمد ","معلم مساعد","انجليزي","م الكبرى","على جبر الابتدائيه"]
[1774,"محمد حسن محمد سلامة","اداري","ـــــــــــــ","برد","على جبر الابتدائيه"]
[1775,"محمد حسن علي سليم","معلم خبير","لغة عربية","قصاصين الشرق - الحسينية ","على بن ابي طالب الاعداديه"]
[1776,"ابراهيم محمد محمد مصطفى","معلم خبير","لغة عربية"," 3الصالحية - الحسينية - شرقية","على بن ابي طالب الاعداديه"]
[1777,"علي سليمان جمعه سليمان","معلم أول أ","لغة عربية","المناجاة الكبرى - الحسينية ","على بن ابي طالب الاعداديه"]
[1778,"اعتزاز احمد عبدالعاطي حفناوي","معلم أول أ","علوم"," 7الصالحية - الحسينية - شرقية","على بن ابي طالب الاعداديه"]
[1779,"محمود احمد السيد عثمان","معلم أول أ","دراسات اجتماعية","1بحر البقر - الحسينية","على بن ابي طالب الاعداديه"]
[1780,"هدى إسماعيل مصطفى امام","معلم اول أ","دراسات اجتماعية","المناجاة الكبرى - الحسينية ","على بن ابي طالب الاعداديه"]
[1781,"ايمن السيد احمد مصطفى","معلم أول","لغة انجليزية","الحسينية - شرقية","على بن ابي طالب الاعداديه"]
[1782,"حمادة كرم محمد ابو العلا","معلم أول","رياضيات"," 3الصالحية - الحسينية - شرقية","على بن ابي طالب الاعداديه"]
[1783,"ايمان عبدالله السيد محمد حسين","أخصائي أول","اخصائي اجتماعي"," 3الصالحية - الحسينية - شرقية","على بن ابي طالب الاعداديه"]
[1784,"ثابت انور احمد محمد","مشرف نشاط أول أ","مشرف نشاط"," 3الصالحية - الحسينية - شرقية","على بن ابي طالب الاعداديه"]
[1785,"رشا كمال عبد المنعم محمد","مشرف نشاط خدمات الرابعه أ","مشرف نشاط"," 3الصالحية - الحسينية - شرقية","على بن ابي طالب الاعداديه"]
[1786,"عبدالواحد احمد محمد احمد","فني تشغيل رابع أ","فني تشغيل رابع أ"," 3الصالحية - الحسينية - شرقية","على بن ابي طالب الاعداديه"]
[1787,"وائل عبد الملاك محمد حسن ","فني تشغيل رابع أ","فني تشغيل رابع أ"," 3الصالحية - الحسينية - شرقية","على بن ابي طالب الاعداديه"]
[1788,"امل محمود احمد علي","فني تشغيل رابع أ","فني تشغيل رابع أ"," 3الصالحية - الحسينية - شرقية","على بن ابي طالب الاعداديه"]
[1789,"مي عبد العظيم محمد احمد","فني تشغيل رابع أ","فني تشغيل رابع أ"," 3الصالحية - الحسينية - شرقية","على بن ابي طالب الاعداديه"]
[1790,"هبه عبده عبد الرحمن عبد ربه","فني تشغيل رابع أ","فني تشغيل رابع أ"," 3الصالحية - الحسينية - شرقية","على بن ابي طالب الاعداديه"]
[1791,"نسرين فرج عبدالحميد عبدالمقصود","أمين معمل رابع أ","امين معمل"," 3الصالحية - الحسينية - شرقية","على بن ابي طالب الاعداديه"]
[1792,"سماح السيد علي محمد","كاتب رابع أ","اداري","سعود - الحسينية - شرقية","على بن ابي طالب الاعداديه"]
[1793,"رشا احمد السيد محمد","كاتب رابع أ","اداري","واحد  بحر البقر - الحسينية ","على بن ابي طالب الاعداديه"]
[1794,"محمد عبدالعال عبدالفتاح علي","كاتب رابع أ","اداري "," 3الصالحية - الحسينية - شرقية","على بن ابي طالب الاعداديه"]
[1795,"ابراهيم عبدالجواد جاد جاد","مدير المدرسة","ــــــ","الحسينية - الشرقية","فصول ملحقة بمدرسة ابراهيم لبن الابتدائية - ع"]
[1796,"القذافى السيد على حسين","وكيل المدرسة","ــــــ","الحسينية - الشرقية","فصول ملحقة بمدرسة ابراهيم لبن الابتدائية - ع"]
[1797,"مديحة صالح محمد امام","معلم اول أ","لغة عربية","الحسينية - الشرقية","فصول ملحقة بمدرسة ابراهيم لبن الابتدائية - ع"]
[1798,"بشرى محمد محمود امين","معلم اول أ","لغة انجليزية","الحسينية - الشرقية","فصول ملحقة بمدرسة ابراهيم لبن الابتدائية - ع"]
[1799,"رغدا ثروت محمد علي","معلم اول  ","لغة انجليزية","الحسينية - الشرقية","فصول ملحقة بمدرسة ابراهيم لبن الابتدائية - ع"]
[1800,"فايزة احمد محمد احمد","معلم اول  ","رياضيات","الحسينية - الشرقية","فصول ملحقة بمدرسة ابراهيم لبن الابتدائية - ع"]
[1801,"لمياء احمد محمد قهوة","معلم اول أ","علوم","الحسينية - الشرقية","فصول ملحقة بمدرسة ابراهيم لبن الابتدائية - ع"]
[1802,"مها عبدالعظيم محمد سلمي","معلم اول أ","دراسات","الحسينية - الشرقية","فصول ملحقة بمدرسة ابراهيم لبن الابتدائية - ع"]
[1803,"محمد السيد على داؤد","معلم اول  ","تربية رياضية","الحسينية - الشرقية","فصول ملحقة بمدرسة ابراهيم لبن الابتدائية - ع"]
[1804,"صفاء محمد الشبراوى متولى","معلم اول أ","تربية فنية","الحسينية - الشرقية","فصول ملحقة بمدرسة ابراهيم لبن الابتدائية - ع"]
[1805,"عادل صبحي جاد محمد","معلم اول أ","تربية زراعية","الحسينية - الشرقية","فصول ملحقة بمدرسة ابراهيم لبن الابتدائية - ع"]
[1806,"عادل عبدالهادى اسماعيل احمد","فنى معمل","ــــــ","الحسينية - الشرقية","فصول ملحقة بمدرسة ابراهيم لبن الابتدائية - ع"]
[1807,"هانم عبدالمنعم عبدالله علي","ادارى","ــــــ","الحسينية - الشرقية","فصول ملحقة بمدرسة ابراهيم لبن الابتدائية - ع"]
[1808,"رمضان صالح عبدالرحمن عبداللطيف","مدير المدرسة","لغة عربية","قرية 3 بحر البقر ","قرية 4 بحر البقر الاعداديه"]
[1809,"امال عبدالحميد احمد محمد","معلم أول أ","لغة عربية","قرية 4 بحر البقر ","قرية 4 بحر البقر الاعداديه"]
[1810,"حسين حسن على حسن","معلم أول أ","دراسات اجتماعية","قرية 1 بحر البقر ","قرية 4 بحر البقر الاعداديه"]
[1811,"ايمن صالح محمد ابوزيد","معلم أول  ","لغة انجليزية","قرية 4 بحر البقر ","قرية 4 بحر البقر الاعداديه"]
[1812,"محمد عوض محمد محمد","معلم أول  ","رياضيات","قرية 2 بحر البقر ","قرية 4 بحر البقر الاعداديه"]
[1813,"هانى عبدالحليم محمد متولى","معلم أول  ","حاسب آلي","قرية 3 بحر البقر ","قرية 4 بحر البقر الاعداديه"]
[1814,"عبدالستار سليمان محمد شحاته","فنى معمل","فنى معمل","قرية 6 بحرالبقر","قرية 4 بحر البقر الاعداديه"]
[1815,"عطوه سعد عبدالرحمن محمد","فنى معمل","فنى معمل","قرية 4 بحر البقر ","قرية 4 بحر البقر الاعداديه"]
[1816,"عبدالصبور محمد على محمد","كاتب ثالث","إداري","قرية 2 بحر البقر ","قرية 4 بحر البقر الاعداديه"]
[1817,"عبدالرازق الشبراوى عبدالسميع السيد","كاتب ثالث","إداري","قرية 4 بحر البقر ","قرية 4 بحر البقر الاعداديه"]
[1818,"فاتن محمد عبدالعاطي ","معلم اول أ","لغة عربية ","4بحر البقر ","قرية 4بحر البقر الابتدائيه"]
[1819,"هدي محمد محمد علي ","معلم اول أ","لغة عربية ","4بحر البقر ","قرية 4بحر البقر الابتدائيه"]
[1820,"ياسر السيد عبدالسميع ","معلم اول ","رياضيات ","4بحر البقر ","قرية 4بحر البقر الابتدائيه"]
[1821,"ابراهيم كمال منصور ","معلم اول ","رياضيات ","4بحر البقر ","قرية 4بحر البقر الابتدائيه"]
[1822,"السيد محمد عبدالسميع ","معلم اول ","رياضيات ","4بحر البقر ","قرية 4بحر البقر الابتدائيه"]
[1823,"حسين احمد علي عبدالعال","مدير مدرسة","تربية زراعية","قصاصين الشرق","قصاصين الشرق الإعداديه"]
[1824,"السيد محمد احمد سالم على","أخصائى اجتماعى خبير","أخصائى نفسى ","الحسينية","قصاصين الشرق الإعداديه"]
[1825,"انجي رضوان علي ابوالليل","معلم أول أ","أخصائى اجتماعى ","الاخيوة","قصاصين الشرق الإعداديه"]
[1826,"حسن سيداحمد احمد السيد","معلم خبير","حاسب الي","قصاصين الشرق","قصاصين الشرق الإعداديه"]
[1827,"حنان محمد عبدالسلام سيداحمد","كاتب اول- سكرتير اول","اقتصاد منزلي","قصاصين الشرق","قصاصين الشرق الإعداديه"]
[1828,"رانيا عبدالخالق عثمان على موسى","أخصائى اجتماعى أول","سكرتير","قصاصين الشرق","قصاصين الشرق الإعداديه"]
[1829,"رضا موسى علي موسى","معلم أول أ","أخصائى اجتماعى ","قصاصين الشرق","قصاصين الشرق الإعداديه"]
[1830,"سعاد محمد عبدالدايم عبدالدايم","كبير معلمين"," علوم","قصاصين الشرق","قصاصين الشرق الإعداديه"]
[1831,"سعدية محمد ابراهيم عبدالواحد","معلم أول","علوم","العساكرة","قصاصين الشرق الإعداديه"]
[1832,"صلاح صالح مرسى عويس","أخصائى صحافة واعلام أول","اخصائي صحافة","قصاصين الشرق","قصاصين الشرق الإعداديه"]
[1833,"عبدالعزيز محمد ابراهيم احمد","معلم أول أ","لغة عربية","العساكرة","قصاصين الشرق الإعداديه"]
[1834,"عبدالعزيز محمود محمد محمد اسماعيل","أمين مكتبة خبير","امين مكتبة","قصاصين الشرق","قصاصين الشرق الإعداديه"]
[1835,"علا محمد احمد محمد عسكر","معلم أول أ","دراسات اجتماعية","قصاصين الشرق","قصاصين الشرق الإعداديه"]
[1836,"محمد عبدالهادي محمد سالم","معلم خبير","لغة عربية","قصاصين الشرق","قصاصين الشرق الإعداديه"]
[1837,"ناهد عبدالرحمن ابراهيم خليل","فنى تشغيل وسائل تعليمية","فني تشغيل","قصاصين الشرق","قصاصين الشرق الإعداديه"]
[1838,"نجلاء مصطفى محمد الصادق الشبراوي","معلم أول أ","لغة عربية","قصاصين الشرق","قصاصين الشرق الإعداديه"]
[1839,"مايسة محمد ابراهيم","معلم أول أ ","دراسات اجتماعية","قصاصين الشرق","قصاصين الشرق الإعداديه"]
[1840,"محمد محمد عبدالعال سالم","معلم أول أ","اللغة الانجليزية","قصاصين الشرق","قصاصين الشرق الإعداديه"]
[1841,"سعيد محمد يوسف غبن","مدير",null,null,"قصاصين الشرق للتعليم الاساسى"]
[1842,"كمال محمد عبدالعال ابوالنجا ","م خبير",null,null,"قصاصين الشرق للتعليم الاساسى"]
[1843,"مرفت شحاته عبدالعزيز","م اول أ",null,null,"قصاصين الشرق للتعليم الاساسى"]
[1844,"ابراهيم محمد حسينى شطا","معلم خبير",null,null,"قصاصين الشرق للتعليم الاساسى"]
[1845,"محمد محمد حسين سليمان","م اول أ",null,null,"قصاصين الشرق للتعليم الاساسى"]
[1846,"محمد عبداللطيف موسى عامر","معلم خبير",null,null,"قصاصين الشرق للتعليم الاساسى"]
[1847,"امينة موسى احمد موسى","م اول أ",null,null,"قصاصين الشرق للتعليم الاساسى"]
[1848,"ولاء محمد حسن ","م اول",null,null,"قصاصين الشرق للتعليم الاساسى"]
[1849,"نهلة ياقوت عطا ابراهيم","م اول أ",null,null,"قصاصين الشرق للتعليم الاساسى"]
[1850,"نبيلة محمد عبدالرحمن روق","م اول أ",null,null,"قصاصين الشرق للتعليم الاساسى"]
[1851,"أميرة احمد محمد عبدالعال","م اول",null,null,"قصاصين الشرق للتعليم الاساسى"]
[1852,"سعاد احمد على عبدالعال","م اول أ",null,null,"قصاصين الشرق للتعليم الاساسى"]
[1853,"أمل فاروق عبدالحميد ","م اول أ",null,null,"قصاصين الشرق للتعليم الاساسى"]
[1854,"خديجة محمد ابراهيم ","م اول",null,null,"قصاصين الشرق للتعليم الاساسى"]
[1855,"عايدة قطب السيد محمد","م اول ",null,null,"قصاصين الشرق للتعليم الاساسى"]
[1856,"سهى فاروق عبدالحميد","م اول ",null,null,"قصاصين الشرق للتعليم الاساسى"]
[1857,"زينب عبدالرحمن عبدالعزيز ","م اول",null,null,"قصاصين الشرق للتعليم الاساسى"]
[1858,"رعاية محمد عبدالدايم","م اول",null,null,"قصاصين الشرق للتعليم الاساسى"]
[1859,"سماح على محمد ابراهيم","م مساعد",null,null,"قصاصين الشرق للتعليم الاساسى"]
[1860,"اميمة يا قوت عطا ابراهيم","م اول أ",null,null,"قصاصين الشرق للتعليم الاساسى"]
[1861,"محمد أمين عبدالفتاح على شاهين","م خبير",null,null,"قصاصين الشرق للتعليم الاساسى"]
[1862,"امل عبدالفتاح عبدالرحمن","م نشاط",null,null,"قصاصين الشرق للتعليم الاساسى"]
[1863,"امانى عبدالعزيز محمدبدر","م نشاط",null,null,"قصاصين الشرق للتعليم الاساسى"]
[1864,"هالة زكى الحسينى نافع","م نشاط",null,null,"قصاصين الشرق للتعليم الاساسى"]
[1865,"يسرية محمد سيداحمد","م نشاط",null,null,"قصاصين الشرق للتعليم الاساسى"]
[1866,"علا سليمان المرسى","م نشاط",null,null,"قصاصين الشرق للتعليم الاساسى"]
[1867,"مريم احمد محمد ","سكرتير",null,null,"قصاصين الشرق للتعليم الاساسى"]
[1868,"سوزان عبدالرحمن جبر محمد","معلم ",null,null,"قصاصين الشرق للتعليم الاساسى"]
[1869,"امنة السيد محمدعطيه","معلم ",null,null,"قصاصين الشرق للتعليم الاساسى"]
[1870,"محمودعبدالمطلب مرسى محمود","معلم اول أ",null,null,"قصاصين الشرق للتعليم الاساسى"]
[1871,"شروق محمد احمد عبدالله","م مساعد",null,null,"قصاصين الشرق للتعليم الاساسى"]
[1872,"سناء عبدالرحمن محمد","م نشاط",null,null,"قصاصين الشرق للتعليم الاساسى"]
[1873,"محمد على ابراهيم حسن ","مدير المدرسة ","لغة انجليزية","قهبونة ","قهبونه الاعداديه"]
[1874,"سماح  حسن  السيد أحمد ","معلم  اول  أ ","لغة انجليزية","قهبونة ","قهبونه الاعداديه"]
[1875,"رضا  محمد على  حسن ","معلم اول  أ ","لغة انجليزية ","قهبونة ","قهبونه الاعداديه"]
[1876,"الست  محمود  محمد  حسن ","معلم  خبير ","لغة عربية","م القبليه  ","قهبونه الاعداديه"]
[1877,"سمية حسن  السيد  أحمد ","معلم اول أ ","لغة عربية ","قهبونة ","قهبونه الاعداديه"]
[1878,"هناء ابراهيم  محمد  متولى ","معلم اول أ ","لغة عربية ","قهبونة ","قهبونه الاعداديه"]
[1879,"عزة على  احمد  سالم ","معلم اول أ ","لغة عربية ","قهبونة ","قهبونه الاعداديه"]
[1880,"ايهاب عبدالحفيظ  محمد عيسى ","معلم  خبير ","دراسات ","ابو شلبي  فاقوس ","قهبونه الاعداديه"]
[1881,"ايمان  كمال  محمد  محمد ","معلم اول أ ","دراسات ","قهبونة ","قهبونه الاعداديه"]
[1882,"نجلاء  عبده محمد  بركات ","معلم اول أ ","دراسات","قهبونة ","قهبونه الاعداديه"]
[1883,"عرفات  عبدالرحمن  متولى  سالم ","معلم خبير ","رياضيات ","قهبونة ","قهبونه الاعداديه"]
[1884,"ايمان محمد  ماهر  عدلي ","معلم اول أ ","حاسب آلي ","قهبونة ","قهبونه الاعداديه"]
[1885,"رشا على  السيد  بدران ","معلم اول أ ","تربية  رياضيه ","قهبونة ","قهبونه الاعداديه"]
[1886,"هشام عادل  اسماعيل  احمد  الالفى ","معلم اول ","تربية  رياضيه ","قهبونة ","قهبونه الاعداديه"]
[1887,"نزيه  قطب  احمد ","معلم خبير ","علوم ","قهبونة ","قهبونه الاعداديه"]
[1888,"عادل السيد  أحمد  قطب ","أخصائي  اجتماعى اول","أخصائي  اجتماعى اول","قهبونة ","قهبونه الاعداديه"]
[1889,"شيرين  فتحى  حسن  موسى ","أخصائي  اجتماعى اول","أخصائي  اجتماعى اول","قهبونة ","قهبونه الاعداديه"]
[1890,"منال  محمد  عطاالله  حسين ","أخصائي نفسي  اول ","أخصائي نفسي  اول ","م القبليه ","قهبونه الاعداديه"]
[1891,"وفاء  عبدالرحمن  آمين  عمرو ","أمين  مكتبة  اول ","أمين  مكتبة  اول ","قهبونة ","قهبونه الاعداديه"]
[1892,"اقبال  السيد  علي  حسن ","فنى معمل  رابع ","فنى معمل  رابع ","قهبونة ","قهبونه الاعداديه"]
[1893,"امل  ابراهيم  محمد  المسيرى ","مشرف  نشاط  اول ","مشرف  نشاط  اول ","قهبونة ","قهبونه الاعداديه"]
[1894,"ثناء  السيد  محمدين  دسوقى ","مشرف  نشاط ","فنى  تشغيل  وسائل ","قهبونة ","قهبونه الاعداديه"]
[1895,"فدوى  السيد  محمد  الشريف ","مشرف نشاط ","فنى  تشغيل  وسائل ","قهبونة ","قهبونه الاعداديه"]
[1896,"محمد  محمد ابراهيم سيداحمد ","كاتب  اول ","كاتب  اول ","م القبليه ","قهبونه الاعداديه"]
[1897,"ابراهيم  محمد  حسين  عمار ","ادارى ","ادراي ","الحمادين ","قهبونه الاعداديه"]
[1898,"مرفت محمد حسن حسين","معلم خبير","لغة عربية","سعود ","كمال الدين الاعداديه"]
[1899,"حنان اسماعيل محمد علي","معلم اول أ","لغة عربية","سعود ","كمال الدين الاعداديه"]
[1900,"سامية الناجى اسماعيل محمد","معلم اول أ","لغة عربية","سعود ","كمال الدين الاعداديه"]
[1901,"اشرف قايد محمد ابراهيم","معلم أول أ","لغة عربية","سعود ","كمال الدين الاعداديه"]
[1902,"صلاح احمد عبدالعال السيد","معلم اول أ","لغة عربية","سعود ","كمال الدين الاعداديه"]
[1903,"احمد حسن محمد السيد","معلم خبير","لغة إنجليزية","سعود ","كمال الدين الاعداديه"]
[1904,"نجاح على عبدالرحمن السيد","معلم أول أ","لغة إنجليزية","سعود ","كمال الدين الاعداديه"]
[1905,"منى عبدالجبار  علي محمد","معلم أول أ","لغة إنجليزية","سعود ","كمال الدين الاعداديه"]
[1906,"رشا اسماعيل احمد على","معلم أول أ","لغة إنجليزية","سعود ","كمال الدين الاعداديه"]
[1907,"عزت محمد عبدالقادر عبدالجليل","معلم خبير","علوم","سعود ","كمال الدين الاعداديه"]
[1908,"فكرية سالم عيد صالح","معلم أول أ","رياضيات","سعود ","كمال الدين الاعداديه"]
[1909,"احمد عبدالهادي عبدالفتاح امام","معلم أول أ","دراسات إجتماعية","سعود ","كمال الدين الاعداديه"]
[1910,"أسماء عيد راتب حسن","معلم مساعد","دراسات إجتماعية","سعود ","كمال الدين الاعداديه"]
[1911,"ادريس السيد الشبراوي محمد","معلم أول","حاسب آلى ","سعود ","كمال الدين الاعداديه"]
[1912,"محمود محمد منصور بندارى","معلم أول","حاسب آلى ","سعود ","كمال الدين الاعداديه"]
[1913,"عفاف شعيب محمد سالم","معلم اول","حاسب آلى ","سعود ","كمال الدين الاعداديه"]
[1914,"اسماعيل عبدالعظيم مصطفى عطيه","معلم أول","مجالات","سعود ","كمال الدين الاعداديه"]
[1915,"مجدة السيد محمد علي العنقيلي","معلم خبير","مجالات","سعود ","كمال الدين الاعداديه"]
[1916,"ياسر ابراهيم محمود نصير  ","معلم اول أ","تربية رياضية","سعود ","كمال الدين الاعداديه"]
[1917,"رانيا مسلم فريد علي","معلم اول أ","تربية رياضية","سعود ","كمال الدين الاعداديه"]
[1918,"اميرة فاروق محمود محمد","اخصائى اول ا","اخصائى صحافة ","سعود ","كمال الدين الاعداديه"]
[1919,"حنان محمد زاهر فرحات","اخصائى اول أ","مكتبات ","سعود ","كمال الدين الاعداديه"]
[1920,"ايناس عبدالسلام عبدالعزيز امام","اخصائى اول","صحافة","سعود ","كمال الدين الاعداديه"]
[1921,"سعيد السيد خميس خفاجه ","فنى وسائل ","فنى اول ","سعود ","كمال الدين الاعداديه"]
[1922,"رضا حسين محمد احمد","مشرف نشاط","مشرف نشاط","سعود ","كمال الدين الاعداديه"]
[1923,"حنان عبدالكريم عبدالسلام","فنى وسائل ","فنى رابع","سعود ","كمال الدين الاعداديه"]
[1924,"وداد محمد احمد محمد","فنى وسائل ","فنى رابع","سعود ","كمال الدين الاعداديه"]
[1925,"رشيده احمد موسى ابراهيم","فنى وسائل ","فنى رابع","سعود ","كمال الدين الاعداديه"]
[1926,"صباح ابراهيم عثمان على","امين معمل ","فنى اول ","سعود ","كمال الدين الاعداديه"]
[1927,"نريمان عبدالكريم عبدالمطلب حسين","فنى وسائل ","فنى رابع","سعود ","كمال الدين الاعداديه"]
[1928,"هالة ثروت حسن على","اخصائى اول أ","اجتماعي ","سعود ","كمال الدين الاعداديه"]
[1929,"هبه محمد احمد محمد","اخصائى اول أ","اجتماعي ","سعود ","كمال الدين الاعداديه"]
[1930,"أشرف محمد إبراهيم حسين","معلم خبير","تربية رياضية ع","الملكيين البحرية-الحسينية","مجمع عبدالعال شعلان للتعليم الاساسى"]
[1931,"عبدالرحمن  أحمد على سالم","معلم خبير","معلم فصل","الملكيين البحرية-الحسينية","مجمع عبدالعال شعلان للتعليم الاساسى"]
[1932,"سعدية محمد السيد دهشان","معلم خبير","معلم فصل","الملكيين البحرية-الحسينية","مجمع عبدالعال شعلان للتعليم الاساسى"]
[1933,"خالد محمد أمين إبراهيم","معلم خبير","معلم فصل","الملكيين البحرية-الحسينية","مجمع عبدالعال شعلان للتعليم الاساسى"]
[1934,"أشرف عبد الباقى محمد فراج","معلم خبير","معلم فصل","الملكيين البحرية-الحسينية","مجمع عبدالعال شعلان للتعليم الاساسى"]
[1935,"السيد محمد أحمد على","معلم خبير","معلم فصل","الملكيين البحرية-الحسينية","مجمع عبدالعال شعلان للتعليم الاساسى"]
[1936,"أمال عوض متولى عوض","معلم خبير","معلم فصل","الملكيين البحرية-الحسينية","مجمع عبدالعال شعلان للتعليم الاساسى"]
[1937,"أيمن أحمد حسن محمد رجب","معلم أول أ","معلم فصل","الملكيين البحرية-الحسينية","مجمع عبدالعال شعلان للتعليم الاساسى"]
[1938,"أشرف أحمد حسن محمد رجب","معلم أول أ","تربية فنية ع","الملكيين البحرية-الحسينية","مجمع عبدالعال شعلان للتعليم الاساسى"]
[1939,"هويدا أحمد محمد إيراهيم","معلم أول أ","لغة عربية ع","الملكيين البحرية-الحسينية","مجمع عبدالعال شعلان للتعليم الاساسى"]
[1940,"إنتصار عبد الغنى عبدالسلام عبدالغنى","معلم أول أ","لغة عربية ع","الملكيين البحرية-الحسينية","مجمع عبدالعال شعلان للتعليم الاساسى"]
[1941,"جيهان على محمود محمد","معلم أول أ","لغة إنجليزية ع","الملكيين البحرية-الحسينية","مجمع عبدالعال شعلان للتعليم الاساسى"]
[1942,"سماح محمد فؤاد محمد","معلم أول أ","رياضيات ب","الملكيين البحرية-الحسينية","مجمع عبدالعال شعلان للتعليم الاساسى"]
[1943,"كاملة محمد حامد يونس","معلم أول أ","رياض أطفال ب","الملكيين البحرية-الحسينية","مجمع عبدالعال شعلان للتعليم الاساسى"]
[1944,"حكمت إسماعيل إبراهيم السيد","معلم أول أ","لغة عربية ع","الملكيين البحرية-الحسينية","مجمع عبدالعال شعلان للتعليم الاساسى"]
[1945,"إبراهيم فاضل عبدالعال محمد","معلم أول أ","تربية زراعية ع","الملكيين البحرية-الحسينية","مجمع عبدالعال شعلان للتعليم الاساسى"]
[1946,"نفيسة أحمد على سليمان","معلم أول أ","تربية فنية ع","الملكيين البحرية-الحسينية","مجمع عبدالعال شعلان للتعليم الاساسى"]
[1947,"عصام محمد شعلان محمد","معلم أول أ","مجال صناعى ب","الملكيين البحرية-الحسينية","مجمع عبدالعال شعلان للتعليم الاساسى"]
[1948,"محمد السيد مهدى","معلم أول أ","دراسات إجتماعية ع","بندر الحسينية-الحسينية","مجمع عبدالعال شعلان للتعليم الاساسى"]
[1949,"سامية عبدالقادر حسين خلف","أخصائى إجتماعى أول أ","أخصائى إجتماعى","الملكيين البحرية-الحسينية","مجمع عبدالعال شعلان للتعليم الاساسى"]
[1950,"عبير مصطفى محمد فراج","معلم أول أ","لغة عربية ب","الملكيين البحرية-الحسينية","مجمع عبدالعال شعلان للتعليم الاساسى"]
[1951,"كريمة محمد محمد يوسف","معلم أول أ","إقتصاد منزلى ع","م خليل-الحسينية","مجمع عبدالعال شعلان للتعليم الاساسى"]
[1952,"محمد عبدالقادر على","معلم أول","دراسات إجتماعية ع","م راغب-الحسينية","مجمع عبدالعال شعلان للتعليم الاساسى"]
[1953,"هناء محمد محمد متولى","معلم أول","لغة إنجليزية  ب","الملكيين البحرية-الحسينية","مجمع عبدالعال شعلان للتعليم الاساسى"]
[1954,"أمانى عبدالكريم مسلم  سليمان","معلم أول","علوم ب","م راغب-الحسينية","مجمع عبدالعال شعلان للتعليم الاساسى"]
[1955,"سمر عبدالرحمن حسين متولى","أخصائى إجتماعى أول","أخصائى إجتماعى","الملكيين البحرية-الحسينية","مجمع عبدالعال شعلان للتعليم الاساسى"]
[1956,"منى إبراهيم  أحمد حسن","مشرف نشاط","ـــــــــــــ","الملكيين البحرية-الحسينية","مجمع عبدالعال شعلان للتعليم الاساسى"]
[1957,"رمضان السد الديدامونى حسن","فنى تشغيل","ــــــــــــــــ","الملكيين البحرية-الحسينية","مجمع عبدالعال شعلان للتعليم الاساسى"]
[1958,"أسماء السيد منصور أبو المعاطى","فنى تشغيل","ــــــــــــــــــ","الملكيين البحرية-الحسينية","مجمع عبدالعال شعلان للتعليم الاساسى"]
[1959,"ناهد درويش محمد محمد","فنى تشغيل","ــــــــــــــــــ","الملكيين البحرية-الحسينية","مجمع عبدالعال شعلان للتعليم الاساسى"]
[1960,"حياة إبراهيم  حسن محمد","أمين معمل","ــــــــــــــــــ","الملكيين البحرية-الحسينية","مجمع عبدالعال شعلان للتعليم الاساسى"]
[1961,"نعسة عبدالرحمن  حسين محمد","كاتب أول","ـــــــــــــــ","الملكيين البحرية-الحسينية","مجمع عبدالعال شعلان للتعليم الاساسى"]
[1962,"حسن متولى محمد ابراهيم ","معلم خبير ","مدير مدرسة ","الجمالية / الحسينية ","محمد سراج الدين للتعليم الاساسى"]
[1963,"محمد عبد الرحمن حسن ","معلم خبير ","رياضيات","قهبونة/الحسينية","محمد سراج الدين للتعليم الاساسى"]
[1964,"سامية إبراهيم محمد المسيدى","معلم أول أ","دراسات إجتماعية","قهبونة/الحسينية","محمد سراج الدين للتعليم الاساسى"]
[1965,"مروة محمد المسيرى على ","معلم أول أ","حاسب آلى","قهبونة/الحسينية","محمد سراج الدين للتعليم الاساسى"]
[1966,"منال شحاته سيد أحمد","معلم اول أ","معلم فصل","قهبونة/الحسينية","محمد سراج الدين للتعليم الاساسى"]
[1967,"منى السعداوى عبد الستار احمد","فنى تدريس ثالث ","معلم فصل","قهبونة/الحسينية","محمد سراج الدين للتعليم الاساسى"]
[1968,"أسماء محمد جمال السيد","معلم مساعد","معلم فصل","قهبونة/الحسينية","محمد سراج الدين للتعليم الاساسى"]
[1969,"شيماء السيد الهادى عزاز","معلم اول أ","رياض أطفال","قهبونة/الحسينية","محمد سراج الدين للتعليم الاساسى"]
[1970,"محمد عطوة عبد السلام غازى","معلم خبير ","تربية رياضية","قهبونة/الحسينية","محمد سراج الدين للتعليم الاساسى"]
[1971,"سعدية موسى عبد السلام غازى","اخصائى إجتماعى أول","لايوجد","قهبونة/الحسينية","محمد سراج الدين للتعليم الاساسى"]
[1972,"سومية فتحى عبد العزيز","اخصائى صحافة أول","لايوجد","قهبونة/الحسينية","محمد سراج الدين للتعليم الاساسى"]
[1973,"السيد حسن أحمد","مدير المدرسة",null,"المساعيد ","محمد سويلم البطراوى الاعداديه"]
[1974,"مهدى احمد حسن","معلم أول أ","لغة العربية","المساعيد ","محمد سويلم البطراوى الاعداديه"]
[1975,"اشرف عبدالله خليل","معلم ","لغة العربية","المساعيد ","محمد سويلم البطراوى الاعداديه"]
[1976,"محمد فتحى محمود","معلم أول أ","علوم","المساعيد ","محمد سويلم البطراوى الاعداديه"]
[1977,"محمد عبدالرحمن طلبه","معلم أول","حاسب الى","المساعيد ","محمد سويلم البطراوى الاعداديه"]
[1978,"أيمن مرسى السيد","معلم خبير","تربية رياضية","المساعيد ","محمد سويلم البطراوى الاعداديه"]
[1979,"نجاة محمد عيد","معلم أول اقتصاد",null,"المساعيد ","محمد سويلم البطراوى الاعداديه"]
[1980,"أمانى السيد محمد","أخصائى أول مكتبة",null,"المساعيد ","محمد سويلم البطراوى الاعداديه"]
[1981,"رضا محمد أحمد","أمين معمل",null,"المساعيد ","محمد سويلم البطراوى الاعداديه"]
[1982,"محمد حسن عبدالحميد دياب","مدير","لغه انجليزية","الحسينيه ثان","مدرسة ابوصرار للتعليم الاساسى "]
[1983,"امينه احمد عبدالعزيز يوسف","معلم خبير","علوم","الحسينيه ","مدرسة ابوصرار للتعليم الاساسى "]
[1984,"عبدالله محمد ابوزيد حموده","معلم خبير","لغة عربية","ابوصرار","مدرسة ابوصرار للتعليم الاساسى "]
[1985,"رضا عبدالمجيد حسن عبدالمجيد","معلم خبير","رياضيات","الحسينيه ثان","مدرسة ابوصرار للتعليم الاساسى "]
[1986,"زكريا عبدالعزيز عبيد ابورضون","معلم أول ا","رياضيات","الحسينيه ثان","مدرسة ابوصرار للتعليم الاساسى "]
[1987,"احمد السيد احمد على","معلم اول ا","دراسات","الحسينيه ثان","مدرسة ابوصرار للتعليم الاساسى "]
[1988,"عبدالفتاح عبدالكريم ابوزيد حموده","معلم أول ا","دراسات","الحسينيه ثان","مدرسة ابوصرار للتعليم الاساسى "]
[1989,"نجلاء فهمى عبدالوهاب عبداللطيف","معلم أول ا","رياض اطفال","الحسينيه ثان","مدرسة ابوصرار للتعليم الاساسى "]
[1990,"هدى حسينى السيد عبدالواحد","معلم أول ا","لغة عربية","ابوصرار","مدرسة ابوصرار للتعليم الاساسى "]
[1991,"اشرف محمد سالم احمد","معلم اول","لغه عربية","ازولين","مدرسة ابوصرار للتعليم الاساسى "]
[1992,"هبة السيد عبدالعال خليل","معلم اول","لغة عربية","عزبة التل","مدرسة ابوصرار للتعليم الاساسى "]
[1993,"صلاح محمد محمد السيد","معلم اول","لغه انجليزية","الحسينيه ثان","مدرسة ابوصرار للتعليم الاساسى "]
[1994,"سماح عبدالحميد زين غنيمى","معلم اول","دراسات","الحسينيه ","مدرسة ابوصرار للتعليم الاساسى "]
[1995,"سناء عبدالسلام محمد حسين","معلم اول","لغه عربية","الحسينيه ","مدرسة ابوصرار للتعليم الاساسى "]
[1996,"أميرة فهمى عبدالعزيز ابراهيم","معلم أول ","لغه عربية","الحسينيه","مدرسة ابوصرار للتعليم الاساسى "]
[1997,"عيد الطيب بدوى ابراهيم","معلم اول","حاسب الى","ازولين","مدرسة ابوصرار للتعليم الاساسى "]
[1998,"منى محمد عبدالحميد عبيد","معلم اول","لغه عربية","الحسينيه ثان","مدرسة ابوصرار للتعليم الاساسى "]
[1999,"محاسن محمد عبدالرحمن مسلم","معلم اول","لغه عربية","الحسينيه ","مدرسة ابوصرار للتعليم الاساسى "]
[2000,"منال محمد عبدالله برعى","معلم اول","لغه عربية","الحسينيه ","مدرسة ابوصرار للتعليم الاساسى "]
[2001,"هاله عبد الجبار طلبه خليفه ","معلم اول","تربيه فنيه","عزبة ابوالخير","مدرسة ابوصرار للتعليم الاساسى "]
[2002,"فاطمة محمد عبدالله اسماعيل","معلم اول","لغه عربية","الحسينيه ثان","مدرسة ابوصرار للتعليم الاساسى "]
[2003,"نسمة النجدى احمد سالم","معلم مساعد","لغه عربية","الحسينيه ","مدرسة ابوصرار للتعليم الاساسى "]
[2004,"منال عادل عبدالحميد عبدالله ","معلم اول","دراسات","ازولين","مدرسة ابوصرار للتعليم الاساسى "]
[2005,"علا فؤاد عبدالمنعم احمد","معلم اول","لغه انجليزية","الحسينيه ","مدرسة ابوصرار للتعليم الاساسى "]
[2006,"وليد الشبراوى عبدالفتاح حسن","معلم اول","اخصائى اول اجتماعى","الحسينيه ","مدرسة ابوصرار للتعليم الاساسى "]
[2007,"احمد عبدالعزيز محمد سليمان","معلم اول","تربية رياضية","فاقوس","مدرسة ابوصرار للتعليم الاساسى "]
[2008,"مها محمد فتحى على بدير","معلم اول","احصائى نفسى اول","ازولين","مدرسة ابوصرار للتعليم الاساسى "]
[2009,"ايمان السيد محمد على","معلم مساعد","لغه انجليزية","الحسينيه","مدرسة ابوصرار للتعليم الاساسى "]
[2010,"امنه عبدالحليم السيد عبدالرازق","معلم مساعد","لغه عربية","الحسينيه ثان","مدرسة ابوصرار للتعليم الاساسى "]
[2011,"منار صالح انور عبدالرازق","معلم مساعد","رياض اطفال","الحسينيه","مدرسة ابوصرار للتعليم الاساسى "]
[2012,"محمد دياب على دياب","مشرف اول نشاط","بدون","الحسينيه ثان","مدرسة ابوصرار للتعليم الاساسى "]
[2013,"وضفة محمد عبدالجواد السيد","فنى ثالث تعليم","بدون","ازولين بشاره","مدرسة ابوصرار للتعليم الاساسى "]
[2014,"نريمان حسن احمد عبدالعال","فنى تشغيل","بدون","الحسينيه ثان","مدرسة ابوصرار للتعليم الاساسى "]
[2015,"مروة عبدالفتاح محمود محمد","فنى تشغيل","بدون","الحسينيه ثان","مدرسة ابوصرار للتعليم الاساسى "]
[2016,"هبة جلال حجاج السيد","مشرف نشاط","بدون","الحسينيه ثان","مدرسة ابوصرار للتعليم الاساسى "]
[2017,"فرح محمد عبدالجواد السيد","فنى تشغيل","بدون","الحسينيه ثان","مدرسة ابوصرار للتعليم الاساسى "]
[2018,"صباح احمد عبدالجواد السيد ","فنى تشغيل","بدون","الحسينيه ثان","مدرسة ابوصرار للتعليم الاساسى "]
[2019,"حنان محمد عبدالرحيم ابراهيم","فنى تشغيل","بدون","الحسينيه ثان","مدرسة ابوصرار للتعليم الاساسى "]
[2020,"رشا السيد السيد عبدالله","فنى تشغيل","بدون","الحسينيه ثان","مدرسة ابوصرار للتعليم الاساسى "]
[2021,"فاطمة اسماعيل عبدالحميد دياب","كاتب رابع","بدون","الحسينيه ثان","مدرسة ابوصرار للتعليم الاساسى "]
[2022,"راندا حامد محمود محمد","كاتب رابع","بدون","ابوصرار","مدرسة ابوصرار للتعليم الاساسى "]
[2023," ساميه  الطيب بدوى ابراهيم","كاتب رابع","بدون","ازولين","مدرسة ابوصرار للتعليم الاساسى "]
[2024,"كريمان محمد محمود","وكيله","وكيل ابتدائى","الحسينية","مدرسة السعدى للتعليم الاساسي "]
[2025,"ناصر عيد على سيد احمد ","وكيل ","مجالات","الحسينية","مدرسة السعدى للتعليم الاساسي "]
[2026,"امين سعد قايد عبد الرحمن","معلم خبير ","لغة عربية ","السعدى ","مدرسة السعدى للتعليم الاساسي "]
[2027,"بهيه جبر معيد مجاور","معلم خبير ","رياضيات","السعدى ","مدرسة السعدى للتعليم الاساسي "]
[2028,"مرفت عبد العال عبد الهادى","معلم خبير ","رياضيات","السعدى ","مدرسة السعدى للتعليم الاساسي "]
[2029,"سناء عيد على سيد احمد ","معلم خبير ","رياضيات","السعدى ","مدرسة السعدى للتعليم الاساسي "]
[2030,"امال عليوه محمد جندل","معلم خبير ","رياضيات","السعدى ","مدرسة السعدى للتعليم الاساسي "]
[2031,"كريمه عبد المنعم عمر","معلم خبير ","لغة عربية ","السعدى ","مدرسة السعدى للتعليم الاساسي "]
[2032,"منال محمد طه  الجزار ","معلم اول أ ","لغة عربية ","الحسينية","مدرسة السعدى للتعليم الاساسي "]
[2033,"منال  السيد احمد على ","معلم اول أ ","لغة عربية ","السعدى ","مدرسة السعدى للتعليم الاساسي "]
[2034,"كريمه محمد محمد  مصطفى","معلم خط","لغة عربية ","السعدى ","مدرسة السعدى للتعليم الاساسي "]
[2035,"الزهراء محمد على  ","معلم اول ","لغة عربية ","السعدى ","مدرسة السعدى للتعليم الاساسي "]
[2036,"نهلة محمد ابراهيم ","معلم اول أ ","لغة عربية ","السعدى ","مدرسة السعدى للتعليم الاساسي "]
[2037,"هانم يوسف ابراهيم احمد ","معلم اول أ ","لغة عربية ","السعدى ","مدرسة السعدى للتعليم الاساسي "]
[2038,"بثينه محمد الشوادفى","كاتبه ","ادارى","السعدى ","مدرسة السعدى للتعليم الاساسي "]
[2039,"حلاوتهم ابراهيم حسن ","مشرف نشاط","مشرف نشاط","السعدى ","مدرسة السعدى للتعليم الاساسي "]
[2040,"عفاف عبد الرؤوف ابراهيم  محمد ","مشرف نشاط","مشرف نشاط","السعدى ","مدرسة السعدى للتعليم الاساسي "]
[2041,"صدفه  عبد العزيز احمد احمد ","مششرف نشاط","مشرف نشاط","السعدى ","مدرسة السعدى للتعليم الاساسي "]
[2042,"رشا  محجوب   احمد محجوب","اخصائى اجتماعى","اخصائى اجتماعى","السعدى ","مدرسة السعدى للتعليم الاساسي "]
[2043,"همت محمد ابراهيم","معلم اول ا","اخصائى  مكتبه","السعدى ","مدرسة السعدى للتعليم الاساسي "]
[2044,"سومه السيد على عبد الهادى","فنى تشغيل","فنى تشغيل ","السعدى ","مدرسة السعدى للتعليم الاساسي "]
[2045,"محمد جابر سليمان بدران","فنى تشغيل","فنى تشغيل ","الحسينية","مدرسة السعدى للتعليم الاساسي "]
[2046,"نبيله  محمد حسين  خليل ","فنى تشغيل","فنى تشغيل ","السعدى ","مدرسة السعدى للتعليم الاساسي "]
[2047,"منال حسن الشوادفى ابراهيم ","فنى معمل","امين معمل","الحسينية","مدرسة السعدى للتعليم الاساسي "]
[2048,"اكرام عبدالمعبود على فرج","فنى تشغيل ","فنى تشغيل ","السعدى ","مدرسة السعدى للتعليم الاساسي "]
[2049,"السيد عبدالعظيم السيد حسبو","معلم ","حاسب","السعدى ","مدرسة السعدى للتعليم الاساسي "]
[2050,"رشا محمد على احمد","اخصائى اجتماعى ","اخصائى اجتماعى ","السعدى ","مدرسة السعدى للتعليم الاساسي "]
[2051,"ريم فريد عبدالحميد محمد","معلم اول أ ","لغة اجنبية","السعدى ","مدرسة السعدى للتعليم الاساسي "]
[2052,"ريهام محمد السيد سليم ندا","معلم اول أ ","لغة عربية ","السعدى ","مدرسة السعدى للتعليم الاساسي "]
[2053,"سهير عبدالطيف محمود خليفة","معلم اول أ ","لغة عربية ","السعدى ","مدرسة السعدى للتعليم الاساسي "]
[2054,"صفاء محمد منصور على","معلم اول أ ","اقتصاد","الحسينية","مدرسة السعدى للتعليم الاساسي "]
[2055,"عادل ابوزيد الديدامونى محمد","معلم اول ","دراسات","الظواهرية","مدرسة السعدى للتعليم الاساسي "]
[2056,"عبير سليمان على عليان","كاتبه","ادارى","السعدى ","مدرسة السعدى للتعليم الاساسي "]
[2057,"فاتن على احمد ابراهيم","معلم  خبير ","لغة اجنبية","السعدى ","مدرسة السعدى للتعليم الاساسي "]
[2058,"فاطمه السيد على محمد هنداوى","اخصائى اجتماعى ","اخصائى","الحسينة","مدرسة السعدى للتعليم الاساسي "]
[2059,"هاني محمود محمد جندل","معلم اول أ ","تربية رياضية","السعدى ","مدرسة السعدى للتعليم الاساسي "]
[2060,"هيام عبد الله محمد عبد السلام","معلم اول أ ","لغة عربية ","السعدى ","مدرسة السعدى للتعليم الاساسي "]
[2061,"وجيه محمد غريب حسنين","فنى تشغيل ","فنى تشغيل ","السعدى ","مدرسة السعدى للتعليم الاساسي "]
[2062,"وفاء السيد متولى مليجى","فنى تشغيل ","فنى تشغيل ","السعدى ","مدرسة السعدى للتعليم الاساسي "]
[2063,"عبد السميع عبد الله عبد السميع ","معلم اول","لغة عربية ","السعدى ","مدرسة السعدى للتعليم الاساسي "]
[2064,"بشرى محمد عبدالجليل ","معلم اول أ ","رياضيات","السعدى ","مدرسة السعدى للتعليم الاساسي "]
[2065,"رشا احمد موسي ","معلم اول أ ","رياضيات","السعدى ","مدرسة السعدى للتعليم الاساسي "]
[2066,"سمر محمد احمد خازندار ","معلم اول أ ","رياض اطفال","الحسينية","مدرسة السعدى للتعليم الاساسي "]
[2067,"اسماعيل حسن يوسف محمد ","معلم","لعة عربية","السعدى ","مدرسة السعدى للتعليم الاساسي "]
[2068,"حنان عبدالكريم غريب","اداريه","ادارى","السعدى ","مدرسة السعدى للتعليم الاساسي "]
[2069,"رضا عبدالرؤف ابراهيم ","فنى تشغيل ","فنى تشغيل ","السعدى ","مدرسة السعدى للتعليم الاساسي "]
[2070,"امانى مطلق شندى ","كاتبه","ادارى","السعدى ","مدرسة السعدى للتعليم الاساسي "]
[2071,"اسماء  محمد عطا ","معلم اول ","دراسات ","السعدى ","مدرسة السعدى للتعليم الاساسي "]
[2072,"سماح غنيم مغنم","معلم اول ا","دراسات","السعدى ","مدرسة السعدى للتعليم الاساسي "]
[2073,"هيام ابراهيم عبدالرحمن ","معلم اول ا","علوم","السعدى ","مدرسة السعدى للتعليم الاساسي "]
[2074,"نفين جابر ابراهيم","معلم ","لغة عربية ","السعدى ","مدرسة السعدى للتعليم الاساسي "]
[2075,"ايه محمد شاكر ","معلم مساعد ","لغة اجنبية ","الحسينية ","مدرسة السعدى للتعليم الاساسي "]
[2076,"شرين  عبدالمعطى زيدان ","معلم مساعد ","رياضيات","السعدى ","مدرسة السعدى للتعليم الاساسي "]
[2077,"سوميه احمد حسن ","معلم مساعد ","رياض اطفال ","الحسينية","مدرسة السعدى للتعليم الاساسي "]
[2078,"ابراهيم السيد شحاتة محمد ","معلم اول أ","لغة عربية ","عزبة ابوسلامة الظواهرية ","مدرسة السيسي الاعداديه"]
[2079,"سميرة سعيد سالم محمد ","معلم اول أ ","لغة عربية ","تيمور الظواهرية ","مدرسة السيسي الاعداديه"]
[2080,"عماد محمد عبداللطيف عبدالنور","معلم اول أ ","تربية زراعية ","تيمور الظواهرية","مدرسة السيسي الاعداديه"]
[2081,"نصر يوسف عبدالرحمن ابوزيد ","معلم خبير ","تربية زراعية ","تيمور الظواهرية","مدرسة السيسي الاعداديه"]
[2082,"عبدالعظيم عبدالكريم الأمين عبدالكريم ","معلم اول أ ","دراسات اجتماعيه ","تيمور الظواهرية","مدرسة السيسي الاعداديه"]
[2083,"زكريا عبدالرازق ابوالمعاطي رضوان","اخصائي اجتماعي ","اخصائي اجتماعي ","الحسينية ","مدرسة السيسي الاعداديه"]
[2084,"بخيت اسحاق جادالله شحاتة ","فني تشغيل ","فني تشغيل ","عزبة الصعايدة الظواهرية ","مدرسة السيسي الاعداديه"]
[2085,"ايمان صلاح السيد عبدالغني","فني تشغيل ","فني تشغيل ","الفخفاخ الظواهرية","مدرسة السيسي الاعداديه"]
[2086,"سماح فاروق علي طنطاوي","فني تشغيل ","فني تشغيل ","الظواهرية","مدرسة السيسي الاعداديه"]
[2087,"سمير محمد حسن يوسف ","امين معمل","امين معمل","السعدي ","مدرسة السيسي الاعداديه"]
[2088,"جرجس جبرة فانوس جرجس ","كاتب رابع","كاتب رابع","عزبة الصعايدة الظواهرية ","مدرسة السيسي الاعداديه"]
[2089,"ميرفت سيد احمد عبد المطلب","كاتب رابع","كاتب رابع","تيمور الظواهرية","مدرسة السيسي الاعداديه"]
[2090,"مصطفى ابو مسلم السيد ابراهيم ","معلم اول","لغة عربية ","الحسينية ","مدرسة أبو مرسى للتعليم الاساسى"]
[2091,"غادة محمود محمد","معلم مساعد ","رياضيات ","الفولى الكبيرة ","مدرسة أبو مرسى للتعليم الاساسى"]
[2092,"سماح بركات محمد ","معلم مساعد ","لغة انجليزية","عليوة","مدرسة أبو مرسى للتعليم الاساسى"]
[2093,"ريهام محمد محمد الشربينى","آمين معمل","ـ","ازولين بشارة","مدرسة أبو مرسى للتعليم الاساسى"]
[2094,"مصطفى حسيني محمد احمد ","كاتب ثالث","-","البكارشة - صان الحجر","مدرسة أبو مرسى للتعليم الاساسى"]
[2095,"محمود حسن على","مدير","مدير","سعود","مدرسة سعود الجديدة الابتدائيه"]
[2096,"منى محمد عبدالعال","وكيل","وكيل","سعود","مدرسة سعود الجديدة الابتدائيه"]
[2097,"انتصار عبدالمحسن محمد","معلم خبير","عربى","سعود","مدرسة سعود الجديدة الابتدائيه"]
[2098,"سمير عبدا لحميد حسن","معلم خبير","عربى","سعود","مدرسة سعود الجديدة الابتدائيه"]
[2099,"عزت إبراهيم عبدالرازق","معلم خبير","عربى","سعود","مدرسة سعود الجديدة الابتدائيه"]
[2100,"مها محمد خليل محمد","معلم خبير","عربى","سعود","مدرسة سعود الجديدة الابتدائيه"]
[2101,"هدى السيد خميس","معلم خبير","عربى","سعود","مدرسة سعود الجديدة الابتدائيه"]
[2102,"نبيلة عبدالسلام إبراهيم","معلم خبير","عربى","سعود","مدرسة سعود الجديدة الابتدائيه"]
[2103,"زوزو عشماوي السيد","معلم خبير","عربى","سعود","مدرسة سعود الجديدة الابتدائيه"]
[2104,"على عبدالله محمد على","معلم خبير","عربى","سعود","مدرسة سعود الجديدة الابتدائيه"]
[2105,"هيام أحمد عبدالحليم عبدالقادر","معلم خبير","رياضيات","سعود","مدرسة سعود الجديدة الابتدائيه"]
[2106,"عيد رزق عبدا لكريم  ","معلم خبير","رياضيات","سعود","مدرسة سعود الجديدة الابتدائيه"]
[2107,"سعاد حميد مقيبل سليمان","معلم خبير","رياضيات","سعود","مدرسة سعود الجديدة الابتدائيه"]
[2108,"رضا عبدا لله إبراهيم خليل","معلم خبير","رياضيات","سعود","مدرسة سعود الجديدة الابتدائيه"]
[2109,"محمد محمد  سعيد سليمان","معلم خبير","رياضيات","سعود","مدرسة سعود الجديدة الابتدائيه"]
[2110,"أحمد سعيد عبدالجبار","معلم اول ا","انجليزى","سعود","مدرسة سعود الجديدة الابتدائيه"]
[2111,"نهال عبدالصبور عبدا لله","معلم اول ا","انجليزى","سعود","مدرسة سعود الجديدة الابتدائيه"]
[2112,"احمد محمد موسى","معلم اول","دراسات","سعود","مدرسة سعود الجديدة الابتدائيه"]
[2113,"علياء احمد عطيه  عبدالقادر","معلم اول","علوم","سعود","مدرسة سعود الجديدة الابتدائيه"]
[2114,"رضا محمد محمد على","معلم اول","حاسب الى","سعود","مدرسة سعود الجديدة الابتدائيه"]
[2115,"ماجدة عبد الفتاح عبد العال","معلم اول","حاسب الى","سعود","مدرسة سعود الجديدة الابتدائيه"]
[2116,"رحاب محمود ابوالمجد","معلم اول","حاسب الى","سعود","مدرسة سعود الجديدة الابتدائيه"]
[2117,"عزيزة محمد عبدالسلام","معلم خبير","ثقافة مهنية تجارة","سعود","مدرسة سعود الجديدة الابتدائيه"]
[2118,"عبداللطيف فتحي أحمد","معلم خبير","ثقافة مهنية تجارة","سعود","مدرسة سعود الجديدة الابتدائيه"]
[2119,"السيد منصور بندارى على","معلم خبير","ثقافة مهنية راعة","سعود","مدرسة سعود الجديدة الابتدائيه"]
[2120,"منى السيد محمد إبراهيم","معلم اول","رياض اطفال","سعود","مدرسة سعود الجديدة الابتدائيه"]
[2121,"هناء عبدالله السيد محمد","معلم اول ا","اخصائية مكتبة","سعود","مدرسة سعود الجديدة الابتدائيه"]
[2122,"جمال حمدى صالح","معلم اول ا","اخصائى اجتماعى","سعود","مدرسة سعود الجديدة الابتدائيه"]
[2123,"ايمان زغلول عبدالله","معلم اول ا","اخصائى اجتماعى","سعود","مدرسة سعود الجديدة الابتدائيه"]
[2124,"هبة عبدالجبار على","معلم اول ا","اخصائية صحافة","سعود","مدرسة سعود الجديدة الابتدائيه"]
[2125,"غاده عبدالحميد محمود","معلم اول ا","اخصائية نفسية","سعود","مدرسة سعود الجديدة الابتدائيه"]
[2126,"مريم كمال حلمى حنا","ادارية","ادارية","سعود","مدرسة سعود الجديدة الابتدائيه"]
[2127,"امل عبده محمد راضى","ادارية","ادارية","سعود","مدرسة سعود الجديدة الابتدائيه"]
[2128,"صفية محمد عيد سليمان","مشرفة نشاط","مشرفة نشاط","سعود","مدرسة سعود الجديدة الابتدائيه"]
[2129,"صفاء السيد احمد السيد","مشرفة نشاط","مشرفة نشاط","سعود","مدرسة سعود الجديدة الابتدائيه"]
[2130,"هالة محمد عبد السلام","فنى تشغيل","فنى تشغيل","سعود","مدرسة سعود الجديدة الابتدائيه"]
[2131,"هيام محمد على حسن","فنى تشغيل","فنى تشغيل","سعود","مدرسة سعود الجديدة الابتدائيه"]
[2132,"سمر نبيل عبيد","فنى تشغيل","فنى تشغيل","سعود","مدرسة سعود الجديدة الابتدائيه"]
[2133,"سوزان محمد عبدالعزيز","فنى تشغيل","فنى تشغيل","سعود","مدرسة سعود الجديدة الابتدائيه"]
[2134,"آمال أحمد عبدالعال","امينة معمل","امينة معمل","سعود","مدرسة سعود الجديدة الابتدائيه"]
[2135,"فاطمة الزهراء السيد سباعي","امينة معمل","امينة معمل","سعود","مدرسة سعود الجديدة الابتدائيه"]
[2136,"إيمان عبدالستار عبدالجواد","عامله","عامله","سعود","مدرسة سعود الجديدة الابتدائيه"]
[2137,"سمسم محمد سليمان محمد","معلم اول","لغه عربيه","الجماليه","مدرسه الجماليه الاعداديه المشتركه"]
[2138,"نهله محمد يوسف احمد ","معلم اول","لغه عربيه","الجماليه","مدرسه الجماليه الاعداديه المشتركه"]
[2139,"اميره عبدالسميع احمد رفاعي","معلم اول","لغه عربيه","الجماليه","مدرسه الجماليه الاعداديه المشتركه"]
[2140,"دولت فواد حامد عبدالله","معلم اول ا","لغه انجليزيه","الجماليه","مدرسه الجماليه الاعداديه المشتركه"]
[2141,"محمد عبدالرحمن محمد سالم","معلم اول ا","لغه انجليزيه","الجماليه","مدرسه الجماليه الاعداديه المشتركه"]
[2142,"زينات محمد عبدالعال فرحان","معلم اول","دراسات","الجماليه","مدرسه الجماليه الاعداديه المشتركه"]
[2143,"هناء عبدالرحمن محمد سالم","معلم اول","دراسات","الجماليه","مدرسه الجماليه الاعداديه المشتركه"]
[2144,"عبدالعزيز عبدالجميد سالم ","اخصائى اجتماعى اول","اخصائى اجتماعى","الجماليه","مدرسه الجماليه الاعداديه المشتركه"]
[2145,"حسن سليمان محمد محمد"," مشرف نشاط","مشرف نشاط","الجماليه","مدرسه الجماليه الاعداديه المشتركه"]
[2146,"محاسن محمد الباز محمد عامر","فنى وسائل","فنى وسائل","الجماليه","مدرسه الجماليه الاعداديه المشتركه"]
[2147,"صباح احمد خليل","فنى وسائل","فنى وسائل","الجماليه","مدرسه الجماليه الاعداديه المشتركه"]
[2148,"فهميه عبداله ابراهيم ","امين معمل","امين معمل","الجماليه","مدرسه الجماليه الاعداديه المشتركه"]
[2149,"جمال عبدالله عبدالحميد","امين معمل","امين معمل","الجماليه","مدرسه الجماليه الاعداديه المشتركه"]
[2150,"سعيد عبدالعال محمود","ادارى","ادارى","الجماليه","مدرسه الجماليه الاعداديه المشتركه"]
[2151,"فاطمه ابراهيم محمد","ادارى","ادارى","الجماليه","مدرسه الجماليه الاعداديه المشتركه"]
[2152,"عبدالمنعم محمد احمد عبد القادر","مدير مدرسة",null,"عزبة الشربيني","مصطفي عبد القادر الشربينى للتعليم الاساسى"]
[2153,"منال عيداروس السيد حمد","معلم اول","لغة عربية","عزبة الغرقدة ","مصطفي عبد القادر الشربينى للتعليم الاساسى"]
[2154,"لطافة عيس احمد الفولي","معلم اول","لغة عربية","الحسينية","مصطفي عبد القادر الشربينى للتعليم الاساسى"]
[2155,"محمد عبد الرحمن محمد يوسف","معلم خبير ","رياضيات","عزبة الشربيني","مصطفي عبد القادر الشربينى للتعليم الاساسى"]
[2156,"اسماعيل علي محمد عبد العال","معلم خبير ","علوم","الغرقدة ","مصطفي عبد القادر الشربينى للتعليم الاساسى"]
[2157,"محمد طلا ل احمد عبدالقادر","معلم اول","بدني","عزبة الشربيني","مصطفي عبد القادر الشربينى للتعليم الاساسى"]
[2158,"امنية صلاح عبد السلام  فرج","معلم اول","رياض اطفال","عزبة الشربيني","مصطفي عبد القادر الشربينى للتعليم الاساسى"]
[2159,"ايه عبد الهادي لبيب عبد الهادي","معلم مساعد","رياض اطفال","الحسنية","مصطفي عبد القادر الشربينى للتعليم الاساسى"]
[2160,"عبير متولي محمد متولي","فني تشغيل",null,"عزبة الشربيني","مصطفي عبد القادر الشربينى للتعليم الاساسى"]
[2161,"كريمة ابراهيم سيد احمد","ادارية",null,"الحجازية","مصطفي عبد القادر الشربينى للتعليم الاساسى"]
[2162,"عبدالغنى عبداللطيف عبدالغنى","مدير","مجال صناعى","منشأة ابو عامر","منشأة ابو عامر الاعداديه"]
[2163,"محمد سالم سلامه زايد","معلم اول أ","عربى","منشأة ابو عامر","منشأة ابو عامر الاعداديه"]
[2164,"حنان محمد شوقى","معلم اول أ","عربى","الحجازية","منشأة ابو عامر الاعداديه"]
[2165,"محمد عيد عبدالقادر","معلم اول ","رياضيات","سماكين الغرب","منشأة ابو عامر الاعداديه"]
[2166,"ابتسام محمد لطفى","معلم اول أ","دراسات","الحجازية","منشأة ابو عامر الاعداديه"]
[2167,"السيد سليمان سالم","معلم اول أ","دراسات","عزبة ابو الخير","منشأة ابو عامر الاعداديه"]
[2168,"احمد ثروت عبدالحميد طلبة","معلم اول ","دراسات","منشأة ابو عامر","منشأة ابو عامر الاعداديه"]
[2169,"رضا ابراهيم على محمد","معلم اول أ","تربية رياضية","عزبة الشربينى","منشأة ابو عامر الاعداديه"]
[2170,"هدى حسين عبدالعال","معلم خبير","مجال زراعى","منشأة ابو عامر","منشأة ابو عامر الاعداديه"]
[2171,"وفاء محمد منصور","معلم","تربية فنية","منشأة ابو عامر","منشأة ابو عامر الاعداديه"]
[2172,"منال محمد عبدالغنى محمد","معلم","حاسب الى","الحجازية","منشأة ابو عامر الاعداديه"]
[2173,"حنان ابراهيم حسن","معلم اول أ","حاسب الى","منشأة ابو عامر","منشأة ابو عامر الاعداديه"]
[2174,"هاله السيد عبدالسلام","اخصائى","اخصائى اجتماعى","منشأة ابو عامر","منشأة ابو عامر الاعداديه"]
[2175,"رجب حسن عبدالله","مشرف نشاط","امين معمل","منشأة ابو عامر","منشأة ابو عامر الاعداديه"]
[2176,"فاطمة ابراهيم حسن","فنى تشغيل","وسائل تعليمية","منشأة ابو عامر","منشأة ابو عامر الاعداديه"]
[2177,"هناء حسن محمد حسن","فنى تشغيل","وسائل تعليمية","منشأة ابو عامر","منشأة ابو عامر الاعداديه"]
[2178,"امينه احمد على","كاتب اول","ادارى","منشأة ابو عامر","منشأة ابو عامر الاعداديه"]
[2179,"مروه بشير منصور","كاتب ثالث","ادارى","منشأة ابو عامر","منشأة ابو عامر الاعداديه"]
[2180,"طلعت عبدالرؤف عبدالصمد اسماعيل","مدير المدرسة","مدير المدرسة","منشأة بشارة","منشأة بشارة الابتدائيه رقم1"]
[2181,"انتصار على محمد مصطفى","وكيلة","وكيلة","منشأة بشارة","منشأة بشارة الابتدائيه رقم1"]
[2182,"عصام عوض عبدالمجيد محمد","معلم خبير","رياضيات","منشأة بشارة","منشأة بشارة الابتدائيه رقم1"]
[2183,"عبدالله محمد احمد على ","معلم خبير","رياضيات","منشأة بشارة","منشأة بشارة الابتدائيه رقم1"]
[2184,"رياض عبدالمنعم ابراهيم احمد","معلم خبير","لغة عربية","منشأة بشارة","منشأة بشارة الابتدائيه رقم1"]
[2185,"صباح عبدالستار سليم صالح","معلم خبير","لغة عربية","منشأة بشارة","منشأة بشارة الابتدائيه رقم1"]
[2186,"اسامه ابراهيم حسن احمد","معلم خبير","رياضيات","منشأة بشارة","منشأة بشارة الابتدائيه رقم1"]
[2187,"محمد شاكر عراقى محمد","معلم خبير","لغة عربية","منشأة بشارة","منشأة بشارة الابتدائيه رقم1"]
[2188,"ثريا محمد ثابت على ","معلم خبير","لغة عربية","منشأة بشارة","منشأة بشارة الابتدائيه رقم1"]
[2189,"هانم محمد محمد عبدالله","معلم خبير","لغة عربية","منشأة بشارة","منشأة بشارة الابتدائيه رقم1"]
[2190,"نهال محمود عبدالمقصود متولى","معلم أول","دراسات","منشأة بشارة","منشأة بشارة الابتدائيه رقم1"]
[2191,"امل على حسن السيد","معلم أول","مجال صناعى","منشأة بشارة","منشأة بشارة الابتدائيه رقم1"]
[2192,"عادل محمود السعيد السقا","معلم أول","تربية رياضية","منشأة بشارة","منشأة بشارة الابتدائيه رقم1"]
[2193,"منصور محمد السيد على ","فنى تدريس","لغة عربية","منشأة بشارة","منشأة بشارة الابتدائيه رقم1"]
[2194,"اميره محمد احمد ابراهيم","معلم أول","لغة انجليزية","منشأة بشارة","منشأة بشارة الابتدائيه رقم1"]
[2195,"رشا صلاح الدين عبدالله","صحافة","صحافة","منشأة بشارة","منشأة بشارة الابتدائيه رقم1"]
[2196,"فاديه السيد مبروك شبيب","خ نفسى أول أ","خ نفسى أول أ","منشأة بشارة","منشأة بشارة الابتدائيه رقم1"]
[2197,"كوثر ابراهيم عبدالسميع","مشرف نشاط","مشرف نشاط","منشأة بشارة","منشأة بشارة الابتدائيه رقم1"]
[2198,"عبور فاروق سلامه حسن","فنى تشغيل","فنى تشغيل","منشأة بشارة","منشأة بشارة الابتدائيه رقم1"]
[2199,"نهله جابر مراد طريف","فنى تشغيل","فنى تشغيل","منشأة بشارة","منشأة بشارة الابتدائيه رقم1"]
[2200,"فوزيه عطيه محمد عطيه","فنى تشغيل","فنى تشغيل","منشأة بشارة","منشأة بشارة الابتدائيه رقم1"]
[2201,"السيد ابوالمعاطي على ","مدير المدرسه",null,"م بشارة الحسينيه","منشأة بشارة الابتدائيه رقم2"]
[2202,"حنان السيد سالم","وكيل مدرسه",null,"م بشارة  ","منشأة بشارة الابتدائيه رقم2"]
[2203,"ابراهيم ابراهيم منصور","معلم خبير ","لفة عربيه ","الحسينية ","منشأة بشارة الابتدائيه رقم2"]
[2204,"امال حلمي محمود ","خبير ","لغة غربية","م بشارة  ","منشأة بشارة الابتدائيه رقم2"]
[2205,"امل ابراهيم اسماعيل","خبير ","لغة غربية","م بشارة  ","منشأة بشارة الابتدائيه رقم2"]
[2206,"امل محمد فوزي","خبير ","لغة غربية","م بشارة  ","منشأة بشارة الابتدائيه رقم2"]
[2207,"جمال عبدالله طريف","خبير ","لغة غربية","م بشارة  ","منشأة بشارة الابتدائيه رقم2"]
[2208,"حبيبه عبدالعظيم سيداحمد","كبير","لغة غربية","م بشارة  ","منشأة بشارة الابتدائيه رقم2"]
[2209,"حنان فرح عطيه ","اخصائي نفسي ",null,"م بشارة  ","منشأة بشارة الابتدائيه رقم2"]
[2210,"حنان فوزي رمضان ","مشرف نشاط",null,"م بشارة  ","منشأة بشارة الابتدائيه رقم2"]
[2211,"رشا فاروق محمد الصادق","اخصائي نفسي",null,"م بشارة  ","منشأة بشارة الابتدائيه رقم2"]
[2212,"رئفة يوسف عبدالمعطي","خبير","دراسات","م بشارة  ","منشأة بشارة الابتدائيه رقم2"]
[2213,"سامي عبداللطيف عبدالكريم","معلم اول أ","عربي","م بشارة  ","منشأة بشارة الابتدائيه رقم2"]
[2214,"ساميه صالح محمد","خبير ","دين","م بشارة  ","منشأة بشارة الابتدائيه رقم2"]
[2215,"سحر السيد عبدالعال ","خبير ","رياضيات","م بشارة  ","منشأة بشارة الابتدائيه رقم2"]
[2216,"سحر عبدالعظيم ابوالمعاطي","خبير ","عربي","م بشارة  ","منشأة بشارة الابتدائيه رقم2"]
[2217,"سحر نبيل غنيمي","خبير ","عربي","م بشارة  ","منشأة بشارة الابتدائيه رقم2"]
[2218,"سعيد محمد ابراهيم","مدرس خط",null,"م بشارة  ","منشأة بشارة الابتدائيه رقم2"]
[2219,"سميرة السيد عبدالعال","خبير ","عربي","م بشارة  ","منشأة بشارة الابتدائيه رقم2"]
[2220,"شيماء زكريا عبدالقادر ","معلم اول","حاسب","م بشارة  ","منشأة بشارة الابتدائيه رقم2"]
[2221,"عبدالله عبدالعزيز محمد عبدالعزيز ","خبير ","بدنية","م بشارة  ","منشأة بشارة الابتدائيه رقم2"]
[2222,"عفاف محمد السعيد عطيه ","خبير ","دين","م بشارة  ","منشأة بشارة الابتدائيه رقم2"]
[2223,"فاديه سليمان ابراهيم ","أخصائي مكتبه ",null,"م بشارة  ","منشأة بشارة الابتدائيه رقم2"]
[2224,"فاطمه محمد محمد حسن ","معلم اول ا","عربي","م بشارة  ","منشأة بشارة الابتدائيه رقم2"]
[2225,"فتحيه عبدالرحمن عبدالعال","خبير ","فنية","م بشارة  ","منشأة بشارة الابتدائيه رقم2"]
[2226,"ليلي عبدالحليم محمد عبدالعزيز ","خبير ","عربي","م بشارة  ","منشأة بشارة الابتدائيه رقم2"]
[2227,"ليلي عبدالعزيز عبدالحميد ","خبير ","دراسات","م بشارة  ","منشأة بشارة الابتدائيه رقم2"]
[2228,"محاسن جمعة ابراهيم ","خبير ","عربي","م بشارة  ","منشأة بشارة الابتدائيه رقم2"]
[2229,"محمد السيد محمد الخارجه","خبير ","غربي","م بشارة  ","منشأة بشارة الابتدائيه رقم2"]
[2230,"محمد شوقي محمد الشافعي ","خبير ","رياضيات","م بشارة  ","منشأة بشارة الابتدائيه رقم2"]
[2231,"محمد عبدالعال حسن ","خبير ","رياضيات","م بشارة  ","منشأة بشارة الابتدائيه رقم2"]
[2232,"محمد عيسى محمد ","خبير ","علوم","م بشارة  ","منشأة بشارة الابتدائيه رقم2"]
[2233,"ملكه احمد علي محمد ","خبير ","علوم","م بشارة  ","منشأة بشارة الابتدائيه رقم2"]
[2234,"مني ابراهيم جاد","خبير ","عربي","م بشارة  ","منشأة بشارة الابتدائيه رقم2"]
[2235,"مني متولي احمد ","خبير ","عربي","م بشارة  ","منشأة بشارة الابتدائيه رقم2"]
[2236,"ناني سلطان عبدالحفيظ ","كبير","عربي","م بشارة  ","منشأة بشارة الابتدائيه رقم2"]
[2237,"نجلاء حسني عبدالقادر ","اخصائي نفسي ",null,"م بشارة  ","منشأة بشارة الابتدائيه رقم2"]
[2238,"نجوان عبدالعظيم محمد ","خبير ","انجليزي","م بشارة  ","منشأة بشارة الابتدائيه رقم2"]
[2239,"نزهه احمد السيد ","خبير ","عربي","م بشارة  ","منشأة بشارة الابتدائيه رقم2"]
[2240,"هويدة صديق محمد علي ","خبير ","عربي","م بشارة  ","منشأة بشارة الابتدائيه رقم2"]
[2241,"وفاء سعيد عبدالحليم","خبير","ربي","م بشارة  ","منشأة بشارة الابتدائيه رقم2"]
[2242,"حسين انور عبدالمعطي ","معلم خبير ","رياضيات ثاني","م راغب","منشأة راغب الابتدائيه القديمه"]
[2243,"صلاح ابراهيم محمد ","معلم خبير ","عربي رابع","م راغب","منشأة راغب الابتدائيه القديمه"]
[2244,"محمود على محمد ","معلم خبير ","عربي خامس","م راغب","منشأة راغب الابتدائيه القديمه"]
[2245,"دولت صالح محمد ","معلم خبير ","عربي ثاني","م راغب","منشأة راغب الابتدائيه القديمه"]
[2246,"نعيمة عبدالمعطي اسماعيل ","معلم خبير ","عربي ثالث","م راغب","منشأة راغب الابتدائيه القديمه"]
[2247,"حياة محمد عطية ","معلم خبير ","عربي اول","م راغب","منشأة راغب الابتدائيه القديمه"]
[2248,"ناهد مصطفى عبده ","معلم خبير ","عربي خامس","م راغب","منشأة راغب الابتدائيه القديمه"]
[2249,"فضيلة السيد عبدالعال ","معلم خبير ","رياضيات خامس وسادس","م راغب","منشأة راغب الابتدائيه القديمه"]
[2250,"زينب محمد عوض","معلم خبير ","رياضة اول","م راغب","منشأة راغب الابتدائيه القديمه"]
[2251,"نادية عبدالقادر سويلم ","معلم اول أ","E ثاني ورابع وخامس وسادس","م راغب","منشأة راغب الابتدائيه القديمه"]
[2252,"عبدالرحمن عبدالسلام شحاته","معلم خبير ","عربي سادس","م راغب","منشأة راغب الابتدائيه القديمه"]
[2253,"نزيهه ابراهيم على ","معلم خبير ","رياضيات ثالث","م راغب","منشأة راغب الابتدائيه القديمه"]
[2254,"امنه كمال على ","م نشاط","م معمل ","م راغب","منشأة راغب الابتدائيه القديمه"]
[2255,"عبدالقادر عبدالجليل على ","م نشاط","تطوير ","م راغب","منشأة راغب الابتدائيه القديمه"]
[2256,"ابراهيم درويش عبدالغفار","مدير المدرسة",null,"الحسينية","منشآة الفولى الابتدائيه المشتركه"]
[2257,"عرفات السيد عامر ","معلم خبير","رياضيات","الظواهرية","منشآة الفولى الابتدائيه المشتركه"]
[2258,"هاله على محمد عيد","معلم خبير","رياضيات","الفولى","منشآة الفولى الابتدائيه المشتركه"]
[2259,"عبدالعظيم عبدالحميد عزب ","معلم خبير","لغة عربية","الظواهرية","منشآة الفولى الابتدائيه المشتركه"]
[2260,"حنان شلبايه محمد","معلم أول  أ","علوم","الفولى","منشآة الفولى الابتدائيه المشتركه"]
[2261,"هنيه محمد السيد نجم","معلم أول  أ","لغة عربية","الفولى","منشآة الفولى الابتدائيه المشتركه"]
[2262,"ناهد عبدالعظيم يونس","معلم أول  أ","لغة عربية","الفولى","منشآة الفولى الابتدائيه المشتركه"]
[2263,"ايمان منصور ابراهيم","معلم أول  أ","دراسات","الفولى","منشآة الفولى الابتدائيه المشتركه"]
[2264,"محمد محمود احمد على","معلم أول  أ","لغة عربية","الفولى","منشآة الفولى الابتدائيه المشتركه"]
[2265,"محمود التهامى السيد","معلم أول  ","حاسب آلى","الحسينية","منشآة الفولى الابتدائيه المشتركه"]
[2266,"تامر عبدالحميد سليمان","أخصائى اجتماعى","اخصائى اجتماعى","الظواهرية /المغربى","منشآة الفولى الابتدائيه المشتركه"]
[2267,"منى السيد سالم ","معلم مساعد","لغة عربية","الفولى","منشآة الفولى الابتدائيه المشتركه"]
[2268,"روايح حامد مسعود ","فنى خط","لغة عربية","السعدى بشارة","منشآة الفولى الابتدائيه المشتركه"]
[2269,"وجيه السيد حسن ","مشرف نشاط","مشرف نشاط","الفولى","منشآة الفولى الابتدائيه المشتركه"]
[2270,"حمدى محمد احمد عبدالغنى","مشرف نشاط","مشرف نشاط","الفولى","منشآة الفولى الابتدائيه المشتركه"]
[2271,"محمد عبدالله عبدالرحمن","مشرف نشاط","مشرف نشاط","الفولى","منشآة الفولى الابتدائيه المشتركه"]
[2272,"ساميه محمد احمد","مشرف نشاط","مشرف نشاط","الفولى","منشآة الفولى الابتدائيه المشتركه"]
[2273,"صفاء عبدالمنعم عبدالحميد","مشرف نشاط","مشرف نشاط","الفولى","منشآة الفولى الابتدائيه المشتركه"]
[2274,"علا حسن شحاته ","مشرف نشاط","مشرف نشاط","الفولى","منشآة الفولى الابتدائيه المشتركه"]
[2275,"سحر اسماعيل محمد","مشرف نشاط","مشرف نشاط","الفولى","منشآة الفولى الابتدائيه المشتركه"]
[2276,"سلامه محمود محمد محمد","مدير","مدير","سماكين الغرب ابو شوشه","نجع عبدالسلام للتعليم الاساسى"]
[2277,"محمود جابر عطوان جاب الله","وكيل","وكيل","سماكين الغرب نجع عبدالسلام","نجع عبدالسلام للتعليم الاساسى"]
[2278,"محمد ناجى عوض مبارك","معلم اول ا","لغه عربيه","سماكين الغرب نجع عبدالسلام","نجع عبدالسلام للتعليم الاساسى"]
[2279,"محمد يوسف ابراهيم","معلم اول ا","لغه عربيه","سماكين الغرب نجع عبدالسلام","نجع عبدالسلام للتعليم الاساسى"]
[2280,"سحر محمد خليل ","معلم خبير","لغه عربيه","سماكين الغرب نجع عبدالسلام","نجع عبدالسلام للتعليم الاساسى"]
[2281,"فاديه عبدالسلام اسماعيل عطيه","معلم اول ا","لغه عربيه","سماكين الغرب نجع عبدالسلام","نجع عبدالسلام للتعليم الاساسى"]
[2282,"امانى عبدالرحمن عبدالرحمن محمود","معلم اول ","لغه عربيه","سماكين الغرب المصرى","نجع عبدالسلام للتعليم الاساسى"]
[2283,"هانم خليل عبدالسلام","معلم اول ","لغه عربيه","سماكين الغرب المصرى","نجع عبدالسلام للتعليم الاساسى"]
[2284,"محمد عبدالقادر عبدالقوى","معلم","لغه عربيه","سماكين الغرب ","نجع عبدالسلام للتعليم الاساسى"]
[2285,"محمد عبدالفتاح على الشحات","معلم خبير","رياضيات","سماكين الغرب المصرى","نجع عبدالسلام للتعليم الاساسى"]
[2286,"عزيزه على عبدالسلام على","معلم خبير","رياضيات","سماكين الغرب نجع عبدالسلام","نجع عبدالسلام للتعليم الاساسى"]
[2287,"سامى طلبه على عبدالواحد","معلم خبير","رياضيات","سماكين الغرب المصرى","نجع عبدالسلام للتعليم الاساسى"]
[2288,"خوله عبدالحميد محمد فرج","معلم خبير","رياضيات","سماكين الغرب نجع عبدالسلام","نجع عبدالسلام للتعليم الاساسى"]
[2289,"على عبدالودود السيد","معلم اول ا","علوم","سماكين الغرب المغازى","نجع عبدالسلام للتعليم الاساسى"]
[2290,"عبدالحليم عبدالرحمن على","معلم اول ا","دراسات","سماكين الغرب ابو شوشه","نجع عبدالسلام للتعليم الاساسى"]
[2291,"ايهاب رضوان مصطفى ","معلم اول ","تربيه رياضيه","الملكيين القبليه","نجع عبدالسلام للتعليم الاساسى"]
[2292,"مها على حسن على","معلم اول ","حايسب آلى","سماكين الغرب المصرى","نجع عبدالسلام للتعليم الاساسى"]
[2293,"امانى احمد محمود موسي","معلم اول ","دراسات","سماكين الغرب","نجع عبدالسلام للتعليم الاساسى"]
[2294,"لمياء محمد الشحات","اخصائي نفسى","اخصائى نفسى","سماكين الغرب المصرى","نجع عبدالسلام للتعليم الاساسى"]
[2295,"سهام متولى محمد يوسف","فنى تشغيل","فنى تشغيل","سماكين الغرب نجع عبدالسلام","نجع عبدالسلام للتعليم الاساسى"]
[2296,"اميرة الناجى عوض مبارك","فنى تشغيل","فنى تشغيل","سماكين الغرب نجع عبدالسلام","نجع عبدالسلام للتعليم الاساسى"]
[2297,"رندا عدلى عبدالسلام","فنى تشغيل","فنى تشغيل","سماكين الغرب نجع عبدالسلام","نجع عبدالسلام للتعليم الاساسى"]
[2298,"محمد صابر احمد برعى","كاتب رابع","كاتب رابع","سماكين الغرب ابو شوشه","نجع عبدالسلام للتعليم الاساسى"]
[2299,"شريف عبد الله محمد السيد","معلم اول","لغة عربية","عزبة وكيل النيابة صان الحجر","وكيل النيابة الابتدائيه"]
[2300,"محيسن حنفى مهم حنفى","معلم اول ا","لغة عربية","عزبة وكيل النيابة صان الحجر","وكيل النيابة الابتدائيه"]
[2301,"محمد عبد القادر السيد","معلم اول","دراسات اجتماعية","الناصرية صان الحجر","وكيل النيابة الابتدائيه"]
[2302,"محمد سليمان سالم سلامة","فنى تدريس ","لغة عربية","وكيل النيابة صان الحجر","وكيل النيابة الابتدائيه"]
[2303,"محمد رمضان حنفى ","معلم اول","زراعة","وكيل النيابة صان الحجر","وكيل النيابة الابتدائيه"]
[2304,"عبد الرحمن ابراهيم الدسوقى","معلم اول ا","لغة عربية","منشاة ابوعامر الحسينية","وكيل النيابة الابتدائيه"]
[2305,"يسرى على عبد السلام","فنى تشغيل","فى تشغيل","الناصرية صان الحجر","وكيل النيابة الابتدائيه"]
[2306,"عبد العال على عبد العال","معلم مساعد","لغة انجليزية","منشأة ابو عامر الحسينية","وكيل النيابة الابتدائيه"]
[2307,"محمد حسن متولي محمد ","مدير المدرسة ",null,"علي رأس العمل ","وكيل النيابة الاعداديه"]
[2308,"نصار محمد سلطان احمد ","معلم خبير ","لغة عربية ","علي رأس العمل ","وكيل النيابة الاعداديه"]
[2309,"إيهاب عبد العظيم السيد سليم ","معلم خبير ","مجال زراعي ","علي رأس العمل ","وكيل النيابة الاعداديه"]
[2310,"محمد حسين احمد سعد ","معلم أول أ ","تربية فنية ","علي رأس العمل ","وكيل النيابة الاعداديه"]
[2311,"فتحي عبد العزيز عبد الفتاح حسن ","معلم أول أ ","دراسات ","علي رأس العمل ","وكيل النيابة الاعداديه"]
[2312,"سماح محمد هلال عبد الوهاب ","معلم أول أ ","علوم ","علي رأس العمل ","وكيل النيابة الاعداديه"]
[2313,"حمادة عبد المنعم عبد الرحمن السيد ","معلم أول ","انجليزي ","علي رأس العمل ","وكيل النيابة الاعداديه"]
[2314,"عصام احمد عبد الصمد احمد ","معلم أول ","اخصائي إجتماعي ","علي رأس العمل ","وكيل النيابة الاعداديه"]
[2315,"نسرين سليمان احمد سعد ","معلم أول ","حاسب آلي ","علي رأس العمل ","وكيل النيابة الاعداديه"]
[2316,"محمد عبد الحميد جمال عبد الحميد ","كاتب ",null,"علي رأس العمل ","وكيل النيابة الاعداديه"]
[2317,"ثروت متولي طلبه محمد ","أمين معمل ",null,"علي رأس العمل ","وكيل النيابة الاعداديه"]
[2318,"هناء محمود عبد الحميد عبسي ","أمين معمل ",null,"علي رأس العمل ","وكيل النيابة الاعداديه"]
[2319,"شرين محمد احمد سعد ","فني تشغيل ",null,"علي رأس العمل ","وكيل النيابة الاعداديه"]
[2320,"هديه الهادي سعيد احمد ","فني تشغيل ",null,"علي رأس العمل ","وكيل النيابة الاعداديه"]
[2321,"ابراهيم جميل علي مرعي‎","معلم أول أ","مدرس فصل","الحسينية","يوسف عطوان الرسمية الابتدائيه للغات"]
[2322,"ايمان السيد محمد محمد عبدالرازق‎","معلم أول أ","لغة عربية ودين","الحسينية","يوسف عطوان الرسمية الابتدائيه للغات"]
[2323,"ايمان عبدالله علي مرسي‎","معلم","حاسب آلى متفرغ","الحسينية","يوسف عطوان الرسمية الابتدائيه للغات"]
[2324,"ايمان محمد السيد يوسف‎","معلم أول أ","لغة عربية ودين","الحسينية","يوسف عطوان الرسمية الابتدائيه للغات"]
[2325,"بسمة عبدالرحمن فتحى عبدالله ","معلم   ","لغة انجليزية ","الحسينيه","يوسف عطوان الرسمية الابتدائيه للغات"]
[2326,"جيهان عبدالجواد ابراهيم عكر‎","فنى تشغيل وسائل تعليمية‎","فنى تشغيل وسائل تعليمية‎","الحسينية","يوسف عطوان الرسمية الابتدائيه للغات"]
[2327,"حمدى احمد الهادى محمد‎","معلم أول أ","مدرس فصل","الحسينية","يوسف عطوان الرسمية الابتدائيه للغات"]
[2328,"حمدي محمد محمد محمد عيسوي‎","معلم أول أ","رياضيات","الحسينية","يوسف عطوان الرسمية الابتدائيه للغات"]
[2329,"رحاب فؤاد بيومى موسى‎","معلم خبير","لغة عربية ودين","الحسينية","يوسف عطوان الرسمية الابتدائيه للغات"]
[2330,"رشا فرج عبدالقادر السيد‎","معلم","لغة عربية ودين","الحسينية","يوسف عطوان الرسمية الابتدائيه للغات"]
[2331,"زينب عبدالرحمن ابراهيم متولى‎","معلم","خط عربى","الحسينية","يوسف عطوان الرسمية الابتدائيه للغات"]
[2332,"سالم عبدالمقصود سالم ابراهيم‎","معلم أول أ","رياضيات","الحسينية","يوسف عطوان الرسمية الابتدائيه للغات"]
[2333,"سعاد رشاد محمد غريب ابو علوان‎","اعدادى  نشاط‎) ‎أ ‎( ‎مشرف ‎","اعدادى  نشاط‎) ‎أ ‎( ‎مشرف ‎","الحسينية","يوسف عطوان الرسمية الابتدائيه للغات"]
[2334,"سلسبيل ابوبكر عبدالحميد يس‎","معلم","لغة عربية ودين","الحسينية","يوسف عطوان الرسمية الابتدائيه للغات"]
[2335,"سعاد ابراهيم عبدالرحمن ","عامل خدمات","عامل خدمات","الحسينيه","يوسف عطوان الرسمية الابتدائيه للغات"]
[2336,"سميحه رشيد عامر عسر‎","سكرتير رابع‎- ‎كاتب رابع‎","سكرتير رابع‎- ‎كاتب رابع‎","الحسينية","يوسف عطوان الرسمية الابتدائيه للغات"]
[2337,"سميه احمد علي عبدالقادر‎","معلم أول أ","لغة عربية ودين","الحسينية","يوسف عطوان الرسمية الابتدائيه للغات"]
[2338,"عادل محمد حسن ابراهيم‎","معلم أول","علوم","الحسينية","يوسف عطوان الرسمية الابتدائيه للغات"]
[2339,"عبد الستار سليم عبد العاطى ابراهيم‎","معلم خبير","لغة عربية ودين","الحسينية","يوسف عطوان الرسمية الابتدائيه للغات"]
[2340,"علاء رشدي ابراهيم السيد‎","معلم أول","لغة إنجليزية","الحسينية","يوسف عطوان الرسمية الابتدائيه للغات"]
[2341,"فاتن محمد جابر مصطفى‎","معلم أول","لغة عربية ودين","الحسينية","يوسف عطوان الرسمية الابتدائيه للغات"]
[2342,"فرحان ابراهيم السيد عوض‎","معلم أول أ","رياضيات","الحسينية","يوسف عطوان الرسمية الابتدائيه للغات"]
[2343,"محمد السعيد احمد محمد‎","معلم خبير","مجال زراعى","الحسينية","يوسف عطوان الرسمية الابتدائيه للغات"]
[2344,"محمد السيد تهامي السيد‎","معلم أول","لغة إنجليزية","الحسينية","يوسف عطوان الرسمية الابتدائيه للغات"]
[2345,"محمد عبدالعزيز سيداحمد سالم‎","معلم","لغة عربية ودين","الحسينية","يوسف عطوان الرسمية الابتدائيه للغات"]
[2346,"نجلاء سعيد عبدالرازق احمد‎","معلم","لغة عربية ودين","الحسينية","يوسف عطوان الرسمية الابتدائيه للغات"]
[2347,"رباب عادل اسماعيل احمد ","معلم اول","دراسات اجتماعية","الحسينية","يوسف عطوان الرسمية الابتدائيه للغات"]
[2348,"مى ابراهيم احمد سيد احمد","فنى تشغيل","فنى تشغيل","الحسينية","يوسف عطوان الرسمية الابتدائيه للغات"]
[2349,"محمد احمد عبدالستار","عامل خدمات","عامل خدمات","الحسينية","يوسف عطوان الرسمية الابتدائيه للغات"]
[2350,"هانى السيد على سباعى","عامل خدمات","عامل خدمات","الحسينية","يوسف عطوان الرسمية الابتدائيه للغات"]
[2351,"نعمات محمد حسين قناوى","عامل خدمات","عامل خدمات","الحسينية","يوسف عطوان الرسمية الابتدائيه للغات"]
[2352,"كريم رشيد عبد العاطي","معلم اول ","انجليزي","السعدى","يوسف عطوان الرسمية الابتدائيه للغات"]
[2353,"السيد ابراهيم محمد محمود ","مدير مدرسه","رياضيات","الحسينيه","يوسف عطوان الرسمية الاعداديه للغات "]
[2354,"هاله الشبراوي السيد","وكيل","انجليزى","الحسينيه","يوسف عطوان الرسمية الاعداديه للغات "]
[2355,"أحمد السيد محمد","معلم","عربي","الحسينيه","يوسف عطوان الرسمية الاعداديه للغات "]
[2356,"يحيي محمد عوض الله","كبير معلمين","انجليزي","الحسينيه","يوسف عطوان الرسمية الاعداديه للغات "]
[2357,"فادي فاروق غالي ","معلم اول أ","انجليزي","سعود","يوسف عطوان الرسمية الاعداديه للغات "]
[2358,"أحمد محمد عبد الصمد","معلم اول","علوم ","الحسينيه","يوسف عطوان الرسمية الاعداديه للغات "]
[2359,"ايمان محمد عبد الستار","معلم اول ","فرنساوي","الحسينيه","يوسف عطوان الرسمية الاعداديه للغات "]
[2360,"امال عبد السلام محمد ","معلم اول أ","تربية فنية ","الحسينيه","يوسف عطوان الرسمية الاعداديه للغات "]
[2361,"مي عبد العزيز احمد ","معلم","تربية فنية","الحسينيه","يوسف عطوان الرسمية الاعداديه للغات "]
[2362,"اميمة عبد الشافي يونس","أخصائي خبير","مسرح","الحسينيه","يوسف عطوان الرسمية الاعداديه للغات "]
[2363,"حنان علي حسن","أخصائي نفسي اول","أخصائي نفسي","الحسينيه","يوسف عطوان الرسمية الاعداديه للغات "]
[2364,"علي السيد قطب علي ","معلم","تربية رياضية","الحسينيه","يوسف عطوان الرسمية الاعداديه للغات "]
[2365,"وفاء سويلم السيد مصطفي","معلم","زراعة ","الحسينيه","يوسف عطوان الرسمية الاعداديه للغات "]
[2366,"منى على حسن ","معلم","دراسات","الحسينيه","يوسف عطوان الرسمية الاعداديه للغات "]
[2367,"رباب عادل اسماعيل احمد الافى","معلم","دراسات","الحسينية","يوسف عطوان الرسمية الاعداديه للغات "]
[2368,"اكرام ابراهيم عبدالعال ","اخصائى اول ","اخصائى اجتماعى ","الحسينية ","يوسف عطوان الرسمية الاعداديه للغات "]
[2369,"رجب صلاح الدين موسى ","معلم اول ا ","لغة انجليزية ","الظواهرية ","يوسف عطوان الرسمية الاعداديه للغات "]
[2370,"على السيد قطب على ","معلم ","تربية رياضية ","الحسينيه ","يوسف عطوان الرسمية الاعداديه للغات "]
[2371,"مجدى امام محمد احمد ","معلم ","لغة عربية ودين ","الحسينيه ","يوسف عطوان الرسمية الاعداديه للغات "]
[2372,"هدى السيد عبدالعال ","فنى معمل ","فنى معمل ","الحسينيه ","يوسف عطوان الرسمية الاعداديه للغات "]
[2373,"وسام فرج عبدالرؤوف  عبدالوهاب ","معلم اول ا ","لغة عربية ودين ","الحسينيه ","يوسف عطوان الرسمية الاعداديه للغات "]
[2374,"الشبراوى منصور سالم عبدالعال","كاتب اول",null,"الملكيين القبليه","يوسف عطوان الرسمية الاعداديه للغات "]
[2375,"هدي السيد عبدالعال","امين معمل","معمل","الحسينيه","يوسف عطوان الرسمية الاعداديه للغات "]
[2376,"سمير سعيد عبده الحبشى","كاتب اول","كاتب","الملكيين القبليه","يوسف عطوان الرسمية الاعداديه للغات "]

{"sheet":"Sheet1","index":3,"n_rows":634,"n_cols":6,"rows_kept":634,"cut":false,"hidden":true,"merged":[]}
["م","الاســـــــــــــــــــــــــم","الوظيفة ","الماده","الاقامه الحاليه ","اسم المدرسة "]
[618,"ابراهيم محمد احمد عوض","م0أ0أ","لغة عربيه ","الحسينية","ازولين الابتدائيه"]
[619,"نسرين اسماعيل محمد","م0أ0أ","لغة عربيه ","ازولين","ازولين الابتدائيه"]
[620,"حورية حسن عبداللطيف","م0أ0أ","لغة عربيه ","الحسينية","ازولين الابتدائيه"]
[621,"عبدالرحمن محمد عبدالرحمن","م0أ0أ","لغة عربيه ","ازولين","ازولين الابتدائيه"]
[622,"هاشم عبدالولي احمد","م0أ ","لغة عربيه ","الحسينية","ازولين الابتدائيه"]
[623,"وفاء رزق مسعد عريف","م0أ ","لغة عربيه ","ازولين","ازولين الابتدائيه"]
[624,"سماح منصور محمد","م0أ ","لغة عربيه ","الحسينية","ازولين الابتدائيه"]
[625,"مرفت عبدالحميد عبدالعزيز","م0أ ","لغة عربيه ","الحسينية","ازولين الابتدائيه"]
[626,"رحاب يحيى السيد ابراهيم","م0أ ","لغة عربيه ","الحسينية","ازولين الابتدائيه"]
[627,"امنية حسام الدين احمد","معلم مساعد","لغة عربيه","ازولين","ازولين الابتدائيه"]
[628,"اميرة عبدالحكيم السيد","معلم مساعد","إنجليزي","الحسينية","ازولين الابتدائيه"]
[629,"فيروز حسن محمد","اخصائية اجتماعية",null,"ع محمد عبيد","ازولين الابتدائيه"]
[630,"عبدالرحيم محمود محمد","م نشاط","مسؤل امن","ازولين","ازولين الابتدائيه"]
[631,"عبدالله ابراهيم محمد","فنى معمل",null,"زولين","ازولين الابتدائيه"]
[632,"نادرة محمد اسماعيل","فنى تشغيل",null,"زولين","ازولين الابتدائيه"]
[633,"السيد محمد الطوخي","كاتب",null,"الحسينية","ازولين الابتدائيه"]
[422,"حسن عبد الله احمد عامر","معلم خبير- مدير مدرسة","مدير المدرسة","البياضية مركز الحسينية - الشرقية","الجزيرة الابتدائيه"]
[423,"محمد خير عباس خير","معلم خبير- وكيل  مدرسة","وكيل المدرسة","البياضية مركز الحسينية - الشرقية","الجزيرة الابتدائيه"]
[424,"ابراهيم محمد محمد درويش","معلم خبير","لغة عربية ودين","البياضية مركز الحسينية - الشرقية","الجزيرة الابتدائيه"]
[425,"ابوزيد مطر سلامة حمد","معلم خبير","دراسات","البياضية مركز الحسينية - الشرقية","الجزيرة الابتدائيه"]
[426,"فايزة محمد عوض عطية","معلم خبير","رياضيات","ع الفطراني - ام صوير","الجزيرة الابتدائيه"]
[427,"فاطمة عبد العزيز احمد عبد العال","معلم خبير","رياضيات","البياضية مركز الحسينية - الشرقية","الجزيرة الابتدائيه"]
[428,"عمر بكري سليمان سالم","معلم خبير","رياضيات","البياضية مركز الحسينية - الشرقية","الجزيرة الابتدائيه"]
[429,"محمد ابراهيم عبدالعزيز حسين","معلم اول ا","لغة انجليزية","ام عجرم  مركز فاقوس - الشرقة","الجزيرة الابتدائيه"]
[430,"سلامة شحتة سلامة سالم","معلم اول ا","لغة عربية ودين","البياضية مركز الحسينية - الشرقية","الجزيرة الابتدائيه"]
[431,"علي محمد علي غريب","معلم اول ا","تربية رياضية","الحسينية عزبة التل","الجزيرة الابتدائيه"]
[432,"عبدالحميد محمودي صالح علي","معلم اول","لغة عربية ودين","البياضية مركز الحسينية - الشرقية","الجزيرة الابتدائيه"]
[433,"نيره فاكر الشافعي ابو العينين","معلم اول","علوم","البياضية مركز الحسينية - الشرقية","الجزيرة الابتدائيه"]
[434,"نعيمه عبدالهادى عبدالرحمن ابراهيم","معلم اول","حاسب الى","النجار - م ابوعامر - الحسينية","الجزيرة الابتدائيه"]
[435,"فاطمه السيد عبده حسن","معلم اول","لغة عربية ودين","البياضية مركز الحسينية - الشرقية","الجزيرة الابتدائيه"]
[436,"طارق يوسف ابراهيم هنداوى","معلم اول","لغة عربية ودين","جميمة مركز الحسينية - الشرقية","الجزيرة الابتدائيه"]
[437,"الاحمدي محمد عبدالعال احمد موافي","معلم","لغة عربية ودين","منشاة ابوعامر","الجزيرة الابتدائيه"]
[438,"سحر محمد على حسين","فنى تشغيل وسائل تعليمية",null,"عرب درويش-فاقوس","الجزيرة الابتدائيه"]
[439,"حماده حسين بركات حسين","فني تشغيل رابع ب",null,"البياضية مركز الحسينية - الشرقية","الجزيرة الابتدائيه"]
[440,"ناديه فارس سلمى سالم","كاتب رابع- سكرتير رابع",null,"عرب درويش-فاقوس","الجزيرة الابتدائيه"]
[441,"ليلى رجب مصطفى الامير","عامل خدمات",null,"البياضية مركز الحسينية - الشرقية","الجزيرة الابتدائيه"]
[442,"محمد سليمان سالم ابراهيم","عامل خدمات",null,"البياضية مركز الحسينية - الشرقية","الجزيرة الابتدائيه"]
[66,"فايزة محمد جاد جاد الله","معلم خبير","معلم فصل","الاخيوة","الشهيد احمد اسماعيل الابتدائيه بالاخيوة"]
[67,"وداد محمد احمد علي","معلم خبير","معلم فصل","الاخيوة","الشهيد احمد اسماعيل الابتدائيه بالاخيوة"]
[68,"يوسف عبد الرحمن عبد الله","معلم خبير","معلم فصل","الصالحية القديمة","الشهيد احمد اسماعيل الابتدائيه بالاخيوة"]
[69,"خالد عبد المنعم سلامه خليل","معلم خبير","معلم فصل","الاخيوة","الشهيد احمد اسماعيل الابتدائيه بالاخيوة"]
[70,"سناء خليل محمد سالم","معلم خبير","معلم فصل","الاخيوة","الشهيد احمد اسماعيل الابتدائيه بالاخيوة"]
[71,"عبد العزيز ابراهيم علي ابراهيم","معلم خبير","معلم فصل","الاخيوة","الشهيد احمد اسماعيل الابتدائيه بالاخيوة"]
[72,"اسماء احمد عمرو محمد","معلم خبير","معلم فصل","الاخيوة","الشهيد احمد اسماعيل الابتدائيه بالاخيوة"]
[73,"محمد السيد محمد الهادي","معلم أول أ","رياضيات","الاخيوة","الشهيد احمد اسماعيل الابتدائيه بالاخيوة"]
[74,"محمد فتحي شحاتة مقبل","أخصائي مسرح","أخصائي مسرح","الاخيوة","الشهيد احمد اسماعيل الابتدائيه بالاخيوة"]
[75,"ليلي ابراهيم إبراهيم مقبل","معلم","انجليزي","الاخيوة","الشهيد احمد اسماعيل الابتدائيه بالاخيوة"]
[76,"فاطمة محمد احمد مصطفى","أمين مكتبة","امين مكتبة","الاخيوة","الشهيد احمد اسماعيل الابتدائيه بالاخيوة"]
[77,"مشيره احمد المصيلحي محمد","أخصائي اجتماعي أول","اخصائي اجتماعي","الاخيوة","الشهيد احمد اسماعيل الابتدائيه بالاخيوة"]
[78,"اكرام سليمان جاد الحق محمد","مشرف نشاط","مشرف نشاط","الاخيوة","الشهيد احمد اسماعيل الابتدائيه بالاخيوة"]
[79,"فادية محمد اسماعيل خليل","كاتب أول","كاتب أول","الاخيوة","الشهيد احمد اسماعيل الابتدائيه بالاخيوة"]
[80,"السيد احمد السيد ابراهيم","كاتب أول","كاتب أول","الاخيوة","الشهيد احمد اسماعيل الابتدائيه بالاخيوة"]
[81,"علاء محمد الحسيني محمد خاطر","مشرف نشاط","مشرف نشاط","الاخيوة","الشهيد احمد اسماعيل الابتدائيه بالاخيوة"]
[291,"عبدالعال السيد ابراهيم محمد","مدير","مدير ","عزبة المناجاة","الشهيد احمد نجم الابتدائيه"]
[292,"فتحى سعدالدين حسن على","وكيل","وكيل","عزبة المناجاة","الشهيد احمد نجم الابتدائيه"]
[293,"شريف احمدحسين سالم","معلم خبير","لغة عربية","عزبة المناجاة","الشهيد احمد نجم الابتدائيه"]
[294,"عبدالمنعم رياض عطية ابراهيم","معلم خبير","لغة عربية","عزبة المناجاة","الشهيد احمد نجم الابتدائيه"]
[295,"اشرف رشدى الشوادفى امام","معلم اول","لغة عربية","سعود","الشهيد احمد نجم الابتدائيه"]
[296,"عبدالمنعم السيد يوسف السيد","خط عربى","فنى خط","الحسينية","الشهيد احمد نجم الابتدائيه"]
[297,"احمد محمد السيد محمد احمد الطنانى","معلم خبير","مجال زراعى","عزبة المناجاة","الشهيد احمد نجم الابتدائيه"]
[298,"راوية ابراهيم عباس عبدربه","معلم اول","داراسات","سعود","الشهيد احمد نجم الابتدائيه"]
[299,"امال عبدالله موسى على","معلم اول","داراسات","عزبة المناجاة","الشهيد احمد نجم الابتدائيه"]
[300,"جمال عبدالغنى محمد محمد","معلم خبير","لغة عربية","الحسينية","الشهيد احمد نجم الابتدائيه"]
[301,"ثروت محمد عبدالعال محمد","معلم خبير","رياضة","الحسينية","الشهيد احمد نجم الابتدائيه"]
[302,"غادة فاروق محمدمحمد","معلم اول","لغة عربية","سعود","الشهيد احمد نجم الابتدائيه"]
[303,"احمد السيد احمد السيد","معلم خبير","رياضة","الحسينية","الشهيد احمد نجم الابتدائيه"]
[304,"عبدالصمد محمد ابراهيم محمد","مشرف نشاط","مشرف نشاط","سعود","الشهيد احمد نجم الابتدائيه"]
[305,"صلاح كامل ميلاد موسى","معلم خبير","رياضة","الحسينية","الشهيد احمد نجم الابتدائيه"]
[306,"غادة ابراهيم مصطفى محمد","فنى تشغيل","فنى تشغيل","عزبة المناجاة","الشهيد احمد نجم الابتدائيه"]
[307,"هناء غازى محمد غازى","كاتب اول ا","كاتب اول","عزبة المناجاة","الشهيد احمد نجم الابتدائيه"]
[308,"محمدابراهيم حسن ابراهيم","كاتب اول ا","كاتب اول","عزبة المناجاة","الشهيد احمد نجم الابتدائيه"]
[309,"محمد فهيم عطية حسين","معلم خبير","رياضة","الحسينية","الشهيد احمد نجم الابتدائيه"]
[310,"ايهاب على ابراهيم عبدالجواد","معلم اول","حاسب الى","الحسينية","الشهيد احمد نجم الابتدائيه"]
[311,"هناء عبدالعزيزمحمدمحمد","معلم خبير","لغة عربية","عزبة المناجاة","الشهيد احمد نجم الابتدائيه"]
[312,"عواطف ابراهيم حسن ابراهيم","معلم خبير","لغة عربية","عزبة المناجاة","الشهيد احمد نجم الابتدائيه"]
[313,"كوثر السيد ابراهيم عبدالحق","معلم خبير","لغة عربية","عزبة المناجاة","الشهيد احمد نجم الابتدائيه"]
[314,"رياض عباس محمد تابراهيم","معلم اول","لغة عربية","عزبة المناجاة","الشهيد احمد نجم الابتدائيه"]
[315,"فادية احمد حسين محمد","فنى تشغيل","فنى تشغيل","عزبة المناجاة","الشهيد احمد نجم الابتدائيه"]
[316,"ايناس عبدالعزيز محمود محمد","معلم مساعد","لغة عربية","عزبة المناجاة","الشهيد احمد نجم الابتدائيه"]
[317,"اسماء على اسماعيل على","معلم مساعد","انجليزى","الحسينية","الشهيد احمد نجم الابتدائيه"]
[318,"سعده احمد احمد محمد","معلم اول ","دراسات","سعود","الشهيد احمد نجم الابتدائيه"]
[319,"عبير محمد السيد محمد ","اخصائى اجتماعى","اخصائى اجتماعى","عزبة المناجاة","الشهيد احمد نجم الابتدائيه"]
[320,"بشرى حجازى اعطية احمد","عامل معمل","عامل معمل","سعود","الشهيد احمد نجم الابتدائيه"]
[321,"نورا محمد سعون ","كاتب رابع","كاتب رابع","عزبة المناجاة","الشهيد احمد نجم الابتدائيه"]
[196,"ألفت احمد محمد محمد","معلم خبير","معلم فصل (لغة عربية)","سماكين الشرق  مركز الحسينية","العوامرة للتعليم الاساسى ب"]
[197,"فايزه محمد رأفت إبراهيم","معلم خبير","معلم فصل (لغة عربية)","سماكين الشرق  مركز الحسينية","العوامرة للتعليم الاساسى ب"]
[198,"مرفت عبد العزيز سليمان ابراهيم","معلم خبير","رياضيات","سماكين الشرق  مركز الحسينية","العوامرة للتعليم الاساسى ب"]
[199,"نفيسة عبد الفتاح عبد الحق ","معلم خبير","معلم فصل (لرياضيات)","سماكين الشرق  مركز الحسينية","العوامرة للتعليم الاساسى ب"]
[200,"حنان أحمد محمد إبراهيم","معلم خبير","معلم فصل (لغة عربية)","سماكين الشرق  مركز الحسينية","العوامرة للتعليم الاساسى ب"]
[201,"رضة إبراهيم على محمد","معلم خبير","معلم فصل (لرياضيات)","سماكين الشرق  مركز الحسينية","العوامرة للتعليم الاساسى ب"]
[202,"صفية عبد الرحمن محمد سليمان","معلم خبير","معلم فصل (لرياضيات)","سماكين الشرق  مركز الحسينية","العوامرة للتعليم الاساسى ب"]
[203,"عواطف عبد الهادى محمد سالم","معلم خبير","لغة عربية","سماكين الشرق  مركز الحسينية","العوامرة للتعليم الاساسى ب"]
[204,"رابحة حسن على إبراهيم","معلم خبير","معلم فصل (لغة عربية)","قصاصين الشرق  مركز الحسينية","العوامرة للتعليم الاساسى ب"]
[205,"محمد عبدالحق اسماعيل حسانين","معلم خبير","معلم فصل (لغة عربية)","قصاصين الشرق  مركز الحسينية","العوامرة للتعليم الاساسى ب"]
[206,"ماجده زغلول أحمد عبدالرازق","معلم أول أ","لغة انجليزية","سماكين الشرق  مركز الحسينية","العوامرة للتعليم الاساسى ب"]
[207,"شرين محمد نجيب محمد","معلم أول","حاسب آلى","سماكين الشرق  مركز الحسينية","العوامرة للتعليم الاساسى ب"]
[208,"سناء على محمد على","معلم أول","دراسات اجتماعية","قصاصين الشرق  مركز الحسينية","العوامرة للتعليم الاساسى ب"]
[209,"نوره عبدالستار موسى محمد","امين مكتبة","ـــــــــ","الصالحية القديمة مركز فاقوس","العوامرة للتعليم الاساسى ب"]
[210,"نها الشبراوى إبراهيم محمد","فنى تشغيل وسائل","ــــــــ","سماكين الشرق  مركز الحسينية","العوامرة للتعليم الاساسى ب"]
[211,"هويدا محمد رأفت إبراهيم سليمان","فنى تشغيل وسائل","ــــــــ","سماكين الشرق  مركز الحسينية","العوامرة للتعليم الاساسى ب"]
[212,"فكرية السيد على على","فنى تشغيل وسائل","ــــــــ","سماكين الشرق  مركز الحسينية","العوامرة للتعليم الاساسى ب"]
[213,"وفاء محمد على محمد","فنى تشغيل وسائل","ــــــــ","سماكين الشرق  مركز الحسينية","العوامرة للتعليم الاساسى ب"]
[214,"سونة غازى محمد غازى","فنى تشغيل وسائل","ــــــــ","سماكين الشرق  مركز الحسينية","العوامرة للتعليم الاساسى ب"]
[215,"فاطمة إبراهيم هاشم عبدالله","امين معمل","ــــــــ","سماكين الشرق  مركز الحسينية","العوامرة للتعليم الاساسى ب"]
[216,"نجلاء السيد عبدالبديع على","ش 0 ع","ــــــــ","سماكين الشرق  مركز الحسينية","العوامرة للتعليم الاساسى ب"]
[217,"شرين حسين أحمد هنداوى","سكرتير","ــــــــ","سماكين الشرق  مركز الحسينية","العوامرة للتعليم الاساسى ب"]
[553,"مهم سعيد مهم حنفى","معلم خبير ","مدير المدرسة","وكيل النيابة - صان الحجر - شرقية","القعابة للتعليم الأساسى"]
[554,"رمضان محمد اسماعيل سلامة ","معلم خبير ","رياضيات ","المساعيد - صان الحجر - شرقية","القعابة للتعليم الأساسى"]
[555,"حسن محمد حسن عوض ","معلم خبير ","عربى ","المساعيد - صان الحجر - شرقية","القعابة للتعليم الأساسى"]
[556,"احمد محمد عبدالمنعم عبدالمنعم ","معلم خبير ","رياضيات ","الناصرية - صان الحجر - شرقية","القعابة للتعليم الأساسى"]
[557,"فاطمة محمد اسماعيل حسين","معلم خبير ","عربى ","القعابة - صان الحجر - شرقية","القعابة للتعليم الأساسى"]
[558,"حسن سعيد حسن متولى  ","معلم اول","عربى ","الناصرية - صان الحجر - شرقية","القعابة للتعليم الأساسى"]
[559,"سمر السيد عبدالسلام احمد","معلم اول","حاسب آلى ","الحسينية - شرقية","القعابة للتعليم الأساسى"]
[560,"محمد ثروت محمد عبدالعاطى ","معلم اول","لغة عربية ","الحجازية - الحسينية - شرقية","القعابة للتعليم الأساسى"]
[561,"حنان محمد رضا محمد ابراهيم","معلم اول أ ","دراسات","الناصرية - صان الحجر - شرقية","القعابة للتعليم الأساسى"]
[562,"احمد محمود محمد على","معلم اول","عربى ","ام صوير - الحسينية - شرقية","القعابة للتعليم الأساسى"]
[563,"محمد حسن مسلم سليمان ","معلم أول ","رياضيات ","القعابة - صان الحجر - شرقية","القعابة للتعليم الأساسى"]
[564,"شادي على ابراهيم عبدالعال","معلم أول","لغة انجليزية","القعابة - صان الحجر - شرقية","القعابة للتعليم الأساسى"]
[565,"محمد سالم مسلم سالم","معلم","اخصائى تدريس","القعابة - صان الحجر - شرقية","القعابة للتعليم الأساسى"]
[566,"محمد عطيه جمعه داوود","معلم اول","رياضيات ","القعابة - صان الحجر - شرقية","القعابة للتعليم الأساسى"]
[567,"رمضان حسن حسين حسن","معلم أول أ","اخصائى","المصرى - الحسينية - شرقية","القعابة للتعليم الأساسى"]
[568,"محمد حمدى مصطفى احمد","مشرف نشاط",null,"الناصرية - صان الحجر - شرقية","القعابة للتعليم الأساسى"]
[569,"هدى السيد عبدالعال مصطفى","مشرف نشاط",null,"المهندس - فاقوس - شرقية","القعابة للتعليم الأساسى"]
[570,"وردة عبدالقادر مصطفى محمد ","فنى تشغيل",null,"القعابة - صان الحجر - شرقية","القعابة للتعليم الأساسى"]
[571,"عطيات السيد على بكرى","فنى معمل",null,"القعابة - صان الحجر - شرقية","القعابة للتعليم الأساسى"]
[572,"لمياء محمد ابراهيم عبدالعال","كاتب",null,"القعابة - صان الحجر - شرقية","القعابة للتعليم الأساسى"]
[573,"ولاء عبدالرحمن عبدالسلام محمد","فنى معمل",null,"الناصرية - صان الحجر - شرقية","القعابة للتعليم الأساسى"]
[574,"محمد عبدالعزيز حمد محمد","كاتب",null,"القعابة - صان الحجر - شرقية","القعابة للتعليم الأساسى"]
[575,"عبدالله سليمان خضر عبدالله","عامل",null,"القعابة - صان الحجر - شرقية","القعابة للتعليم الأساسى"]
[576,"على السيد على السيد","عامل خدمات",null,"القعابة - صان الحجر - شرقية","القعابة للتعليم الأساسى"]
[401,"عماد محمد محمد ابراهيم ","معلم خبير ","مدير المدرسة "," الشربينى ","الملكيين للتعليم الاساسى"]
[402,"احمد محمد احمد عبدالغنى ","معلم خبير ","معلم فصل ","عزبة ابو غازى  ","الملكيين للتعليم الاساسى"]
[403,"عبدالسلام محمد امين ","معلم خبير ","معلم فصل ","عزبة ابو عمرو","الملكيين للتعليم الاساسى"]
[404,"محمود ابراهيم محمد حسين ","معلم خبير ","معلم فصل ","عزية الحاج مغازى ","الملكيين للتعليم الاساسى"]
[405,"ابراهيم محمد احمد درويش","معلم خبير ","معلم فصل ","الملكيين البحرية ","الملكيين للتعليم الاساسى"]
[406,"ايمن احمد حسن على ","معلم خبير ","معلم فصل ","الملكيين البحرية ","الملكيين للتعليم الاساسى"]
[407,"ابراهيم ابراهيم حمدان ","معلم خبير ","معلم فصل ","الملكيين البحرية ","الملكيين للتعليم الاساسى"]
[408,"وائل ابراهيم محمد ابو العينين ","معلم خبير ","معلم فصل ","عزبة حنانة ","الملكيين للتعليم الاساسى"]
[409,"السيد موسى عبدالسلام ","معلم خبير ","لغة عربية ","الحسينية ","الملكيين للتعليم الاساسى"]
[410,"محمد محمد احمد حموده","معلم اول أ","لغة عربية ","الملكيين البحرية ","الملكيين للتعليم الاساسى"]
[411,"ولاء السيد احمد عبدالجليل ","معلم اول ","اقتصاد ","الملكيين البحرية ","الملكيين للتعليم الاساسى"]
[412,"محمد عبدالحميد ابراهيم السيد ","معلم اول ","معلم فصل ","الحسينية ","الملكيين للتعليم الاساسى"]
[413,"محمد السيد محمد على ","معلم اول ","حاسب ألى","مشأة خليل ","الملكيين للتعليم الاساسى"]
[414,"احمد عبدالودود السيد ","معلم اول ","دراسات ","عزية الحاج مغازى ","الملكيين للتعليم الاساسى"]
[415,"سنية على عبدالعال مصطفى ","معلم اول ","رياض اظفال","الملكيين البحرية ","الملكيين للتعليم الاساسى"]
[416,"فاطمة عبدالرحمن السيد ","معلم ","معلم فصل ","الملكيين البحرية ","الملكيين للتعليم الاساسى"]
[417,"اميرة السيد احمد حسن ","معلم ","اخصائى ","الملكيين البحرية ","الملكيين للتعليم الاساسى"]
[418,"على سالم نصار حسين ","مشرف نشاط ","م نشاط","الملكيين البحرية ","الملكيين للتعليم الاساسى"]
[419,"على محمود على ","مشرف نشاط ","م نشاط","الملكيين البحرية ","الملكيين للتعليم الاساسى"]
[420,"الباز محمد حسن سمرى ","مشرف نشاط ","م نشاط","الملكيين البحرية ","الملكيين للتعليم الاساسى"]
[421,"ايمان السيد احمد حسن ","ادارية ","ادارية ","الملكيين البحرية ","الملكيين للتعليم الاساسى"]
[370,"أحمد محمد احمد خليل","مدير ","-","المناجاه الصغرى ","المناجاه الصغرى للتعليم الاساسى "]
[371,"حسن احمد حسن سيد احمد ","وكيل ","-","المناجاه الصغرى ","المناجاه الصغرى للتعليم الاساسى "]
[372,"نعمات أبو الفتوح محمد ","م خبير","لغة عربية","المناجاه الصغرى ","المناجاه الصغرى للتعليم الاساسى "]
[373,"آيات السعدى على عطاالله ","م خبير","لغة عربية","المناجاه الصغرى ","المناجاه الصغرى للتعليم الاساسى "]
[374,"شويكار فؤاد محمد اسماعيل","م خبير","لغة عربية","المناجاه الصغرى ","المناجاه الصغرى للتعليم الاساسى "]
[375,"أمل عبدالله محمد اسماعيل","م خبير","لغة عربية","المناجاه الصغرى ","المناجاه الصغرى للتعليم الاساسى "]
[376,"جميلة الباز عطاالله محمد ","م خبير","لغة عربية","المناجاه الصغرى ","المناجاه الصغرى للتعليم الاساسى "]
[377,"أفكار عبدالحميد السيد على ","م خبير","لغة عربية","المناجاه الصغرى ","المناجاه الصغرى للتعليم الاساسى "]
[378,"أمانى ابراهيم يوسف ابراهيم"," معلم أول أ","لغة عربية","المناجاه الصغرى ","المناجاه الصغرى للتعليم الاساسى "]
[379,"سماء عبده مسلم سلامة","معم مساعد","لغة عربية","المناجاه الكبرى","المناجاه الصغرى للتعليم الاساسى "]
[380,"فاطمه الباز عطاالله محمد","م خبير","رياضيات","المناجاه الصغرى ","المناجاه الصغرى للتعليم الاساسى "]
[381,"عايده محمد محمد اسماعيل","م خبير","رياضيات","المناجاه الصغرى","المناجاه الصغرى للتعليم الاساسى "]
[382,"أمل محمد حسن احمد","م خبير","رياضيات","المناجاه الصغرى","المناجاه الصغرى للتعليم الاساسى "]
[383,"محاسن عبدالرحمن اسماعيل خليل","م أول أ","رياضيات","المناجاه الصغرى","المناجاه الصغرى للتعليم الاساسى "]
[384,"عبدالسلام عبدالرحمن سليم ","م خبير","دراسات","الحسينية ","المناجاه الصغرى للتعليم الاساسى "]
[385,"محمد  السيد عبدالسلام ابراهيم","معلم مساعد","دراسات","عليوة","المناجاه الصغرى للتعليم الاساسى "]
[386,"صلاح ابراهيم عطاالله محمد","م خبير","علوم","المناجاه الصغرى ","المناجاه الصغرى للتعليم الاساسى "]
[387,"زينات شاكر محمد محمد","كبير معلمين","انجليزى","المناجاه الصغرى","المناجاه الصغرى للتعليم الاساسى "]
[388,"ريمال طلبة احمد محمد ","م أول أ","انجليزى","المناجاه الصغرى","المناجاه الصغرى للتعليم الاساسى "]
[389,"محمود مسعد عبدالحليم السيد","م أول أ","انجليزى","المناجاه الصغرى","المناجاه الصغرى للتعليم الاساسى "]
[390,"غادة سعد محمد احمد","معلم","رياض أطفال","المناجاه الصغرى","المناجاه الصغرى للتعليم الاساسى "]
[391,"مروة السيد عبدالعال محمد ","اخصائى اجتماعى ","-","المناجاه الصغرى ","المناجاه الصغرى للتعليم الاساسى "]
[392,"إيمان عادل عزازى ","اخصائى اجتماعى ","-","سعود","المناجاه الصغرى للتعليم الاساسى "]
[393,"ساميه عبدالرازق عبدالله","اخصائى نفسى","-","سعود","المناجاه الصغرى للتعليم الاساسى "]
[394,"إيمان محمد السيد عبدالعال","مشرف نشاط","-","سعود","المناجاه الصغرى للتعليم الاساسى "]
[395,"دعاء احمد على ","مشرف نشاط","-","المناجاه الصغرى","المناجاه الصغرى للتعليم الاساسى "]
[396,"هبه قطب محمد ابراهيم ","مشرف نشاط","-","المناجاه الصغرى","المناجاه الصغرى للتعليم الاساسى "]
[397,"آمال محمد عبدالرحمن ","فنى وسائل","-","سعود","المناجاه الصغرى للتعليم الاساسى "]
[398,"مرفت رفعت عبدالوهاب ابراهيم","كاتب أول","-","المناجاه الصغرى","المناجاه الصغرى للتعليم الاساسى "]
[399,"مديحه على محمد اسماعيل","كاتب أول","-","المناجاه الصغرى ","المناجاه الصغرى للتعليم الاساسى "]
[400,"عايده عبدالفتاح محمد حسين","كاتب رايع ","-","سعود","المناجاه الصغرى للتعليم الاساسى "]
[92,"احمد محمد سعيد يوسف مرزوق","مدير المدرسة ","لغة انجليزية ","النجيحى","النجيحى للتعليم الاساسى"]
[93,"عبد الله عبد المنعم الشربيني الشربيني","معلم خبير","لغة عربية","النجيحى","النجيحى للتعليم الاساسى"]
[94,"حسن عبد الرحمن عبد العال حسين","معلم خبير","لغة عربية","النجيحى","النجيحى للتعليم الاساسى"]
[95,"محمد محمد جمعه سليمان","معلم خبير","لغة عربية ب","عرب درويش","النجيحى للتعليم الاساسى"]
[96,"ايمان السيد طه على بدير","معلم","لغة عربية","الموالك","النجيحى للتعليم الاساسى"]
[97,"هبة محمد الامين السيد محمد","معلم خبير","لغة انجليزية","غبريال ","النجيحى للتعليم الاساسى"]
[98,"ضياء جمال محمد محمد","معلم أول","دراسات  ب","ام صوير ","النجيحى للتعليم الاساسى"]
[99,"شيماء تهامي غريب عيسى","معلم اول","حاسب آلى ب","عرب درويش","النجيحى للتعليم الاساسى"]
[100,"عاطف الشوادفى محمد ابراهيم","معلم أول","حاسب آلى ب","الزمامته","النجيحى للتعليم الاساسى"]
[101,"سامح فتحي السيد حسين","معلم أول","تربيه فنيه","النجيحى","النجيحى للتعليم الاساسى"]
[102,"احمد السيد حسن حسن","معلم خبير","مجال زراعى ب","المغربي","النجيحى للتعليم الاساسى"]
[103,"هبه شكري عبداللطيف حسين","معلم مساعد","رياض اطفال","ام عجرم","النجيحى للتعليم الاساسى"]
[104,"امل على حسن مصطفى","معلم مساعد","رياض اطفال","عرب درويش","النجيحى للتعليم الاساسى"]
[105,"سلوى عبدالباسط محمود محمد","اخصائي اجتماعى","اخصائي اجتماعى","النجيحى","النجيحى للتعليم الاساسى"]
[106,"نهال عبوده محمد احمد","اخصائي اجتماعى","اخصائي اجتماعى","عرب درويش","النجيحى للتعليم الاساسى"]
[107,"اميره عبدالملك سمعان سلامه","مشرف نشاط","فنى تشغيل  وسائل ","غبريال ","النجيحى للتعليم الاساسى"]
[108,"رانيا فتحى احمد سعد","مشرف نشاط","فنى تشغيل وسائل ","المغربي","النجيحى للتعليم الاساسى"]
[109,"فاطمه عبدالقادر احمد رضوان","مشرف نشاط","فنى تشغيل  وسائل ب","عرب درويش","النجيحى للتعليم الاساسى"]
[110,"صفاء حلمى عطيه زايد","كاتب رابع","ادارى ","جزيرة النص","النجيحى للتعليم الاساسى"]
[111,"هبه محمد عبدالفتاح ابراهيم","كاتب رابع","ادارى ","ام عجرم","النجيحى للتعليم الاساسى"]
[112,"لبنى احمد ابراهيم مرسى","كاتب رابع ","ادارى ","النجيحى","النجيحى للتعليم الاساسى"]
[156,"مجدى أحمد موسى جاد","مدير مدرسة ","-","الاخيوة","أبو سعفان للتعليم الاساسى "]
[157,"سومية السيد طلبة السيد ","معلم أول ","لغة عربية ","الاخيوة","أبو سعفان للتعليم الاساسى "]
[158,"هبه عبدالله ابراهيم ابراهيم ","معلم أول ","لغة عربية ","الجمالية","أبو سعفان للتعليم الاساسى "]
[159,"تهانى عبدالله ابراهيم عبدالله ","معلم أول ","لغة عربية ","الجمالية","أبو سعفان للتعليم الاساسى "]
[160,"دعاء عادل عقيل محمود","معلم ","لغة عربية ","الاخيوة","أبو سعفان للتعليم الاساسى "]
[161,"أمل محمد فتح الدين  محمد عبدالوهاب ","م خبير","انجليزى","الاخيوة","أبو سعفان للتعليم الاساسى "]
[162,"سمر احمد محمد خليل","معلم ","انجليزى","الاخيوة","أبو سعفان للتعليم الاساسى "]
[163,"هويدا عبدالعزيز محمد مبارك ","م خبير","دراسات","الاخيوة","أبو سعفان للتعليم الاساسى "]
[164,"سماح محمد عبدالدايم  ","معلم أول ","دراسات","الاخيوة","أبو سعفان للتعليم الاساسى "]
[165,"محمد أحمد ابراهيم سالم ","معلم أول ","علوم","الحسينية ","أبو سعفان للتعليم الاساسى "]
[166,"نجلاء على احمد ","معلم أول ","علوم","سعود","أبو سعفان للتعليم الاساسى "]
[167,"الحسين محمد السيد يوسف","معلم أول ","رياضيات","الاخيوة","أبو سعفان للتعليم الاساسى "]
[168,"أحمد الشبراوى محمد محمد","معلم اول أ","مجال زراعى","الاخيوة","أبو سعفان للتعليم الاساسى "]
[169,"منى سعيد عبدالعزيز السيد","معلم أول ","حاسب آلى","الاخيوة","أبو سعفان للتعليم الاساسى "]
[170,"مها عبدالعزيز أحمد ","معلم أول أ ","روضة","الاخيوة","أبو سعفان للتعليم الاساسى "]
[171,"أمانى ابدير عبدالسلام ","معلم أول ","روضة","الاخيوة","أبو سعفان للتعليم الاساسى "]
[172,"فاطمة محمد عبدالمجيد مرسى","أخصائى اجتماعى","أخصائى اجتماعى","الاخيوة","أبو سعفان للتعليم الاساسى "]
[173,"سعاد محمد على محمد","أخصائى نفسى ","أخصائى نفسى","الجمالية","أبو سعفان للتعليم الاساسى "]
[174,"عبدالمنعم محمد احمد محمد","مشرف نشاط","-","سعود","أبو سعفان للتعليم الاساسى "]
[175,"أمل عبدالسلام محمود ابراهيم","مشرف نشاط","-","سعود","أبو سعفان للتعليم الاساسى "]
[176,"داليا محمد حنفى ","مشرف نشاط","-","الجمالية","أبو سعفان للتعليم الاساسى "]
[177,"عصام محمد محمد احمد ","ادارى ","-","الاخيوة","أبو سعفان للتعليم الاساسى "]
[241,"اسامه السيد محمد خليل","معلم خبير","قيادة أولى","الاخيوة","أولاد مرعى الابتدائيه"]
[242,"امال احمد ابراهيم سليم","معلم خبير","معلم فصل","الاخيوة","أولاد مرعى الابتدائيه"]
[243,"امل محمد سلامه حسن","معلم خبير","معلم فصل","الاخيوة","أولاد مرعى الابتدائيه"]
[244,"ناصر محمد كامل احمد","معلم خبير","معلم فصل","الاخيوة","أولاد مرعى الابتدائيه"]
[245,"سهير السيد الانور محمود","معلم خبير","لغة عربية","الاخيوة","أولاد مرعى الابتدائيه"]
[246,"هناء عيسى محمد عيسى","معلم خبير","معلم فصل","الاخيوة","أولاد مرعى الابتدائيه"]
[247,"عفاف احمد احمد على غيث","معلم خبير","رياضيات","الاخيوة","أولاد مرعى الابتدائيه"]
[248,"فاطمة عبدالحق السيد عبدالواحد","معلم خبير","معلم فصل","الاخيوة","أولاد مرعى الابتدائيه"]
[249,"زينب مختار متولى رضوان","معلم خبير","معلم فصل","الاخيوة","أولاد مرعى الابتدائيه"]
[250,"سميره محمد الحسينى محمد","معلم خبير","معلم فصل","الاخيوة","أولاد مرعى الابتدائيه"]
[251,"فاديه عبدالله متولى اسماعيل","معلم خبير","معلم فصل","الاخيوة","أولاد مرعى الابتدائيه"]
[252,"السيد احمد محمد على متولى","معلم خبير","معلم فصل","الاخيوة","أولاد مرعى الابتدائيه"]
[253,"هناء احمد عبدالهادى عبدالرحمن ","معلم خبير","لغة انجليزية","الاخيوة","أولاد مرعى الابتدائيه"]
[254,"الهام محمد عبدالحكيم موسى","معلم خبير","حاسب آلي","الاخيوة","أولاد مرعى الابتدائيه"]
[255,"جيهان عزيز ميخائيل اسكندر","معلم خبير","معلم فصل","الاخيوة","أولاد مرعى الابتدائيه"]
[256,"حمدى محمود حسين إسماعيل ","معلم أول أ","معلم فصل","الاخيوة","أولاد مرعى الابتدائيه"]
[257,"تهانى احمد حسن احمد جبر","معلم","لغة عربية","الاخيوة","أولاد مرعى الابتدائيه"]
[258,"كريمه السيد محمد الصادق","معلم","لغة عربية","الاخيوة","أولاد مرعى الابتدائيه"]
[259,"اسماعيل محمد اسماعيل السيد","معلم أول أ","معلم فصل","الاخيوة","أولاد مرعى الابتدائيه"]
[260,"علاء عبدالحليم مكاوى احمد","مشرف نشاط ","الأمن","الاخيوة","أولاد مرعى الابتدائيه"]
[261,"هبة محمد احمد شحاتة","مشرف نشاط ","فني وسائل","الاخيوة","أولاد مرعى الابتدائيه"]
[262,"أماني أحمد سالم ابراهيم طنطاوي","معلم أول أ","لغة عربية","الاخيوة","أولاد مرعى الابتدائيه"]
[263,"سماح متولى ابو العطا متولى","معلم خبير","معلم فصل","الاخيوة","أولاد مرعى الابتدائيه"]
[264,"مريم مصطفى أحمد حسين","معلم","لغة عربية","الاخيوة","أولاد مرعى الابتدائيه"]
[265,"سمية عبد العزيز أحمد دياب","معلم أول أ","دراسات اجتماعية","الاخيوة","أولاد مرعى الابتدائيه"]
[266,"محمد صالح محمد اسماعيل","معلم أول","لغة عربية","الاخيوة","أولاد مرعى الابتدائيه"]
[267,"مها برعي جاد محمد","أخصائي اجتماعي أول أ","أخصائي اجتماعي","الاخيوة","أولاد مرعى الابتدائيه"]
[268,"فاطمة أحمد ابراهيم سليمان","أخصائي مساعد ","أخصائي مساعد","الاخيوة","أولاد مرعى الابتدائيه"]
[269,"هالة السيد حسين صباح","أخصائي نفسي أول أ","أخصائي نفسي أول أ","الاخيوة","أولاد مرعى الابتدائيه"]
[113,"محمد عبدالمنعم جايل محمد","معلم خبير","مدير","الحمر - الظواهرية","بهاء الدين الابتدائيه بتيمور "]
[114,"عادل السيد سباعى عبدالجواد","معلم خبير","رياضيات","الظواهرية","بهاء الدين الابتدائيه بتيمور "]
[115,"صلاح محمد السيد سليم","معلم خبير","رياضيات","تيمور","بهاء الدين الابتدائيه بتيمور "]
[116,"عبدالعزيز اسماعيل عبداللطيف","معلم خبير","لغة عربية","الحمر - الظواهرية","بهاء الدين الابتدائيه بتيمور "]
[117,"جبريل رمضان محمود مرسى","معلم خبير","رياضيات","تيمور","بهاء الدين الابتدائيه بتيمور "]
[118,"نور عبدالفتاح سليمان غانم","معلم خبير","لغة عربية","الظواهرية","بهاء الدين الابتدائيه بتيمور "]
[119,"محمد على موسى الصادق","معلم اول أ","رياضيات","الظواهرية","بهاء الدين الابتدائيه بتيمور "]
[120,"محمود طلب عبدالمجيد بغدادى","معلم اول ","لغة عربية","البغادوة - الظواهرية","بهاء الدين الابتدائيه بتيمور "]
[121,"مارسيل شوقى ابراهيم مشرقى","معلم اول ","رياضيات","عزبة الصعايدة","بهاء الدين الابتدائيه بتيمور "]
[122,"رشا عبدالحليم احمد عبدالعزيز","معلم اول ","علوم","الظواهرية","بهاء الدين الابتدائيه بتيمور "]
[123,"ابراهيم حسن احمد عطية","معلم خبير","اخصائى اجتماعى","الظواهرية","بهاء الدين الابتدائيه بتيمور "]
[124,"روعة محمد محمد الحديدى","معلم مساعد","لغة E","عليوة","بهاء الدين الابتدائيه بتيمور "]
[125,"السيد على جمعة على","معلم مساعد","]دراسات","الظواهرية","بهاء الدين الابتدائيه بتيمور "]
[126,"محمد منصور حسن عبداللطيف","مشرف نشاط","مجال زراعى","تيمور","بهاء الدين الابتدائيه بتيمور "]
[127,"عادل حسين سالم اسماعيل","كاتب ","سكرتير","تيمور","بهاء الدين الابتدائيه بتيمور "]
[128,"هناء السيد موسى عبدالله","فنى تشغيل","أمين تزريدات","الفخفاخ - الظواهرية","بهاء الدين الابتدائيه بتيمور "]
[129,"ثريا فتحى حسين محمد","فنى تشغيل","سئون طلبة","تيمور","بهاء الدين الابتدائيه بتيمور "]
[443,"مجدي عبدالحميد سطام عبدالحميد","معلم خبير","مدير المدرسة","الحسينية","جزيرة عليوة ب الجديده"]
[444,"فتحي يونس عبدالسلام ادريس","معلم خبير","لغة عربية","جزيرة عليوة","جزيرة عليوة ب الجديده"]
[445,"محمد عبدالستار حمودة عمر","معلم خبير","لغة عربية","جزيرة عليوة","جزيرة عليوة ب الجديده"]
[446,"رضا الشوادفي حسن احمد","معلم أول أ","لغة عربية","الحسينية","جزيرة عليوة ب الجديده"]
[447,"محمد عبدالستار إبراهيم  محمد","معلم أول أ","لغة عربية","جزيرة سعود","جزيرة عليوة ب الجديده"]
[448,"مرفت السيد محمد شحاتة","معلم خبير","لغة عربية","جزيرة عليوة","جزيرة عليوة ب الجديده"]
[449,"حنان محمد عبدالعظيم محمد","معلم خبير","لغة عربية","جزيرة عليوة","جزيرة عليوة ب الجديده"]
[450,"هناء كامل محمد عبدالله","معلم خبير","لغة عربية","جزيرة عليوة","جزيرة عليوة ب الجديده"]
[451,"ملكة وهبة عبدالعزيز يوسف","معلم خبير","رياضيات","جزيرة عليوة","جزيرة عليوة ب الجديده"]
[452,"مرفت احمد ابوبكر سيد احمد","معلم أول أ","رياضيات","الحسينية","جزيرة عليوة ب الجديده"]
[453,"لمياء بدر الدين يوسف سالم ","معلم خبير","رياضيات","جزيرة عليوة","جزيرة عليوة ب الجديده"]
[454,"مرفت سليمان عطية السيد","معلم خبير","رياضيات","جزيرة عليوة","جزيرة عليوة ب الجديده"]
[455,"ماجدة جودة مرسي يحي","معلم أول","رياضيات","جزيرة عليوة","جزيرة عليوة ب الجديده"]
[456,"الفت عبدالعال موسي ابراهيم","معلم ","رياضيات","جزيرة عليوة","جزيرة عليوة ب الجديده"]
[457,"تيسير فرج عبدالرحمن عبدالرحيم","معلم أول","رياضيات","جزيرة عليوة","جزيرة عليوة ب الجديده"]
[458,"عبدالله محمد عيدالسلام  ادريس","معلم أول","لغة انجليزية","جزيرة عليوة","جزيرة عليوة ب الجديده"]
[459,"تغريد عبدالفتاح عبدالسميع محمود","معلم أول","لغة انجليزية","الظواهرية","جزيرة عليوة ب الجديده"]
[460,"محمد عبدالعاطي حسن خليفه","معلم خبير","مجال زراعي","جزيرة عليوة","جزيرة عليوة ب الجديده"]
[461,"اسراء حسيني عبدالعزيز احمد","معلم رياض اطفال ","معلم رياض أطفال","جزيرة عليوة","جزيرة عليوة ب الجديده"]
[462,"عبدالحميد إبراهيم عثمان علي","مشرف نشاط","مشرف نشاط","الحسينية","جزيرة عليوة ب الجديده"]
[463,"عبدالسلام عبدالحميد عبدالرحمن محمد","مشرف نشاط","مشرف نشاط","جزيرة عليوة","جزيرة عليوة ب الجديده"]
[464,"همت فهمي احمد محمود","امين معمل ","امين معمل ","جزيرة عليوة ","جزيرة عليوة ب الجديده"]
[465,"سحر حمدي عبدالسميع سيد احمد","امين معمل ","امين معمل ","جزيرة سعود","جزيرة عليوة ب الجديده"]
[466,"نسمه سعد محمد احمد","فني تشغيل ","فني تشغيل ","الحسينية","جزيرة عليوة ب الجديده"]
[491,"مايسه امين محمود على","معلم خبير","معلم فصل","الحسينية","حسين لبن الابتدائيه رقم1"]
[492,"مرفت ابراهيم على عبدالعال","معلم خبير","معلم فصل","الحسينية","حسين لبن الابتدائيه رقم1"]
[493,"ابراهيم اسماعيل عبدالله عبدالرحمن","معلم أول أ","لغة عربية","الحسينية","حسين لبن الابتدائيه رقم1"]
[494,"احسان اسماعيل مكاوى النشاوى","معلم خبير","معلم فصل","الحسينية","حسين لبن الابتدائيه رقم1"]
[495,"احمد ابراهيم عبدالنبى السويركى","معلم خبير","معلم فصل","الحسينية","حسين لبن الابتدائيه رقم1"]
[496,"اشرف فتحى السيد احمد","معلم خبير","معلم فصل","الحسينية","حسين لبن الابتدائيه رقم1"]
[497,"السيد ابراهيم السيد صالح","معلم خبير","معلم فصل","الحسينية","حسين لبن الابتدائيه رقم1"]
[498,"امال ابراهيم عبدالسلام شمس الدين","معلم خبير","معلم فصل","الحسينية","حسين لبن الابتدائيه رقم1"]
[499,"امال حسن خليفه بدران","معلم خبير","معلم فصل","الحسينية","حسين لبن الابتدائيه رقم1"]
[500,"امل عبدالسلام محمد ابوعكر","معلم خبير","معلم فصل","الحسينية","حسين لبن الابتدائيه رقم1"]
[501,"انتصار على محمد على حجاج","معلم خبير","معلم فصل","الحسينية","حسين لبن الابتدائيه رقم1"]
[502,"ايمان السيد ابراهيم حسن","معلم خبير","معلم فصل","الحسينية","حسين لبن الابتدائيه رقم1"]
[503,"حسن محمد محمد ابوالعطا","معلم خبير","معلم فصل","الحسينية","حسين لبن الابتدائيه رقم1"]
[504,"حنان عبدالمنعم محمد عبدالعال","معلم خبير","معلم فصل","الحسينية","حسين لبن الابتدائيه رقم1"]
[505,"رباب ابراهيم فهمي عبدالوهاب","معلم أول","لغة انجليزية","الحسينية","حسين لبن الابتدائيه رقم1"]
[506,"رضه عبدالرحمن حسن ابراهيم","معلم خبير","معلم فصل","الحسينية","حسين لبن الابتدائيه رقم1"]
[507,"ريهام شحاته ابراهيم علي","معلم خبير","معلم فصل","الحسينية","حسين لبن الابتدائيه رقم1"]
[508,"سحر محمود اسماعيل سليمان","معلم خبير","معلم فصل","الحسينية","حسين لبن الابتدائيه رقم1"]
[509,"سعدية احمد محمود عبدالله","معلم خبير","لغة عربية","الحسينية","حسين لبن الابتدائيه رقم1"]
[510,"سناء امين يونس حسن موافى","معلم خبير","معلم فصل","الحسينية","حسين لبن الابتدائيه رقم1"]
[511,"سهام عبدالرحمن محمود احمد","معلم خبير","معلم فصل","الحسينية","حسين لبن الابتدائيه رقم1"]
[512,"شرين عيسى على منصور","معلم أول","دراسات اجتماعية","الحسينية","حسين لبن الابتدائيه رقم1"]
[513,"صلاح الخضر علي شحاتة","معلم خبير","معلم فصل","الحسينية","حسين لبن الابتدائيه رقم1"]
[514,"عبير محمد عبده مصطفى","معلم خبير","معلم فصل","الحسينية","حسين لبن الابتدائيه رقم1"]
[515,"عزة فوزي عبد المجيد عطية شبيب","معلم خبير","مجال زراعي","الحسينية","حسين لبن الابتدائيه رقم1"]
[516,"علياء ابراهيم محمد برعي","معلم أول","امين مكتبة","الحسينية","حسين لبن الابتدائيه رقم1"]
[517,"منصور على ابراهيم السيد","معلم خبير","معلم فصل","الحسينية","حسين لبن الابتدائيه رقم1"]
[518,"مها عبدالله الشوادفى محمد","معلم أول أ","اخصائي نفسي","الحسينية","حسين لبن الابتدائيه رقم1"]
[519,"ناهد السيد احمد خليل","معلم أول","علوم","الحسينية","حسين لبن الابتدائيه رقم1"]
[520,"هبه على ابراهيم عبدالعال البهيمى","معلم خبير","مجال زراعي","الحسينية","حسين لبن الابتدائيه رقم1"]
[521,"وداد احمد محمد احمد","معلم خبير","لغة عربية","الحسينية","حسين لبن الابتدائيه رقم1"]
[522,"وفاء سليمان السيد سويلم","معلم أول","اخصائي اجتماعي","الحسينية","حسين لبن الابتدائيه رقم1"]
[523,"ولاء عماره محمد حميد","معلم","لغة عربية","الحسينية","حسين لبن الابتدائيه رقم1"]
[524,"اناس محمد محمود على","امين معمل","امين معمل","الحسينية","حسين لبن الابتدائيه رقم1"]
[525,"عبدالسلام عبدالمنعم سلامة علي","مشرف نشاط ","مشرف نشاط ","الحسينية","حسين لبن الابتدائيه رقم1"]
[526,"منى منصور على محمد","كاتب رابع","كاتب رابع","الحسينية","حسين لبن الابتدائيه رقم1"]
[527,"نهله عبدالمنعم محمد عطية","كاتب رابع","كاتب رابع","الحسينية","حسين لبن الابتدائيه رقم1"]
[528,"داليا حلمي متولي عبدالهادي","معلم أول","اخصائي صحافة","الحسينية","حسين لبن الابتدائيه رقم1"]
[529,"فاطمة مختار احمد شعبان","فنى تشغيل","فنى تشغيل","الحسينية","حسين لبن الابتدائيه رقم1"]
[530,"مرفت فكرى عبدالحميد ابوالحسن","فنى تشغيل","فنى تشغيل","الحسينية","حسين لبن الابتدائيه رقم1"]
[130,"حمدي عباس يونس أبو زيد","معلم خبير","رياضيات","ابوشوشة سماكين الغرب","حسيني أبوشوشة للتعليم الاساسى"]
[131,"صبري احمد فتحي عبد الرحمن","معلم خبير","رياضيات","ابوشوشة سماكين الغرب","حسيني أبوشوشة للتعليم الاساسى"]
[132,"سليمان محمود عبد السلام العناني","معلم أول أ","رياضيات","السماعنة فاقوس","حسيني أبوشوشة للتعليم الاساسى"]
[133,"تامر محمد حنفي عوض","معلم أول أ","لغة عربية","الديدامون فاقوس","حسيني أبوشوشة للتعليم الاساسى"]
[134,"عايده عبدالرحمن حسن عبدالرحمن","معلم أول أ","لغة عربية","ريزو سماكين الغرب","حسيني أبوشوشة للتعليم الاساسى"]
[135,"محمد عبد الرحمن علي حسن","معلم أول أ","دراسات","ابوشوشة سماكين الغرب","حسيني أبوشوشة للتعليم الاساسى"]
[136,"محمد ثروت الطنطاوي إبراهيم","معلم أول أ","لغة انجليزية","م القاضي مركز فاقوس","حسيني أبوشوشة للتعليم الاساسى"]
[137,"شيماء حسن احمد حلمي","معلم أول أ","اقتصاد منزلي","الختاعنة فاقوس","حسيني أبوشوشة للتعليم الاساسى"]
[138,"شيماء فهمي حسن علي الشحات","معلم أول","حاسب آلي","المصري سماكين الغرب","حسيني أبوشوشة للتعليم الاساسى"]
[139,"ايه منير إبراهيم عبدالعال","معلم مساعد","معلم فصل","نجع عبدالسلام سماكين الغرب","حسيني أبوشوشة للتعليم الاساسى"]
[140,"هالة عبدالباقي اسماعيل حسن","معلم مساعد","معلم فصل","الصوالحية سماكين الغرب","حسيني أبوشوشة للتعليم الاساسى"]
[141,"سحر وجيه عبدالله السيد احمد","معلم مساعد","معلم فصل","سماكين الغرب","حسيني أبوشوشة للتعليم الاساسى"]
[142,"رشا علي محمد سلامه","معلم مساعد","لغة عربية","سماكين الغرب","حسيني أبوشوشة للتعليم الاساسى"]
[143,"أسماء محمد احمد علي شريف","معلم مساعد","معلم فصل","الحسينية","حسيني أبوشوشة للتعليم الاساسى"]
[144,"عصام عبد الرحمن محمد حسين","أخصائي مكتبة أول أ","أخصائي مكتبة","سماكين الغرب","حسيني أبوشوشة للتعليم الاساسى"]
[145,"محمد خميس منصور منصور","أخصائي صحافة واعلام أول","أخصائي صحافة واعلام","المصري سماكين الغرب","حسيني أبوشوشة للتعليم الاساسى"]
[146,"عبير جابر جابر يوسف","اخصائي نفسي اول","اخصائي نفسي","سماكين الغرب","حسيني أبوشوشة للتعليم الاساسى"]
[147,"سونيا حسن علي سيد احمد","اخصائي اجتماعي اول","اخصائي اجتماعي اول","سماكين الغرب","حسيني أبوشوشة للتعليم الاساسى"]
[148,"السيد سعد السيد سيد احمد","امين معمل","امين معمل","منشاة راغب","حسيني أبوشوشة للتعليم الاساسى"]
[149,"محمود محمد عبد الحفيظ محمد","مشرف نشاط","مشرف نشاط","ابوشوشة سماكين الغرب","حسيني أبوشوشة للتعليم الاساسى"]
[150,"هنية إبراهيم السيد إبراهيم","مشرف نشاط","مشرف نشاط","علاق سماكين الغرب","حسيني أبوشوشة للتعليم الاساسى"]
[151,"نادية عبدالله عبدالرحمن عبدالسلام","مشرف نشاط","مشرف نشاط","علاق سماكين الغرب","حسيني أبوشوشة للتعليم الاساسى"]
[152,"فوزية فوزي عبدالمعبود السيد","مشرف نشاط","مشرف نشاط","علاق سماكين الغرب","حسيني أبوشوشة للتعليم الاساسى"]
[153,"سهير توفيق موسى موسى","مشرف نشاط","مشرف نشاط","سماكين الغرب","حسيني أبوشوشة للتعليم الاساسى"]
[154,"سمر إبراهيم لبيب حنا","مشرف نشاط","مشرف نشاط","ابوشوشة سماكين الغرب","حسيني أبوشوشة للتعليم الاساسى"]
[155,"فاطمة احمد السيد إبراهيم","كاتب","كاتب","ابوشوشة سماكين الغرب","حسيني أبوشوشة للتعليم الاساسى"]
[82,"صفاء ابراهيم محمد على","معلم اول أ","حاسب الى","شراره الاخيوه","شراره الابتدائيه"]
[83,"سحر احمد محمود محمد","معلم خبير","معلم فصل","قهبونه الاخيوه","شراره الابتدائيه"]
[84,"صفيه سليمان محمد على","معلم خبير","اقتصاد منزلى","شراره الاخيوه","شراره الابتدائيه"]
[85,"سلوى محمد محمد عبدالواحد","معلم خبير","معلم فصل","شراره الاخيوه","شراره الابتدائيه"]
[86,"رفيده سارى احمد منيع","معلم مساعد","لغه انجليزيه","الحمادين ","شراره الابتدائيه"]
[87,"اسراء احمد عبدالعزيز عبده عبدالله","معلم مساعد","لغه عربيه","قهبونه","شراره الابتدائيه"]
[88,"احمد السيد محمد مرشدى","كاتب رابع",null,"قهبونه","شراره الابتدائيه"]
[89,"رشا اسماعيل ابراهيم على","وسائل تعليميه",null,"شراره الاخيوه","شراره الابتدائيه"]
[90,"سناء محمد عبدالرحمن محمد","وسائل تعليميه",null,"شراره الاخيوه","شراره الابتدائيه"]
[91,"عليا عبدالحميد محمد جادالحق","أمين معمل",null,"شراره الاخيوه","شراره الابتدائيه"]
[40,"محمد عبدالله محمد عبدالله","مدير المدرسة","ـ","تانيس ","شهداء 6 أكتوبر الابتدائيه بتانيس"]
[41,"شعبان عبدالسلام حسن","معلم خبير","رياضيات","كوبرى سليم","شهداء 6 أكتوبر الابتدائيه بتانيس"]
[42,"أشرف محمد حسن هجرس","معلم أول أ","لغة عربية","المساعيد","شهداء 6 أكتوبر الابتدائيه بتانيس"]
[43,"عيد السيد عبدالله عمر","معلم خبير","رياضيات","السعدى","شهداء 6 أكتوبر الابتدائيه بتانيس"]
[44,"عبدالله محمد غريب ","معلم خبير","لغة عربية","الحسينية","شهداء 6 أكتوبر الابتدائيه بتانيس"]
[45,"عادل محمود حسن","معلم أول أ","رياضيات","الفولى","شهداء 6 أكتوبر الابتدائيه بتانيس"]
[46,"اسماعيل السيد أحمد","معلم أول أ","لغة عربية","تانيس","شهداء 6 أكتوبر الابتدائيه بتانيس"]
[47,"أسماء رفعت أحمد","معلم أول أ","لغة عربية","تانيس","شهداء 6 أكتوبر الابتدائيه بتانيس"]
[48,"أحمد نمر سليمان","معلم أول أ","لغة عربية","الفولى","شهداء 6 أكتوبر الابتدائيه بتانيس"]
[49,"إساراء عبدالسلام عبدالفتاح","معلم","لغة انجليزية","جزيرة سعود","شهداء 6 أكتوبر الابتدائيه بتانيس"]
[50,"خلود رشدى البدرى","معلم","لغة انجليزية","السعدى","شهداء 6 أكتوبر الابتدائيه بتانيس"]
[51,"آية هاشم حامد","معلم","عـلـــوم","كوبرى سليم","شهداء 6 أكتوبر الابتدائيه بتانيس"]
[52,"حسين محمود محمد","مشرف نشاط","ـ","تانيس","شهداء 6 أكتوبر الابتدائيه بتانيس"]
[53,"عبده منصور عبدالرحمن","أخصائى إجتماعى","ـ","تانيس","شهداء 6 أكتوبر الابتدائيه بتانيس"]
[54,"محمد اسماعيل عبدالعزيز","م نشاط","ـ","كبارى شلبى","شهداء 6 أكتوبر الابتدائيه بتانيس"]
[55,"إيمان منصور محمدى","معلم","حاسب آلى","تانيس","شهداء 6 أكتوبر الابتدائيه بتانيس"]
[56,"رئيفة عبدالفتاح على","م نشاط","ـ","كوبرى سليم","شهداء 6 أكتوبر الابتدائيه بتانيس"]
[57,"حنان فرج المندوه","فنى تشغيل","ـ","العزبة البيضاء","شهداء 6 أكتوبر الابتدائيه بتانيس"]
[58,"فيفيان فهمى عزيز","فنى تشغيل","ـ","كوبرى سليم","شهداء 6 أكتوبر الابتدائيه بتانيس"]
[59,"شربات عبدالمنعم عبدالمولى","أخصائى نفسى","ـ","كوبرى سليم","شهداء 6 أكتوبر الابتدائيه بتانيس"]
[60,"رضى الشحات بغدادى","فنى تشغيل","ـ","كوبرى سليم","شهداء 6 أكتوبر الابتدائيه بتانيس"]
[61,"إنتصار حسين سالم","أمين معمل","ـ","تانيس","شهداء 6 أكتوبر الابتدائيه بتانيس"]
[62,"فاطمة عطيه السيد","كاتب رابع","ـ","صان الحجر","شهداء 6 أكتوبر الابتدائيه بتانيس"]
[63,"كامليا صابر ابراهيم","كاتب رابع","ـ","كوبرى سليم","شهداء 6 أكتوبر الابتدائيه بتانيس"]
[64,"نها عطيه عبدالحليم","كاتب رابع","ـ","العزبة البيضاء","شهداء 6 أكتوبر الابتدائيه بتانيس"]
[65,"اسماعيل محمود اسماعيل","عامل حرفى","ـ","تانيس","شهداء 6 أكتوبر الابتدائيه بتانيس"]
[322,"عماد محمد عبدالعزيز حسين ","مدير المدرسة ","مدير المدرسة ","ام.صوير _الحسينية ","عبدالرحمن قرمد الاعداديه"]
[323,"ابراهيم السيد ابراهيم ","مسئول التطوير ","أخصائي  تكنولوجى ","الكسايبه الحسينية ","عبدالرحمن قرمد الاعداديه"]
[324,"السيد سليمان على حسن ","معلم اول.ا ","عربي ","م.ابوعامر _الحسينية ","عبدالرحمن قرمد الاعداديه"]
[325,"داليا محمد احمد سيد احمد ","معلم اول.ا ","عربي ","الشرابنة _الحسينية ","عبدالرحمن قرمد الاعداديه"]
[326,"سالم محمد على محمد ","معلم اول.ا ","E","المساعيد _الحسينية ","عبدالرحمن قرمد الاعداديه"]
[327,"رحاب حسين محمد محمد ","معلم اول.ا ","علوم ","ام.صوير _الحسينية ","عبدالرحمن قرمد الاعداديه"]
[328,"فاطمة على عبدالفتاح على ","معلم اول.ا ","حاسب آلي ","الحسينية ","عبدالرحمن قرمد الاعداديه"]
[329,"دعاء محمد غريب على ","معلم اول.ا ","دراسات ","ام عجر _فاقوس ","عبدالرحمن قرمد الاعداديه"]
[330,"حسام احمد محمد زاهر ","أخصائي نفسي ","أخصائي نفسي ","ام.صوير _الحسينية ","عبدالرحمن قرمد الاعداديه"]
[331,"فاطمة محمد محمود محمد ","معلم اول.ا ","رياض أطفال ","الغرقدة_الحسينية","عبدالرحمن قرمد الاعداديه"]
[332,"لوزه محمودى محمد عوض ","معلم اول ","اقتصاد","الحجازية ","عبدالرحمن قرمد الاعداديه"]
[333,"اسلام  عبدالعال حسن رزق ","فنى معمل ثالث ","امين معمل ","الحجازية _الحسينية ","عبدالرحمن قرمد الاعداديه"]
[334,"سماح حسن السيد محمد السيد ","مشرف نشاط ","مشرف نشاط ","ام.صوير _الحسينية ","عبدالرحمن قرمد الاعداديه"]
[335,"امانى محمد صالح سلامه ","فنى تشغيل وسائل تعليمة ","فنى وسائل ","الحجازية _الحسينية ","عبدالرحمن قرمد الاعداديه"]
[336,"عوده خميس محمد خميس ","كاتب خامس ","ادارى","المساعيد _الحسينية ","عبدالرحمن قرمد الاعداديه"]
[337,"حليمه عبده ابراهيم محمد ","كاتب رابع ","اداري ","الحجازية _الحسينية ","عبدالرحمن قرمد الاعداديه"]
[338,"أشرف حسام الدين السيد محمد ","كاتب رابع ","اداري ","الزمامته_الحسينية","عبدالرحمن قرمد الاعداديه"]
[339,"فاضل طلبه حسن ","مدير",null,"منشاه راغب","عبدالكريم منصور الابتدائيه "]
[340," اشرف الشبراوى محمد ","معلم خبير ","لغه عربيه","مساكين الغرب","عبدالكريم منصور الابتدائيه "]
[341,"منال عبدالرحمن منصور","معلم خبير ","لغه عربيه","منشاه خليل","عبدالكريم منصور الابتدائيه "]
[342,"عبدالحميد احمد محمد ","معلم خبير ","لغه عربيه ","منشاه راغب ","عبدالكريم منصور الابتدائيه "]
[343,"محمد شحاته عياده ","معلم خبير ","رياضيات","منشاه راغب ","عبدالكريم منصور الابتدائيه "]
[344,"ثروت محمد عبدالرحمن ","معلم خبير ","م زراعه","منشاه راغب","عبدالكريم منصور الابتدائيه "]
[345,"محمد على عبدالرحمن","معلم خبير ","لغه عربيه","منشاه راغب ","عبدالكريم منصور الابتدائيه "]
[346,"ناديه عبدالقادر حسن","معلم خبير ","لغه عربيه","منشاه راغب","عبدالكريم منصور الابتدائيه "]
[347,"منال عبدالقادر حسن ","معلم اول أ","لغه عربيه ","منشاه خليل ","عبدالكريم منصور الابتدائيه "]
[348,"هشام عبدالستار احمد ","معلم اول ","لغه عربيه","منشاه راغب","عبدالكريم منصور الابتدائيه "]
[349,"نهال ناشد عبدالسلام ","معلم مساعد ","رياضه اطفال","منشاه خليل ","عبدالكريم منصور الابتدائيه "]
[350," ايه عبدالنبي على ","معلم مساعد ","لغه انجليزيه","الحمادين ","عبدالكريم منصور الابتدائيه "]
[351,"زينب عمر احمد ","اخصائيه اجتماعيه ",null,"قهبونه","عبدالكريم منصور الابتدائيه "]
[352,"محمد عطيه محمود ","مشرف نشاط",null,"منشاه خليل ","عبدالكريم منصور الابتدائيه "]
[353,"نعمه محمود محمد ","مشرف نشاط ",null,"منشاه راغب","عبدالكريم منصور الابتدائيه "]
[354,"هشام عبدالقادر على ","مشرف نشاط ",null,"منشاه راغب","عبدالكريم منصور الابتدائيه "]
[355,"حنان عبدالقادر على ","مشرف نشاط",null,"منشاه خليل ","عبدالكريم منصور الابتدائيه "]
[356,"ورد متولى حسن","مشرف نشاط ",null,"منشاه خليل ","عبدالكريم منصور الابتدائيه "]
[357,"عفاف عبدالكريم منصور","مشرف نشاط ",null,"منشاه خليل ","عبدالكريم منصور الابتدائيه "]
[358,"وفاء الشبراوى محمد ","مشرف نشاط ",null,"منشاه راغب","عبدالكريم منصور الابتدائيه "]
[359,"منال يحيي محمود ","إدارى ",null,"منشاه راغب ","عبدالكريم منصور الابتدائيه "]
[360,"غاده محمد عبدالله ","إدارى ",null,"منشاه خليل ","عبدالكريم منصور الابتدائيه "]
[361,"هناء السيد محمد ","إدارى ",null,"منشاه راغب","عبدالكريم منصور الابتدائيه "]
[362,"سعد موسى عبدالعال","إدارى ",null,"منشاه راغب","عبدالكريم منصور الابتدائيه "]
[363,"كمال عبدالغنى حامد ","عامل ",null,"منشاه خليل ","عبدالكريم منصور الابتدائيه "]
[364,"السيد محيسن عبدالله ","عامل",null,"منشاه راغب","عبدالكريم منصور الابتدائيه "]
[188,"محمد عبد الحي محمد محمد","مدير المدرسة","ت اجتماعية","قرية  1 بحر البقر ","عثمان بن عفان الاعداديه"]
[189,"إبراهيم محمد إبراهيم محمد","معلم خبير ","مجال زراعي","بندر الحسينية","عثمان بن عفان الاعداديه"]
[190,"اسامه محمد جاد احمد","معلم أول ","رياضيات","قرية 11 بحر البقر ","عثمان بن عفان الاعداديه"]
[191,"أسامه عبدا لرحمن محمود سعد","معلم أول  ","علوم","قرية 1 بحر البقر ","عثمان بن عفان الاعداديه"]
[192,"احمد عبد الفتاح عبا س ابراهيم","معلم أول  ","حاسب آلي","قرية 1 بحر البقر ","عثمان بن عفان الاعداديه"]
[193,"سميرة محمد احمد حسن","فني تشغيل","فني تشغيل","قرية 3 بحر البقر ","عثمان بن عفان الاعداديه"]
[194,"اسماعيل محمود عثمان صالح","كاتب رابع","إداري","قرية 3 بحرالبقر","عثمان بن عفان الاعداديه"]
[195,"عزيزة شحاتة عبد الرحمن حسن","كاتب رابع","إداري","قرية 2 بحر البقر ","عثمان بن عفان الاعداديه"]
[1,"محمد محمد عبد العال محمد","معلم خبير","عربي","القصاصين","على جبر الابتدائيه"]
[2,"على حسيني محمد ابراهيم ","معلم خبير","رياضيات","الاخيوه","على جبر الابتدائيه"]
[3,"على محمد حسين سيد احمد ","معلم خبير","عربي","الجمالية","على جبر الابتدائيه"]
[4,"رشا الشحات محمد موسى ","كاتب رابع","ـــــــــــــ","واحد بحر البقر","على جبر الابتدائيه"]
[5,"خالد سالم خضر محمد","فني تشغيل","ـــــــــــــ","3 الصالحية ","على جبر الابتدائيه"]
[6,"نهال عبد الحميد محمد محمد ","معلم مساعد","انجليزي","م الكبرى","على جبر الابتدائيه"]
[7,"محمد حسن محمد سلامة","اداري","ـــــــــــــ","برد","على جبر الابتدائيه"]
[178,"رمضان صالح عبدالرحمن عبداللطيف","مدير المدرسة","لغة عربية","قرية 3 بحر البقر ","قرية 4 بحر البقر الاعداديه"]
[179,"امال عبدالحميد احمد محمد","معلم أول أ","لغة عربية","قرية 4 بحر البقر ","قرية 4 بحر البقر الاعداديه"]
[180,"حسين حسن على حسن","معلم أول أ","دراسات اجتماعية","قرية 1 بحر البقر ","قرية 4 بحر البقر الاعداديه"]
[181,"ايمن صالح محمد ابوزيد","معلم أول  ","لغة انجليزية","قرية 4 بحر البقر ","قرية 4 بحر البقر الاعداديه"]
[182,"محمد عوض محمد محمد","معلم أول  ","رياضيات","قرية 2 بحر البقر ","قرية 4 بحر البقر الاعداديه"]
[183,"هانى عبدالحليم محمد متولى","معلم أول  ","حاسب آلي","قرية 3 بحر البقر ","قرية 4 بحر البقر الاعداديه"]
[184,"عبدالستار سليمان محمد شحاته","فنى معمل","فنى معمل","قرية 6 بحرالبقر","قرية 4 بحر البقر الاعداديه"]
[185,"عطوه سعد عبدالرحمن محمد","فنى معمل","فنى معمل","قرية 4 بحر البقر ","قرية 4 بحر البقر الاعداديه"]
[186,"عبدالصبور محمد على محمد","كاتب ثالث","إداري","قرية 2 بحر البقر ","قرية 4 بحر البقر الاعداديه"]
[187,"عبدالرازق الشبراوى عبدالسميع السيد","كاتب ثالث","إداري","قرية 4 بحر البقر ","قرية 4 بحر البقر الاعداديه"]
[365,"فاتن محمد عبدالعاطي ","معلم اول أ","لغة عربية ","4بحر البقر ","قرية 4بحر البقر الابتدائيه"]
[366,"هدي محمد محمد علي ","معلم اول أ","لغة عربية ","4بحر البقر ","قرية 4بحر البقر الابتدائيه"]
[367,"ياسر السيد عبدالسميع ","معلم اول ","رياضيات ","4بحر البقر ","قرية 4بحر البقر الابتدائيه"]
[368,"ابراهيم كمال منصور ","معلم اول ","رياضيات ","4بحر البقر ","قرية 4بحر البقر الابتدائيه"]
[369,"السيد محمد عبدالسميع ","معلم اول ","رياضيات ","4بحر البقر ","قرية 4بحر البقر الابتدائيه"]
[270,"طلعت عبدالرؤف عبدالصمد اسماعيل","مدير المدرسة","مدير المدرسة","منشأة بشارة","منشأة بشارة الابتدائيه رقم1"]
[271,"انتصار على محمد مصطفى","وكيلة","وكيلة","منشأة بشارة","منشأة بشارة الابتدائيه رقم1"]
[272,"عصام عوض عبدالمجيد محمد","معلم خبير","رياضيات","منشأة بشارة","منشأة بشارة الابتدائيه رقم1"]
[273,"عبدالله محمد احمد على ","معلم خبير","رياضيات","منشأة بشارة","منشأة بشارة الابتدائيه رقم1"]
[274,"رياض عبدالمنعم ابراهيم احمد","معلم خبير","لغة عربية","منشأة بشارة","منشأة بشارة الابتدائيه رقم1"]
[275,"صباح عبدالستار سليم صالح","معلم خبير","لغة عربية","منشأة بشارة","منشأة بشارة الابتدائيه رقم1"]
[276,"اسامه ابراهيم حسن احمد","معلم خبير","رياضيات","منشأة بشارة","منشأة بشارة الابتدائيه رقم1"]
[277,"محمد شاكر عراقى محمد","معلم خبير","لغة عربية","منشأة بشارة","منشأة بشارة الابتدائيه رقم1"]
[278,"ثريا محمد ثابت على ","معلم خبير","لغة عربية","منشأة بشارة","منشأة بشارة الابتدائيه رقم1"]
[279,"هانم محمد محمد عبدالله","معلم خبير","لغة عربية","منشأة بشارة","منشأة بشارة الابتدائيه رقم1"]
[280,"نهال محمود عبدالمقصود متولى","معلم أول","دراسات","منشأة بشارة","منشأة بشارة الابتدائيه رقم1"]
[281,"امل على حسن السيد","معلم أول","مجال صناعى","منشأة بشارة","منشأة بشارة الابتدائيه رقم1"]
[282,"عادل محمود السعيد السقا","معلم أول","تربية رياضية","منشأة بشارة","منشأة بشارة الابتدائيه رقم1"]
[283,"منصور محمد السيد على ","فنى تدريس","لغة عربية","منشأة بشارة","منشأة بشارة الابتدائيه رقم1"]
[284,"اميره محمد احمد ابراهيم","معلم أول","لغة انجليزية","منشأة بشارة","منشأة بشارة الابتدائيه رقم1"]
[285,"رشا صلاح الدين عبدالله","صحافة","صحافة","منشأة بشارة","منشأة بشارة الابتدائيه رقم1"]
[286,"فاديه السيد مبروك شبيب","خ نفسى أول أ","خ نفسى أول أ","منشأة بشارة","منشأة بشارة الابتدائيه رقم1"]
[287,"كوثر ابراهيم عبدالسميع","مشرف نشاط","مشرف نشاط","منشأة بشارة","منشأة بشارة الابتدائيه رقم1"]
[288,"عبور فاروق سلامه حسن","فنى تشغيل","فنى تشغيل","منشأة بشارة","منشأة بشارة الابتدائيه رقم1"]
[289,"نهله جابر مراد طريف","فنى تشغيل","فنى تشغيل","منشأة بشارة","منشأة بشارة الابتدائيه رقم1"]
[290,"فوزيه عطيه محمد عطيه","فنى تشغيل","فنى تشغيل","منشأة بشارة","منشأة بشارة الابتدائيه رقم1"]
[577,"السيد ابوالمعاطي على ","مدير المدرسه",null,"م بشارة الحسينيه","منشأة بشارة الابتدائيه رقم2"]
[578,"حنان السيد سالم","وكيل مدرسه",null,"م بشارة  ","منشأة بشارة الابتدائيه رقم2"]
[579,"ابراهيم ابراهيم منصور","معلم خبير ","لفة عربيه ","الحسينية ","منشأة بشارة الابتدائيه رقم2"]
[580,"امال حلمي محمود ","خبير ","لغة غربية","م بشارة  ","منشأة بشارة الابتدائيه رقم2"]
[581,"امل ابراهيم اسماعيل","خبير ","لغة غربية","م بشارة  ","منشأة بشارة الابتدائيه رقم2"]
[582,"امل محمد فوزي","خبير ","لغة غربية","م بشارة  ","منشأة بشارة الابتدائيه رقم2"]
[583,"جمال عبدالله طريف","خبير ","لغة غربية","م بشارة  ","منشأة بشارة الابتدائيه رقم2"]
[584,"حبيبه عبدالعظيم سيداحمد","كبير","لغة غربية","م بشارة  ","منشأة بشارة الابتدائيه رقم2"]
[585,"حنان فرح عطيه ","اخصائي نفسي ",null,"م بشارة  ","منشأة بشارة الابتدائيه رقم2"]
[586,"حنان فوزي رمضان ","مشرف نشاط",null,"م بشارة  ","منشأة بشارة الابتدائيه رقم2"]
[587,"رشا فاروق محمد الصادق","اخصائي نفسي",null,"م بشارة  ","منشأة بشارة الابتدائيه رقم2"]
[588,"رئفة يوسف عبدالمعطي","خبير","دراسات","م بشارة  ","منشأة بشارة الابتدائيه رقم2"]
[589,"سامي عبداللطيف عبدالكريم","معلم اول أ","عربي","م بشارة  ","منشأة بشارة الابتدائيه رقم2"]
[590,"ساميه صالح محمد","خبير ","دين","م بشارة  ","منشأة بشارة الابتدائيه رقم2"]
[591,"سحر السيد عبدالعال ","خبير ","رياضيات","م بشارة  ","منشأة بشارة الابتدائيه رقم2"]
[592,"سحر عبدالعظيم ابوالمعاطي","خبير ","عربي","م بشارة  ","منشأة بشارة الابتدائيه رقم2"]
[593,"سحر نبيل غنيمي","خبير ","عربي","م بشارة  ","منشأة بشارة الابتدائيه رقم2"]
[594,"سعيد محمد ابراهيم","مدرس خط",null,"م بشارة  ","منشأة بشارة الابتدائيه رقم2"]
[595,"سميرة السيد عبدالعال","خبير ","عربي","م بشارة  ","منشأة بشارة الابتدائيه رقم2"]
[596,"شيماء زكريا عبدالقادر ","معلم اول","حاسب","م بشارة  ","منشأة بشارة الابتدائيه رقم2"]
[597,"عبدالله عبدالعزيز محمد عبدالعزيز ","خبير ","بدنية","م بشارة  ","منشأة بشارة الابتدائيه رقم2"]
[598,"عفاف محمد السعيد عطيه ","خبير ","دين","م بشارة  ","منشأة بشارة الابتدائيه رقم2"]
[599,"فاديه سليمان ابراهيم ","أخصائي مكتبه ",null,"م بشارة  ","منشأة بشارة الابتدائيه رقم2"]
[600,"فاطمه محمد محمد حسن ","معلم اول ا","عربي","م بشارة  ","منشأة بشارة الابتدائيه رقم2"]
[601,"فتحيه عبدالرحمن عبدالعال","خبير ","فنية","م بشارة  ","منشأة بشارة الابتدائيه رقم2"]
[602,"ليلي عبدالحليم محمد عبدالعزيز ","خبير ","عربي","م بشارة  ","منشأة بشارة الابتدائيه رقم2"]
[603,"ليلي عبدالعزيز عبدالحميد ","خبير ","دراسات","م بشارة  ","منشأة بشارة الابتدائيه رقم2"]
[604,"محاسن جمعة ابراهيم ","خبير ","عربي","م بشارة  ","منشأة بشارة الابتدائيه رقم2"]
[605,"محمد السيد محمد الخارجه","خبير ","غربي","م بشارة  ","منشأة بشارة الابتدائيه رقم2"]
[606,"محمد شوقي محمد الشافعي ","خبير ","رياضيات","م بشارة  ","منشأة بشارة الابتدائيه رقم2"]
[607,"محمد عبدالعال حسن ","خبير ","رياضيات","م بشارة  ","منشأة بشارة الابتدائيه رقم2"]
[608,"محمد عيسى محمد ","خبير ","علوم","م بشارة  ","منشأة بشارة الابتدائيه رقم2"]
[609,"ملكه احمد علي محمد ","خبير ","علوم","م بشارة  ","منشأة بشارة الابتدائيه رقم2"]
[610,"مني ابراهيم جاد","خبير ","عربي","م بشارة  ","منشأة بشارة الابتدائيه رقم2"]
[611,"مني متولي احمد ","خبير ","عربي","م بشارة  ","منشأة بشارة الابتدائيه رقم2"]
[612,"ناني سلطان عبدالحفيظ ","كبير","عربي","م بشارة  ","منشأة بشارة الابتدائيه رقم2"]
[613,"نجلاء حسني عبدالقادر ","اخصائي نفسي ",null,"م بشارة  ","منشأة بشارة الابتدائيه رقم2"]
[614,"نجوان عبدالعظيم محمد ","خبير ","انجليزي","م بشارة  ","منشأة بشارة الابتدائيه رقم2"]
[615,"نزهه احمد السيد ","خبير ","عربي","م بشارة  ","منشأة بشارة الابتدائيه رقم2"]
[616,"هويدة صديق محمد علي ","خبير ","عربي","م بشارة  ","منشأة بشارة الابتدائيه رقم2"]
[617,"وفاء سعيد عبدالحليم","خبير","ربي","م بشارة  ","منشأة بشارة الابتدائيه رقم2"]
[531,"حسين انور عبدالمعطي ","معلم خبير ","رياضيات ثاني","م راغب","منشأة راغب الابتدائيه القديمه"]
[532,"صلاح ابراهيم محمد ","معلم خبير ","عربي رابع","م راغب","منشأة راغب الابتدائيه القديمه"]
[533,"محمود على محمد ","معلم خبير ","عربي خامس","م راغب","منشأة راغب الابتدائيه القديمه"]
[534,"دولت صالح محمد ","معلم خبير ","عربي ثاني","م راغب","منشأة راغب الابتدائيه القديمه"]
[535,"نعيمة عبدالمعطي اسماعيل ","معلم خبير ","عربي ثالث","م راغب","منشأة راغب الابتدائيه القديمه"]
[536,"حياة محمد عطية ","معلم خبير ","عربي اول","م راغب","منشأة راغب الابتدائيه القديمه"]
[537,"ناهد مصطفى عبده ","معلم خبير ","عربي خامس","م راغب","منشأة راغب الابتدائيه القديمه"]
[538,"فضيلة السيد عبدالعال ","معلم خبير ","رياضيات خامس وسادس","م راغب","منشأة راغب الابتدائيه القديمه"]
[539,"زينب محمد عوض","معلم خبير ","رياضة اول","م راغب","منشأة راغب الابتدائيه القديمه"]
[540,"نادية عبدالقادر سويلم ","معلم اول أ","E ثاني ورابع وخامس وسادس","م راغب","منشأة راغب الابتدائيه القديمه"]
[541,"عبدالرحمن عبدالسلام شحاته","معلم خبير ","عربي سادس","م راغب","منشأة راغب الابتدائيه القديمه"]
[542,"نزيهه ابراهيم على ","معلم خبير ","رياضيات ثالث","م راغب","منشأة راغب الابتدائيه القديمه"]
[543,"امنه كمال على ","م نشاط","م معمل ","م راغب","منشأة راغب الابتدائيه القديمه"]
[544,"عبدالقادر عبدالجليل على ","م نشاط","تطوير ","م راغب","منشأة راغب الابتدائيه القديمه"]
[218,"سلامه محمود محمد محمد","مدير","مدير","سماكين الغرب ابو شوشه","نجع عبدالسلام للتعليم الاساسى"]
[219,"محمود جابر عطوان جاب الله","وكيل","وكيل","سماكين الغرب نجع عبدالسلام","نجع عبدالسلام للتعليم الاساسى"]
[220,"محمد ناجى عوض مبارك","معلم اول ا","لغه عربيه","سماكين الغرب نجع عبدالسلام","نجع عبدالسلام للتعليم الاساسى"]
[221,"محمد يوسف ابراهيم","معلم اول ا","لغه عربيه","سماكين الغرب نجع عبدالسلام","نجع عبدالسلام للتعليم الاساسى"]
[222,"سحر محمد خليل ","معلم خبير","لغه عربيه","سماكين الغرب نجع عبدالسلام","نجع عبدالسلام للتعليم الاساسى"]
[223,"فاديه عبدالسلام اسماعيل عطيه","معلم اول ا","لغه عربيه","سماكين الغرب نجع عبدالسلام","نجع عبدالسلام للتعليم الاساسى"]
[224,"امانى عبدالرحمن عبدالرحمن محمود","معلم اول ","لغه عربيه","سماكين الغرب المصرى","نجع عبدالسلام للتعليم الاساسى"]
[225,"هانم خليل عبدالسلام","معلم اول ","لغه عربيه","سماكين الغرب المصرى","نجع عبدالسلام للتعليم الاساسى"]
[226,"محمد عبدالقادر عبدالقوى","معلم","لغه عربيه","سماكين الغرب ","نجع عبدالسلام للتعليم الاساسى"]
[227,"محمد عبدالفتاح على الشحات","معلم خبير","رياضيات","سماكين الغرب المصرى","نجع عبدالسلام للتعليم الاساسى"]
[228,"عزيزه على عبدالسلام على","معلم خبير","رياضيات","سماكين الغرب نجع عبدالسلام","نجع عبدالسلام للتعليم الاساسى"]
[229,"سامى طلبه على عبدالواحد","معلم خبير","رياضيات","سماكين الغرب المصرى","نجع عبدالسلام للتعليم الاساسى"]
[230,"خوله عبدالحميد محمد فرج","معلم خبير","رياضيات","سماكين الغرب نجع عبدالسلام","نجع عبدالسلام للتعليم الاساسى"]
[231,"على عبدالودود السيد","معلم اول ا","علوم","سماكين الغرب المغازى","نجع عبدالسلام للتعليم الاساسى"]
[232,"عبدالحليم عبدالرحمن على","معلم اول ا","دراسات","سماكين الغرب ابو شوشه","نجع عبدالسلام للتعليم الاساسى"]
[233,"ايهاب رضوان مصطفى ","معلم اول ","تربيه رياضيه","الملكيين القبليه","نجع عبدالسلام للتعليم الاساسى"]
[234,"مها على حسن على","معلم اول ","حايسب آلى","سماكين الغرب المصرى","نجع عبدالسلام للتعليم الاساسى"]
[235,"امانى احمد محمود موسي","معلم اول ","دراسات","سماكين الغرب","نجع عبدالسلام للتعليم الاساسى"]
[236,"لمياء محمد الشحات","اخصائي نفسى","اخصائى نفسى","سماكين الغرب المصرى","نجع عبدالسلام للتعليم الاساسى"]
[237,"سهام متولى محمد يوسف","فنى تشغيل","فنى تشغيل","سماكين الغرب نجع عبدالسلام","نجع عبدالسلام للتعليم الاساسى"]
[238,"اميرة الناجى عوض مبارك","فنى تشغيل","فنى تشغيل","سماكين الغرب نجع عبدالسلام","نجع عبدالسلام للتعليم الاساسى"]
[239,"رندا عدلى عبدالسلام","فنى تشغيل","فنى تشغيل","سماكين الغرب نجع عبدالسلام","نجع عبدالسلام للتعليم الاساسى"]
[240,"محمد صابر احمد برعى","كاتب رابع","كاتب رابع","سماكين الغرب ابو شوشه","نجع عبدالسلام للتعليم الاساسى"]
[545,"شريف عبد الله محمد السيد","معلم اول","لغة عربية","عزبة وكيل النيابة صان الحجر","وكيل النيابة الابتدائيه"]
[546,"محيسن حنفى مهم حنفى","معلم اول ا","لغة عربية","عزبة وكيل النيابة صان الحجر","وكيل النيابة الابتدائيه"]
[547,"محمد عبد القادر السيد","معلم اول","دراسات اجتماعية","الناصرية صان الحجر","وكيل النيابة الابتدائيه"]
[548,"محمد سليمان سالم سلامة","فنى تدريس ","لغة عربية","وكيل النيابة صان الحجر","وكيل النيابة الابتدائيه"]
[549,"محمد رمضان حنفى ","معلم اول","زراعة","وكيل النيابة صان الحجر","وكيل النيابة الابتدائيه"]
[550,"عبد الرحمن ابراهيم الدسوقى","معلم اول ا","لغة عربية","منشاة ابوعامر الحسينية","وكيل النيابة الابتدائيه"]
[551,"يسرى على عبد السلام","فنى تشغيل","فى تشغيل","الناصرية صان الحجر","وكيل النيابة الابتدائيه"]
[552,"عبد العال على عبد العال","معلم مساعد","لغة انجليزية","منشأة ابو عامر الحسينية","وكيل النيابة الابتدائيه"]
[8,"ابراهيم جميل علي مرعي‎","معلم أول أ","مدرس فصل","الحسينية","يوسف عطوان الرسمية الابتدائيه للغات"]
[9,"ايمان السيد محمد محمد عبدالرازق‎","معلم أول أ","لغة عربية ودين","الحسينية","يوسف عطوان الرسمية الابتدائيه للغات"]
[10,"ايمان عبدالله علي مرسي‎","معلم","حاسب آلى متفرغ","الحسينية","يوسف عطوان الرسمية الابتدائيه للغات"]
[11,"ايمان محمد السيد يوسف‎","معلم أول أ","لغة عربية ودين","الحسينية","يوسف عطوان الرسمية الابتدائيه للغات"]
[12,"بسمة عبدالرحمن فتحى عبدالله ","معلم   ","لغة انجليزية ","الحسينيه","يوسف عطوان الرسمية الابتدائيه للغات"]
[13,"جيهان عبدالجواد ابراهيم عكر‎","فنى تشغيل وسائل تعليمية‎","فنى تشغيل وسائل تعليمية‎","الحسينية","يوسف عطوان الرسمية الابتدائيه للغات"]
[14,"حمدى احمد الهادى محمد‎","معلم أول أ","مدرس فصل","الحسينية","يوسف عطوان الرسمية الابتدائيه للغات"]
[15,"حمدي محمد محمد محمد عيسوي‎","معلم أول أ","رياضيات","الحسينية","يوسف عطوان الرسمية الابتدائيه للغات"]
[16,"رحاب فؤاد بيومى موسى‎","معلم خبير","لغة عربية ودين","الحسينية","يوسف عطوان الرسمية الابتدائيه للغات"]
[17,"رشا فرج عبدالقادر السيد‎","معلم","لغة عربية ودين","الحسينية","يوسف عطوان الرسمية الابتدائيه للغات"]
[18,"زينب عبدالرحمن ابراهيم متولى‎","معلم","خط عربى","الحسينية","يوسف عطوان الرسمية الابتدائيه للغات"]
[19,"سالم عبدالمقصود سالم ابراهيم‎","معلم أول أ","رياضيات","الحسينية","يوسف عطوان الرسمية الابتدائيه للغات"]
[20,"سعاد رشاد محمد غريب ابو علوان‎","اعدادى  نشاط‎) ‎أ ‎( ‎مشرف ‎","اعدادى  نشاط‎) ‎أ ‎( ‎مشرف ‎","الحسينية","يوسف عطوان الرسمية الابتدائيه للغات"]
[21,"سلسبيل ابوبكر عبدالحميد يس‎","معلم","لغة عربية ودين","الحسينية","يوسف عطوان الرسمية الابتدائيه للغات"]
[22,"سعاد ابراهيم عبدالرحمن ","عامل خدمات","عامل خدمات","الحسينيه","يوسف عطوان الرسمية الابتدائيه للغات"]
[23,"سميحه رشيد عامر عسر‎","سكرتير رابع‎- ‎كاتب رابع‎","سكرتير رابع‎- ‎كاتب رابع‎","الحسينية","يوسف عطوان الرسمية الابتدائيه للغات"]
[24,"سميه احمد علي عبدالقادر‎","معلم أول أ","لغة عربية ودين","الحسينية","يوسف عطوان الرسمية الابتدائيه للغات"]
[25,"عادل محمد حسن ابراهيم‎","معلم أول","علوم","الحسينية","يوسف عطوان الرسمية الابتدائيه للغات"]
[26,"عبد الستار سليم عبد العاطى ابراهيم‎","معلم خبير","لغة عربية ودين","الحسينية","يوسف عطوان الرسمية الابتدائيه للغات"]
[27,"علاء رشدي ابراهيم السيد‎","معلم أول","لغة إنجليزية","الحسينية","يوسف عطوان الرسمية الابتدائيه للغات"]
[28,"فاتن محمد جابر مصطفى‎","معلم أول","لغة عربية ودين","الحسينية","يوسف عطوان الرسمية الابتدائيه للغات"]
[29,"فرحان ابراهيم السيد عوض‎","معلم أول أ","رياضيات","الحسينية","يوسف عطوان الرسمية الابتدائيه للغات"]
[30,"محمد السعيد احمد محمد‎","معلم خبير","مجال زراعى","الحسينية","يوسف عطوان الرسمية الابتدائيه للغات"]
[31,"محمد السيد تهامي السيد‎","معلم أول","لغة إنجليزية","الحسينية","يوسف عطوان الرسمية الابتدائيه للغات"]
[32,"محمد عبدالعزيز سيداحمد سالم‎","معلم","لغة عربية ودين","الحسينية","يوسف عطوان الرسمية الابتدائيه للغات"]
[33,"نجلاء سعيد عبدالرازق احمد‎","معلم","لغة عربية ودين","الحسينية","يوسف عطوان الرسمية الابتدائيه للغات"]
[34,"رباب عادل اسماعيل احمد ","معلم اول","دراسات اجتماعية","الحسينية","يوسف عطوان الرسمية الابتدائيه للغات"]
[35,"مى ابراهيم احمد سيد احمد","فنى تشغيل","فنى تشغيل","الحسينية","يوسف عطوان الرسمية الابتدائيه للغات"]
[36,"محمد احمد عبدالستار","عامل خدمات","عامل خدمات","الحسينية","يوسف عطوان الرسمية الابتدائيه للغات"]
[37,"هانى السيد على سباعى","عامل خدمات","عامل خدمات","الحسينية","يوسف عطوان الرسمية الابتدائيه للغات"]
[38,"نعمات محمد حسين قناوى","عامل خدمات","عامل خدمات","الحسينية","يوسف عطوان الرسمية الابتدائيه للغات"]
[39,"كريم رشيد عبد العاطي","معلم اول ","انجليزي","السعدى","يوسف عطوان الرسمية الابتدائيه للغات"]
[467,"السيد ابراهيم محمد محمود ","مدير مدرسه","رياضيات","الحسينيه","يوسف عطوان الرسمية الاعداديه للغات "]
[468,"هاله الشبراوي السيد","وكيل","انجليزى","الحسينيه","يوسف عطوان الرسمية الاعداديه للغات "]
[469,"أحمد السيد محمد","معلم","عربي","الحسينيه","يوسف عطوان الرسمية الاعداديه للغات "]
[470,"يحيي محمد عوض الله","كبير معلمين","انجليزي","الحسينيه","يوسف عطوان الرسمية الاعداديه للغات "]
[471,"فادي فاروق غالي ","معلم اول أ","انجليزي","سعود","يوسف عطوان الرسمية الاعداديه للغات "]
[472,"أحمد محمد عبد الصمد","معلم اول","علوم ","الحسينيه","يوسف عطوان الرسمية الاعداديه للغات "]
[473,"ايمان محمد عبد الستار","معلم اول ","فرنساوي","الحسينيه","يوسف عطوان الرسمية الاعداديه للغات "]
[474,"امال عبد السلام محمد ","معلم اول أ","تربية فنية ","الحسينيه","يوسف عطوان الرسمية الاعداديه للغات "]
[475,"مي عبد العزيز احمد ","معلم","تربية فنية","الحسينيه","يوسف عطوان الرسمية الاعداديه للغات "]
[476,"اميمة عبد الشافي يونس","أخصائي خبير","مسرح","الحسينيه","يوسف عطوان الرسمية الاعداديه للغات "]
[477,"حنان علي حسن","أخصائي نفسي اول","أخصائي نفسي","الحسينيه","يوسف عطوان الرسمية الاعداديه للغات "]
[478,"علي السيد قطب علي ","معلم","تربية رياضية","الحسينيه","يوسف عطوان الرسمية الاعداديه للغات "]
[479,"وفاء سويلم السيد مصطفي","معلم","زراعة ","الحسينيه","يوسف عطوان الرسمية الاعداديه للغات "]
[480,"منى على حسن ","معلم","دراسات","الحسينيه","يوسف عطوان الرسمية الاعداديه للغات "]
[481,"رباب عادل اسماعيل احمد الافى","معلم","دراسات","الحسينية","يوسف عطوان الرسمية الاعداديه للغات "]
[482,"اكرام ابراهيم عبدالعال ","اخصائى اول ","اخصائى اجتماعى ","الحسينية ","يوسف عطوان الرسمية الاعداديه للغات "]
[483,"رجب صلاح الدين موسى ","معلم اول ا ","لغة انجليزية ","الظواهرية ","يوسف عطوان الرسمية الاعداديه للغات "]
[484,"على السيد قطب على ","معلم ","تربية رياضية ","الحسينيه ","يوسف عطوان الرسمية الاعداديه للغات "]
[485,"مجدى امام محمد احمد ","معلم ","لغة عربية ودين ","الحسينيه ","يوسف عطوان الرسمية الاعداديه للغات "]
[486,"هدى السيد عبدالعال ","فنى معمل ","فنى معمل ","الحسينيه ","يوسف عطوان الرسمية الاعداديه للغات "]
[487,"وسام فرج عبدالرؤوف  عبدالوهاب ","معلم اول ا ","لغة عربية ودين ","الحسينيه ","يوسف عطوان الرسمية الاعداديه للغات "]
[488,"الشبراوى منصور سالم عبدالعال","كاتب اول",null,"الملكيين القبليه","يوسف عطوان الرسمية الاعداديه للغات "]
[489,"هدي السيد عبدالعال","امين معمل","معمل","الحسينيه","يوسف عطوان الرسمية الاعداديه للغات "]
[490,"سمير سعيد عبده الحبشى","كاتب اول","كاتب","الملكيين القبليه","يوسف عطوان الرسمية الاعداديه للغات "]

{"sheet":"كشف","index":4,"n_rows":12,"n_cols":24,"rows_kept":12,"cut":false,"hidden":false,"merged":[[4,13,4,15],[5,7,7,7],[5,8,7,8],[5,9,7,9],[5,10,7,10],[5,11,7,11],[5,12,7,12],[5,13,7,13],[5,14,7,14],[5,15,7,15],[4,5,4,7],[4,8,4,12],[5,5,7,5],[5,6,7,6],[11,18,18,22],[5,0,7,0],[5,1,7,1],[5,2,7,2],[5,3,7,3],[5,4,7,4]]}
[]
[null,null,null,null,null,null,null,null,null,null,null,null,null,null,null,null,null,null,null,null,null,null,null,"الزقازيق ت س"]
[null,"محافظة ",null,null,null,null,null,null,null,null,null,null,null,null,null,null,null,null,null,null,null,null,null,"السلام الإعدادية"]
[null,"       مديرية ",null,null,null,null,"عدد العاملين",4,null,null,null,null,null,null,null,null,null,null,null,null,null,null,null,"وسط البلد الابتدائية"]
["إدارة",null,null,null,null,null,null,null,"بيانات جميع موظفي مدرسة",null,null,null,null,"وسط البلد الابتدائية"]
["م","الاســـــــــــــــــــــم","الوظيفة","المادة","الإقامة الحالية"," اسم المدرسة ","الادارة","العمل","رقم اللجنة","اسم اللجنة","العمل","رقم اللجنة","اسم اللجنة","العمل","رقم اللجنة","اسم اللجنة"]
[]
[null,null,null,null,null,null,null,null,null,null,null,null,null,null,null,null,"اسم اللجنة"]
[1,"محمد","مدير","مجالات","حى السلام","وسط البلد الابتدائية","الزقازيق"]
[2,"خالد","معلم","عربي","شارع السنترال","وسط البلد الابتدائية","الزقازيق"]
[3,"هادى","معلم","دراسات","الزقازيق","وسط البلد الابتدائية","الزقازيق"]
[4,"السيد","معلم","انجليزي","الزقازيق","وسط البلد الابتدائية","الزقازيق",null,null,null,null,null,null,null,null,null,null,null,"يوجد كود على هذه الورقة عند اختيار اسم المدرسة يتم جلب العامليين من ورقة الموظفين بها مع الترقيم التلقائي المشكلة في ضبط البيانات في مكانها الصحيح اسم المدرسة من ورقة الموظفين في عمود اسم المدرسة واسم الإدارة من نفس الورقة في عمود الإدارة لان اسم المدرسة مرحل لرقم اللجنة اريد اضافة على كود الطباعة هو تفريغ الجدول من البيانات"]

{"sheet":"تجميع","index":5,"n_rows":11,"n_cols":22,"rows_kept":11,"cut":false,"hidden":false,"merged":[[2,0,4,0],[2,1,4,1],[2,2,4,2],[2,3,4,3],[2,4,4,4],[0,10,0,12],[2,5,4,5],[2,6,4,6],[2,7,2,9],[2,10,2,12],[10,18,17,22],[2,13,2,15],[3,7,3,9],[3,10,3,12],[3,13,3,15]]}
[null,null,null,null,null,null,null,null,null,"قطاع :","الزقازيق",null,null,null,null,null,null,null,null,null,null,"هيها"]
[null,null,null,null,null,null,null,null,null,null,null,null,null,null,null,null,null,null,null,null,null,"الزقازيق"]
["م","الاســـــــــــــــــــــم","الوظيفة","المادة","الإقامة الحالية"," اسم المدرسة ","الإدارة"]
[null,null,null,null,null,null,null,5]
[]
[1,"محمد","مدير","عربي","الزقازيق","الزقازيق ت س","الزقازيق"]
[2,"ولييد","معلم","رياضيات","الزقازيق","الزقازيق ت س","الزقازيق"]
[3,"سليم","معلم","رياضيات","الزقازيق","الزقازيق ت س","الزقازيق"]
[4,"وسام","مدير","عربى","قسم اول","السلام الإعدادية","الزقازيق"]
[5,"سمير","معلم","انجليزي","قسم اول","السلام الإعدادية","الزقازيق"]
[null,null,null,null,null,null,null,null,null,null,null,null,null,null,null,null,null,null,"يوجد كود على هذه الورقة ولكن غير مضبوط عند اختيار قطاع لم يتم جلب العامليين بها من ورقة موظفين على نفس الاعمدة مثل ورقة كشف مع الترقيم التلقائي واريد اضافة على كود الطباعة هو تفريغ الجدول من البيانات"]

{"sheet":"مجموع المدارس","index":6,"n_rows":3,"n_cols":3,"rows_kept":3,"cut":false,"hidden":false,"merged":[]}
[null,null,"الزقازيق ت س"]
[null,null,"السلام الإعدادية"]
[null,null,"وسط البلد الابتدائية"]